Workbook

Sheet Front Sheet
B3: Centrica
B5: Transmission Services Charges - calculation model
B6: including the calculation of Reference Prices and Reserve Prices for NTS Entry Capacity and NTS Exit Capacity Charges
B7: Contact for any questions: box.transmissioncapacityandcharging@nationalgrid.com
B8: Contact for any questions relating to the modifications made to the NTS Model by Centrica Plc: Graham.Jack@centrica.com
C9: Comments | F9: This is a copy of a draft NTS Transmission Services Model that calculates charges associated to the Transmission Services as discussed as part of the development of the GB Gas Charging Review (incorporating the EU Network code on Tariffs.) This version is to allow Users to test sentivities of various combinations of potential changes and should not be used as any indication of actual charges.
C18: Disclaimer: This NTS Transmission Services Model is provided to you by Centrica plc solely for the purposes of study in connection with the development of the GB Gas Charging Review and the work associated to the EU Network Code on Tariffs and is not to be used for any commercial purpose. The information that it contains is for guidance purposes only and is given in good faith. However, no warranty or representation or other obligation or commitment of any kind is given by Centrica plc, its employees or advisors as to the accuracy or completeness of any such information. Neither Centrica plc nor its employees or advisors shall be under any liability for any error or misstatement in the information provided. While certain precautions have been taken to detect computer viruses, we cannot guarantee that the Tariff Model is virus-free and Centrica plc shall not be liable for any loss or damage which occurs as a result of any virus. Your use of the Tariff Model shall constitute your acceptance of the above.
B25: Model Software Change History - Specific to this copy produced for the development of the GB Gas Charging Review and incorporating aspects of the EU Tariff Code
E28: Version | F28: Date | I28: Produced by | K28: Description
E29: 1.0 | F29: 2019-02-08 | I29: National Grid | K29: Version Created for study purposes in connection with the development of the GB Gas Charging Review and the work associated to the EU Network Code on Tariffs. This has been tested on Excel 2016 only.
E30: 2.0 | F30: 2019-02-22 | I30: National Grid | K30: Updated for MOD678
E31: 3.0 | F31: 2019-03-15 | I31: National Grid | K31: Model Use and Assumptions sheet added and populated
E32: 3.0B | F32: 2019-03-19 | I32: Centrica | K32: Updated for MOD678B, Tabs with changes from NG model are shaded Orange. Added drop down to use Goalseek instead of the Solver add-in as some users do not have the Solver add in required to calculate adjustments (results may vary slightly between Solver and Goalseek). Added the ability to assess the potential impact on reserve prices caused by an Optional Charge Revenue Recovery Reduction, also added a tab for the Non-Transmission Services Charge populated so that the potential impacts of changed assumptions to the amount of flow attributed to the Optional Charge on the Non-Transmission Services Charge can be modelled

Sheet Model Use & Assumptions
A1: UNC0678B Capacity Weighted Distance Reference Price Model
A3: Model Use:
A5: Before running this model, the "Reset Parameters to Modification UNC0678B" should always be selected. In order to run prices as per UNC0678B it is necessary to run "Calculate Prices" then the "Calculate Adjustements" Steps on the User Inputs worksheet. To run a new set of prices, the "Reset Parameters to Modification UNC0678B" should be selected prior to calculating.
A6: This sensitivity model provides the ability to measure sensitivy of the charges produced based on the UNC Modification 0678B produced by Centrica.
A7: This model does not provide the final charges from any effective date of the modification should it be approved for implementation by Ofgem. It provides illustrative charges based on the inputs used and the calculation (following the methodology of 0678B).
A8: In the event of approval, actual charges will be calculated in line with the methodology required to be followed and a separate model published in line with inputs used so the charges can be replicated.
A9: This model allows the reference prices, reserve prices, Transmission Services Revenue Recovery charges and Non-Transmission Services Charges to be calculated using the inputs available in this model. Please note: inputs required for the modelling of the impacts of the Optional Charge have been provided only for 19/20 and 20/21. Unless addtional optional charge assumptions are inputted to the Optional Charge Assumptions Tab charges created beyond these years will not include the impact of the Optional Charge.
A10: Please note it is not possible to remove capacities associated with the optional charge from the FCC so aggregate Revenue Recovery values across all entry/exit points will initially be overstated we have added summary tables which remove this notional over recovery on a weighted basis
A11: Of note:
A12: Forecasted Contracted Capacity (FCC) - the FCC contained in this model represents a set of values put together in line with the methodology that is appended to UNC0678B. As such data that is used, for example when considering historical sold or flow levels, cannot update for future years as they have not completed. Where this is the case, Gas Year 2017/18 is used. In practise the FCC for any given year will be based on the methodology and any indicatives would be used latest completed Gas Year where appropriate for the indictatives to be modelled.
A13: Capacity split - for illustration the capacity split in this model for the purposes of an illustration of modelling contains an average profile by type of Entry or Exit Point based on the historical sold capacity for Gas Year 2017/18, the latest completed Gas Year at the time of this publication. In practise, when calculating the charges a forecast of the capacity split across the different capacity products will be used by National Grid.
A14: Effective Date - this will in practise have an impact on the reference prices. When a decision is made for UNC0678B, if implemented, the charges will be calculated in line with the proposal to be the payable prices from the effective date.
A15: Entry and Exit Points - the list of Entry and Exit points in this model represent those in the Licence and where they have PARCAs that have reached Stage 2 of the PARCA process. This allows the best possible opportunity to test the sensitivities based on the information known to date. For any actual year to be priced, subject to approval by Ofgem, the Entry and Exit Points would be those required for that particular Gas Year.
A16: Revenue Values provided are the annual values from the Long Term Revenue Report and represent a twelve month revenue for a period April to March. This model is a sensitivity tool and enables a set of numbers to be produced to give an illustration of the charges when linked to a revenue value and also a range of inputs. The final revenue values will be in line with the proposal under UNC0678B.
A19: Assumptions:
A20: The distance matrix is based on physical network as at March 2019 with any relevant new points added in.
A21: The distance matrix is based on the shortest physical path between points in an unconstrained network (where it is possible for capacity to flow from all NTS Entry Points to all NTS Exit points)
A22: Where the Forecast Contracted Capacity for a given point is zero or if the Forecasted Contracted Capacity is less than the Existing Contracts (where Existing contracts have been excluded from the calculations), the calculation results in an error or a negative price respectively. For the benefit of this illustrative model, where this is the case the reference price for the nearest ASEP/NTS Exit Point (in terms of weighted average distance) has been taken and adjusted in line with the pro-rata relationship of the two weighted distances to give the new reference price for the relevant ASEP/NTS Exit Point respectively. In practise, it does not matter which point is used, as using any point and the two weighted distances approach will always yield the same answer. This methodology of ensuring all points receive a reference price is outlined in UNC0678B.
A23: Only one form of Revenue Recovery Adjustment is permitted in line with UNC0678B
A24: This tool is used to model the sensitivities of UNC0678B
A25: Long Term Revenue is per Long term Revenue Forecast at November 2018
A26: The calculation outlined in the "Tariff Network Code Calculation" worksheet (can be visible when worksheet is unhidden) provides the CWD calculation outlined in the Tariff Network Code. This calculation forms the basis of the CWD variant Reference Price Methodology used in UNC0678B.
A27: Distances En-En and Distances Ex-Ex sheets are needed in order to facilitate part of the calculations regarding nearest point. As mentioned above this irrelevant as to which point is selected. It may not show the nearest point geographically in this sensitivity model but the outcome would be identical. This, as far as this sensitivity model is concerned is for information only and information in these two sheets are populated to an extent that enables the model to run and produce prices as expected in line with the required outcome from any calculation.
A28: Populated Optional Charge estimates are based on initial run data produced by National Grid for 19/20 and 20/21 to give an indication of the impacts on CWD charges of the current Optional Charge routes there is a requirement for prior knowledge of potential booking behavouir and straight line distance vs CWD distance for full assessment of impact
A29: Revenue Recovery Split by entry or exit capacity type are included in the Entry/Exit Prices Summary Tab a proportional adjustment is made to certain capacity types in line with the Optional Charge Adjustment as we don’t know the proportion of optional charge recovery that will manifest in each capacity type
A30: User Inputs
A31: Selecting the "Reset Parameters to Modification UNC0678B" will reset the model to the default parameters for UNC0678 (i.e. CWD RPM, Existing Contracts excluded from weighted cost step of RPM, multipliers of 1, etc).
A33: Whilst this model is primarily designed to model the sensitivities as per the proposal outlined in UNC0678B, it provides limited flexibility to update certain inputs.
A34: Of note:
A35: The RPM can be changed to Postage Stamp (all other variables as per UNC0678B) - this will not change the assumptions associated with the Optional Charge adjustment
A36: It is also possible to run the model with the Existing Contracts left in the Weighted Cost step of the RPM to allow the differences to be modelled between excluding (as per 0678B) or including in the Weighted Cost step in the RPM. Revenue Recovery charges remain as per 0678B in method.
A37: Multipliers can be amended
A38: Interruptible discount can be amended

Sheet Tariff Network Code Calculation (hidden)

Sheet Drop Down Inputs (hidden)
G1: Yes_or_No | M1: Model_Type
G2: Yes | M2: CWD
G3: No | M3: PS
A9: Entry_Sheet_Lookup | B9: Exit_Sheet_Lookup
A10: =VLOOKUP('User Inputs'!$C$7,$A$14:$F$27,5,FALSE) -> 19-20 FCC - Entry | B10: =VLOOKUP('User Inputs'!$C$7,$A$14:$F$27,6,FALSE) -> 19-20 FCC - Exit
A14: Gas Year | B14: Gas Year Start | C14: Gas Year End | D14: Number of days in Gas Year | E14: Entry Forecast Sheet | F14: Exit Forecast Sheet
A15: 01-Oct-2018 to 30-Sep-2019 | B15: 2018-10-01 | C15: 2019-09-30 | D15: =C15-B15+1 -> 365 | E15: 18-19 FCC - Entry | F15: 18-19 FCC - Exit
A16: 01-Oct-2019 to 30-Sep-2020 | B16: 2019-10-01 | C16: 2020-09-30 | D16: =C16-B16+1 -> 366 | E16: 19-20 FCC - Entry | F16: 19-20 FCC - Exit
A17: 01-Oct-2020 to 30-Sep-2021 | B17: 2020-10-01 | C17: 2021-09-30 | D17: =C17-B17+1 -> 365 | E17: 20-21 FCC - Entry | F17: 20-21 FCC - Exit
A18: 01-Oct-2021 to 30-Sep-2022 | B18: 2021-10-01 | C18: 2022-09-30 | D18: =C18-B18+1 -> 365 | E18: 21-22 FCC - Entry | F18: 21-22 FCC - Exit
A19: 01-Oct-2022 to 30-Sep-2023 | B19: 2022-10-01 | C19: 2023-09-30 | D19: =C19-B19+1 -> 365 | E19: 22-23 FCC - Entry | F19: 22-23 FCC - Exit
A20: 01-Oct-2023 to 30-Sep-2024 | B20: 2023-10-01 | C20: 2024-09-30 | D20: 366 | E20: 23-24 FCC - Entry | F20: 23-24 FCC - Exit
A21: 01-Oct-2024 to 30-Sep-2025 | B21: 2024-10-01 | C21: 2025-09-30 | D21: 365 | E21: 23-24 FCC - Entry | F21: 23-24 FCC - Exit
A22: 01-Oct-2025 to 30-Sep-2026 | B22: 2025-10-01 | C22: 2026-09-30 | D22: 365 | E22: 23-24 FCC - Entry | F22: 23-24 FCC - Exit
A23: 01-Oct-2026 to 30-Sep-2027 | B23: 2026-10-01 | C23: 2027-09-30 | D23: 365 | E23: 23-24 FCC - Entry | F23: 23-24 FCC - Exit
A24: 01-Oct-2027 to 30-Sep-2028 | B24: 2027-10-01 | C24: 2028-09-30 | D24: 366 | E24: 23-24 FCC - Entry | F24: 23-24 FCC - Exit
A25: 01-Oct-2028 to 30-Sep-2029 | B25: 2028-10-01 | C25: 2029-09-30 | D25: 365 | E25: 23-24 FCC - Entry | F25: 23-24 FCC - Exit
A26: 01-Oct-2029 to 30-Sep-2030 | B26: 2029-10-01 | C26: 2030-09-30 | D26: 365 | E26: 23-24 FCC - Entry | F26: 23-24 FCC - Exit
A27: 01-Oct-2030 to 30-Sep-2031 | B27: 2030-10-01 | C27: 2031-09-30 | D27: 365 | E27: 23-24 FCC - Entry | F27: 23-24 FCC - Exit
A36: Entry_Forecast_Inputs | B36: Exit_Forecast_Inputs
A37: Forecasted Contracted Capacity | B37: Forecasted Contracted Capacity

Sheet Revenue Input (hidden)
A1: Revenue Inputs
A2: Part of the transmission services revenue to be recovered from capacity-based transmission tariffs (£m) | B2: ='User Inputs'!$C$10 -> 675.6463812
A3: Part of the transmission services revenue to be recovered from capacity-based transmission tariffs (£) | B3: =B2*1000000 -> 675646381.2 | E3: Revenue associated to Historical Contracts for Entry Capacity (£) | F3: =HLOOKUP('User Inputs'!$C$7,'Existing Contracts - Entry'!$A$1:$N$31,31,FALSE) -> 56648302.88
A4: Part of the transmission services revenue to be recovered from capacity-based transmission tariffs (p) | B4: =B3*100 -> 6.756463812e+10 | E4: Revenue associated to Historical Contracts for Entry Capacity (p) | F4: =F3*100 -> 5664830288
A5: Part of the transmission services revenue to be recovered from capacity-based transmission tariffs at all entry points (R_∑En) - WITHOUT EXITING CONTRACTS IF APPLICABLE | B5: =(IF('User Inputs'!C23="Yes",((('User Inputs'!C13/100)*B4)-F4),('User Inputs'!C13/100)*B4))+100*(F6+'User Inputs'!C16) -> 2.811748877e+10
A6: Part of the transmission services revenue to be recovered from capacity-based transmission tariffs at all exit points (R_∑Ex) | B6: =(('User Inputs'!D13/100)*B4)+100*(F7+'User Inputs'!D16) -> 3.378231906e+10 | E6: Entry Revenue Adjustment (£) | F6: ='User Inputs'!C64 -> 0
E7: Exit Revenue Adjustment (£) | F7: ='User Inputs'!D64 -> 0
A10: Gas Year | B10: Part of the transmission services revenue to be recovered from capacity-based transmission tariffs (£m)
A11: 01-Oct-2018 to 30-Sep-2019 | B11: 657.5568483
A12: 01-Oct-2019 to 30-Sep-2020 | B12: 675.6463812
A13: 01-Oct-2020 to 30-Sep-2021 | B13: 756.3916003
A14: 01-Oct-2021 to 30-Sep-2022 | B14: 779.0833483
A15: 01-Oct-2022 to 30-Sep-2023 | B15: 802.4558488
A16: 01-Oct-2023 to 30-Sep-2024 | B16: =B15*C16 -> 802.4558488 | C16: 1
A17: 01-Oct-2024 to 30-Sep-2025 | B17: 802.4558488 | C17: 1
A18: 01-Oct-2025 to 30-Sep-2026 | B18: 802.4558488 | C18: 1
A19: 01-Oct-2026 to 30-Sep-2027 | B19: 802.4558488 | C19: 1
A20: 01-Oct-2027 to 30-Sep-2028 | B20: 802.4558488 | C20: 1
A21: 01-Oct-2028 to 30-Sep-2029 | B21: 802.4558488 | C21: 1
A22: 01-Oct-2029 to 30-Sep-2030 | B22: 802.4558488 | C22: 1
A23: 01-Oct-2030 to 30-Sep-2031 | B23: 802.4558488 | C23: 1

Sheet User Inputs
A1: Modification UNC 0678B Capacity Weighted Distance Reference Price Model - for Sensitivity Analysis
C3: Reset Model Parameters | D3: Select Base Reference Price Model
A4: Reset Model | B4: Please click on the Reset button before the initial interation of the model (reset will default to CWD) | D4: CWD
A5: Modelling | B5: If you are unable to use the Solver Macro select Goalseek in this dropdown (the outputs may vary slighty) | D5: Solver
C6: Gas Year | D6: Number of Days in Gas Year
A7: Gas Year | B7: Please select relevant Gas Year from drop down list | C7: 01-Oct-2019 to 30-Sep-2020 | D7: =VLOOKUP(C7,'Drop Down Inputs'!$A$14:$D$29,4,FALSE) -> 366
C9: Revenue (£m)
A10: Revenue | B10: Part of the transmission services revenue to be recovered from capacity-based transmission tariffs (£m) | C10: =VLOOKUP(C7,'Revenue Input'!A10:B25,2,FALSE) -> 675.6463812 | D10: This model is only populated with Optional Charge Assumptions for 19/20 and 20/21 and so should not be used for for further years without populating the Optional Charge Assumptions Tab
C12: Entry | D12: Exit
A13: Revenue Split | B13: Entry/Exit Split: Percentage of Revenue associated to capacity-based transmission tariffs at entry points (note: Exit percentage will automatically calculate) | C13: 50 | D13: =100-C13 -> 50
C15: Entry | D15: Exit
A16: Revenue Reconcilliation | B16: Please enter the relevant Entry or Exit 'K' adjustment figure from year t-2 (£) | C16: 0 | D16: 0
C18: Entry | D18: Exit
A19: Forecast Contracted Capacity | B19: Select scenario from drop down list | C19: Forecasted Contracted Capacity | D19: Forecasted Contracted Capacity
B20: Select a percentage multiplier to apply to the FCC for each NTS Entry/Exit point | C20: 100 | D20: 100
C22: Entry | D22: Exit
A23: Exclude Existing Contracts | B23: Removes Revenue and Capacity levels associated with Historical Contracts from the Target Revenue and Forecast Contracted Capacity respectively. Please note this only adjusts the values included into the RPM. Revenue Recovery charges will be calculated as prescribed in the Rev. Recovery tabs. | C23: Yes | D23: Not Applicable
C25: Entry | D25: Exit
A26: Non-IP Multipliers | B26: Entry: MSEC | C26: 1 | D26: Not Applicable
B27: Entry: DADSEC Exit: Firm | C27: 1 | D27: 1
B28: Entry: WDDSEC | C28: 1 | D28: Not Applicable
C30: Entry | D30: Exit
A31: IP Multipliers | B31: Quarterly standard capacity products | C31: 1 | D31: 1
B32: Monthly standard capacity products | C32: 1 | D32: 1
B33: Daily standard capacity products | C33: 1 | D33: 1
B34: Within-day standard capacity products | C34: 1 | D34: 1
C36: Entry | D36: Exit
A37: Storage Discount | B37: Percentage Discount | C37: 50 | D37: 50
A38: LNG Discount | B38: Percentage Discount | C38: 0 | D38: Not Applicable
C41: Entry | D41: Exit
A42: Probability of Interruption | B42: Please select the relevant tab to complete any required probabilities of interruption
A45: Calculate Prices | B45: Please click on the 'Calculate Prices' button once your inputs have been selected and before proceeding to view the outputs in the following tabs
B46: Once you have received a message to say that prices have been calculated, please click on the relevant button to see the initial Entry or Exit Prices. Please note that these will be overwritten once adjustments have been applied.
C48: Entry | D48: Exit
A49: Estimated Capacity Booking Split | B49: Please select the revelevant tav to adjust the split of the Forecasted Contracted capacity into different auction type
C51: Entry | D51: Exit
A52: Expected Revenue Recovery Results | B52: Total Revenue Recovered (£): | C52: =SUM('Entry Anticipated Rev. Recovery'!Y:Y)+('Revenue Input'!$F$3)-C81 -> 271865887.1 | D52: =SUM('Exit Anticipated Rev. Recovery'!Y:Y)-D81 -> 293472434.8
B53: Target Revenue Recovery for Entry/Exit (£): | C53: =($C$13/100)* 'Revenue Input'!$B$3+C16 -> 337823190.6 | D53: =($D$13/100)* 'Revenue Input'!$B$3+$D$16 -> 337823190.6
B54: Difference to Target Recovery (£): | C54: =C52-C53 -> -65957303.45 | D54: =D52-D53 -> -44350755.84
B55: Difference to Target Recovery (£m): | C55: =C54/1000000 -> -65.95730345 | D55: =D54/1000000 -> -44.35075584
C57: Entry | D57: Exit
A58: Adjustments | B58: Type of adjustment: | C58: Revenue | D58: Revenue
B61: Calculate adjusted prices: | C61: No
C63: Entry | D63: Exit
A64: Outputs | B64: Revenue Input Figure Adjustment (£): | C64: 0 | D64: 0
A68: Adjusted Prices | B68: Please click on the relevant button to see the initial Entry or Exit Prices.
C71: Entry | D71: Exit
A72: If you have reason to believe that your selected FCC is not reflective of anticipated bookings then please use the following tabs to apply further adjustments:
A74: Optional Charge Recovery Calculation | C74: Ratios
A75: 678B Optional Charge Uptake % | C75: =VLOOKUP($C$7,'Optional Charge Assumption'!$B$5:$G$16,3,FALSE) -> 0.2648391455 | D75: =VLOOKUP($C$7,'Optional Charge Assumption'!$B$5:$G$16,5,FALSE) -> 0.1073126417
A76: 678B Optional Charge Ratio | C76: =VLOOKUP($C$7,'Optional Charge Assumption'!$B$5:$G$16,4,FALSE) -> 0.2278789157 | D76: =VLOOKUP($C$7,'Optional Charge Assumption'!$B$5:$G$16,6,FALSE) -> 0.208390967
A77: Notional Total Recovery without optional charge adjustment | C77: =SUM('Entry Anticipated Rev. Recovery'!Y:Y)+('Revenue Input'!$F$3) -> 327187972.9 | D77: =SUM('Exit Anticipated Rev. Recovery'!Y:Y) -> 320717255.4
A78: Notional Total Recovery without optional charge adjustment and existing contract recovery | C78: =SUM('Entry Anticipated Rev. Recovery'!Y:Y) -> 270539670.1
A79: Notional Optional Charge Recovery at CWD Prices | C79: =C78*C75 -> 71649495.05 | D79: =D77*D75 -> 34417015.91
A80: Optional Charge Recovery Adjusted | C80: =C79*C76 -> 16327409.24 | D80: =D79*D76 -> 7172195.226
A81: Optional Charge Revenue Adjustment | C81: =C79-C80 -> 55322085.8 | D81: =D79-D80 -> 27244820.68

Sheet Entry Interruption Prob's (hidden)
A1: Entry Point | B1: Entry Point Type | C1: Pro | D1: A | E1: Di_ex-ante (%)
A2: Avonmouth | B2: =VLOOKUP(A2,'Locations & Types'!$A:$B,2,FALSE) -> STORAGE SITE | C2: 0.1 | D2: 1 | E2: =C2*D2*100 -> 10
A3: Bacton IP | B3: =VLOOKUP(A3,'Locations & Types'!$A:$B,2,FALSE) -> INTERCONNECTION POINT | C3: 0.1 | D3: 1 | E3: =C3*D3*100 -> 10
A4: Bacton UKCS | B4: =VLOOKUP(A4,'Locations & Types'!$A:$B,2,FALSE) -> BEACH TERMINAL | C4: 0.1 | D4: 1 | E4: 10
A5: Burton Point | B5: =VLOOKUP(A5,'Locations & Types'!$A:$B,2,FALSE) -> ONSHORE FIELD | C5: 0.1 | D5: 1 | E5: 10
A6: Barrow | B6: =VLOOKUP(A6,'Locations & Types'!$A:$B,2,FALSE) -> BEACH TERMINAL | C6: 0.1 | D6: 1 | E6: 10
A7: Barton Stacey | B7: =VLOOKUP(A7,'Locations & Types'!$A:$B,2,FALSE) -> STORAGE SITE | C7: 0.1 | D7: 1 | E7: 10
A8: Canonbie | B8: =VLOOKUP(A8,'Locations & Types'!$A:$B,2,FALSE) -> ONSHORE FIELD | C8: 0.1 | D8: 1 | E8: 10
A9: Cheshire | B9: =VLOOKUP(A9,'Locations & Types'!$A:$B,2,FALSE) -> STORAGE SITE | C9: 0.1 | D9: 1 | E9: 10
A10: Caythorpe | B10: =VLOOKUP(A10,'Locations & Types'!$A:$B,2,FALSE) -> STORAGE SITE | C10: 0.1 | D10: 1 | E10: 10
A11: Dynevor Arms | B11: =VLOOKUP(A11,'Locations & Types'!$A:$B,2,FALSE) -> STORAGE SITE | C11: 0.1 | D11: 1 | E11: 10
A12: Easington | B12: =VLOOKUP(A12,'Locations & Types'!$A:$B,2,FALSE) -> BEACH TERMINAL | C12: 0.1 | D12: 1 | E12: 10
A13: Fleetwood | B13: =VLOOKUP(A13,'Locations & Types'!$A:$B,2,FALSE) -> STORAGE SITE | C13: 0.1 | D13: 1 | E13: 10
A14: Glenmavis | B14: =VLOOKUP(A14,'Locations & Types'!$A:$B,2,FALSE) -> STORAGE SITE | C14: 0.1 | D14: 1 | E14: 10
A15: Garton | B15: =VLOOKUP(A15,'Locations & Types'!$A:$B,2,FALSE) -> STORAGE SITE | C15: 0.1 | D15: 1 | E15: 10
A16: Hole House Farm | B16: =VLOOKUP(A16,'Locations & Types'!$A:$B,2,FALSE) -> STORAGE SITE | C16: 0.1 | D16: 1 | E16: 10
A17: Hatfield Moor (onshore) | B17: =VLOOKUP(A17,'Locations & Types'!$A:$B,2,FALSE) -> ONSHORE FIELD | C17: 0.1 | D17: 1 | E17: 10
A18: Hornsea | B18: =VLOOKUP(A18,'Locations & Types'!$A:$B,2,FALSE) -> STORAGE SITE | C18: 0.1 | D18: 1 | E18: 10
A19: Hatfield Moor (storage) | B19: =VLOOKUP(A19,'Locations & Types'!$A:$B,2,FALSE) -> STORAGE SITE | C19: 0.1 | D19: 1 | E19: 10
A20: Isle of Grain | B20: =VLOOKUP(A20,'Locations & Types'!$A:$B,2,FALSE) -> LNG IMPORTATION TERMINAL | C20: 0.1 | D20: 1 | E20: 10
A21: Milford Haven | B21: =VLOOKUP(A21,'Locations & Types'!$A:$B,2,FALSE) -> LNG IMPORTATION TERMINAL | C21: 0.1 | D21: 1 | E21: 10
A22: Partington | B22: =VLOOKUP(A22,'Locations & Types'!$A:$B,2,FALSE) -> STORAGE SITE | C22: 0.1 | D22: 1 | E22: 10
A23: Moffat (irish Interconnector) | B23: =VLOOKUP(A23,'Locations & Types'!$A:$B,2,FALSE) -> INTERCONNECTION POINT | C23: 0.1 | D23: 1 | E23: 10
A24: MURROW | C24: 0.1 | D24: 1 | E24: =C24*D24*100 -> 10
A25: St Fergus | B25: =VLOOKUP(A25,'Locations & Types'!$A:$B,2,FALSE) -> BEACH TERMINAL | C25: 0.1 | D25: 1 | E25: 10
A26: Teesside | B26: =VLOOKUP(A26,'Locations & Types'!$A:$B,2,FALSE) -> BEACH TERMINAL | C26: 0.1 | D26: 1 | E26: 10
A27: Theddlethorpe | B27: =VLOOKUP(A27,'Locations & Types'!$A:$B,2,FALSE) -> BEACH TERMINAL | C27: 0.1 | D27: 1 | E27: 10
A28: Wytch Farm | B28: =VLOOKUP(A28,'Locations & Types'!$A:$B,2,FALSE) -> ONSHORE FIELD | C28: 0.1 | D28: 1 | E28: 10

Sheet Exit Interruption Prob's (hidden)
A1: Exit Point | B1: Exit Point Type | C1: Pro | D1: A | E1: Di_ex-ante (%) | F1: site type
A2: Aberdeen | B2: =VLOOKUP(A2,'Locations & Types'!$E:$F,2,FALSE) -> GDN (SC) | C2: 0.1 | D2: 1 | E2: =C2*D2*100 -> 10 | F2: =VLOOKUP(A2,'Exit Prices'!$A:$B,2,FALSE) -> DNO
A3: Abson (Seabank Power Station phase I) | B3: =VLOOKUP(A3,'Locations & Types'!$E:$F,2,FALSE) -> DC | C3: 0.1 | D3: 1 | E3: =C3*D3*100 -> 10 | F3: =VLOOKUP(A3,'Exit Prices'!$A:$B,2,FALSE) -> POWER STATION
A4: Alrewas (EM) | B4: =VLOOKUP(A4,'Locations & Types'!$E:$F,2,FALSE) -> GDN (EM) | C4: 0.1 | D4: 1 | E4: 10 | F4: =VLOOKUP(A4,'Exit Prices'!$A:$B,2,FALSE) -> DNO
A5: Alrewas (WM) | B5: =VLOOKUP(A5,'Locations & Types'!$E:$F,2,FALSE) -> GDN (WM) | C5: 0.1 | D5: 1 | E5: 10 | F5: =VLOOKUP(A5,'Exit Prices'!$A:$B,2,FALSE) -> DNO
A6: Apache (Sage Black Start) | B6: =VLOOKUP(A6,'Locations & Types'!$E:$F,2,FALSE) -> DC | C6: 0.1 | D6: 1 | E6: 10 | F6: =VLOOKUP(A6,'Exit Prices'!$A:$B,2,FALSE) -> INDUSTRIAL
A7: Armadale | B7: =VLOOKUP(A7,'Locations & Types'!$E:$F,2,FALSE) -> GDN (SC) | C7: 0.1 | D7: 1 | E7: 10 | F7: =VLOOKUP(A7,'Exit Prices'!$A:$B,2,FALSE) -> DNO
A8: Aspley | B8: =VLOOKUP(A8,'Locations & Types'!$E:$F,2,FALSE) -> GDN (WM) | C8: 0.1 | D8: 1 | E8: 10 | F8: =VLOOKUP(A8,'Exit Prices'!$A:$B,2,FALSE) -> DNO
A9: Asselby | B9: =VLOOKUP(A9,'Locations & Types'!$E:$F,2,FALSE) -> GDN (NE) | C9: 0.1 | D9: 1 | E9: 10 | F9: =VLOOKUP(A9,'Exit Prices'!$A:$B,2,FALSE) -> DNO
A10: Audley (NW) | B10: =VLOOKUP(A10,'Locations & Types'!$E:$F,2,FALSE) -> GDN (NW) | C10: 0.1 | D10: 1 | E10: 10 | F10: =VLOOKUP(A10,'Exit Prices'!$A:$B,2,FALSE) -> DNO
A11: Audley (WM) | B11: =VLOOKUP(A11,'Locations & Types'!$E:$F,2,FALSE) -> GDN (WM) | C11: 0.1 | D11: 1 | E11: 10 | F11: =VLOOKUP(A11,'Exit Prices'!$A:$B,2,FALSE) -> DNO
A12: Austrey | B12: =VLOOKUP(A12,'Locations & Types'!$E:$F,2,FALSE) -> GDN (WM) | C12: 0.1 | D12: 1 | E12: 10 | F12: =VLOOKUP(A12,'Exit Prices'!$A:$B,2,FALSE) -> DNO
A13: Avonmouth Max Refill | B13: =VLOOKUP(A13,'Locations & Types'!$E:$F,2,FALSE) -> STORAGE SITE | C13: 0.1 | D13: 1 | E13: 10 | F13: =VLOOKUP(A13,'Exit Prices'!$A:$B,2,FALSE) -> STORAGE SITE
A14: Aylesbeare | B14: =VLOOKUP(A14,'Locations & Types'!$E:$F,2,FALSE) -> GDN (SW) | C14: 0.1 | D14: 1 | E14: 10 | F14: =VLOOKUP(A14,'Exit Prices'!$A:$B,2,FALSE) -> DNO
A15: Bacton | B15: =VLOOKUP(A15,'Locations & Types'!$E:$F,2,FALSE) -> GDN (EA) | C15: 0.1 | D15: 1 | E15: 10 | F15: =VLOOKUP(A15,'Exit Prices'!$A:$B,2,FALSE) -> DNO
A16: Bacton (Baird) | B16: =VLOOKUP(A16,'Locations & Types'!$E:$F,2,FALSE) -> STORAGE SITE | C16: 0.1 | D16: 1 | E16: 10 | F16: =VLOOKUP(A16,'Exit Prices'!$A:$B,2,FALSE) -> STORAGE SITE
A17: Bacton (BBL) | B17: =VLOOKUP(A17,'Locations & Types'!$E:$F,2,FALSE) -> INTERCONNECTOR | C17: 0.1 | D17: 1 | E17: 10 | F17: =VLOOKUP(A17,'Exit Prices'!$A:$B,2,FALSE) -> INTERCONNECTOR
A18: Bacton (Great Yarmouth) | B18: =VLOOKUP(A18,'Locations & Types'!$E:$F,2,FALSE) -> DC | C18: 0.1 | D18: 1 | E18: 10 | F18: =VLOOKUP(A18,'Exit Prices'!$A:$B,2,FALSE) -> POWER STATION
A19: Bacton (IUK) | B19: =VLOOKUP(A19,'Locations & Types'!$E:$F,2,FALSE) -> INTERCONNECTOR | C19: 0.1 | D19: 1 | E19: 10 | F19: =VLOOKUP(A19,'Exit Prices'!$A:$B,2,FALSE) -> INTERCONNECTOR
A20: Baldersby | B20: =VLOOKUP(A20,'Locations & Types'!$E:$F,2,FALSE) -> GDN (NE) | C20: 0.1 | D20: 1 | E20: 10 | F20: =VLOOKUP(A20,'Exit Prices'!$A:$B,2,FALSE) -> DNO
A21: Balgray | B21: =VLOOKUP(A21,'Locations & Types'!$E:$F,2,FALSE) -> GDN (SC) | C21: 0.1 | D21: 1 | E21: 10 | F21: =VLOOKUP(A21,'Exit Prices'!$A:$B,2,FALSE) -> DNO
A22: Barking (Horndon) | B22: =VLOOKUP(A22,'Locations & Types'!$E:$F,2,FALSE) -> DC | C22: 0.1 | D22: 1 | E22: 10 | F22: =VLOOKUP(A22,'Exit Prices'!$A:$B,2,FALSE) -> POWER STATION
A23: Barrow (Bains) | B23: =VLOOKUP(A23,'Locations & Types'!$E:$F,2,FALSE) -> STORAGE SITE | C23: 0.1 | D23: 1 | E23: 10 | F23: =VLOOKUP(A23,'Exit Prices'!$A:$B,2,FALSE) -> STORAGE SITE
A24: Barrow (Black Start) | B24: =VLOOKUP(A24,'Locations & Types'!$E:$F,2,FALSE) -> DC | C24: 0.1 | D24: 1 | E24: 10 | F24: =VLOOKUP(A24,'Exit Prices'!$A:$B,2,FALSE) -> INDUSTRIAL
A25: Barrow (Gateway) | B25: =VLOOKUP(A25,'Locations & Types'!$E:$F,2,FALSE) -> STORAGE SITE | C25: 0.1 | D25: 1 | E25: 10 | F25: =VLOOKUP(A25,'Exit Prices'!$A:$B,2,FALSE) -> STORAGE SITE
A26: Barton Stacey Max Refill (Humbly Grove) | B26: =VLOOKUP(A26,'Locations & Types'!$E:$F,2,FALSE) -> STORAGE SITE | C26: 0.1 | D26: 1 | E26: 10 | F26: =VLOOKUP(A26,'Exit Prices'!$A:$B,2,FALSE) -> STORAGE SITE
A27: Bathgate | B27: =VLOOKUP(A27,'Locations & Types'!$E:$F,2,FALSE) -> GDN (SC) | C27: 0.1 | D27: 1 | E27: 10 | F27: =VLOOKUP(A27,'Exit Prices'!$A:$B,2,FALSE) -> DNO
A28: Billingham ICI (Terra Billingham) | B28: =VLOOKUP(A28,'Locations & Types'!$E:$F,2,FALSE) -> DC | C28: 0.1 | D28: 1 | E28: 10 | F28: =VLOOKUP(A28,'Exit Prices'!$A:$B,2,FALSE) -> INDUSTRIAL
A29: Bishop Auckland | B29: =VLOOKUP(A29,'Locations & Types'!$E:$F,2,FALSE) -> GDN (NO) | C29: 0.1 | D29: 1 | E29: 10 | F29: =VLOOKUP(A29,'Exit Prices'!$A:$B,2,FALSE) -> DNO
A30: Bishop Auckland (test facility) | B30: =VLOOKUP(A30,'Locations & Types'!$E:$F,2,FALSE) -> DC | C30: 0.1 | D30: 1 | E30: 10 | F30: =VLOOKUP(A30,'Exit Prices'!$A:$B,2,FALSE) -> INDUSTRIAL
A31: Blaby | B31: =VLOOKUP(A31,'Locations & Types'!$E:$F,2,FALSE) -> GDN (EM) | C31: 0.1 | D31: 1 | E31: 10 | F31: =VLOOKUP(A31,'Exit Prices'!$A:$B,2,FALSE) -> DNO
A32: Blackness (BP Grangemouth) | B32: =VLOOKUP(A32,'Locations & Types'!$E:$F,2,FALSE) -> DC | C32: 0.1 | D32: 1 | E32: 10 | F32: =VLOOKUP(A32,'Exit Prices'!$A:$B,2,FALSE) -> INDUSTRIAL
A33: Blackrod | B33: =VLOOKUP(A33,'Locations & Types'!$E:$F,2,FALSE) -> GDN (NW) | C33: 0.1 | D33: 1 | E33: 10 | F33: =VLOOKUP(A33,'Exit Prices'!$A:$B,2,FALSE) -> DNO
A34: Blyborough | B34: =VLOOKUP(A34,'Locations & Types'!$E:$F,2,FALSE) -> GDN (EM) | C34: 0.1 | D34: 1 | E34: 10 | F34: =VLOOKUP(A34,'Exit Prices'!$A:$B,2,FALSE) -> DNO
A35: Blyborough (Brigg) | B35: =VLOOKUP(A35,'Locations & Types'!$E:$F,2,FALSE) -> DC | C35: 0.1 | D35: 1 | E35: 10 | F35: =VLOOKUP(A35,'Exit Prices'!$A:$B,2,FALSE) -> POWER STATION
A36: Blyborough (Cottam) | B36: =VLOOKUP(A36,'Locations & Types'!$E:$F,2,FALSE) -> DC | C36: 0.1 | D36: 1 | E36: 10 | F36: =VLOOKUP(A36,'Exit Prices'!$A:$B,2,FALSE) -> POWER STATION
A37: Braishfield A | B37: =VLOOKUP(A37,'Locations & Types'!$E:$F,2,FALSE) -> GDN (SO) | C37: 0.1 | D37: 1 | E37: 10 | F37: =VLOOKUP(A37,'Exit Prices'!$A:$B,2,FALSE) -> DNO
A38: Braishfield B | B38: =VLOOKUP(A38,'Locations & Types'!$E:$F,2,FALSE) -> GDN (SO) | C38: 0.1 | D38: 1 | E38: 10 | F38: =VLOOKUP(A38,'Exit Prices'!$A:$B,2,FALSE) -> DNO
A39: Brine Field (Teesside) Power Station | B39: =VLOOKUP(A39,'Locations & Types'!$E:$F,2,FALSE) -> DC | C39: 0.1 | D39: 1 | E39: 10 | F39: =VLOOKUP(A39,'Exit Prices'!$A:$B,2,FALSE) -> POWER STATION
A40: Brisley | B40: =VLOOKUP(A40,'Locations & Types'!$E:$F,2,FALSE) -> GDN (EA) | C40: 0.1 | D40: 1 | E40: 10 | F40: =VLOOKUP(A40,'Exit Prices'!$A:$B,2,FALSE) -> DNO
A41: Broxburn | B41: =VLOOKUP(A41,'Locations & Types'!$E:$F,2,FALSE) -> GDN (SC) | C41: 0.1 | D41: 1 | E41: 10 | F41: =VLOOKUP(A41,'Exit Prices'!$A:$B,2,FALSE) -> DNO
A42: Burley Bank | B42: =VLOOKUP(A42,'Locations & Types'!$E:$F,2,FALSE) -> GDN (NE) | C42: 0.1 | D42: 1 | E42: 10 | F42: =VLOOKUP(A42,'Exit Prices'!$A:$B,2,FALSE) -> DNO
A43: Burnhervie | B43: =VLOOKUP(A43,'Locations & Types'!$E:$F,2,FALSE) -> GDN (SC) | C43: 0.1 | D43: 1 | E43: 10 | F43: =VLOOKUP(A43,'Exit Prices'!$A:$B,2,FALSE) -> DNO
A44: Burton Point (Connahs Quay) | B44: =VLOOKUP(A44,'Locations & Types'!$E:$F,2,FALSE) -> DC | C44: 0.1 | D44: 1 | E44: 10 | F44: =VLOOKUP(A44,'Exit Prices'!$A:$B,2,FALSE) -> POWER STATION
A45: Caldecott | B45: =VLOOKUP(A45,'Locations & Types'!$E:$F,2,FALSE) -> GDN (EM) | C45: 0.1 | D45: 1 | E45: 10 | F45: =VLOOKUP(A45,'Exit Prices'!$A:$B,2,FALSE) -> DNO
A46: Caldecott (Corby Power Station) | B46: =VLOOKUP(A46,'Locations & Types'!$E:$F,2,FALSE) -> DC | C46: 0.1 | D46: 1 | E46: 10 | F46: =VLOOKUP(A46,'Exit Prices'!$A:$B,2,FALSE) -> POWER STATION
A47: Cambridge | B47: =VLOOKUP(A47,'Locations & Types'!$E:$F,2,FALSE) -> GDN (EA) | C47: 0.1 | D47: 1 | E47: 10 | F47: =VLOOKUP(A47,'Exit Prices'!$A:$B,2,FALSE) -> DNO
A48: Careston | B48: =VLOOKUP(A48,'Locations & Types'!$E:$F,2,FALSE) -> GDN (SC) | C48: 0.1 | D48: 1 | E48: 10 | F48: =VLOOKUP(A48,'Exit Prices'!$A:$B,2,FALSE) -> DNO
A49: Carrington (Partington) Power Station | B49: =VLOOKUP(A49,'Locations & Types'!$E:$F,2,FALSE) -> DC | C49: 0.1 | D49: 1 | E49: 10 | F49: =VLOOKUP(A49,'Exit Prices'!$A:$B,2,FALSE) -> POWER STATION
A50: Caythorpe | B50: =VLOOKUP(A50,'Locations & Types'!$E:$F,2,FALSE) -> STORAGE SITE | C50: 0.1 | D50: 1 | E50: 10 | F50: =VLOOKUP(A50,'Exit Prices'!$A:$B,2,FALSE) -> STORAGE SITE
A51: Centrax Industrial | B51: =VLOOKUP(A51,'Locations & Types'!$E:$F,2,FALSE) -> DC | C51: 0.1 | D51: 1 | E51: 10 | F51: =VLOOKUP(A51,'Exit Prices'!$A:$B,2,FALSE) -> INDUSTRIAL
A52: Cirencester | B52: =VLOOKUP(A52,'Locations & Types'!$E:$F,2,FALSE) -> GDN (SW) | C52: 0.1 | D52: 1 | E52: 10 | F52: =VLOOKUP(A52,'Exit Prices'!$A:$B,2,FALSE) -> DNO
A53: Cockenzie Power Station | B53: =VLOOKUP(A53,'Locations & Types'!$E:$F,2,FALSE) -> DC | C53: 0.1 | D53: 1 | E53: 10 | F53: =VLOOKUP(A53,'Exit Prices'!$A:$B,2,FALSE) -> POWER STATION
A54: Coffinswell | B54: =VLOOKUP(A54,'Locations & Types'!$E:$F,2,FALSE) -> GDN (SW) | C54: 0.1 | D54: 1 | E54: 10 | F54: =VLOOKUP(A54,'Exit Prices'!$A:$B,2,FALSE) -> DNO
A55: Coldstream | B55: =VLOOKUP(A55,'Locations & Types'!$E:$F,2,FALSE) -> GDN (NO) | C55: 0.1 | D55: 1 | E55: 10 | F55: =VLOOKUP(A55,'Exit Prices'!$A:$B,2,FALSE) -> DNO
A56: Corbridge | B56: =VLOOKUP(A56,'Locations & Types'!$E:$F,2,FALSE) -> GDN (NO) | C56: 0.1 | D56: 1 | E56: 10 | F56: =VLOOKUP(A56,'Exit Prices'!$A:$B,2,FALSE) -> DNO
A57: Coryton 2 (Thames Haven) Power Station | B57: =VLOOKUP(A57,'Locations & Types'!$E:$F,2,FALSE) -> DC | C57: 0.1 | D57: 1 | E57: 10 | F57: =VLOOKUP(A57,'Exit Prices'!$A:$B,2,FALSE) -> POWER STATION
A58: Cowpen Bewley | B58: =VLOOKUP(A58,'Locations & Types'!$E:$F,2,FALSE) -> GDN (NO) | C58: 0.1 | D58: 1 | E58: 10 | F58: =VLOOKUP(A58,'Exit Prices'!$A:$B,2,FALSE) -> DNO
A59: Crawley Down | B59: =VLOOKUP(A59,'Locations & Types'!$E:$F,2,FALSE) -> GDN (SO) | C59: 0.1 | D59: 1 | E59: 10 | F59: =VLOOKUP(A59,'Exit Prices'!$A:$B,2,FALSE) -> DNO
A60: Deborah Storage (Bacton) | B60: =VLOOKUP(A60,'Locations & Types'!$E:$F,2,FALSE) -> STORAGE SITE | C60: 0.1 | D60: 1 | E60: 10 | F60: =VLOOKUP(A60,'Exit Prices'!$A:$B,2,FALSE) -> STORAGE SITE
A61: Deeside | B61: =VLOOKUP(A61,'Locations & Types'!$E:$F,2,FALSE) -> DC | C61: 0.1 | D61: 1 | E61: 10 | F61: =VLOOKUP(A61,'Exit Prices'!$A:$B,2,FALSE) -> POWER STATION
A62: Didcot | B62: =VLOOKUP(A62,'Locations & Types'!$E:$F,2,FALSE) -> DC | C62: 0.1 | D62: 1 | E62: 10 | F62: =VLOOKUP(A62,'Exit Prices'!$A:$B,2,FALSE) -> POWER STATION
A63: Dowlais | B63: =VLOOKUP(A63,'Locations & Types'!$E:$F,2,FALSE) -> GDN (WS) | C63: 0.1 | D63: 1 | E63: 10 | F63: =VLOOKUP(A63,'Exit Prices'!$A:$B,2,FALSE) -> DNO
A64: Drakelow Power Station | B64: =VLOOKUP(A64,'Locations & Types'!$E:$F,2,FALSE) -> DC | C64: 0.1 | D64: 1 | E64: 10 | F64: =VLOOKUP(A64,'Exit Prices'!$A:$B,2,FALSE) -> POWER STATION
A65: Drointon | B65: =VLOOKUP(A65,'Locations & Types'!$E:$F,2,FALSE) -> GDN (EM) | C65: 0.1 | D65: 1 | E65: 10 | F65: =VLOOKUP(A65,'Exit Prices'!$A:$B,2,FALSE) -> DNO
A66: Drum | B66: =VLOOKUP(A66,'Locations & Types'!$E:$F,2,FALSE) -> GDN (SC) | C66: 0.1 | D66: 1 | E66: 10 | F66: =VLOOKUP(A66,'Exit Prices'!$A:$B,2,FALSE) -> DNO
A67: Dyffryn Clydach | B67: =VLOOKUP(A67,'Locations & Types'!$E:$F,2,FALSE) -> GDN (WS) | C67: 0.1 | D67: 1 | E67: =C67*D67*100 -> 10 | F67: =VLOOKUP(A67,'Exit Prices'!$A:$B,2,FALSE) -> DNO
A68: Dynevor Max Refill | B68: =VLOOKUP(A68,'Locations & Types'!$E:$F,2,FALSE) -> STORAGE SITE | C68: 0.1 | D68: 1 | E68: 10 | F68: =VLOOKUP(A68,'Exit Prices'!$A:$B,2,FALSE) -> STORAGE SITE
A69: Eastoft (Keadby Blackstart) | B69: =VLOOKUP(A69,'Locations & Types'!$E:$F,2,FALSE) -> DC | C69: 0.1 | D69: 1 | E69: 10 | F69: =VLOOKUP(A69,'Exit Prices'!$A:$B,2,FALSE) -> POWER STATION
A70: Eastoft (Keadby) | B70: =VLOOKUP(A70,'Locations & Types'!$E:$F,2,FALSE) -> DC | C70: 0.1 | D70: 1 | E70: 10 | F70: =VLOOKUP(A70,'Exit Prices'!$A:$B,2,FALSE) -> POWER STATION
A71: Easton Grey | B71: =VLOOKUP(A71,'Locations & Types'!$E:$F,2,FALSE) -> GDN (SW) | C71: 0.1 | D71: 1 | E71: 10 | F71: =VLOOKUP(A71,'Exit Prices'!$A:$B,2,FALSE) -> DNO
A72: Ecclestone | B72: =VLOOKUP(A72,'Locations & Types'!$E:$F,2,FALSE) -> GDN (NW) | C72: 0.1 | D72: 1 | E72: 10 | F72: =VLOOKUP(A72,'Exit Prices'!$A:$B,2,FALSE) -> DNO
A73: Elton | B73: =VLOOKUP(A73,'Locations & Types'!$E:$F,2,FALSE) -> GDN (NO) | C73: 0.1 | D73: 1 | E73: 10 | F73: =VLOOKUP(A73,'Exit Prices'!$A:$B,2,FALSE) -> DNO
A74: Enron Billingham | B74: =VLOOKUP(A74,'Locations & Types'!$E:$F,2,FALSE) -> DC | C74: 0.1 | D74: 1 | E74: 10 | F74: =VLOOKUP(A74,'Exit Prices'!$A:$B,2,FALSE) -> POWER STATION
A75: Epping Green (Enfield Energy, aka Brimsdown) | B75: =VLOOKUP(A75,'Locations & Types'!$E:$F,2,FALSE) -> DC | C75: 0.1 | D75: 1 | E75: 10 | F75: =VLOOKUP(A75,'Exit Prices'!$A:$B,2,FALSE) -> POWER STATION
A76: Evesham | B76: =VLOOKUP(A76,'Locations & Types'!$E:$F,2,FALSE) -> GDN (SW) | C76: 0.1 | D76: 1 | E76: 10 | F76: =VLOOKUP(A76,'Exit Prices'!$A:$B,2,FALSE) -> DNO
A77: Farningham | B77: =VLOOKUP(A77,'Locations & Types'!$E:$F,2,FALSE) -> GDN (SE) | C77: 0.1 | D77: 1 | E77: 10 | F77: =VLOOKUP(A77,'Exit Prices'!$A:$B,2,FALSE) -> DNO
A78: Farningham B | B78: =VLOOKUP(A78,'Locations & Types'!$E:$F,2,FALSE) -> GDN (SE) | C78: 0.1 | D78: 1 | E78: 10 | F78: =VLOOKUP(A78,'Exit Prices'!$A:$B,2,FALSE) -> DNO
A79: Ferny Knoll (AM Paper) | B79: =VLOOKUP(A79,'Locations & Types'!$E:$F,2,FALSE) -> DC | C79: 0.1 | D79: 1 | E79: 10 | F79: =VLOOKUP(A79,'Exit Prices'!$A:$B,2,FALSE) -> INDUSTRIAL
A80: Fiddington | B80: =VLOOKUP(A80,'Locations & Types'!$E:$F,2,FALSE) -> GDN (SW) | C80: 0.1 | D80: 1 | E80: 10 | F80: =VLOOKUP(A80,'Exit Prices'!$A:$B,2,FALSE) -> DNO
A81: Ganstead | B81: =VLOOKUP(A81,'Locations & Types'!$E:$F,2,FALSE) -> GDN (NE) | C81: 0.1 | D81: 1 | E81: 10 | F81: =VLOOKUP(A81,'Exit Prices'!$A:$B,2,FALSE) -> DNO
A82: Garton Max Refill (Aldbrough) | B82: =VLOOKUP(A82,'Locations & Types'!$E:$F,2,FALSE) -> STORAGE SITE | C82: 0.1 | D82: 1 | E82: 10 | F82: =VLOOKUP(A82,'Exit Prices'!$A:$B,2,FALSE) -> STORAGE SITE
A83: Gilwern | B83: =VLOOKUP(A83,'Locations & Types'!$E:$F,2,FALSE) -> GDN (WS) | C83: 0.1 | D83: 1 | E83: 10 | F83: =VLOOKUP(A83,'Exit Prices'!$A:$B,2,FALSE) -> DNO
A84: Glenmavis | B84: =VLOOKUP(A84,'Locations & Types'!$E:$F,2,FALSE) -> GDN (SC) | C84: 0.1 | D84: 1 | E84: 10 | F84: =VLOOKUP(A84,'Exit Prices'!$A:$B,2,FALSE) -> DNO
A85: Glenmavis Max Refill | B85: =VLOOKUP(A85,'Locations & Types'!$E:$F,2,FALSE) -> STORAGE SITE | C85: 0.1 | D85: 1 | E85: 10 | F85: =VLOOKUP(A85,'Exit Prices'!$A:$B,2,FALSE) -> STORAGE SITE
A86: Goole (Guardian Glass) | B86: =VLOOKUP(A86,'Locations & Types'!$E:$F,2,FALSE) -> DC | C86: 0.1 | D86: 1 | E86: 10 | F86: =VLOOKUP(A86,'Exit Prices'!$A:$B,2,FALSE) -> INDUSTRIAL
A87: Gosberton | B87: =VLOOKUP(A87,'Locations & Types'!$E:$F,2,FALSE) -> GDN (EM) | C87: 0.1 | D87: 1 | E87: 10 | F87: =VLOOKUP(A87,'Exit Prices'!$A:$B,2,FALSE) -> DNO
A88: Gowkhall (Longannet) | B88: =VLOOKUP(A88,'Locations & Types'!$E:$F,2,FALSE) -> DC | C88: 0.1 | D88: 1 | E88: 10 | F88: =VLOOKUP(A88,'Exit Prices'!$A:$B,2,FALSE) -> POWER STATION
A89: Grain Power Station | B89: =VLOOKUP(A89,'Locations & Types'!$E:$F,2,FALSE) -> DC | C89: 0.1 | D89: 1 | E89: 10 | F89: =VLOOKUP(A89,'Exit Prices'!$A:$B,2,FALSE) -> POWER STATION
A90: Great Wilbraham | B90: =VLOOKUP(A90,'Locations & Types'!$E:$F,2,FALSE) -> GDN (EA) | C90: 0.1 | D90: 1 | E90: 10 | F90: =VLOOKUP(A90,'Exit Prices'!$A:$B,2,FALSE) -> DNO
A91: Guyzance | B91: =VLOOKUP(A91,'Locations & Types'!$E:$F,2,FALSE) -> GDN (NO) | C91: 0.1 | D91: 1 | E91: 10 | F91: =VLOOKUP(A91,'Exit Prices'!$A:$B,2,FALSE) -> DNO
A92: Hardwick | B92: =VLOOKUP(A92,'Locations & Types'!$E:$F,2,FALSE) -> GDN (SO) | C92: 0.1 | D92: 1 | E92: 10 | F92: =VLOOKUP(A92,'Exit Prices'!$A:$B,2,FALSE) -> DNO
A93: Harwarden (Shotton, aka Shotton Paper) | B93: =VLOOKUP(A93,'Locations & Types'!$E:$F,2,FALSE) -> DC | C93: 0.1 | D93: 1 | E93: 10 | F93: =VLOOKUP(A93,'Exit Prices'!$A:$B,2,FALSE) -> INDUSTRIAL
A94: Hatfield Moor Max Refill | B94: =VLOOKUP(A94,'Locations & Types'!$E:$F,2,FALSE) -> STORAGE SITE | C94: 0.1 | D94: 1 | E94: 10 | F94: =VLOOKUP(A94,'Exit Prices'!$A:$B,2,FALSE) -> STORAGE SITE
A95: Hatfield Power Station | B95: =VLOOKUP(A95,'Locations & Types'!$E:$F,2,FALSE) -> DC | C95: 0.1 | D95: 1 | E95: 10 | F95: =VLOOKUP(A95,'Exit Prices'!$A:$B,2,FALSE) -> POWER STATION
A96: Hill Top Farm (Hole House Farm) | B96: =VLOOKUP(A96,'Locations & Types'!$E:$F,2,FALSE) -> STORAGE SITE | C96: 0.1 | D96: 1 | E96: 10 | F96: =VLOOKUP(A96,'Exit Prices'!$A:$B,2,FALSE) -> STORAGE SITE
A97: Hole House Max Refill | B97: =VLOOKUP(A97,'Locations & Types'!$E:$F,2,FALSE) -> STORAGE SITE | C97: 0.1 | D97: 1 | E97: 10 | F97: =VLOOKUP(A97,'Exit Prices'!$A:$B,2,FALSE) -> STORAGE SITE
A98: Holford | B98: =VLOOKUP(A98,'Locations & Types'!$E:$F,2,FALSE) -> STORAGE SITE | C98: 0.1 | D98: 1 | E98: 10 | F98: =VLOOKUP(A98,'Exit Prices'!$A:$B,2,FALSE) -> STORAGE SITE
A99: Hollingsgreen (Hays Chemicals) | B99: =VLOOKUP(A99,'Locations & Types'!$E:$F,2,FALSE) -> DC | C99: 0.1 | D99: 1 | E99: 10 | F99: =VLOOKUP(A99,'Exit Prices'!$A:$B,2,FALSE) -> INDUSTRIAL
A100: Holmes Chapel | B100: =VLOOKUP(A100,'Locations & Types'!$E:$F,2,FALSE) -> GDN (NW) | C100: 0.1 | D100: 1 | E100: 10 | F100: =VLOOKUP(A100,'Exit Prices'!$A:$B,2,FALSE) -> DNO
A101: Horndon | B101: =VLOOKUP(A101,'Locations & Types'!$E:$F,2,FALSE) -> GDN (NT) | C101: 0.1 | D101: 1 | E101: 10 | F101: =VLOOKUP(A101,'Exit Prices'!$A:$B,2,FALSE) -> DNO
A102: Hornsea Max Refill | B102: =VLOOKUP(A102,'Locations & Types'!$E:$F,2,FALSE) -> STORAGE SITE | C102: 0.1 | D102: 1 | E102: 10 | F102: =VLOOKUP(A102,'Exit Prices'!$A:$B,2,FALSE) -> STORAGE SITE
A103: Humbleton | B103: =VLOOKUP(A103,'Locations & Types'!$E:$F,2,FALSE) -> GDN (NO) | C103: 0.1 | D103: 1 | E103: 10 | F103: =VLOOKUP(A103,'Exit Prices'!$A:$B,2,FALSE) -> DNO
A104: Hume | B104: =VLOOKUP(A104,'Locations & Types'!$E:$F,2,FALSE) -> GDN (SC) | C104: 0.1 | D104: 1 | E104: 10 | F104: =VLOOKUP(A104,'Exit Prices'!$A:$B,2,FALSE) -> DNO
A105: Ilchester | B105: =VLOOKUP(A105,'Locations & Types'!$E:$F,2,FALSE) -> GDN (SW) | C105: 0.1 | D105: 1 | E105: 10 | F105: =VLOOKUP(A105,'Exit Prices'!$A:$B,2,FALSE) -> DNO
A106: Ipsden | B106: =VLOOKUP(A106,'Locations & Types'!$E:$F,2,FALSE) -> GDN (SO) | C106: 0.1 | D106: 1 | E106: 10 | F106: =VLOOKUP(A106,'Exit Prices'!$A:$B,2,FALSE) -> DNO
A107: Ipsden 2 | B107: =VLOOKUP(A107,'Locations & Types'!$E:$F,2,FALSE) -> GDN (SO) | C107: 0.1 | D107: 1 | E107: 10 | F107: =VLOOKUP(A107,'Exit Prices'!$A:$B,2,FALSE) -> DNO
A108: Keld | B108: =VLOOKUP(A108,'Locations & Types'!$E:$F,2,FALSE) -> GDN (NO) | C108: 0.1 | D108: 1 | E108: 10 | F108: =VLOOKUP(A108,'Exit Prices'!$A:$B,2,FALSE) -> DNO
A109: Kenn | B109: =VLOOKUP(A109,'Locations & Types'!$E:$F,2,FALSE) -> GDN (SW) | C109: 0.1 | D109: 1 | E109: 10 | F109: =VLOOKUP(A109,'Exit Prices'!$A:$B,2,FALSE) -> DNO
A110: Kinknockie | B110: =VLOOKUP(A110,'Locations & Types'!$E:$F,2,FALSE) -> GDN (SC) | C110: 0.1 | D110: 1 | E110: 10 | F110: =VLOOKUP(A110,'Exit Prices'!$A:$B,2,FALSE) -> DNO
A111: Kirkstead | B111: =VLOOKUP(A111,'Locations & Types'!$E:$F,2,FALSE) -> GDN (EM) | C111: 0.1 | D111: 1 | E111: 10 | F111: =VLOOKUP(A111,'Exit Prices'!$A:$B,2,FALSE) -> DNO
A112: Langage Power Station | B112: =VLOOKUP(A112,'Locations & Types'!$E:$F,2,FALSE) -> DC | C112: 0.1 | D112: 1 | E112: 10 | F112: =VLOOKUP(A112,'Exit Prices'!$A:$B,2,FALSE) -> POWER STATION
A113: Langholm | B113: =VLOOKUP(A113,'Locations & Types'!$E:$F,2,FALSE) -> GDN (SC) | C113: 0.1 | D113: 1 | E113: 10 | F113: =VLOOKUP(A113,'Exit Prices'!$A:$B,2,FALSE) -> DNO
A114: Lauderhill | B114: =VLOOKUP(A114,'Locations & Types'!$E:$F,2,FALSE) -> GDN (SC) | C114: 0.1 | D114: 1 | E114: 10 | F114: =VLOOKUP(A114,'Exit Prices'!$A:$B,2,FALSE) -> DNO
A115: Leamington | B115: =VLOOKUP(A115,'Locations & Types'!$E:$F,2,FALSE) -> GDN (WM) | C115: 0.1 | D115: 1 | E115: 10 | F115: =VLOOKUP(A115,'Exit Prices'!$A:$B,2,FALSE) -> DNO
A116: Little Burdon | B116: =VLOOKUP(A116,'Locations & Types'!$E:$F,2,FALSE) -> GDN (NO) | C116: 0.1 | D116: 1 | E116: 10 | F116: =VLOOKUP(A116,'Exit Prices'!$A:$B,2,FALSE) -> DNO
A117: Littleton Drew | B117: =VLOOKUP(A117,'Locations & Types'!$E:$F,2,FALSE) -> GDN (SW) | C117: 0.1 | D117: 1 | E117: 10 | F117: =VLOOKUP(A117,'Exit Prices'!$A:$B,2,FALSE) -> DNO
A118: Lockerbie | B118: =VLOOKUP(A118,'Locations & Types'!$E:$F,2,FALSE) -> GDN (SC) | C118: 0.1 | D118: 1 | E118: 10 | F118: =VLOOKUP(A118,'Exit Prices'!$A:$B,2,FALSE) -> DNO
A119: Lower Quinton | B119: =VLOOKUP(A119,'Locations & Types'!$E:$F,2,FALSE) -> GDN (WM) | C119: 0.1 | D119: 1 | E119: 10 | F119: =VLOOKUP(A119,'Exit Prices'!$A:$B,2,FALSE) -> DNO
A120: Lupton | B120: =VLOOKUP(A120,'Locations & Types'!$E:$F,2,FALSE) -> GDN (NW) | C120: 0.1 | D120: 1 | E120: 10 | F120: =VLOOKUP(A120,'Exit Prices'!$A:$B,2,FALSE) -> DNO
A121: Luxborough Lane | B121: =VLOOKUP(A121,'Locations & Types'!$E:$F,2,FALSE) -> GDN (NT) | C121: 0.1 | D121: 1 | E121: 10 | F121: =VLOOKUP(A121,'Exit Prices'!$A:$B,2,FALSE) -> DNO
A122: Lyneham (Choakford) | B122: =VLOOKUP(A122,'Locations & Types'!$E:$F,2,FALSE) -> GDN (SW) | C122: 0.1 | D122: 1 | E122: 10 | F122: =VLOOKUP(A122,'Exit Prices'!$A:$B,2,FALSE) -> DNO
A123: Maelor | B123: =VLOOKUP(A123,'Locations & Types'!$E:$F,2,FALSE) -> GDN (WN) | C123: 0.1 | D123: 1 | E123: 10 | F123: =VLOOKUP(A123,'Exit Prices'!$A:$B,2,FALSE) -> DNO
A124: Malpas | B124: =VLOOKUP(A124,'Locations & Types'!$E:$F,2,FALSE) -> GDN (NW) | C124: 0.1 | D124: 1 | E124: 10 | F124: =VLOOKUP(A124,'Exit Prices'!$A:$B,2,FALSE) -> DNO
A125: Mappowder | B125: =VLOOKUP(A125,'Locations & Types'!$E:$F,2,FALSE) -> GDN (SO) | C125: 0.1 | D125: 1 | E125: 10 | F125: =VLOOKUP(A125,'Exit Prices'!$A:$B,2,FALSE) -> DNO
A126: Marchwood Power Station | B126: =VLOOKUP(A126,'Locations & Types'!$E:$F,2,FALSE) -> DC | C126: 0.1 | D126: 1 | E126: 10 | F126: =VLOOKUP(A126,'Exit Prices'!$A:$B,2,FALSE) -> POWER STATION
A127: Market Harborough | B127: =VLOOKUP(A127,'Locations & Types'!$E:$F,2,FALSE) -> GDN (EM) | C127: 0.1 | D127: 1 | E127: 10 | F127: =VLOOKUP(A127,'Exit Prices'!$A:$B,2,FALSE) -> DNO
A128: Matching Green | B128: =VLOOKUP(A128,'Locations & Types'!$E:$F,2,FALSE) -> GDN (EA) | C128: 0.1 | D128: 1 | E128: 10 | F128: =VLOOKUP(A128,'Exit Prices'!$A:$B,2,FALSE) -> DNO
A129: Medway (aka Isle of Grain Power Station, NOT Grain Power) | B129: =VLOOKUP(A129,'Locations & Types'!$E:$F,2,FALSE) -> DC | C129: 0.1 | D129: 1 | E129: 10 | F129: =VLOOKUP(A129,'Exit Prices'!$A:$B,2,FALSE) -> POWER STATION
A130: Melkinthorpe | B130: =VLOOKUP(A130,'Locations & Types'!$E:$F,2,FALSE) -> GDN (NO) | C130: 0.1 | D130: 1 | E130: 10 | F130: =VLOOKUP(A130,'Exit Prices'!$A:$B,2,FALSE) -> DNO
A131: Mickle Trafford | B131: =VLOOKUP(A131,'Locations & Types'!$E:$F,2,FALSE) -> GDN (NW) | C131: 0.1 | D131: 1 | E131: =C131*D131*100 -> 10 | F131: =VLOOKUP(A131,'Exit Prices'!$A:$B,2,FALSE) -> DNO
A132: Middle Stoke (Damhead Creek, aka Kingsnorth Power Station) | B132: =VLOOKUP(A132,'Locations & Types'!$E:$F,2,FALSE) -> DC | C132: 0.1 | D132: 1 | E132: 10 | F132: =VLOOKUP(A132,'Exit Prices'!$A:$B,2,FALSE) -> POWER STATION
A133: Milwich | B133: =VLOOKUP(A133,'Locations & Types'!$E:$F,2,FALSE) -> GDN (WM) | C133: 0.1 | D133: 1 | E133: 10 | F133: =VLOOKUP(A133,'Exit Prices'!$A:$B,2,FALSE) -> DNO
A134: Moffat (Irish Interconnector) | B134: =VLOOKUP(A134,'Locations & Types'!$E:$F,2,FALSE) -> INTERCONNECTOR | C134: 0.1 | D134: 1 | E134: 10 | F134: =VLOOKUP(A134,'Exit Prices'!$A:$B,2,FALSE) -> INTERCONNECTOR
A135: Netherhowcleugh | B135: =VLOOKUP(A135,'Locations & Types'!$E:$F,2,FALSE) -> GDN (SC) | C135: 0.1 | D135: 1 | E135: 10 | F135: =VLOOKUP(A135,'Exit Prices'!$A:$B,2,FALSE) -> DNO
A136: Pannal | B136: =VLOOKUP(A136,'Locations & Types'!$E:$F,2,FALSE) -> GDN (NE) | C136: 0.1 | D136: 1 | E136: 10 | F136: =VLOOKUP(A136,'Exit Prices'!$A:$B,2,FALSE) -> DNO
A137: Partington | B137: =VLOOKUP(A137,'Locations & Types'!$E:$F,2,FALSE) -> GDN (NW) | C137: 0.1 | D137: 1 | E137: 10 | F137: =VLOOKUP(A137,'Exit Prices'!$A:$B,2,FALSE) -> DNO
A138: Partington Max Refill | B138: =VLOOKUP(A138,'Locations & Types'!$E:$F,2,FALSE) -> STORAGE SITE | C138: 0.1 | D138: 1 | E138: 10 | F138: =VLOOKUP(A138,'Exit Prices'!$A:$B,2,FALSE) -> STORAGE SITE
A139: Paull | B139: =VLOOKUP(A139,'Locations & Types'!$E:$F,2,FALSE) -> GDN (NE) | C139: 0.1 | D139: 1 | E139: 10 | F139: =VLOOKUP(A139,'Exit Prices'!$A:$B,2,FALSE) -> DNO
A140: Pembroke Power Station | B140: =VLOOKUP(A140,'Locations & Types'!$E:$F,2,FALSE) -> DC | C140: 0.1 | D140: 1 | E140: 10 | F140: =VLOOKUP(A140,'Exit Prices'!$A:$B,2,FALSE) -> POWER STATION
A141: Peterborough (Peterborough Power Station) | B141: =VLOOKUP(A141,'Locations & Types'!$E:$F,2,FALSE) -> DC | C141: 0.1 | D141: 1 | E141: 10 | F141: =VLOOKUP(A141,'Exit Prices'!$A:$B,2,FALSE) -> POWER STATION
A142: Peterborough Eye (Tee) | B142: =VLOOKUP(A142,'Locations & Types'!$E:$F,2,FALSE) -> GDN (EA) | C142: 0.1 | D142: 1 | E142: 10 | F142: =VLOOKUP(A142,'Exit Prices'!$A:$B,2,FALSE) -> DNO
A143: Peters Green | B143: =VLOOKUP(A143,'Locations & Types'!$E:$F,2,FALSE) -> GDN (NT) | C143: 0.1 | D143: 1 | E143: 10 | F143: =VLOOKUP(A143,'Exit Prices'!$A:$B,2,FALSE) -> DNO
A144: Peters Green South Mimms | B144: =VLOOKUP(A144,'Locations & Types'!$E:$F,2,FALSE) -> GDN (NT) | C144: 0.1 | D144: 1 | E144: 10 | F144: =VLOOKUP(A144,'Exit Prices'!$A:$B,2,FALSE) -> DNO
A145: Phillips Petroleum, Teesside | B145: =VLOOKUP(A145,'Locations & Types'!$E:$F,2,FALSE) -> DC | C145: 0.1 | D145: 1 | E145: 10 | F145: =VLOOKUP(A145,'Exit Prices'!$A:$B,2,FALSE) -> INDUSTRIAL
A146: Pickering | B146: =VLOOKUP(A146,'Locations & Types'!$E:$F,2,FALSE) -> GDN (NE) | C146: 0.1 | D146: 1 | E146: 10 | F146: =VLOOKUP(A146,'Exit Prices'!$A:$B,2,FALSE) -> DNO
A147: Pickmere (Winnington Power, aka Brunner Mond) | B147: =VLOOKUP(A147,'Locations & Types'!$E:$F,2,FALSE) -> DC | C147: 0.1 | D147: 1 | E147: 10 | F147: =VLOOKUP(A147,'Exit Prices'!$A:$B,2,FALSE) -> INDUSTRIAL
A148: Pitcairngreen | B148: =VLOOKUP(A148,'Locations & Types'!$E:$F,2,FALSE) -> GDN (SC) | C148: 0.1 | D148: 1 | E148: 10 | F148: =VLOOKUP(A148,'Exit Prices'!$A:$B,2,FALSE) -> DNO
A149: Pucklechurch | B149: =VLOOKUP(A149,'Locations & Types'!$E:$F,2,FALSE) -> GDN (SW) | C149: 0.1 | D149: 1 | E149: 10 | F149: =VLOOKUP(A149,'Exit Prices'!$A:$B,2,FALSE) -> DNO
A150: Rawcliffe | B150: =VLOOKUP(A150,'Locations & Types'!$E:$F,2,FALSE) -> GDN (NE) | C150: 0.1 | D150: 1 | E150: 10 | F150: =VLOOKUP(A150,'Exit Prices'!$A:$B,2,FALSE) -> DNO
A151: Rollswood Kintore | B151: =VLOOKUP(A151,'Locations & Types'!$E:$F,2,FALSE) -> DC | C151: 0.1 | D151: 1 | E151: 10 | F151: =VLOOKUP(A151,'Exit Prices'!$A:$B,2,FALSE) -> INDUSTRIAL
A152: Roosecote Power Station (Barrow) | B152: =VLOOKUP(A152,'Locations & Types'!$E:$F,2,FALSE) -> DC | C152: 0.1 | D152: 1 | E152: 10 | F152: =VLOOKUP(A152,'Exit Prices'!$A:$B,2,FALSE) -> POWER STATION
A153: Rosehill (Saltend Power Station) | B153: =VLOOKUP(A153,'Locations & Types'!$E:$F,2,FALSE) -> DC | C153: 0.1 | D153: 1 | E153: 10 | F153: =VLOOKUP(A153,'Exit Prices'!$A:$B,2,FALSE) -> POWER STATION
A154: Ross (SW) | B154: =VLOOKUP(A154,'Locations & Types'!$E:$F,2,FALSE) -> GDN (SW) | C154: 0.1 | D154: 1 | E154: 10 | F154: =VLOOKUP(A154,'Exit Prices'!$A:$B,2,FALSE) -> DNO
A155: Ross (WM) | B155: =VLOOKUP(A155,'Locations & Types'!$E:$F,2,FALSE) -> GDN (WM) | C155: 0.1 | D155: 1 | E155: 10 | F155: =VLOOKUP(A155,'Exit Prices'!$A:$B,2,FALSE) -> DNO
A156: Roudham Heath | B156: =VLOOKUP(A156,'Locations & Types'!$E:$F,2,FALSE) -> GDN (EA) | C156: 0.1 | D156: 1 | E156: 10 | F156: =VLOOKUP(A156,'Exit Prices'!$A:$B,2,FALSE) -> DNO
A157: Royston | B157: =VLOOKUP(A157,'Locations & Types'!$E:$F,2,FALSE) -> GDN (EA) | C157: 0.1 | D157: 1 | E157: 10 | F157: =VLOOKUP(A157,'Exit Prices'!$A:$B,2,FALSE) -> DNO
A158: Rugby | B158: =VLOOKUP(A158,'Locations & Types'!$E:$F,2,FALSE) -> GDN (WM) | C158: 0.1 | D158: 1 | E158: 10 | F158: =VLOOKUP(A158,'Exit Prices'!$A:$B,2,FALSE) -> DNO
A159: Ryehouse | B159: =VLOOKUP(A159,'Locations & Types'!$E:$F,2,FALSE) -> DC | C159: 0.1 | D159: 1 | E159: 10 | F159: =VLOOKUP(A159,'Exit Prices'!$A:$B,2,FALSE) -> POWER STATION
A160: Saddle Bow (Kings Lynn) | B160: =VLOOKUP(A160,'Locations & Types'!$E:$F,2,FALSE) -> DC | C160: 0.1 | D160: 1 | E160: 10 | F160: =VLOOKUP(A160,'Exit Prices'!$A:$B,2,FALSE) -> POWER STATION
A161: Saltend BPHP (BP Saltend HP) | B161: =VLOOKUP(A161,'Locations & Types'!$E:$F,2,FALSE) -> DC | C161: 0.1 | D161: 1 | E161: 10 | F161: =VLOOKUP(A161,'Exit Prices'!$A:$B,2,FALSE) -> INDUSTRIAL
A162: Saltfleetby Storage (Theddlethorpe) | B162: =VLOOKUP(A162,'Locations & Types'!$E:$F,2,FALSE) -> STORAGE SITE | C162: 0.1 | D162: 1 | E162: 10 | F162: =VLOOKUP(A162,'Exit Prices'!$A:$B,2,FALSE) -> STORAGE SITE
A163: Saltwick Pressure Controlled | B163: =VLOOKUP(A163,'Locations & Types'!$E:$F,2,FALSE) -> GDN (NO) | C163: 0.1 | D163: 1 | E163: 10 | F163: =VLOOKUP(A163,'Exit Prices'!$A:$B,2,FALSE) -> DNO
A164: Saltwick Volumetric Controlled | B164: =VLOOKUP(A164,'Locations & Types'!$E:$F,2,FALSE) -> GDN (NO) | C164: 0.1 | D164: 1 | E164: 10 | F164: =VLOOKUP(A164,'Exit Prices'!$A:$B,2,FALSE) -> DNO
A165: Samlesbury | B165: =VLOOKUP(A165,'Locations & Types'!$E:$F,2,FALSE) -> GDN (NW) | C165: 0.1 | D165: 1 | E165: 10 | F165: =VLOOKUP(A165,'Exit Prices'!$A:$B,2,FALSE) -> DNO
A166: Sandy Lane (Blackburn CHP, aka Sappi Paper Mill) | B166: =VLOOKUP(A166,'Locations & Types'!$E:$F,2,FALSE) -> DC | C166: 0.1 | D166: 1 | E166: 10 | F166: =VLOOKUP(A166,'Exit Prices'!$A:$B,2,FALSE) -> INDUSTRIAL
A167: Seabank (DN) | B167: =VLOOKUP(A167,'Locations & Types'!$E:$F,2,FALSE) -> GDN (SW) | C167: 0.1 | D167: 1 | E167: 10 | F167: =VLOOKUP(A167,'Exit Prices'!$A:$B,2,FALSE) -> DNO
A168: Seabank (Seabank Power Station phase II) | B168: =VLOOKUP(A168,'Locations & Types'!$E:$F,2,FALSE) -> DC | C168: 0.1 | D168: 1 | E168: 10 | F168: =VLOOKUP(A168,'Exit Prices'!$A:$B,2,FALSE) -> POWER STATION
A169: Seal Sands TGPP | B169: =VLOOKUP(A169,'Locations & Types'!$E:$F,2,FALSE) -> DC | C169: 0.1 | D169: 1 | E169: 10 | F169: =VLOOKUP(A169,'Exit Prices'!$A:$B,2,FALSE) -> INDUSTRIAL
A170: Sellafield Power Station | B170: =VLOOKUP(A170,'Locations & Types'!$E:$F,2,FALSE) -> DC | C170: 0.1 | D170: 1 | E170: 10 | F170: =VLOOKUP(A170,'Exit Prices'!$A:$B,2,FALSE) -> POWER STATION
A171: Shellstar (aka Kemira, not Kemira CHP) | B171: =VLOOKUP(A171,'Locations & Types'!$E:$F,2,FALSE) -> DC | C171: 0.1 | D171: 1 | E171: 10 | F171: =VLOOKUP(A171,'Exit Prices'!$A:$B,2,FALSE) -> INDUSTRIAL
A172: Shorne | B172: =VLOOKUP(A172,'Locations & Types'!$E:$F,2,FALSE) -> GDN (SE) | C172: 0.1 | D172: 1 | E172: 10 | F172: =VLOOKUP(A172,'Exit Prices'!$A:$B,2,FALSE) -> DNO
A173: Shotwick (Bridgewater Paper) | B173: =VLOOKUP(A173,'Locations & Types'!$E:$F,2,FALSE) -> DC | C173: 0.1 | D173: 1 | E173: 10 | F173: =VLOOKUP(A173,'Exit Prices'!$A:$B,2,FALSE) -> INDUSTRIAL
A174: Shustoke | B174: =VLOOKUP(A174,'Locations & Types'!$E:$F,2,FALSE) -> GDN (WM) | C174: 0.1 | D174: 1 | E174: 10 | F174: =VLOOKUP(A174,'Exit Prices'!$A:$B,2,FALSE) -> DNO
A175: Silk Willoughby | B175: =VLOOKUP(A175,'Locations & Types'!$E:$F,2,FALSE) -> GDN (EM) | C175: 0.1 | D175: 1 | E175: 10 | F175: =VLOOKUP(A175,'Exit Prices'!$A:$B,2,FALSE) -> DNO
A176: Soutra | B176: =VLOOKUP(A176,'Locations & Types'!$E:$F,2,FALSE) -> GDN (SC) | C176: 0.1 | D176: 1 | E176: 10 | F176: =VLOOKUP(A176,'Exit Prices'!$A:$B,2,FALSE) -> DNO
A177: Spalding 2 (South Holland) Power Station | B177: =VLOOKUP(A177,'Locations & Types'!$E:$F,2,FALSE) -> DC | C177: 0.1 | D177: 1 | E177: 10 | F177: =VLOOKUP(A177,'Exit Prices'!$A:$B,2,FALSE) -> POWER STATION
A178: St Fergus | B178: =VLOOKUP(A178,'Locations & Types'!$E:$F,2,FALSE) -> GDN (SC) | C178: 0.1 | D178: 1 | E178: 10 | F178: =VLOOKUP(A178,'Exit Prices'!$A:$B,2,FALSE) -> DNO
A179: St. Fergus (Peterhead) | B179: =VLOOKUP(A179,'Locations & Types'!$E:$F,2,FALSE) -> DC | C179: 0.1 | D179: 1 | E179: 10 | F179: =VLOOKUP(A179,'Exit Prices'!$A:$B,2,FALSE) -> POWER STATION
A180: St. Fergus (Shell Blackstart) | B180: =VLOOKUP(A180,'Locations & Types'!$E:$F,2,FALSE) -> DC | C180: 0.1 | D180: 1 | E180: 10 | F180: =VLOOKUP(A180,'Exit Prices'!$A:$B,2,FALSE) -> INDUSTRIAL
A181: St. Neots (Little Barford) | B181: =VLOOKUP(A181,'Locations & Types'!$E:$F,2,FALSE) -> DC | C181: 0.1 | D181: 1 | E181: 10 | F181: =VLOOKUP(A181,'Exit Prices'!$A:$B,2,FALSE) -> POWER STATION
A182: Stallingborough | B182: =VLOOKUP(A182,'Locations & Types'!$E:$F,2,FALSE) -> DC | C182: 0.1 | D182: 1 | E182: 10 | F182: =VLOOKUP(A182,'Exit Prices'!$A:$B,2,FALSE) -> POWER STATION
A183: Stanford Le Hope (Coryton) | B183: =VLOOKUP(A183,'Locations & Types'!$E:$F,2,FALSE) -> DC | C183: 0.1 | D183: 1 | E183: 10 | F183: =VLOOKUP(A183,'Exit Prices'!$A:$B,2,FALSE) -> POWER STATION
A184: Staythorpe | B184: =VLOOKUP(A184,'Locations & Types'!$E:$F,2,FALSE) -> DC | C184: 0.1 | D184: 1 | E184: 10 | F184: =VLOOKUP(A184,'Exit Prices'!$A:$B,2,FALSE) -> POWER STATION
A185: Stranraer | B185: =VLOOKUP(A185,'Locations & Types'!$E:$F,2,FALSE) -> GDN (SC) | C185: 0.1 | D185: 1 | E185: 10 | F185: =VLOOKUP(A185,'Exit Prices'!$A:$B,2,FALSE) -> DNO
A186: Stratford-upon-Avon | B186: =VLOOKUP(A186,'Locations & Types'!$E:$F,2,FALSE) -> GDN (WM) | C186: 0.1 | D186: 1 | E186: 10 | F186: =VLOOKUP(A186,'Exit Prices'!$A:$B,2,FALSE) -> DNO
A187: Stublach (Cheshire) | B187: =VLOOKUP(A187,'Locations & Types'!$E:$F,2,FALSE) -> STORAGE SITE | C187: 0.1 | D187: 1 | E187: 10 | F187: =VLOOKUP(A187,'Exit Prices'!$A:$B,2,FALSE) -> STORAGE SITE
A188: Sutton Bridge | B188: =VLOOKUP(A188,'Locations & Types'!$E:$F,2,FALSE) -> GDN (EM) | C188: 0.1 | D188: 1 | E188: 10 | F188: =VLOOKUP(A188,'Exit Prices'!$A:$B,2,FALSE) -> DNO
A189: Sutton Bridge Power Station | B189: =VLOOKUP(A189,'Locations & Types'!$E:$F,2,FALSE) -> DC | C189: 0.1 | D189: 1 | E189: 10 | F189: =VLOOKUP(A189,'Exit Prices'!$A:$B,2,FALSE) -> POWER STATION
A190: Tatsfield | B190: =VLOOKUP(A190,'Locations & Types'!$E:$F,2,FALSE) -> GDN (SE) | C190: 0.1 | D190: 1 | E190: 10 | F190: =VLOOKUP(A190,'Exit Prices'!$A:$B,2,FALSE) -> DNO
A191: Teesside (BASF, aka BASF Teesside) | B191: =VLOOKUP(A191,'Locations & Types'!$E:$F,2,FALSE) -> DC | C191: 0.1 | D191: 1 | E191: 10 | F191: =VLOOKUP(A191,'Exit Prices'!$A:$B,2,FALSE) -> INDUSTRIAL
A192: Teesside Hydrogen | B192: =VLOOKUP(A192,'Locations & Types'!$E:$F,2,FALSE) -> DC | C192: 0.1 | D192: 1 | E192: 10 | F192: =VLOOKUP(A192,'Exit Prices'!$A:$B,2,FALSE) -> INDUSTRIAL
A193: Terra Nitrogen (aka ICI, Terra Severnside) | B193: =VLOOKUP(A193,'Locations & Types'!$E:$F,2,FALSE) -> DC | C193: 0.1 | D193: 1 | E193: 10 | F193: =VLOOKUP(A193,'Exit Prices'!$A:$B,2,FALSE) -> INDUSTRIAL
A194: Thornton Curtis (DN) | B194: =VLOOKUP(A194,'Locations & Types'!$E:$F,2,FALSE) -> GDN (EM) | C194: 0.1 | D194: 1 | E194: 10 | F194: =VLOOKUP(A194,'Exit Prices'!$A:$B,2,FALSE) -> DNO
A195: Thornton Curtis (Humber Refinery, aka Immingham) | B195: =VLOOKUP(A195,'Locations & Types'!$E:$F,2,FALSE) -> DC | C195: 0.1 | D195: 1 | E195: =C195*D195*100 -> 10 | F195: =VLOOKUP(A195,'Exit Prices'!$A:$B,2,FALSE) -> INDUSTRIAL
A196: Thornton Curtis (Killingholme) | B196: =VLOOKUP(A196,'Locations & Types'!$E:$F,2,FALSE) -> DC | C196: 0.1 | D196: 1 | E196: 10 | F196: =VLOOKUP(A196,'Exit Prices'!$A:$B,2,FALSE) -> POWER STATION
A197: Thrintoft | B197: =VLOOKUP(A197,'Locations & Types'!$E:$F,2,FALSE) -> GDN (NO) | C197: 0.1 | D197: 1 | E197: 10 | F197: =VLOOKUP(A197,'Exit Prices'!$A:$B,2,FALSE) -> DNO
A198: Tilbury Power Station | B198: =VLOOKUP(A198,'Locations & Types'!$E:$F,2,FALSE) -> DC | C198: 0.1 | D198: 1 | E198: 10 | F198: =VLOOKUP(A198,'Exit Prices'!$A:$B,2,FALSE) -> POWER STATION
A199: Tonna (Baglan Bay) | B199: =VLOOKUP(A199,'Locations & Types'!$E:$F,2,FALSE) -> DC | C199: 0.1 | D199: 1 | E199: 10 | F199: =VLOOKUP(A199,'Exit Prices'!$A:$B,2,FALSE) -> POWER STATION
A200: Towlaw | B200: =VLOOKUP(A200,'Locations & Types'!$E:$F,2,FALSE) -> GDN (NO) | C200: 0.1 | D200: 1 | E200: 10 | F200: =VLOOKUP(A200,'Exit Prices'!$A:$B,2,FALSE) -> DNO
... 33 more rows

Sheet Locations & Types (hidden)
A1: Entry Point | B1: Location Type | E1: Exit Point | F1: Location Type | G1: Exit Zone (if applicable) | H1: Location Type | I1: Location Type
A2: Avonmouth | B2: STORAGE SITE | E2: Aberdeen | F2: GDN (SC) | G2: SC1 | H2: GDN (SC) | I2: DNO
A3: Bacton IP | B3: INTERCONNECTION POINT | E3: Abson (Seabank Power Station phase I) | F3: DC | G3: Other | H3: POWER STATION | I3: POWER STATION
A4: Bacton UKCS | B4: BEACH TERMINAL | E4: Alrewas (EM) | F4: GDN (EM) | G4: EM3 | H4: GDN (EM) | I4: DNO
A5: Barrow | B5: BEACH TERMINAL | E5: Alrewas (WM) | F5: GDN (WM) | G5: WM2 | H5: GDN (WM) | I5: DNO
A6: Barton Stacey | B6: STORAGE SITE | E6: Apache (Sage Black Start) | F6: DC | G6: Other | H6: INDUSTRIAL | I6: INDUSTRIAL
A7: Burton Point | B7: ONSHORE FIELD | E7: Armadale | F7: GDN (SC) | G7: SC2 | H7: GDN (SC) | I7: DNO
A8: Canonbie | B8: ONSHORE FIELD | E8: Aspley | F8: GDN (WM) | G8: WM1 | H8: GDN (WM) | I8: DNO
A9: Caythorpe | B9: STORAGE SITE | E9: Asselby | F9: GDN (NE) | G9: NE1 | H9: GDN (NE) | I9: DNO
A10: Cheshire | B10: STORAGE SITE | E10: Audley (NW) | F10: GDN (NW) | G10: NW2 | H10: GDN (NW) | I10: DNO
A11: Dynevor Arms | B11: STORAGE SITE | E11: Audley (WM) | F11: GDN (WM) | G11: WM1 | H11: GDN (WM) | I11: DNO
A12: Easington | B12: BEACH TERMINAL | E12: Austrey | F12: GDN (WM) | G12: WM2 | H12: GDN (WM) | I12: DNO
A13: Fleetwood | B13: STORAGE SITE | E13: Avonmouth Max Refill | F13: STORAGE SITE | G13: Other | H13: STORAGE SITE | I13: STORAGE SITE
A14: Garton | B14: STORAGE SITE | E14: Aylesbeare | F14: GDN (SW) | G14: SW3 | H14: GDN (SW) | I14: DNO
A15: Glenmavis | B15: STORAGE SITE | E15: Bacton | F15: GDN (EA) | G15: EA1 | H15: GDN (EA) | I15: DNO
A16: Hatfield Moor (onshore) | B16: ONSHORE FIELD | E16: Bacton (Baird) | F16: STORAGE SITE | G16: Other | H16: STORAGE SITE | I16: STORAGE SITE
A17: Hatfield Moor (storage) | B17: STORAGE SITE | E17: Bacton (BBL) | F17: INTERCONNECTOR | G17: Other | H17: INTERCONNECTOR | I17: INTERCONNECTOR
A18: Hole House Farm | B18: STORAGE SITE | E18: Bacton (Great Yarmouth) | F18: DC | G18: Other | H18: POWER STATION | I18: POWER STATION
A19: Hornsea | B19: STORAGE SITE | E19: Bacton (IUK) | F19: INTERCONNECTOR | G19: Other | H19: INTERCONNECTOR | I19: INTERCONNECTOR
A20: Isle of Grain | B20: LNG IMPORTATION TERMINAL | E20: Baldersby | F20: GDN (NE) | G20: NE1 | H20: GDN (NE) | I20: DNO
A21: Milford Haven | B21: LNG IMPORTATION TERMINAL | E21: Balgray | F21: GDN (SC) | G21: SC1 | H21: GDN (SC) | I21: DNO
A22: Partington | B22: STORAGE SITE | E22: Barking (Horndon) | F22: DC | G22: Other | H22: POWER STATION | I22: POWER STATION
A23: Moffat (Irish Interconnector) | B23: INTERCONNECTION POINT | E23: Barrow (Bains) | F23: STORAGE SITE | G23: Other | H23: STORAGE SITE | I23: STORAGE SITE
A24: St Fergus | B24: BEACH TERMINAL | E24: Barrow (Black Start) | F24: DC | G24: Other | H24: INDUSTRIAL | I24: INDUSTRIAL
A25: Teesside | B25: BEACH TERMINAL | E25: Barrow (Gateway) | F25: STORAGE SITE | G25: Other | H25: STORAGE SITE | I25: STORAGE SITE
A26: Theddlethorpe | B26: BEACH TERMINAL | E26: Barton Stacey Max Refill (Humbly Grove) | F26: STORAGE SITE | G26: Other | H26: STORAGE SITE | I26: STORAGE SITE
A27: Wytch Farm | B27: ONSHORE FIELD | E27: Bathgate | F27: GDN (SC) | G27: SC4 | H27: GDN (SC) | I27: DNO
A28: Murrow | B28: BIOMETHANE PLANT | E28: Billingham ICI (Terra Billingham) | F28: DC | G28: Other | H28: INDUSTRIAL | I28: INDUSTRIAL
E29: Bishop Auckland | F29: GDN (NO) | G29: NO1 | H29: GDN (NO) | I29: DNO
E30: Bishop Auckland (test facility) | F30: DC | G30: Other | H30: INDUSTRIAL | I30: INDUSTRIAL
E31: Blaby | F31: GDN (EM) | G31: EM3 | H31: GDN (EM) | I31: DNO
E32: Blackness (BP Grangemouth) | F32: DC | G32: Other | H32: INDUSTRIAL | I32: INDUSTRIAL
E33: Blackrod | F33: GDN (NW) | G33: NW1 | H33: GDN (NW) | I33: DNO
E34: Blyborough | F34: GDN (EM) | G34: EM2 | H34: GDN (EM) | I34: DNO
E35: Blyborough (Brigg) | F35: DC | G35: Other | H35: POWER STATION | I35: POWER STATION
E36: Blyborough (Cottam) | F36: DC | G36: Other | H36: POWER STATION | I36: POWER STATION
E37: Braishfield A | F37: GDN (SO) | G37: SO2 | H37: GDN (SO) | I37: DNO
E38: Braishfield B | F38: GDN (SO) | G38: SO2 | H38: GDN (SO) | I38: DNO
E39: Brine Field (Teesside) Power Station | F39: DC | G39: Other | H39: POWER STATION | I39: POWER STATION
E40: Brisley | F40: GDN (EA) | G40: EA1 | H40: GDN (EA) | I40: DNO
E41: Broxburn | F41: GDN (SC) | G41: SC2 | H41: GDN (SC) | I41: DNO
E42: Burley Bank | F42: GDN (NE) | G42: NE1 | H42: GDN (NE) | I42: DNO
E43: Burnhervie | F43: GDN (SC) | G43: SC1 | H43: GDN (SC) | I43: DNO
E44: Burton Point (Connahs Quay) | F44: DC | G44: Other | H44: POWER STATION | I44: POWER STATION
E45: Caldecott | F45: GDN (EM) | G45: EM4 | H45: GDN (EM) | I45: DNO
E46: Caldecott (Corby Power Station) | F46: DC | G46: Other | H46: POWER STATION | I46: POWER STATION
E47: Cambridge | F47: GDN (EA) | G47: EA4 | H47: GDN (EA) | I47: DNO
E48: Careston | F48: GDN (SC) | G48: SC1 | H48: GDN (SC) | I48: DNO
E49: Carrington (Partington) Power Station | F49: DC | G49: Other | H49: POWER STATION | I49: POWER STATION
E50: Caythorpe | F50: STORAGE SITE | G50: Other | H50: STORAGE SITE | I50: STORAGE SITE
E51: Centrax Industrial | F51: DC | G51: Other | H51: INDUSTRIAL | I51: INDUSTRIAL
E52: Cirencester | F52: GDN (SW) | G52: SW2 | H52: GDN (SW) | I52: DNO
E53: Cockenzie Power Station | F53: DC | G53: Other | H53: POWER STATION | I53: POWER STATION
E54: Coffinswell | F54: GDN (SW) | G54: SW3 | H54: GDN (SW) | I54: DNO
E55: Coldstream | F55: GDN (NO) | G55: NO1 | H55: GDN (NO) | I55: DNO
E56: Corbridge | F56: GDN (NO) | G56: NO1 | H56: GDN (NO) | I56: DNO
E57: Coryton 2 (Thames Haven) Power Station | F57: DC | G57: Other | H57: POWER STATION | I57: POWER STATION
E58: Cowpen Bewley | F58: GDN (NO) | G58: NO1 | H58: GDN (NO) | I58: DNO
E59: Crawley Down | F59: GDN (SO) | G59: SO2 | H59: GDN (SO) | I59: DNO
E60: Deborah Storage (Bacton) | F60: STORAGE SITE | G60: Other | H60: STORAGE SITE | I60: STORAGE SITE
E61: Deeside | F61: DC | G61: Other | H61: POWER STATION | I61: POWER STATION
E62: Didcot | F62: DC | G62: Other | H62: POWER STATION | I62: POWER STATION
E63: Dowlais | F63: GDN (WS) | G63: WS | H63: GDN (WS) | I63: DNO
E64: Drakelow Power Station | F64: DC | G64: Other | H64: POWER STATION | I64: POWER STATION
E65: Drointon | F65: GDN (EM) | G65: EM3 | H65: GDN (EM) | I65: DNO
E66: Drum | F66: GDN (SC) | G66: SC4 | H66: GDN (SC) | I66: DNO
E67: Dyffryn Clydach | F67: GDN (WS) | G67: WS | H67: GDN (WS) | I67: DNO
E68: Dynevor Max Refill | F68: STORAGE SITE | G68: Other | H68: STORAGE SITE | I68: STORAGE SITE
E69: Eastoft (Keadby Blackstart) | F69: DC | G69: Other | H69: POWER STATION | I69: POWER STATION
E70: Eastoft (Keadby) | F70: DC | G70: Other | H70: POWER STATION | I70: POWER STATION
E71: Easton Grey | F71: GDN (SW) | G71: SW2 | H71: GDN (SW) | I71: DNO
E72: Ecclestone | F72: GDN (NW) | G72: NW2 | H72: GDN (NW) | I72: DNO
E73: Elton | F73: GDN (NO) | G73: NO1 | H73: GDN (NO) | I73: DNO
E74: Enron Billingham | F74: DC | G74: Other | H74: POWER STATION | I74: POWER STATION
E75: Epping Green (Enfield Energy, aka Brimsdown) | F75: DC | G75: Other | H75: POWER STATION | I75: POWER STATION
E76: Evesham | F76: GDN (SW) | G76: SW1 | H76: GDN (SW) | I76: DNO
E77: Farningham | F77: GDN (SE) | G77: SE1 | H77: GDN (SE) | I77: DNO
E78: Farningham B | F78: GDN (SE) | G78: SE1 | H78: GDN (SE) | I78: DNO
E79: Ferny Knoll (AM Paper) | F79: DC | G79: Other | H79: INDUSTRIAL | I79: INDUSTRIAL
E80: Fiddington | F80: GDN (SW) | G80: SW1 | H80: GDN (SW) | I80: DNO
E81: Ganstead | F81: GDN (NE) | G81: NE2 | H81: GDN (NE) | I81: DNO
E82: Garton Max Refill (Aldbrough) | F82: STORAGE SITE | G82: Other | H82: STORAGE SITE | I82: STORAGE SITE
E83: Gilwern | F83: GDN (WS) | G83: WS | H83: GDN (WS) | I83: DNO
E84: Glenmavis | F84: GDN (SC) | G84: SC4 | H84: GDN (SC) | I84: DNO
E85: Glenmavis Max Refill | F85: STORAGE SITE | G85: Other | H85: STORAGE SITE | I85: STORAGE SITE
E86: Goole (Guardian Glass) | F86: DC | G86: Other | H86: INDUSTRIAL | I86: INDUSTRIAL
E87: Gosberton | F87: GDN (EM) | G87: EM2 | H87: GDN (EM) | I87: DNO
E88: Gowkhall (Longannet) | F88: DC | G88: Other | H88: POWER STATION | I88: POWER STATION
E89: Grain Power Station | F89: DC | G89: Other | H89: POWER STATION | I89: POWER STATION
E90: Great Wilbraham | F90: GDN (EA) | G90: EA2 | H90: GDN (EA) | I90: DNO
E91: Guyzance | F91: GDN (NO) | G91: NO1 | H91: GDN (NO) | I91: DNO
E92: Hardwick | F92: GDN (SO) | G92: SO1 | H92: GDN (SO) | I92: DNO
E93: Harwarden (Shotton, aka Shotton Paper) | F93: DC | G93: Other | H93: INDUSTRIAL | I93: INDUSTRIAL
E94: Hatfield Moor Max Refill | F94: STORAGE SITE | G94: Other | H94: STORAGE SITE | I94: STORAGE SITE
E95: Hatfield Power Station | F95: DC | G95: Other | H95: POWER STATION | I95: POWER STATION
E96: Hill Top Farm (Hole House Farm) | F96: STORAGE SITE | G96: Other | H96: STORAGE SITE | I96: STORAGE SITE
E97: Hole House Max Refill | F97: STORAGE SITE | G97: Other | H97: STORAGE SITE | I97: STORAGE SITE
E98: Holford | F98: STORAGE SITE | G98: Other | H98: STORAGE SITE | I98: STORAGE SITE
E99: Hollingsgreen (Hays Chemicals) | F99: DC | G99: Other | H99: INDUSTRIAL | I99: INDUSTRIAL
E100: Holmes Chapel | F100: GDN (NW) | G100: NW2 | H100: GDN (NW) | I100: DNO
E101: Horndon | F101: GDN (NT) | G101: NT2 | H101: GDN (NT) | I101: DNO
E102: Hornsea Max Refill | F102: STORAGE SITE | G102: Other | H102: STORAGE SITE | I102: STORAGE SITE
E103: Humbleton | F103: GDN (NO) | G103: NO1 | H103: GDN (NO) | I103: DNO
E104: Hume | F104: GDN (SC) | G104: SC2 | H104: GDN (SC) | I104: DNO
E105: Ilchester | F105: GDN (SW) | G105: SW2 | H105: GDN (SW) | I105: DNO
E106: Ipsden | F106: GDN (SO) | G106: SO2 | H106: GDN (SO) | I106: DNO
E107: Ipsden 2 | F107: GDN (SO) | G107: SO2 | H107: GDN (SO) | I107: DNO
E108: Keld | F108: GDN (NO) | G108: NO2 | H108: GDN (NO) | I108: DNO
E109: Kenn | F109: GDN (SW) | G109: SW3 | H109: GDN (SW) | I109: DNO
E110: Kinknockie | F110: GDN (SC) | G110: SC1 | H110: GDN (SC) | I110: DNO
E111: Kirkstead | F111: GDN (EM) | G111: EM2 | H111: GDN (EM) | I111: DNO
E112: Langage Power Station | F112: DC | G112: Other | H112: POWER STATION | I112: POWER STATION
E113: Langholm | F113: GDN (SC) | G113: SC4 | H113: GDN (SC) | I113: DNO
E114: Lauderhill | F114: GDN (SC) | G114: SC2 | H114: GDN (SC) | I114: DNO
E115: Leamington | F115: GDN (WM) | G115: WM3 | H115: GDN (WM) | I115: DNO
E116: Little Burdon | F116: GDN (NO) | G116: NO1 | H116: GDN (NO) | I116: DNO
E117: Littleton Drew | F117: GDN (SW) | G117: SW2 | H117: GDN (SW) | I117: DNO
E118: Lockerbie | F118: GDN (SC) | G118: SC4 | H118: GDN (SC) | I118: DNO
E119: Lower Quinton | F119: GDN (WM) | G119: WM3 | H119: GDN (WM) | I119: DNO
E120: Lupton | F120: GDN (NW) | G120: NW1 | H120: GDN (NW) | I120: DNO
E121: Luxborough Lane | F121: GDN (NT) | G121: NT2 | H121: GDN (NT) | I121: DNO
E122: Lyneham (Choakford) | F122: GDN (SW) | G122: SW3 | H122: GDN (SW) | I122: DNO
E123: Maelor | F123: GDN (WN) | G123: WN | H123: GDN (WN) | I123: DNO
E124: Malpas | F124: GDN (NW) | G124: NW2 | H124: GDN (NW) | I124: DNO
E125: Mappowder | F125: GDN (SO) | G125: SO2 | H125: GDN (SO) | I125: DNO
E126: Marchwood Power Station | F126: DC | G126: Other | H126: POWER STATION | I126: POWER STATION
E127: Market Harborough | F127: GDN (EM) | G127: EM4 | H127: GDN (EM) | I127: DNO
E128: Matching Green | F128: GDN (EA) | G128: EA4 | H128: GDN (EA) | I128: DNO
E129: Medway (aka Isle of Grain Power Station, NOT Grain Power) | F129: DC | G129: Other | H129: POWER STATION | I129: POWER STATION
E130: Melkinthorpe | F130: GDN (NO) | G130: NO2 | H130: GDN (NO) | I130: DNO
E131: Mickle Trafford | F131: GDN (NW) | G131: NW2 | H131: GDN (NW) | I131: DNO
E132: Middle Stoke (Damhead Creek, aka Kingsnorth Power Station) | F132: DC | G132: Other | H132: POWER STATION | I132: POWER STATION
E133: Milwich | F133: GDN (WM) | G133: WM1 | H133: GDN (WM) | I133: DNO
E134: Moffat (Irish Interconnector) | F134: INTERCONNECTOR | G134: Other | H134: INTERCONNECTOR | I134: INTERCONNECTOR
E135: Netherhowcleugh | F135: GDN (SC) | G135: SC4 | H135: GDN (SC) | I135: DNO
E136: Pannal | F136: GDN (NE) | G136: NE1 | H136: GDN (NE) | I136: DNO
E137: Partington | F137: GDN (NW) | G137: NW2 | H137: GDN (NW) | I137: DNO
E138: Partington Max Refill | F138: STORAGE SITE | G138: Other | H138: STORAGE SITE | I138: STORAGE SITE
E139: Paull | F139: GDN (NE) | G139: NE3 | H139: GDN (NE) | I139: DNO
E140: Pembroke Power Station | F140: DC | G140: Other | H140: POWER STATION | I140: POWER STATION
E141: Peterborough (Peterborough Power Station) | F141: DC | G141: Other | H141: POWER STATION | I141: POWER STATION
E142: Peterborough Eye (Tee) | F142: GDN (EA) | G142: EA1 | H142: GDN (EA) | I142: DNO
E143: Peters Green | F143: GDN (NT) | G143: NT3 | H143: GDN (NT) | I143: DNO
E144: Peters Green South Mimms | F144: GDN (NT) | G144: NT3 | H144: GDN (NT) | I144: DNO
E145: Phillips Petroleum, Teesside | F145: DC | G145: Other | H145: INDUSTRIAL | I145: INDUSTRIAL
E146: Pickering | F146: GDN (NE) | G146: NE2 | H146: GDN (NE) | I146: DNO
E147: Pickmere (Winnington Power, aka Brunner Mond) | F147: DC | G147: Other | H147: INDUSTRIAL | I147: INDUSTRIAL
E148: Pitcairngreen | F148: GDN (SC) | G148: SC1 | H148: GDN (SC) | I148: DNO
E149: Pucklechurch | F149: GDN (SW) | G149: SW2 | H149: GDN (SW) | I149: DNO
E150: Rawcliffe | F150: GDN (NE) | G150: NE1 | H150: GDN (NE) | I150: DNO
E151: Rollswood Kintore | F151: DC | G151: Other | H151: INDUSTRIAL | I151: INDUSTRIAL
E152: Roosecote Power Station (Barrow) | F152: DC | G152: Other | H152: POWER STATION | I152: POWER STATION
E153: Rosehill (Saltend Power Station) | F153: DC | G153: Other | H153: POWER STATION | I153: POWER STATION
E154: Ross (SW) | F154: GDN (SW) | G154: SW1 | H154: GDN (SW) | I154: DNO
E155: Ross (WM) | F155: GDN (WM) | G155: WM3 | H155: GDN (WM) | I155: DNO
E156: Roudham Heath | F156: GDN (EA) | G156: EA2 | H156: GDN (EA) | I156: DNO
E157: Royston | F157: GDN (EA) | G157: EA4 | H157: GDN (EA) | I157: DNO
E158: Rugby | F158: GDN (WM) | G158: WM3 | H158: GDN (WM) | I158: DNO
E159: Ryehouse | F159: DC | G159: Other | H159: POWER STATION | I159: POWER STATION
E160: Saddle Bow (Kings Lynn) | F160: DC | G160: Other | H160: POWER STATION | I160: POWER STATION
E161: Saltend BPHP (BP Saltend HP) | F161: DC | G161: Other | H161: INDUSTRIAL | I161: INDUSTRIAL
E162: Saltfleetby Storage (Theddlethorpe) | F162: STORAGE SITE | G162: Other | H162: STORAGE SITE | I162: STORAGE SITE
E163: Saltwick Pressure Controlled | F163: GDN (NO) | G163: NO1 | H163: GDN (NO) | I163: DNO
E164: Saltwick Volumetric Controlled | F164: GDN (NO) | G164: NO1 | H164: GDN (NO) | I164: DNO
E165: Samlesbury | F165: GDN (NW) | G165: NW1 | H165: GDN (NW) | I165: DNO
E166: Sandy Lane (Blackburn CHP, aka Sappi Paper Mill) | F166: DC | G166: Other | H166: INDUSTRIAL | I166: INDUSTRIAL
E167: Seabank (DN) | F167: GDN (SW) | G167: SW2 | H167: GDN (SW) | I167: DNO
E168: Seabank (Seabank Power Station phase II) | F168: DC | G168: Other | H168: POWER STATION | I168: POWER STATION
E169: Seal Sands TGPP | F169: DC | G169: Other | H169: INDUSTRIAL | I169: INDUSTRIAL
E170: Sellafield Power Station | F170: DC | G170: Other | H170: POWER STATION | I170: POWER STATION
E171: Shellstar (aka Kemira, not Kemira CHP) | F171: DC | G171: Other | H171: INDUSTRIAL | I171: INDUSTRIAL
E172: Shorne | F172: GDN (SE) | G172: SE1 | H172: GDN (SE) | I172: DNO
E173: Shotwick (Bridgewater Paper) | F173: DC | G173: Other | H173: INDUSTRIAL | I173: INDUSTRIAL
E174: Shustoke | F174: GDN (WM) | G174: WM2 | H174: GDN (WM) | I174: DNO
E175: Silk Willoughby | F175: GDN (EM) | G175: EM2 | H175: GDN (EM) | I175: DNO
E176: Soutra | F176: GDN (SC) | G176: SC2 | H176: GDN (SC) | I176: DNO
E177: Spalding 2 (South Holland) Power Station | F177: DC | G177: Other | H177: POWER STATION | I177: POWER STATION
E178: St Fergus | F178: GDN (SC) | G178: SC1 | H178: GDN (SC) | I178: DNO
E179: St. Fergus (Peterhead) | F179: DC | G179: Other | H179: POWER STATION | I179: POWER STATION
E180: St. Fergus (Shell Blackstart) | F180: DC | G180: Other | H180: INDUSTRIAL | I180: INDUSTRIAL
E181: St. Neots (Little Barford) | F181: DC | G181: Other | H181: POWER STATION | I181: POWER STATION
E182: Stallingborough | F182: DC | G182: Other | H182: POWER STATION | I182: POWER STATION
E183: Stanford Le Hope (Coryton) | F183: DC | G183: Other | H183: POWER STATION | I183: POWER STATION
E184: Staythorpe | F184: DC | G184: Other | H184: POWER STATION | I184: POWER STATION
E185: Stranraer | F185: GDN (SC) | G185: SC4 | H185: GDN (SC) | I185: DNO
E186: Stratford-upon-Avon | F186: GDN (WM) | G186: WM3 | H186: GDN (WM) | I186: DNO
E187: Stublach (Cheshire) | F187: STORAGE SITE | G187: Other | H187: STORAGE SITE | I187: STORAGE SITE
E188: Sutton Bridge | F188: GDN (EM) | G188: EM2 | H188: GDN (EM) | I188: DNO
E189: Sutton Bridge Power Station | F189: DC | G189: Other | H189: POWER STATION | I189: POWER STATION
E190: Tatsfield | F190: GDN (SE) | G190: SE1 | H190: GDN (SE) | I190: DNO
E191: Teesside (BASF, aka BASF Teesside) | F191: DC | G191: Other | H191: INDUSTRIAL | I191: INDUSTRIAL
E192: Teesside Hydrogen | F192: DC | G192: Other | H192: INDUSTRIAL | I192: INDUSTRIAL
E193: Terra Nitrogen (aka ICI, Terra Severnside) | F193: DC | G193: Other | H193: INDUSTRIAL | I193: INDUSTRIAL
E194: Thornton Curtis (DN) | F194: GDN (EM) | G194: EM1 | H194: GDN (EM) | I194: DNO
E195: Thornton Curtis (Humber Refinery, aka Immingham) | F195: DC | G195: Other | H195: INDUSTRIAL | I195: INDUSTRIAL
E196: Thornton Curtis (Killingholme) | F196: DC | G196: Other | H196: POWER STATION | I196: POWER STATION
E197: Thrintoft | F197: GDN (NO) | G197: NO1 | H197: GDN (NO) | I197: DNO
E198: Tilbury Power Station | F198: DC | G198: Other | H198: POWER STATION | I198: POWER STATION
E199: Tonna (Baglan Bay) | F199: DC | G199: Other | H199: POWER STATION | I199: POWER STATION
E200: Towlaw | F200: GDN (NO) | G200: NO2 | H200: GDN (NO) | I200: DNO
... 33 more rows

Sheet Existing Contracts - Entry (hidden)
A1: Gas Year | B1: ='Drop Down Inputs'!A15 -> 01-Oct-2018 to 30-Sep-2019 | C1: ='Drop Down Inputs'!A16 -> 01-Oct-2019 to 30-Sep-2020 | D1: ='Drop Down Inputs'!A17 -> 01-Oct-2020 to 30-Sep-2021 | E1: ='Drop Down Inputs'!A18 -> 01-Oct-2021 to 30-Sep-2022 | F1: 01-Oct-2022 to 30-Sep-2023 | G1: 01-Oct-2023 to 30-Sep-2024 | H1: 01-Oct-2024 to 30-Sep-2025 | I1: 01-Oct-2025 to 30-Sep-2026 | J1: 01-Oct-2026 to 30-Sep-2027 | K1: 01-Oct-2027 to 30-Sep-2028 | L1: 01-Oct-2028 to 30-Sep-2029 | M1: 01-Oct-2029 to 30-Sep-2030 | N1: 01-Oct-2030 to 30-Sep-2031 | O1: 01-Oct-2031 to 30-Sep-2032 | P1: 01-Oct-2032 to 30-Sep-2033 | Q1: 01-Oct-2033 to 30-Sep-2034
A2: Entry Point | B2: Existing Contracts (kWh/d) | C2: Existing Contracts (kWh/d) | D2: Existing Contracts (kWh/d) | E2: Existing Contracts (kWh/d) | F2: Existing Contracts (kWh/d) | G2: Existing Contracts (kWh/d) | H2: Existing Contracts (kWh/d) | I2: Existing Contracts (kWh/d) | J2: Existing Contracts (kWh/d) | K2: Existing Contracts (kWh/d) | L2: Existing Contracts (kWh/d) | M2: Existing Contracts (kWh/d) | N2: Existing Contracts (kWh/d) | O2: Existing Contracts (kWh/d) | P2: Existing Contracts (kWh/d) | Q2: Existing Contracts (kWh/d)
A3: Avonmouth | B3: 0 | C3: 0 | D3: 0 | E3: 0 | F3: 0 | G3: 0 | H3: 0 | I3: 0 | J3: 0 | K3: 0 | L3: 0 | M3: 0 | N3: 0 | O3: 0 | P3: 0 | Q3: 0
A4: Bacton IP | B4: 89136101.67 | C4: 89015041.77 | D4: 92162298.55 | E4: 44200041.86 | F4: 28676367.86 | G4: 28837386.07 | H4: 28598630.05 | I4: 0 | J4: 0 | K4: 0 | L4: 0 | M4: 0 | N4: 0 | O4: 0 | P4: 0 | Q4: 0
A5: Bacton UKCS | B5: 243317684.9 | C5: 238685647.2 | D5: 210556462.9 | E5: 203081277.9 | F5: 198902231.4 | G5: 273607526.7 | H5: 196760730.5 | I5: 152373059.2 | J5: 0 | K5: 0 | L5: 0 | M5: 0 | N5: 0 | O5: 0 | P5: 0 | Q5: 0
A6: Burton Point | B6: 14936970.81 | C6: 11513832.04 | D6: 7134731.107 | E6: 0 | F6: 0 | G6: 0 | H6: 0 | I6: 0 | J6: 0 | K6: 0 | L6: 0 | M6: 0 | N6: 0 | O6: 0 | P6: 0 | Q6: 0
A7: Barrow | B7: 75516797.68 | C7: 44993175.15 | D7: 28613480.99 | E7: 25140906.36 | F7: 17878570.79 | G7: 15793118.19 | H7: 372130.674 | I7: 0 | J7: 0 | K7: 0 | L7: 0 | M7: 0 | N7: 0 | O7: 0 | P7: 0 | Q7: 0
A8: Barton Stacey | B8: 90000000 | C8: 90000000 | D8: 80975342.47 | E8: 35901369.86 | F8: 0 | G8: 0 | H8: 0 | I8: 0 | J8: 0 | K8: 0 | L8: 0 | M8: 0 | N8: 0 | O8: 0 | P8: 0 | Q8: 0
A9: Canonbie | B9: 0 | C9: 0 | D9: 0 | E9: 0 | F9: 0 | G9: 0 | H9: 0 | I9: 0 | J9: 0 | K9: 0 | L9: 0 | M9: 0 | N9: 0 | O9: 0 | P9: 0 | Q9: 0
A10: Cheshire | B10: 514110000 | C10: 514110000 | D10: 514110000 | E10: 514110000 | F10: 514110000 | G10: 514110000 | H10: 514110000 | I10: 514110000 | J10: 514110000 | K10: 514110000 | L10: 514110000 | M10: 514110000 | N10: 514110000 | O10: 514110000 | P10: 0 | Q10: 0
A11: Caythorpe | B11: 90000000 | C11: 90000000 | D11: 90000000 | E11: 90000000 | F11: 90000000 | G11: 90000000 | H11: 44876712.33 | I11: 0 | J11: 0 | K11: 0 | L11: 0 | M11: 0 | N11: 0 | O11: 0 | P11: 0 | Q11: 0
A12: Dynevor Arms | B12: 0 | C12: 0 | D12: 0 | E12: 0 | F12: 0 | G12: 0 | H12: 0 | I12: 0 | J12: 0 | K12: 0 | L12: 0 | M12: 0 | N12: 0 | O12: 0 | P12: 0 | Q12: 0
A13: Easington | B13: 730821746.8 | C13: 705187762.7 | D13: 672206895 | E13: 583361098.4 | F13: 584865279.7 | G13: 491393907.2 | H13: 439116023.8 | I13: 393349125.9 | J13: 326978082.2 | K13: 241000000 | L13: 0 | M13: 0 | N13: 0 | O13: 0 | P13: 0 | Q13: 0
A14: Fleetwood | B14: 0 | C14: 0 | D14: 0 | E14: 0 | F14: 0 | G14: 0 | H14: 86301369.86 | I14: 0 | J14: 0 | K14: 0 | L14: 0 | M14: 0 | N14: 0 | O14: 0 | P14: 0 | Q14: 0
A15: Glenmavis | B15: 0 | C15: 0 | D15: 0 | E15: 0 | F15: 0 | G15: 0 | H15: 0 | I15: 0 | J15: 0 | K15: 0 | L15: 0 | M15: 0 | N15: 0 | O15: 0 | P15: 0 | Q15: 0
A16: Garton | B16: 420000000 | C16: 420000000 | D16: 420000000 | E16: 420000000 | F16: 279616438.4 | G16: 70000000 | H16: 0 | I16: 0 | J16: 0 | K16: 0 | L16: 0 | M16: 0 | N16: 0 | O16: 0 | P16: 0 | Q16: 0
A17: Hole House Farm | B17: 283440000 | C17: 283440000 | D17: 283440000 | E17: 283440000 | F17: 283440000 | G17: 283440000 | H17: 283440000 | I17: 283440000 | J17: 118440000 | K17: 118440000 | L17: 118440000 | M17: 0 | N17: 0 | O17: 0 | P17: 0 | Q17: 0
A18: Hatfield Moor (onshore) | B18: 0 | C18: 0 | D18: 0 | E18: 0 | F18: 0 | G18: 0 | H18: 0 | I18: 0 | J18: 0 | K18: 0 | L18: 0 | M18: 0 | N18: 0 | O18: 0 | P18: 0 | Q18: 0
A19: Hornsea | B19: 50742739.73 | C19: 51166366.12 | D19: 50742739.73 | E19: 50742739.73 | F19: 50742739.73 | G19: 0 | H19: 0 | I19: 0 | J19: 0 | K19: 0 | L19: 0 | M19: 0 | N19: 0 | O19: 0 | P19: 0 | Q19: 0
A20: Hatfield Moor (storage) | B20: 5424657.534 | C20: 5469945.355 | D20: 5424657.534 | E20: 5424657.534 | F20: 0 | G20: 5469945.355 | H20: 5424657.534 | I20: 0 | J20: 0 | K20: 0 | L20: 0 | M20: 0 | N20: 0 | O20: 0 | P20: 0 | Q20: 0
A21: Isle of Grain | B21: 643392876.7 | C21: 643450000 | D21: 643392876.7 | E21: 623338082.2 | F21: 623338082.2 | G21: 593450000 | H21: 482435616.4 | I21: 422600000 | J21: 422600000 | K21: 422600000 | L21: 350000000 | M21: 0 | N21: 0 | O21: 0 | P21: 0 | Q21: 0
A22: Milford Haven | B22: 876298630.1 | C22: 926500000 | D22: 649178082.2 | E22: 574383561.6 | F22: 398904109.6 | G22: 392333333.3 | H22: 361095890.4 | I22: 361095890.4 | J22: 361095890.4 | K22: 198907103.8 | L22: 197260274 | M22: 160273972.6 | N22: 0 | O22: 0 | P22: 0 | Q22: 0
A23: Partington | B23: 0 | C23: 0 | D23: 0 | E23: 0 | F23: 0 | G23: 0 | H23: 0 | I23: 0 | J23: 0 | K23: 0 | L23: 0 | M23: 0 | N23: 0 | O23: 0 | P23: 0 | Q23: 0
A24: Moffat (Irish Interconnector) | B24: 0 | C24: 0 | D24: 0 | E24: 0 | F24: 0 | G24: 0 | H24: 0 | I24: 0 | J24: 0 | K24: 0 | L24: 0 | M24: 0 | N24: 0 | O24: 0 | P24: 0 | Q24: 0
A25: Murrow | B25: 0 | C25: 0 | D25: 0 | E25: 0 | F25: 0 | G25: 0 | H25: 0 | I25: 0 | J25: 0 | K25: 0 | L25: 0 | M25: 0 | N25: 0 | O25: 0 | P25: 0 | Q25: 0
A26: St Fergus | B26: 121747002.1 | C26: 71403827.42 | D26: 53730053.98 | E26: 26953626.24 | F26: 22649389.36 | G26: 15524157.39 | H26: 5236705.808 | I26: 3005859.545 | J26: 0 | K26: 0 | L26: 0 | M26: 0 | N26: 0 | O26: 0 | P26: 0 | Q26: 0
A27: Teesside | B27: 102865550.2 | C27: 81570525.55 | D27: 51920075.96 | E27: 34038113.08 | F27: 9764066.775 | G27: 1861378.011 | H27: 863413.6274 | I27: 181819.726 | J27: 0 | K27: 0 | L27: 0 | M27: 0 | N27: 0 | O27: 0 | P27: 0 | Q27: 0
A28: Theddlethorpe | B28: 10700821.92 | C28: 8550000 | D28: 0 | E28: 0 | F28: 0 | G28: 0 | H28: 0 | I28: 0 | J28: 0 | K28: 0 | L28: 0 | M28: 0 | N28: 0 | O28: 0 | P28: 0 | Q28: 0
A29: Wytch Farm | B29: 0 | C29: 0 | D29: 0 | E29: 0 | F29: 0 | G29: 0 | H29: 0 | I29: 0 | J29: 0 | K29: 0 | L29: 0 | M29: 0 | N29: 0 | O29: 0 | P29: 0 | Q29: 0
A30: Total Capacity (kWh/d) | B30: =SUM(B3:B29) -> 4362451580 | C30: =SUM(C3:C29) -> 4275056123 | D30: 3853587697 | E30: 3514115475 | F30: 3102887276 | G30: 2775820752 | H30: 2448631881 | I30: 2130155755 | J30: 1743223973 | K30: 1495057104 | L30: 1179810274 | M30: 674383972.6 | N30: 514110000 | O30: 514110000 | P30: 0 | Q30: 0
A31: Total Revenue (£/annum) | B31: 69493789.79 | C31: 56648302.88 | D31: 60021774.28 | E31: 54338644.4 | F31: 53022532.62 | G31: 67799155.98 | H31: 57526422.6 | I31: 50015957.09 | J31: 37394005.75 | K31: 25210526.9 | L31: 15151880.75 | M31: 12180150.15 | N31: 187650.15 | O31: 188164.26 | P31: 0 | Q31: 0

Sheet 18-19 FCC - Entry (hidden)
A1: Entry Point | B1: Entry Point Type | C1: Forecasted Contracted Capacity
C2: (kWh/d)
A3: Avonmouth | B3: =VLOOKUP(A3,'Locations & Types'!$A:$B,2,FALSE) -> STORAGE SITE | C3: 0
A4: Bacton IP | B4: =VLOOKUP(A4,'Locations & Types'!$A:$B,2,FALSE) -> INTERCONNECTION POINT | C4: 242349238.1
A5: Bacton UKCS | B5: =VLOOKUP(A5,'Locations & Types'!$A:$B,2,FALSE) -> BEACH TERMINAL | C5: 674940457.3
A6: Burton Point | B6: =VLOOKUP(A6,'Locations & Types'!$A:$B,2,FALSE) -> ONSHORE FIELD | C6: 31388848.35
A7: Barrow | B7: =VLOOKUP(A7,'Locations & Types'!$A:$B,2,FALSE) -> BEACH TERMINAL | C7: 83866773.67
A8: Barton Stacey | B8: =VLOOKUP(A8,'Locations & Types'!$A:$B,2,FALSE) -> STORAGE SITE | C8: 90000000
A9: Canonbie | B9: =VLOOKUP(A9,'Locations & Types'!$A:$B,2,FALSE) -> ONSHORE FIELD | C9: 0
A10: Cheshire | B10: =VLOOKUP(A10,'Locations & Types'!$A:$B,2,FALSE) -> STORAGE SITE | C10: 514110000
A11: Caythorpe | B11: =VLOOKUP(A11,'Locations & Types'!$A:$B,2,FALSE) -> STORAGE SITE | C11: 90000000
A12: Dynevor Arms | B12: =VLOOKUP(A12,'Locations & Types'!$A:$B,2,FALSE) -> STORAGE SITE | C12: 0
A13: Easington | B13: =VLOOKUP(A13,'Locations & Types'!$A:$B,2,FALSE) -> BEACH TERMINAL | C13: 923976213.2
A14: Fleetwood | B14: =VLOOKUP(A14,'Locations & Types'!$A:$B,2,FALSE) -> STORAGE SITE | C14: 0
A15: Glenmavis | B15: =VLOOKUP(A15,'Locations & Types'!$A:$B,2,FALSE) -> STORAGE SITE | C15: 0
A16: Garton | B16: =VLOOKUP(A16,'Locations & Types'!$A:$B,2,FALSE) -> STORAGE SITE | C16: 420000000
A17: Hole House Farm | B17: =VLOOKUP(A17,'Locations & Types'!$A:$B,2,FALSE) -> STORAGE SITE | C17: 283440000
A18: Hatfield Moor (onshore) | B18: =VLOOKUP(A18,'Locations & Types'!$A:$B,2,FALSE) -> ONSHORE FIELD | C18: 0
A19: Hornsea | B19: =VLOOKUP(A19,'Locations & Types'!$A:$B,2,FALSE) -> STORAGE SITE | C19: 108866575.3
A20: Hatfield Moor (storage) | B20: =VLOOKUP(A20,'Locations & Types'!$A:$B,2,FALSE) -> STORAGE SITE | C20: 5424657.534
A21: Isle of Grain | B21: =VLOOKUP(A21,'Locations & Types'!$A:$B,2,FALSE) -> LNG IMPORTATION TERMINAL | C21: 643612054.3
A22: Milford Haven | B22: =VLOOKUP(A22,'Locations & Types'!$A:$B,2,FALSE) -> LNG IMPORTATION TERMINAL | C22: 876298630.1
A23: Partington | B23: =VLOOKUP(A23,'Locations & Types'!$A:$B,2,FALSE) -> STORAGE SITE | C23: 0
A24: Moffat (Irish Interconnector) | B24: =VLOOKUP(A24,'Locations & Types'!$A:$B,2,FALSE) -> INTERCONNECTION POINT | C24: 5969.098677
A25: Murrow | B25: BIOMETHANE PLANT | C25: 0
A26: St Fergus | B26: =VLOOKUP(A26,'Locations & Types'!$A:$B,2,FALSE) -> BEACH TERMINAL | C26: 845897745.5
A27: Teesside | B27: =VLOOKUP(A27,'Locations & Types'!$A:$B,2,FALSE) -> BEACH TERMINAL | C27: 280182870.2
A28: Theddlethorpe | B28: =VLOOKUP(A28,'Locations & Types'!$A:$B,2,FALSE) -> BEACH TERMINAL | C28: 52721441.07
A29: Wytch Farm | B29: =VLOOKUP(A29,'Locations & Types'!$A:$B,2,FALSE) -> ONSHORE FIELD | C29: 0

Sheet 19-20 FCC - Entry (hidden)
A1: Entry Point | B1: Entry Point Type | C1: Forecasted Contracted Capacity
C2: (kWh/d)
A3: Avonmouth | B3: =VLOOKUP(A3,'Locations & Types'!$A:$B,2,FALSE) -> STORAGE SITE | C3: 0
A4: Bacton IP | B4: =VLOOKUP(A4,'Locations & Types'!$A:$B,2,FALSE) -> INTERCONNECTION POINT | C4: 242349238.1
A5: Bacton UKCS | B5: =VLOOKUP(A5,'Locations & Types'!$A:$B,2,FALSE) -> BEACH TERMINAL | C5: 674940457.3
A6: Burton Point | B6: =VLOOKUP(A6,'Locations & Types'!$A:$B,2,FALSE) -> ONSHORE FIELD | C6: 31388848.35
A7: Barrow | B7: =VLOOKUP(A7,'Locations & Types'!$A:$B,2,FALSE) -> BEACH TERMINAL | C7: 83866773.67
A8: Barton Stacey | B8: =VLOOKUP(A8,'Locations & Types'!$A:$B,2,FALSE) -> STORAGE SITE | C8: 90000000
A9: Canonbie | B9: =VLOOKUP(A9,'Locations & Types'!$A:$B,2,FALSE) -> ONSHORE FIELD | C9: 0
A10: Cheshire | B10: =VLOOKUP(A10,'Locations & Types'!$A:$B,2,FALSE) -> STORAGE SITE | C10: 514110000
A11: Caythorpe | B11: =VLOOKUP(A11,'Locations & Types'!$A:$B,2,FALSE) -> STORAGE SITE | C11: 90000000
A12: Dynevor Arms | B12: =VLOOKUP(A12,'Locations & Types'!$A:$B,2,FALSE) -> STORAGE SITE | C12: 0
A13: Easington | B13: =VLOOKUP(A13,'Locations & Types'!$A:$B,2,FALSE) -> BEACH TERMINAL | C13: 923976213.2
A14: Fleetwood | B14: =VLOOKUP(A14,'Locations & Types'!$A:$B,2,FALSE) -> STORAGE SITE | C14: 0
A15: Glenmavis | B15: =VLOOKUP(A15,'Locations & Types'!$A:$B,2,FALSE) -> STORAGE SITE | C15: 0
A16: Garton | B16: =VLOOKUP(A16,'Locations & Types'!$A:$B,2,FALSE) -> STORAGE SITE | C16: 420000000
A17: Hole House Farm | B17: =VLOOKUP(A17,'Locations & Types'!$A:$B,2,FALSE) -> STORAGE SITE | C17: 283440000
A18: Hatfield Moor (onshore) | B18: =VLOOKUP(A18,'Locations & Types'!$A:$B,2,FALSE) -> ONSHORE FIELD | C18: 0
A19: Hornsea | B19: =VLOOKUP(A19,'Locations & Types'!$A:$B,2,FALSE) -> STORAGE SITE | C19: 108866575.3
A20: Hatfield Moor (storage) | B20: =VLOOKUP(A20,'Locations & Types'!$A:$B,2,FALSE) -> STORAGE SITE | C20: 5469945.355
A21: Isle of Grain | B21: =VLOOKUP(A21,'Locations & Types'!$A:$B,2,FALSE) -> LNG IMPORTATION TERMINAL | C21: 643612054.3
A22: Milford Haven | B22: =VLOOKUP(A22,'Locations & Types'!$A:$B,2,FALSE) -> LNG IMPORTATION TERMINAL | C22: 926500000
A23: Partington | B23: =VLOOKUP(A23,'Locations & Types'!$A:$B,2,FALSE) -> STORAGE SITE | C23: 0
A24: Moffat (Irish Interconnector) | B24: =VLOOKUP(A24,'Locations & Types'!$A:$B,2,FALSE) -> INTERCONNECTION POINT | C24: 5969.098677
A25: Murrow | B25: BIOMETHANE PLANT | C25: 0
A26: St Fergus | B26: =VLOOKUP(A26,'Locations & Types'!$A:$B,2,FALSE) -> BEACH TERMINAL | C26: 845897745.5
A27: Teesside | B27: =VLOOKUP(A27,'Locations & Types'!$A:$B,2,FALSE) -> BEACH TERMINAL | C27: 349329734
A28: Theddlethorpe | B28: =VLOOKUP(A28,'Locations & Types'!$A:$B,2,FALSE) -> BEACH TERMINAL | C28: 43243983.56
A29: Wytch Farm | B29: =VLOOKUP(A29,'Locations & Types'!$A:$B,2,FALSE) -> ONSHORE FIELD | C29: 0

Sheet 20-21 FCC - Entry (hidden)
A1: Entry Point | B1: Entry Point Type | C1: Forecasted Contracted Capacity
C2: (kWh/d)
A3: Avonmouth | B3: =VLOOKUP(A3,'Locations & Types'!$A:$B,2,FALSE) -> STORAGE SITE | C3: 0
A4: Bacton IP | B4: =VLOOKUP(A4,'Locations & Types'!$A:$B,2,FALSE) -> INTERCONNECTION POINT | C4: 242349238.1
A5: Bacton UKCS | B5: =VLOOKUP(A5,'Locations & Types'!$A:$B,2,FALSE) -> BEACH TERMINAL | C5: 674940457.3
A6: Burton Point | B6: =VLOOKUP(A6,'Locations & Types'!$A:$B,2,FALSE) -> ONSHORE FIELD | C6: 31388848.35
A7: Barrow | B7: =VLOOKUP(A7,'Locations & Types'!$A:$B,2,FALSE) -> BEACH TERMINAL | C7: 83866773.67
A8: Barton Stacey | B8: =VLOOKUP(A8,'Locations & Types'!$A:$B,2,FALSE) -> STORAGE SITE | C8: 80975342.47
A9: Canonbie | B9: =VLOOKUP(A9,'Locations & Types'!$A:$B,2,FALSE) -> ONSHORE FIELD | C9: 0
A10: Cheshire | B10: =VLOOKUP(A10,'Locations & Types'!$A:$B,2,FALSE) -> STORAGE SITE | C10: 514110000
A11: Caythorpe | B11: =VLOOKUP(A11,'Locations & Types'!$A:$B,2,FALSE) -> STORAGE SITE | C11: 90000000
A12: Dynevor Arms | B12: =VLOOKUP(A12,'Locations & Types'!$A:$B,2,FALSE) -> STORAGE SITE | C12: 0
A13: Easington | B13: =VLOOKUP(A13,'Locations & Types'!$A:$B,2,FALSE) -> BEACH TERMINAL | C13: 923976213.2
A14: Fleetwood | B14: =VLOOKUP(A14,'Locations & Types'!$A:$B,2,FALSE) -> STORAGE SITE | C14: 0
A15: Glenmavis | B15: =VLOOKUP(A15,'Locations & Types'!$A:$B,2,FALSE) -> STORAGE SITE | C15: 0
A16: Garton | B16: =VLOOKUP(A16,'Locations & Types'!$A:$B,2,FALSE) -> STORAGE SITE | C16: 420000000
A17: Hole House Farm | B17: =VLOOKUP(A17,'Locations & Types'!$A:$B,2,FALSE) -> STORAGE SITE | C17: 283440000
A18: Hatfield Moor (onshore) | B18: =VLOOKUP(A18,'Locations & Types'!$A:$B,2,FALSE) -> ONSHORE FIELD | C18: 0
A19: Hornsea | B19: =VLOOKUP(A19,'Locations & Types'!$A:$B,2,FALSE) -> STORAGE SITE | C19: 108866575.3
A20: Hatfield Moor (storage) | B20: =VLOOKUP(A20,'Locations & Types'!$A:$B,2,FALSE) -> STORAGE SITE | C20: 5424657.534
A21: Isle of Grain | B21: =VLOOKUP(A21,'Locations & Types'!$A:$B,2,FALSE) -> LNG IMPORTATION TERMINAL | C21: 643612054.3
A22: Milford Haven | B22: =VLOOKUP(A22,'Locations & Types'!$A:$B,2,FALSE) -> LNG IMPORTATION TERMINAL | C22: 649178082.2
A23: Partington | B23: =VLOOKUP(A23,'Locations & Types'!$A:$B,2,FALSE) -> STORAGE SITE | C23: 0
A24: Moffat (Irish Interconnector) | B24: =VLOOKUP(A24,'Locations & Types'!$A:$B,2,FALSE) -> INTERCONNECTION POINT | C24: 5969.098677
A25: Murrow | B25: BIOMETHANE PLANT | C25: 0
A26: St Fergus | B26: =VLOOKUP(A26,'Locations & Types'!$A:$B,2,FALSE) -> BEACH TERMINAL | C26: 845897745.5
A27: Teesside | B27: =VLOOKUP(A27,'Locations & Types'!$A:$B,2,FALSE) -> BEACH TERMINAL | C27: 334820184.8
A28: Theddlethorpe | B28: =VLOOKUP(A28,'Locations & Types'!$A:$B,2,FALSE) -> BEACH TERMINAL | C28: 43243983.56
A29: Wytch Farm | B29: =VLOOKUP(A29,'Locations & Types'!$A:$B,2,FALSE) -> ONSHORE FIELD | C29: 0

Sheet 21-22 FCC - Entry (hidden)
A1: Entry Point | B1: Entry Point Type | C1: Forecasted Contracted Capacity
C2: (kWh/d)
A3: Avonmouth | B3: =VLOOKUP(A3,'Locations & Types'!$A:$B,2,FALSE) -> STORAGE SITE | C3: 0
A4: Bacton IP | B4: =VLOOKUP(A4,'Locations & Types'!$A:$B,2,FALSE) -> INTERCONNECTION POINT | C4: 242349238.1
A5: Bacton UKCS | B5: =VLOOKUP(A5,'Locations & Types'!$A:$B,2,FALSE) -> BEACH TERMINAL | C5: 674940457.3
A6: Burton Point | B6: =VLOOKUP(A6,'Locations & Types'!$A:$B,2,FALSE) -> ONSHORE FIELD | C6: 31388848.35
A7: Barrow | B7: =VLOOKUP(A7,'Locations & Types'!$A:$B,2,FALSE) -> BEACH TERMINAL | C7: 83866773.67
A8: Barton Stacey | B8: =VLOOKUP(A8,'Locations & Types'!$A:$B,2,FALSE) -> STORAGE SITE | C8: 35901369.86
A9: Canonbie | B9: =VLOOKUP(A9,'Locations & Types'!$A:$B,2,FALSE) -> ONSHORE FIELD | C9: 0
A10: Cheshire | B10: =VLOOKUP(A10,'Locations & Types'!$A:$B,2,FALSE) -> STORAGE SITE | C10: 514110000
A11: Caythorpe | B11: =VLOOKUP(A11,'Locations & Types'!$A:$B,2,FALSE) -> STORAGE SITE | C11: 90000000
A12: Dynevor Arms | B12: =VLOOKUP(A12,'Locations & Types'!$A:$B,2,FALSE) -> STORAGE SITE | C12: 0
A13: Easington | B13: =VLOOKUP(A13,'Locations & Types'!$A:$B,2,FALSE) -> BEACH TERMINAL | C13: 923976213.2
A14: Fleetwood | B14: =VLOOKUP(A14,'Locations & Types'!$A:$B,2,FALSE) -> STORAGE SITE | C14: 0
A15: Glenmavis | B15: =VLOOKUP(A15,'Locations & Types'!$A:$B,2,FALSE) -> STORAGE SITE | C15: 0
A16: Garton | B16: =VLOOKUP(A16,'Locations & Types'!$A:$B,2,FALSE) -> STORAGE SITE | C16: 420000000
A17: Hole House Farm | B17: =VLOOKUP(A17,'Locations & Types'!$A:$B,2,FALSE) -> STORAGE SITE | C17: 283440000
A18: Hatfield Moor (onshore) | B18: =VLOOKUP(A18,'Locations & Types'!$A:$B,2,FALSE) -> ONSHORE FIELD | C18: 0
A19: Hornsea | B19: =VLOOKUP(A19,'Locations & Types'!$A:$B,2,FALSE) -> STORAGE SITE | C19: 108866575.3
A20: Hatfield Moor (storage) | B20: =VLOOKUP(A20,'Locations & Types'!$A:$B,2,FALSE) -> STORAGE SITE | C20: 5424657.534
A21: Isle of Grain | B21: =VLOOKUP(A21,'Locations & Types'!$A:$B,2,FALSE) -> LNG IMPORTATION TERMINAL | C21: 643612054.3
A22: Milford Haven | B22: =VLOOKUP(A22,'Locations & Types'!$A:$B,2,FALSE) -> LNG IMPORTATION TERMINAL | C22: 574383561.6
A23: Partington | B23: =VLOOKUP(A23,'Locations & Types'!$A:$B,2,FALSE) -> STORAGE SITE | C23: 0
A24: Moffat (Irish Interconnector) | B24: =VLOOKUP(A24,'Locations & Types'!$A:$B,2,FALSE) -> INTERCONNECTION POINT | C24: 5969.098677
A25: Murrow | B25: BIOMETHANE PLANT | C25: 0
A26: St Fergus | B26: =VLOOKUP(A26,'Locations & Types'!$A:$B,2,FALSE) -> BEACH TERMINAL | C26: 845897745.5
A27: Teesside | B27: =VLOOKUP(A27,'Locations & Types'!$A:$B,2,FALSE) -> BEACH TERMINAL | C27: 315344390
A28: Theddlethorpe | B28: =VLOOKUP(A28,'Locations & Types'!$A:$B,2,FALSE) -> BEACH TERMINAL | C28: 43243983.56
A29: Wytch Farm | B29: =VLOOKUP(A29,'Locations & Types'!$A:$B,2,FALSE) -> ONSHORE FIELD | C29: 0

Sheet 22-23 FCC - Entry (hidden)
A1: Entry Point | B1: Entry Point Type | C1: Forecasted Contracted Capacity
C2: (kWh/d)
A3: Avonmouth | B3: =VLOOKUP(A3,'Locations & Types'!$A:$B,2,FALSE) -> STORAGE SITE | C3: 0
A4: Bacton IP | B4: =VLOOKUP(A4,'Locations & Types'!$A:$B,2,FALSE) -> INTERCONNECTION POINT | C4: 242349238.1
A5: Bacton UKCS | B5: =VLOOKUP(A5,'Locations & Types'!$A:$B,2,FALSE) -> BEACH TERMINAL | C5: 674940457.3
A6: Burton Point | B6: =VLOOKUP(A6,'Locations & Types'!$A:$B,2,FALSE) -> ONSHORE FIELD | C6: 31388848.35
A7: Barrow | B7: =VLOOKUP(A7,'Locations & Types'!$A:$B,2,FALSE) -> BEACH TERMINAL | C7: 83866773.67
A8: Barton Stacey | B8: =VLOOKUP(A8,'Locations & Types'!$A:$B,2,FALSE) -> STORAGE SITE | C8: 9187718.356
A9: Canonbie | B9: =VLOOKUP(A9,'Locations & Types'!$A:$B,2,FALSE) -> ONSHORE FIELD | C9: 0
A10: Cheshire | B10: =VLOOKUP(A10,'Locations & Types'!$A:$B,2,FALSE) -> STORAGE SITE | C10: 514110000
A11: Caythorpe | B11: =VLOOKUP(A11,'Locations & Types'!$A:$B,2,FALSE) -> STORAGE SITE | C11: 90000000
A12: Dynevor Arms | B12: =VLOOKUP(A12,'Locations & Types'!$A:$B,2,FALSE) -> STORAGE SITE | C12: 0
A13: Easington | B13: =VLOOKUP(A13,'Locations & Types'!$A:$B,2,FALSE) -> BEACH TERMINAL | C13: 923976213.2
A14: Fleetwood | B14: =VLOOKUP(A14,'Locations & Types'!$A:$B,2,FALSE) -> STORAGE SITE | C14: 0
A15: Glenmavis | B15: =VLOOKUP(A15,'Locations & Types'!$A:$B,2,FALSE) -> STORAGE SITE | C15: 0
A16: Garton | B16: =VLOOKUP(A16,'Locations & Types'!$A:$B,2,FALSE) -> STORAGE SITE | C16: 420000000
A17: Hole House Farm | B17: =VLOOKUP(A17,'Locations & Types'!$A:$B,2,FALSE) -> STORAGE SITE | C17: 283440000
A18: Hatfield Moor (onshore) | B18: =VLOOKUP(A18,'Locations & Types'!$A:$B,2,FALSE) -> ONSHORE FIELD | C18: 0
A19: Hornsea | B19: =VLOOKUP(A19,'Locations & Types'!$A:$B,2,FALSE) -> STORAGE SITE | C19: 108866575.3
A20: Hatfield Moor (storage) | B20: =VLOOKUP(A20,'Locations & Types'!$A:$B,2,FALSE) -> STORAGE SITE | C20: 5424657.534
A21: Isle of Grain | B21: =VLOOKUP(A21,'Locations & Types'!$A:$B,2,FALSE) -> LNG IMPORTATION TERMINAL | C21: 643612054.3
A22: Milford Haven | B22: =VLOOKUP(A22,'Locations & Types'!$A:$B,2,FALSE) -> LNG IMPORTATION TERMINAL | C22: 473698630.1
A23: Partington | B23: =VLOOKUP(A23,'Locations & Types'!$A:$B,2,FALSE) -> STORAGE SITE | C23: 0
A24: Moffat (Irish Interconnector) | B24: =VLOOKUP(A24,'Locations & Types'!$A:$B,2,FALSE) -> INTERCONNECTION POINT | C24: 5969.098677
A25: Murrow | B25: BIOMETHANE PLANT | C25: 0
A26: St Fergus | B26: =VLOOKUP(A26,'Locations & Types'!$A:$B,2,FALSE) -> BEACH TERMINAL | C26: 845897745.5
A27: Teesside | B27: =VLOOKUP(A27,'Locations & Types'!$A:$B,2,FALSE) -> BEACH TERMINAL | C27: 269176960.3
A28: Theddlethorpe | B28: =VLOOKUP(A28,'Locations & Types'!$A:$B,2,FALSE) -> BEACH TERMINAL | C28: 43243983.56
A29: Wytch Farm | B29: =VLOOKUP(A29,'Locations & Types'!$A:$B,2,FALSE) -> ONSHORE FIELD | C29: 0

Sheet 18-19 FCC - Exit (hidden)
A1: Exit Point | B1: Exit Point Type | C1: Forecasted Contracted Capacity
C2: (kWh/d)
A3: Aberdeen | B3: =VLOOKUP(A3,'Locations & Types'!$E:$F,2,FALSE) -> GDN (SC) | C3: 21639348
A4: Abson (Seabank Power Station phase I) | B4: =VLOOKUP(A4,'Locations & Types'!$E:$F,2,FALSE) -> DC | C4: 27843799.79
A5: Alrewas (EM) | B5: =VLOOKUP(A5,'Locations & Types'!$E:$F,2,FALSE) -> GDN (EM) | C5: 59229584
A6: Alrewas (WM) | B6: =VLOOKUP(A6,'Locations & Types'!$E:$F,2,FALSE) -> GDN (WM) | C6: 72462290
A7: Apache (Sage Black Start) | B7: =VLOOKUP(A7,'Locations & Types'!$E:$F,2,FALSE) -> DC | C7: 9073.673973
A8: Armadale | B8: =VLOOKUP(A8,'Locations & Types'!$E:$F,2,FALSE) -> GDN (SC) | C8: 7519525
A9: Aspley | B9: =VLOOKUP(A9,'Locations & Types'!$E:$F,2,FALSE) -> GDN (WM) | C9: 50894176
A10: Asselby | B10: =VLOOKUP(A10,'Locations & Types'!$E:$F,2,FALSE) -> GDN (NE) | C10: 3586201
A11: Audley (NW) | B11: =VLOOKUP(A11,'Locations & Types'!$E:$F,2,FALSE) -> GDN (NW) | C11: 8037574
A12: Audley (WM) | B12: =VLOOKUP(A12,'Locations & Types'!$E:$F,2,FALSE) -> GDN (WM) | C12: 13572412
A13: Austrey | B13: =VLOOKUP(A13,'Locations & Types'!$E:$F,2,FALSE) -> GDN (WM) | C13: 59601211
A14: Avonmouth Max Refill | B14: =VLOOKUP(A14,'Locations & Types'!$E:$F,2,FALSE) -> STORAGE SITE | C14: 661.2054795
A15: Aylesbeare | B15: =VLOOKUP(A15,'Locations & Types'!$E:$F,2,FALSE) -> GDN (SW) | C15: 19128874
A16: Bacton | B16: =VLOOKUP(A16,'Locations & Types'!$E:$F,2,FALSE) -> GDN (EA) | C16: 2844268
A17: Bacton (Baird) | B17: =VLOOKUP(A17,'Locations & Types'!$E:$F,2,FALSE) -> STORAGE SITE | C17: 0
A18: Bacton (BBL) | B18: =VLOOKUP(A18,'Locations & Types'!$E:$F,2,FALSE) -> INTERCONNECTOR | C18: 0
A19: Bacton (Great Yarmouth) | B19: =VLOOKUP(A19,'Locations & Types'!$E:$F,2,FALSE) -> DC | C19: 20000000
A20: Bacton (IUK) | B20: =VLOOKUP(A20,'Locations & Types'!$E:$F,2,FALSE) -> INTERCONNECTOR | C20: 185430316.3
A21: Baldersby | B21: =VLOOKUP(A21,'Locations & Types'!$E:$F,2,FALSE) -> GDN (NE) | C21: 1126642
A22: Balgray | B22: =VLOOKUP(A22,'Locations & Types'!$E:$F,2,FALSE) -> GDN (SC) | C22: 15057981
A23: Barking (Horndon) | B23: =VLOOKUP(A23,'Locations & Types'!$E:$F,2,FALSE) -> DC | C23: 0
A24: Barrow (Bains) | B24: =VLOOKUP(A24,'Locations & Types'!$E:$F,2,FALSE) -> STORAGE SITE | C24: 0
A25: Barrow (Black Start) | B25: =VLOOKUP(A25,'Locations & Types'!$E:$F,2,FALSE) -> DC | C25: 1001369.863
A26: Barrow (Gateway) | B26: =VLOOKUP(A26,'Locations & Types'!$E:$F,2,FALSE) -> STORAGE SITE | C26: 0
A27: Barton Stacey Max Refill (Humbly Grove) | B27: =VLOOKUP(A27,'Locations & Types'!$E:$F,2,FALSE) -> STORAGE SITE | C27: 10181399.89
A28: Bathgate | B28: =VLOOKUP(A28,'Locations & Types'!$E:$F,2,FALSE) -> GDN (SC) | C28: 21081766
A29: Billingham ICI (Terra Billingham) | B29: =VLOOKUP(A29,'Locations & Types'!$E:$F,2,FALSE) -> DC | C29: 33644543
A30: Bishop Auckland | B30: =VLOOKUP(A30,'Locations & Types'!$E:$F,2,FALSE) -> GDN (NO) | C30: 56287977
A31: Bishop Auckland (test facility) | B31: =VLOOKUP(A31,'Locations & Types'!$E:$F,2,FALSE) -> DC | C31: 781914.3562
A32: Blaby | B32: =VLOOKUP(A32,'Locations & Types'!$E:$F,2,FALSE) -> GDN (EM) | C32: 9867513
A33: Blackness (BP Grangemouth) | B33: =VLOOKUP(A33,'Locations & Types'!$E:$F,2,FALSE) -> DC | C33: 27290000
A34: Blackrod | B34: =VLOOKUP(A34,'Locations & Types'!$E:$F,2,FALSE) -> GDN (NW) | C34: 123939267
A35: Blyborough | B35: =VLOOKUP(A35,'Locations & Types'!$E:$F,2,FALSE) -> GDN (EM) | C35: 55825856
A36: Blyborough (Brigg) | B36: =VLOOKUP(A36,'Locations & Types'!$E:$F,2,FALSE) -> DC | C36: 1600000
A37: Blyborough (Cottam) | B37: =VLOOKUP(A37,'Locations & Types'!$E:$F,2,FALSE) -> DC | C37: 12767838.63
A38: Braishfield A | B38: =VLOOKUP(A38,'Locations & Types'!$E:$F,2,FALSE) -> GDN (SO) | C38: 84161130
A39: Braishfield B | B39: =VLOOKUP(A39,'Locations & Types'!$E:$F,2,FALSE) -> GDN (SO) | C39: 64947171
A40: Brine Field (Teesside) Power Station | B40: =VLOOKUP(A40,'Locations & Types'!$E:$F,2,FALSE) -> DC | C40: 50816.9863
A41: Brisley | B41: =VLOOKUP(A41,'Locations & Types'!$E:$F,2,FALSE) -> GDN (EA) | C41: 2077837
A42: Broxburn | B42: =VLOOKUP(A42,'Locations & Types'!$E:$F,2,FALSE) -> GDN (SC) | C42: 56250554
A43: Burley Bank | B43: =VLOOKUP(A43,'Locations & Types'!$E:$F,2,FALSE) -> GDN (NE) | C43: 13868151
A44: Burnhervie | B44: =VLOOKUP(A44,'Locations & Types'!$E:$F,2,FALSE) -> GDN (SC) | C44: 22372861
A45: Burton Point (Connahs Quay) | B45: =VLOOKUP(A45,'Locations & Types'!$E:$F,2,FALSE) -> DC | C45: 13734651.61
A46: Caldecott | B46: =VLOOKUP(A46,'Locations & Types'!$E:$F,2,FALSE) -> GDN (EM) | C46: 8977861
A47: Caldecott (Corby Power Station) | B47: =VLOOKUP(A47,'Locations & Types'!$E:$F,2,FALSE) -> DC | C47: 663937.0959
A48: Cambridge | B48: =VLOOKUP(A48,'Locations & Types'!$E:$F,2,FALSE) -> GDN (EA) | C48: 0
A49: Careston | B49: =VLOOKUP(A49,'Locations & Types'!$E:$F,2,FALSE) -> GDN (SC) | C49: 4112924
A50: Carrington (Partington) Power Station | B50: =VLOOKUP(A50,'Locations & Types'!$E:$F,2,FALSE) -> DC | C50: 28568650.53
A51: Caythorpe | B51: =VLOOKUP(A51,'Locations & Types'!$E:$F,2,FALSE) -> STORAGE SITE | C51: 0
A52: Centrax Industrial | B52: =VLOOKUP(A52,'Locations & Types'!$E:$F,2,FALSE) -> DC | C52: 85000
A53: Cirencester | B53: =VLOOKUP(A53,'Locations & Types'!$E:$F,2,FALSE) -> GDN (SW) | C53: 7417140
A54: Cockenzie Power Station | B54: =VLOOKUP(A54,'Locations & Types'!$E:$F,2,FALSE) -> DC | C54: 0
A55: Coffinswell | B55: =VLOOKUP(A55,'Locations & Types'!$E:$F,2,FALSE) -> GDN (SW) | C55: 5150000
A56: Coldstream | B56: =VLOOKUP(A56,'Locations & Types'!$E:$F,2,FALSE) -> GDN (NO) | C56: 2848927
A57: Corbridge | B57: =VLOOKUP(A57,'Locations & Types'!$E:$F,2,FALSE) -> GDN (NO) | C57: 57846
A58: Coryton 2 (Thames Haven) Power Station | B58: =VLOOKUP(A58,'Locations & Types'!$E:$F,2,FALSE) -> DC | C58: 0
A59: Cowpen Bewley | B59: =VLOOKUP(A59,'Locations & Types'!$E:$F,2,FALSE) -> GDN (NO) | C59: 38498554
A60: Crawley Down | B60: =VLOOKUP(A60,'Locations & Types'!$E:$F,2,FALSE) -> GDN (SO) | C60: 0
A61: Deborah Storage (Bacton) | B61: =VLOOKUP(A61,'Locations & Types'!$E:$F,2,FALSE) -> STORAGE SITE | C61: 0
A62: Deeside | B62: =VLOOKUP(A62,'Locations & Types'!$E:$F,2,FALSE) -> DC | C62: 4448282.164
A63: Didcot | B63: =VLOOKUP(A63,'Locations & Types'!$E:$F,2,FALSE) -> DC | C63: 33674184.27
A64: Dowlais | B64: =VLOOKUP(A64,'Locations & Types'!$E:$F,2,FALSE) -> GDN (WS) | C64: 91369207
A65: Drakelow Power Station | B65: =VLOOKUP(A65,'Locations & Types'!$E:$F,2,FALSE) -> DC | C65: 0
A66: Drointon | B66: =VLOOKUP(A66,'Locations & Types'!$E:$F,2,FALSE) -> GDN (EM) | C66: 54670979
A67: Drum | B67: =VLOOKUP(A67,'Locations & Types'!$E:$F,2,FALSE) -> GDN (SC) | C67: 66956781
A68: Dyffryn Clydach | B68: =VLOOKUP(A68,'Locations & Types'!$E:$F,2,FALSE) -> GDN (WS) | C68: 40231974
A69: Dynevor Max Refill | B69: =VLOOKUP(A69,'Locations & Types'!$E:$F,2,FALSE) -> STORAGE SITE | C69: 23931
A70: Eastoft (Keadby Blackstart) | B70: =VLOOKUP(A70,'Locations & Types'!$E:$F,2,FALSE) -> DC | C70: 1457215
A71: Eastoft (Keadby) | B71: =VLOOKUP(A71,'Locations & Types'!$E:$F,2,FALSE) -> DC | C71: 16099880.27
A72: Easton Grey | B72: =VLOOKUP(A72,'Locations & Types'!$E:$F,2,FALSE) -> GDN (SW) | C72: 27391725
A73: Ecclestone | B73: =VLOOKUP(A73,'Locations & Types'!$E:$F,2,FALSE) -> GDN (NW) | C73: 16370887
A74: Elton | B74: =VLOOKUP(A74,'Locations & Types'!$E:$F,2,FALSE) -> GDN (NO) | C74: 52818145
A75: Enron Billingham | B75: =VLOOKUP(A75,'Locations & Types'!$E:$F,2,FALSE) -> DC | C75: 0
A76: Epping Green (Enfield Energy, aka Brimsdown) | B76: =VLOOKUP(A76,'Locations & Types'!$E:$F,2,FALSE) -> DC | C76: 9323287.671
A77: Evesham | B77: =VLOOKUP(A77,'Locations & Types'!$E:$F,2,FALSE) -> GDN (SW) | C77: 6441859
A78: Farningham | B78: =VLOOKUP(A78,'Locations & Types'!$E:$F,2,FALSE) -> GDN (SE) | C78: 89921069
A79: Farningham B | B79: =VLOOKUP(A79,'Locations & Types'!$E:$F,2,FALSE) -> GDN (SE) | C79: 94634400
A80: Ferny Knoll (AM Paper) | B80: =VLOOKUP(A80,'Locations & Types'!$E:$F,2,FALSE) -> DC | C80: 0
A81: Fiddington | B81: =VLOOKUP(A81,'Locations & Types'!$E:$F,2,FALSE) -> GDN (SW) | C81: 21293234
A82: Ganstead | B82: =VLOOKUP(A82,'Locations & Types'!$E:$F,2,FALSE) -> GDN (NE) | C82: 16610330
A83: Garton Max Refill (Aldbrough) | B83: =VLOOKUP(A83,'Locations & Types'!$E:$F,2,FALSE) -> STORAGE SITE | C83: 325510000
A84: Gilwern | B84: =VLOOKUP(A84,'Locations & Types'!$E:$F,2,FALSE) -> GDN (WS) | C84: 75404154
A85: Glenmavis | B85: =VLOOKUP(A85,'Locations & Types'!$E:$F,2,FALSE) -> GDN (SC) | C85: 128262344
A86: Glenmavis Max Refill | B86: =VLOOKUP(A86,'Locations & Types'!$E:$F,2,FALSE) -> STORAGE SITE | C86: 128720
A87: Goole (Guardian Glass) | B87: =VLOOKUP(A87,'Locations & Types'!$E:$F,2,FALSE) -> DC | C87: 1700000
A88: Gosberton | B88: =VLOOKUP(A88,'Locations & Types'!$E:$F,2,FALSE) -> GDN (EM) | C88: 12321120
A89: Gowkhall (Longannet) | B89: =VLOOKUP(A89,'Locations & Types'!$E:$F,2,FALSE) -> DC | C89: 43320000
A90: Grain Power Station | B90: =VLOOKUP(A90,'Locations & Types'!$E:$F,2,FALSE) -> DC | C90: 52305854.59
A91: Great Wilbraham | B91: =VLOOKUP(A91,'Locations & Types'!$E:$F,2,FALSE) -> GDN (EA) | C91: 23677521
A92: Guyzance | B92: =VLOOKUP(A92,'Locations & Types'!$E:$F,2,FALSE) -> GDN (NO) | C92: 1806988
A93: Hardwick | B93: =VLOOKUP(A93,'Locations & Types'!$E:$F,2,FALSE) -> GDN (SO) | C93: 103540577
A94: Harwarden (Shotton, aka Shotton Paper) | B94: =VLOOKUP(A94,'Locations & Types'!$E:$F,2,FALSE) -> DC | C94: 0
A95: Hatfield Moor Max Refill | B95: =VLOOKUP(A95,'Locations & Types'!$E:$F,2,FALSE) -> STORAGE SITE | C95: 30210000
A96: Hatfield Power Station | B96: =VLOOKUP(A96,'Locations & Types'!$E:$F,2,FALSE) -> DC | C96: 0
A97: Hill Top Farm (Hole House Farm) | B97: =VLOOKUP(A97,'Locations & Types'!$E:$F,2,FALSE) -> STORAGE SITE | C97: 4588175.342
A98: Hole House Max Refill | B98: =VLOOKUP(A98,'Locations & Types'!$E:$F,2,FALSE) -> STORAGE SITE | C98: 684999.2329
A99: Holford | B99: =VLOOKUP(A99,'Locations & Types'!$E:$F,2,FALSE) -> STORAGE SITE | C99: 41731254.82
A100: Hollingsgreen (Hays Chemicals) | B100: =VLOOKUP(A100,'Locations & Types'!$E:$F,2,FALSE) -> DC | C100: 555000
A101: Holmes Chapel | B101: =VLOOKUP(A101,'Locations & Types'!$E:$F,2,FALSE) -> GDN (NW) | C101: 21678773
A102: Horndon | B102: =VLOOKUP(A102,'Locations & Types'!$E:$F,2,FALSE) -> GDN (NT) | C102: 33307669
A103: Hornsea Max Refill | B103: =VLOOKUP(A103,'Locations & Types'!$E:$F,2,FALSE) -> STORAGE SITE | C103: 40337921.03
A104: Humbleton | B104: =VLOOKUP(A104,'Locations & Types'!$E:$F,2,FALSE) -> GDN (NO) | C104: 148471
A105: Hume | B105: =VLOOKUP(A105,'Locations & Types'!$E:$F,2,FALSE) -> GDN (SC) | C105: 1684385
A106: Ilchester | B106: =VLOOKUP(A106,'Locations & Types'!$E:$F,2,FALSE) -> GDN (SW) | C106: 31408565
A107: Ipsden | B107: =VLOOKUP(A107,'Locations & Types'!$E:$F,2,FALSE) -> GDN (SO) | C107: 5760836.036
A108: Ipsden 2 | B108: =VLOOKUP(A108,'Locations & Types'!$E:$F,2,FALSE) -> GDN (SO) | C108: 7429155.345
A109: Keld | B109: =VLOOKUP(A109,'Locations & Types'!$E:$F,2,FALSE) -> GDN (NO) | C109: 1424555
A110: Kenn | B110: =VLOOKUP(A110,'Locations & Types'!$E:$F,2,FALSE) -> GDN (SW) | C110: 14000883
A111: Kinknockie | B111: =VLOOKUP(A111,'Locations & Types'!$E:$F,2,FALSE) -> GDN (SC) | C111: 3068392
A112: Kirkstead | B112: =VLOOKUP(A112,'Locations & Types'!$E:$F,2,FALSE) -> GDN (EM) | C112: 858703
A113: Langage Power Station | B113: =VLOOKUP(A113,'Locations & Types'!$E:$F,2,FALSE) -> DC | C113: 31708219.18
A114: Langholm | B114: =VLOOKUP(A114,'Locations & Types'!$E:$F,2,FALSE) -> GDN (SC) | C114: 255319
A115: Lauderhill | B115: =VLOOKUP(A115,'Locations & Types'!$E:$F,2,FALSE) -> GDN (SC) | C115: 0
A116: Leamington | B116: =VLOOKUP(A116,'Locations & Types'!$E:$F,2,FALSE) -> GDN (WM) | C116: 3634748
A117: Little Burdon | B117: =VLOOKUP(A117,'Locations & Types'!$E:$F,2,FALSE) -> GDN (NO) | C117: 20919521
A118: Littleton Drew | B118: =VLOOKUP(A118,'Locations & Types'!$E:$F,2,FALSE) -> GDN (SW) | C118: 2299463
A119: Lockerbie | B119: =VLOOKUP(A119,'Locations & Types'!$E:$F,2,FALSE) -> GDN (SC) | C119: 7131838
A120: Lower Quinton | B120: =VLOOKUP(A120,'Locations & Types'!$E:$F,2,FALSE) -> GDN (WM) | C120: 29910000
A121: Lupton | B121: =VLOOKUP(A121,'Locations & Types'!$E:$F,2,FALSE) -> GDN (NW) | C121: 19815980
A122: Luxborough Lane | B122: =VLOOKUP(A122,'Locations & Types'!$E:$F,2,FALSE) -> GDN (NT) | C122: 76147689
A123: Lyneham (Choakford) | B123: =VLOOKUP(A123,'Locations & Types'!$E:$F,2,FALSE) -> GDN (SW) | C123: 40420636
A124: Maelor | B124: =VLOOKUP(A124,'Locations & Types'!$E:$F,2,FALSE) -> GDN (WN) | C124: 49258990
A125: Malpas | B125: =VLOOKUP(A125,'Locations & Types'!$E:$F,2,FALSE) -> GDN (NW) | C125: 685222
A126: Mappowder | B126: =VLOOKUP(A126,'Locations & Types'!$E:$F,2,FALSE) -> GDN (SO) | C126: 23569309.04
A127: Marchwood Power Station | B127: =VLOOKUP(A127,'Locations & Types'!$E:$F,2,FALSE) -> DC | C127: 39840000
A128: Market Harborough | B128: =VLOOKUP(A128,'Locations & Types'!$E:$F,2,FALSE) -> GDN (EM) | C128: 6965982
A129: Matching Green | B129: =VLOOKUP(A129,'Locations & Types'!$E:$F,2,FALSE) -> GDN (EA) | C129: 50470504
A130: Medway (aka Isle of Grain Power Station, NOT Grain Power) | B130: =VLOOKUP(A130,'Locations & Types'!$E:$F,2,FALSE) -> DC | C130: 32771084
A131: Melkinthorpe | B131: =VLOOKUP(A131,'Locations & Types'!$E:$F,2,FALSE) -> GDN (NO) | C131: 2432914
A132: Mickle Trafford | B132: =VLOOKUP(A132,'Locations & Types'!$E:$F,2,FALSE) -> GDN (NW) | C132: 29209411
A133: Middle Stoke (Damhead Creek, aka Kingsnorth Power Station) | B133: =VLOOKUP(A133,'Locations & Types'!$E:$F,2,FALSE) -> DC | C133: 95336184
A134: Milwich | B134: =VLOOKUP(A134,'Locations & Types'!$E:$F,2,FALSE) -> GDN (WM) | C134: 18949988
A135: Moffat (Irish Interconnector) | B135: =VLOOKUP(A135,'Locations & Types'!$E:$F,2,FALSE) -> INTERCONNECTOR | C135: 212920231
A136: Netherhowcleugh | B136: =VLOOKUP(A136,'Locations & Types'!$E:$F,2,FALSE) -> GDN (SC) | C136: 322112
A137: Pannal | B137: =VLOOKUP(A137,'Locations & Types'!$E:$F,2,FALSE) -> GDN (NE) | C137: 120179959
A138: Partington | B138: =VLOOKUP(A138,'Locations & Types'!$E:$F,2,FALSE) -> GDN (NW) | C138: 43675148
A139: Partington Max Refill | B139: =VLOOKUP(A139,'Locations & Types'!$E:$F,2,FALSE) -> STORAGE SITE | C139: 0
A140: Paull | B140: =VLOOKUP(A140,'Locations & Types'!$E:$F,2,FALSE) -> GDN (NE) | C140: 46858561
A141: Pembroke Power Station | B141: =VLOOKUP(A141,'Locations & Types'!$E:$F,2,FALSE) -> DC | C141: 121200000
A142: Peterborough (Peterborough Power Station) | B142: =VLOOKUP(A142,'Locations & Types'!$E:$F,2,FALSE) -> DC | C142: 2800000
A143: Peterborough Eye (Tee) | B143: =VLOOKUP(A143,'Locations & Types'!$E:$F,2,FALSE) -> GDN (EA) | C143: 20325523
A144: Peters Green | B144: =VLOOKUP(A144,'Locations & Types'!$E:$F,2,FALSE) -> GDN (NT) | C144: 111963144
A145: Peters Green South Mimms | B145: =VLOOKUP(A145,'Locations & Types'!$E:$F,2,FALSE) -> GDN (NT) | C145: 164876045
A146: Phillips Petroleum, Teesside | B146: =VLOOKUP(A146,'Locations & Types'!$E:$F,2,FALSE) -> DC | C146: 3690000
A147: Pickering | B147: =VLOOKUP(A147,'Locations & Types'!$E:$F,2,FALSE) -> GDN (NE) | C147: 8332710
A148: Pickmere (Winnington Power, aka Brunner Mond) | B148: =VLOOKUP(A148,'Locations & Types'!$E:$F,2,FALSE) -> DC | C148: 8000000
A149: Pitcairngreen | B149: =VLOOKUP(A149,'Locations & Types'!$E:$F,2,FALSE) -> GDN (SC) | C149: 1915791
A150: Pucklechurch | B150: =VLOOKUP(A150,'Locations & Types'!$E:$F,2,FALSE) -> GDN (SW) | C150: 23885892
A151: Rawcliffe | B151: =VLOOKUP(A151,'Locations & Types'!$E:$F,2,FALSE) -> GDN (NE) | C151: 3229202
A152: Rollswood Kintore | B152: =VLOOKUP(A152,'Locations & Types'!$E:$F,2,FALSE) -> DC | C152: 0
A153: Roosecote Power Station (Barrow) | B153: =VLOOKUP(A153,'Locations & Types'!$E:$F,2,FALSE) -> DC | C153: 0
A154: Rosehill (Saltend Power Station) | B154: =VLOOKUP(A154,'Locations & Types'!$E:$F,2,FALSE) -> DC | C154: 57830000
A155: Ross (SW) | B155: =VLOOKUP(A155,'Locations & Types'!$E:$F,2,FALSE) -> GDN (SW) | C155: 4023357
A156: Ross (WM) | B156: =VLOOKUP(A156,'Locations & Types'!$E:$F,2,FALSE) -> GDN (WM) | C156: 9937704
A157: Roudham Heath | B157: =VLOOKUP(A157,'Locations & Types'!$E:$F,2,FALSE) -> GDN (EA) | C157: 20129094
A158: Royston | B158: =VLOOKUP(A158,'Locations & Types'!$E:$F,2,FALSE) -> GDN (EA) | C158: 2367780
A159: Rugby | B159: =VLOOKUP(A159,'Locations & Types'!$E:$F,2,FALSE) -> GDN (WM) | C159: 60380901
A160: Ryehouse | B160: =VLOOKUP(A160,'Locations & Types'!$E:$F,2,FALSE) -> DC | C160: 38660000
A161: Saddle Bow (Kings Lynn) | B161: =VLOOKUP(A161,'Locations & Types'!$E:$F,2,FALSE) -> DC | C161: 14500000
A162: Saltend BPHP (BP Saltend HP) | B162: =VLOOKUP(A162,'Locations & Types'!$E:$F,2,FALSE) -> DC | C162: 9055895
A163: Saltfleetby Storage (Theddlethorpe) | B163: =VLOOKUP(A163,'Locations & Types'!$E:$F,2,FALSE) -> STORAGE SITE | C163: 0
A164: Saltwick Pressure Controlled | B164: =VLOOKUP(A164,'Locations & Types'!$E:$F,2,FALSE) -> GDN (NO) | C164: 0
A165: Saltwick Volumetric Controlled | B165: =VLOOKUP(A165,'Locations & Types'!$E:$F,2,FALSE) -> GDN (NO) | C165: 40011158
A166: Samlesbury | B166: =VLOOKUP(A166,'Locations & Types'!$E:$F,2,FALSE) -> GDN (NW) | C166: 99858652
A167: Sandy Lane (Blackburn CHP, aka Sappi Paper Mill) | B167: =VLOOKUP(A167,'Locations & Types'!$E:$F,2,FALSE) -> DC | C167: 3433103
A168: Seabank (DN) | B168: =VLOOKUP(A168,'Locations & Types'!$E:$F,2,FALSE) -> GDN (SW) | C168: 50365514
A169: Seabank (Seabank Power Station phase II) | B169: =VLOOKUP(A169,'Locations & Types'!$E:$F,2,FALSE) -> DC | C169: 18316938
A170: Seal Sands TGPP | B170: =VLOOKUP(A170,'Locations & Types'!$E:$F,2,FALSE) -> DC | C170: 46571.43097
A171: Sellafield Power Station | B171: =VLOOKUP(A171,'Locations & Types'!$E:$F,2,FALSE) -> DC | C171: 12349999
A172: Shellstar (aka Kemira, not Kemira CHP) | B172: =VLOOKUP(A172,'Locations & Types'!$E:$F,2,FALSE) -> DC | C172: 11732444
A173: Shorne | B173: =VLOOKUP(A173,'Locations & Types'!$E:$F,2,FALSE) -> GDN (SE) | C173: 19826107
A174: Shotwick (Bridgewater Paper) | B174: =VLOOKUP(A174,'Locations & Types'!$E:$F,2,FALSE) -> DC | C174: 310479.4521
A175: Shustoke | B175: =VLOOKUP(A175,'Locations & Types'!$E:$F,2,FALSE) -> GDN (WM) | C175: 100000
A176: Silk Willoughby | B176: =VLOOKUP(A176,'Locations & Types'!$E:$F,2,FALSE) -> GDN (EM) | C176: 2203090
A177: Soutra | B177: =VLOOKUP(A177,'Locations & Types'!$E:$F,2,FALSE) -> GDN (SC) | C177: 10726995
A178: Spalding 2 (South Holland) Power Station | B178: =VLOOKUP(A178,'Locations & Types'!$E:$F,2,FALSE) -> DC | C178: 0
A179: St Fergus | B179: =VLOOKUP(A179,'Locations & Types'!$E:$F,2,FALSE) -> GDN (SC) | C179: 1267112
A180: St. Fergus (Peterhead) | B180: =VLOOKUP(A180,'Locations & Types'!$E:$F,2,FALSE) -> DC | C180: 73267750
A181: St. Fergus (Shell Blackstart) | B181: =VLOOKUP(A181,'Locations & Types'!$E:$F,2,FALSE) -> DC | C181: 2583336
A182: St. Neots (Little Barford) | B182: =VLOOKUP(A182,'Locations & Types'!$E:$F,2,FALSE) -> DC | C182: 26775065.04
A183: Stallingborough | B183: =VLOOKUP(A183,'Locations & Types'!$E:$F,2,FALSE) -> DC | C183: 52700000
A184: Stanford Le Hope (Coryton) | B184: =VLOOKUP(A184,'Locations & Types'!$E:$F,2,FALSE) -> DC | C184: 8267935.726
A185: Staythorpe | B185: =VLOOKUP(A185,'Locations & Types'!$E:$F,2,FALSE) -> DC | C185: 42949104.61
A186: Stranraer | B186: =VLOOKUP(A186,'Locations & Types'!$E:$F,2,FALSE) -> GDN (SC) | C186: 886809
A187: Stratford-upon-Avon | B187: =VLOOKUP(A187,'Locations & Types'!$E:$F,2,FALSE) -> GDN (WM) | C187: 3735040
A188: Stublach (Cheshire) | B188: =VLOOKUP(A188,'Locations & Types'!$E:$F,2,FALSE) -> STORAGE SITE | C188: 30343940
A189: Sutton Bridge | B189: =VLOOKUP(A189,'Locations & Types'!$E:$F,2,FALSE) -> GDN (EM) | C189: 1079269
A190: Sutton Bridge Power Station | B190: =VLOOKUP(A190,'Locations & Types'!$E:$F,2,FALSE) -> DC | C190: 42637000
A191: Tatsfield | B191: =VLOOKUP(A191,'Locations & Types'!$E:$F,2,FALSE) -> GDN (SE) | C191: 213058400
A192: Teesside (BASF, aka BASF Teesside) | B192: =VLOOKUP(A192,'Locations & Types'!$E:$F,2,FALSE) -> DC | C192: 9750000
A193: Teesside Hydrogen | B193: =VLOOKUP(A193,'Locations & Types'!$E:$F,2,FALSE) -> DC | C193: 13276800
A194: Terra Nitrogen (aka ICI, Terra Severnside) | B194: =VLOOKUP(A194,'Locations & Types'!$E:$F,2,FALSE) -> DC | C194: 0
A195: Thornton Curtis (DN) | B195: =VLOOKUP(A195,'Locations & Types'!$E:$F,2,FALSE) -> GDN (EM) | C195: 118190411
A196: Thornton Curtis (Humber Refinery, aka Immingham) | B196: =VLOOKUP(A196,'Locations & Types'!$E:$F,2,FALSE) -> DC | C196: 67000000
A197: Thornton Curtis (Killingholme) | B197: =VLOOKUP(A197,'Locations & Types'!$E:$F,2,FALSE) -> DC | C197: 48268493.15
A198: Thrintoft | B198: =VLOOKUP(A198,'Locations & Types'!$E:$F,2,FALSE) -> GDN (NO) | C198: 6921484
A199: Tilbury Power Station | B199: =VLOOKUP(A199,'Locations & Types'!$E:$F,2,FALSE) -> DC | C199: 0
A200: Tonna (Baglan Bay) | B200: =VLOOKUP(A200,'Locations & Types'!$E:$F,2,FALSE) -> DC | C200: 26750000
... 34 more rows

Sheet 19-20 FCC - Exit (hidden)
A1: Exit Point | B1: Exit Point Type | C1: Forecasted Contracted Capacity
C2: (kWh/d)
A3: Aberdeen | B3: =VLOOKUP(A3,'Locations & Types'!$E:$F,2,FALSE) -> GDN (SC) | C3: 21639348
A4: Abson (Seabank Power Station phase I) | B4: =VLOOKUP(A4,'Locations & Types'!$E:$F,2,FALSE) -> DC | C4: 27843799.79
A5: Alrewas (EM) | B5: =VLOOKUP(A5,'Locations & Types'!$E:$F,2,FALSE) -> GDN (EM) | C5: 59229584
A6: Alrewas (WM) | B6: =VLOOKUP(A6,'Locations & Types'!$E:$F,2,FALSE) -> GDN (WM) | C6: 72462290
A7: Apache (Sage Black Start) | B7: =VLOOKUP(A7,'Locations & Types'!$E:$F,2,FALSE) -> DC | C7: 9073.673973
A8: Armadale | B8: =VLOOKUP(A8,'Locations & Types'!$E:$F,2,FALSE) -> GDN (SC) | C8: 7519525
A9: Aspley | B9: =VLOOKUP(A9,'Locations & Types'!$E:$F,2,FALSE) -> GDN (WM) | C9: 50894176
A10: Asselby | B10: =VLOOKUP(A10,'Locations & Types'!$E:$F,2,FALSE) -> GDN (NE) | C10: 3586201
A11: Audley (NW) | B11: =VLOOKUP(A11,'Locations & Types'!$E:$F,2,FALSE) -> GDN (NW) | C11: 8037574
A12: Audley (WM) | B12: =VLOOKUP(A12,'Locations & Types'!$E:$F,2,FALSE) -> GDN (WM) | C12: 13572412
A13: Austrey | B13: =VLOOKUP(A13,'Locations & Types'!$E:$F,2,FALSE) -> GDN (WM) | C13: 59601211
A14: Avonmouth Max Refill | B14: =VLOOKUP(A14,'Locations & Types'!$E:$F,2,FALSE) -> STORAGE SITE | C14: 661.2054795
A15: Aylesbeare | B15: =VLOOKUP(A15,'Locations & Types'!$E:$F,2,FALSE) -> GDN (SW) | C15: 19128874
A16: Bacton | B16: =VLOOKUP(A16,'Locations & Types'!$E:$F,2,FALSE) -> GDN (EA) | C16: 2844268
A17: Bacton (Baird) | B17: =VLOOKUP(A17,'Locations & Types'!$E:$F,2,FALSE) -> STORAGE SITE | C17: 0
A18: Bacton (BBL) | B18: =VLOOKUP(A18,'Locations & Types'!$E:$F,2,FALSE) -> INTERCONNECTOR | C18: 0
A19: Bacton (Great Yarmouth) | B19: =VLOOKUP(A19,'Locations & Types'!$E:$F,2,FALSE) -> DC | C19: 20000000
A20: Bacton (IUK) | B20: =VLOOKUP(A20,'Locations & Types'!$E:$F,2,FALSE) -> INTERCONNECTOR | C20: 185430316.3
A21: Baldersby | B21: =VLOOKUP(A21,'Locations & Types'!$E:$F,2,FALSE) -> GDN (NE) | C21: 1126642
A22: Balgray | B22: =VLOOKUP(A22,'Locations & Types'!$E:$F,2,FALSE) -> GDN (SC) | C22: 15057981
A23: Barking (Horndon) | B23: =VLOOKUP(A23,'Locations & Types'!$E:$F,2,FALSE) -> DC | C23: 0
A24: Barrow (Bains) | B24: =VLOOKUP(A24,'Locations & Types'!$E:$F,2,FALSE) -> STORAGE SITE | C24: 0
A25: Barrow (Black Start) | B25: =VLOOKUP(A25,'Locations & Types'!$E:$F,2,FALSE) -> DC | C25: 1001369.863
A26: Barrow (Gateway) | B26: =VLOOKUP(A26,'Locations & Types'!$E:$F,2,FALSE) -> STORAGE SITE | C26: 0
A27: Barton Stacey Max Refill (Humbly Grove) | B27: =VLOOKUP(A27,'Locations & Types'!$E:$F,2,FALSE) -> STORAGE SITE | C27: 10181399.89
A28: Bathgate | B28: =VLOOKUP(A28,'Locations & Types'!$E:$F,2,FALSE) -> GDN (SC) | C28: 21081766
A29: Billingham ICI (Terra Billingham) | B29: =VLOOKUP(A29,'Locations & Types'!$E:$F,2,FALSE) -> DC | C29: 33644543
A30: Bishop Auckland | B30: =VLOOKUP(A30,'Locations & Types'!$E:$F,2,FALSE) -> GDN (NO) | C30: 56287977
A31: Bishop Auckland (test facility) | B31: =VLOOKUP(A31,'Locations & Types'!$E:$F,2,FALSE) -> DC | C31: 781914.3562
A32: Blaby | B32: =VLOOKUP(A32,'Locations & Types'!$E:$F,2,FALSE) -> GDN (EM) | C32: 9867513
A33: Blackness (BP Grangemouth) | B33: =VLOOKUP(A33,'Locations & Types'!$E:$F,2,FALSE) -> DC | C33: 27290000
A34: Blackrod | B34: =VLOOKUP(A34,'Locations & Types'!$E:$F,2,FALSE) -> GDN (NW) | C34: 123939267
A35: Blyborough | B35: =VLOOKUP(A35,'Locations & Types'!$E:$F,2,FALSE) -> GDN (EM) | C35: 55825856
A36: Blyborough (Brigg) | B36: =VLOOKUP(A36,'Locations & Types'!$E:$F,2,FALSE) -> DC | C36: 1600000
A37: Blyborough (Cottam) | B37: =VLOOKUP(A37,'Locations & Types'!$E:$F,2,FALSE) -> DC | C37: 12767838.63
A38: Braishfield A | B38: =VLOOKUP(A38,'Locations & Types'!$E:$F,2,FALSE) -> GDN (SO) | C38: 84161130
A39: Braishfield B | B39: =VLOOKUP(A39,'Locations & Types'!$E:$F,2,FALSE) -> GDN (SO) | C39: 64947171
A40: Brine Field (Teesside) Power Station | B40: =VLOOKUP(A40,'Locations & Types'!$E:$F,2,FALSE) -> DC | C40: 50816.9863
A41: Brisley | B41: =VLOOKUP(A41,'Locations & Types'!$E:$F,2,FALSE) -> GDN (EA) | C41: 2077837
A42: Broxburn | B42: =VLOOKUP(A42,'Locations & Types'!$E:$F,2,FALSE) -> GDN (SC) | C42: 56250554
A43: Burley Bank | B43: =VLOOKUP(A43,'Locations & Types'!$E:$F,2,FALSE) -> GDN (NE) | C43: 13868151
A44: Burnhervie | B44: =VLOOKUP(A44,'Locations & Types'!$E:$F,2,FALSE) -> GDN (SC) | C44: 22372861
A45: Burton Point (Connahs Quay) | B45: =VLOOKUP(A45,'Locations & Types'!$E:$F,2,FALSE) -> DC | C45: 12329187.43
A46: Caldecott | B46: =VLOOKUP(A46,'Locations & Types'!$E:$F,2,FALSE) -> GDN (EM) | C46: 8977861
A47: Caldecott (Corby Power Station) | B47: =VLOOKUP(A47,'Locations & Types'!$E:$F,2,FALSE) -> DC | C47: 663937.0959
A48: Cambridge | B48: =VLOOKUP(A48,'Locations & Types'!$E:$F,2,FALSE) -> GDN (EA) | C48: 0
A49: Careston | B49: =VLOOKUP(A49,'Locations & Types'!$E:$F,2,FALSE) -> GDN (SC) | C49: 4112924
A50: Carrington (Partington) Power Station | B50: =VLOOKUP(A50,'Locations & Types'!$E:$F,2,FALSE) -> DC | C50: 26438120.58
A51: Caythorpe | B51: =VLOOKUP(A51,'Locations & Types'!$E:$F,2,FALSE) -> STORAGE SITE | C51: 0
A52: Centrax Industrial | B52: =VLOOKUP(A52,'Locations & Types'!$E:$F,2,FALSE) -> DC | C52: 85000
A53: Cirencester | B53: =VLOOKUP(A53,'Locations & Types'!$E:$F,2,FALSE) -> GDN (SW) | C53: 7417140
A54: Cockenzie Power Station | B54: =VLOOKUP(A54,'Locations & Types'!$E:$F,2,FALSE) -> DC | C54: 0
A55: Coffinswell | B55: =VLOOKUP(A55,'Locations & Types'!$E:$F,2,FALSE) -> GDN (SW) | C55: 5150000
A56: Coldstream | B56: =VLOOKUP(A56,'Locations & Types'!$E:$F,2,FALSE) -> GDN (NO) | C56: 2848927
A57: Corbridge | B57: =VLOOKUP(A57,'Locations & Types'!$E:$F,2,FALSE) -> GDN (NO) | C57: 57846
A58: Coryton 2 (Thames Haven) Power Station | B58: =VLOOKUP(A58,'Locations & Types'!$E:$F,2,FALSE) -> DC | C58: 0
A59: Cowpen Bewley | B59: =VLOOKUP(A59,'Locations & Types'!$E:$F,2,FALSE) -> GDN (NO) | C59: 38498554
A60: Crawley Down | B60: =VLOOKUP(A60,'Locations & Types'!$E:$F,2,FALSE) -> GDN (SO) | C60: 0
A61: Deborah Storage (Bacton) | B61: =VLOOKUP(A61,'Locations & Types'!$E:$F,2,FALSE) -> STORAGE SITE | C61: 0
A62: Deeside | B62: =VLOOKUP(A62,'Locations & Types'!$E:$F,2,FALSE) -> DC | C62: 4448282.164
A63: Didcot | B63: =VLOOKUP(A63,'Locations & Types'!$E:$F,2,FALSE) -> DC | C63: 33674184.27
A64: Dowlais | B64: =VLOOKUP(A64,'Locations & Types'!$E:$F,2,FALSE) -> GDN (WS) | C64: 91369207
A65: Drakelow Power Station | B65: =VLOOKUP(A65,'Locations & Types'!$E:$F,2,FALSE) -> DC | C65: 0
A66: Drointon | B66: =VLOOKUP(A66,'Locations & Types'!$E:$F,2,FALSE) -> GDN (EM) | C66: 54670979
A67: Drum | B67: =VLOOKUP(A67,'Locations & Types'!$E:$F,2,FALSE) -> GDN (SC) | C67: 66956781
A68: Dyffryn Clydach | B68: =VLOOKUP(A68,'Locations & Types'!$E:$F,2,FALSE) -> GDN (WS) | C68: 40231974
A69: Dynevor Max Refill | B69: =VLOOKUP(A69,'Locations & Types'!$E:$F,2,FALSE) -> STORAGE SITE | C69: 23931
A70: Eastoft (Keadby Blackstart) | B70: =VLOOKUP(A70,'Locations & Types'!$E:$F,2,FALSE) -> DC | C70: 1457215
A71: Eastoft (Keadby) | B71: =VLOOKUP(A71,'Locations & Types'!$E:$F,2,FALSE) -> DC | C71: 16099880.27
A72: Easton Grey | B72: =VLOOKUP(A72,'Locations & Types'!$E:$F,2,FALSE) -> GDN (SW) | C72: 27391725
A73: Ecclestone | B73: =VLOOKUP(A73,'Locations & Types'!$E:$F,2,FALSE) -> GDN (NW) | C73: 16370887
A74: Elton | B74: =VLOOKUP(A74,'Locations & Types'!$E:$F,2,FALSE) -> GDN (NO) | C74: 52818145
A75: Enron Billingham | B75: =VLOOKUP(A75,'Locations & Types'!$E:$F,2,FALSE) -> DC | C75: 0
A76: Epping Green (Enfield Energy, aka Brimsdown) | B76: =VLOOKUP(A76,'Locations & Types'!$E:$F,2,FALSE) -> DC | C76: 9323287.671
A77: Evesham | B77: =VLOOKUP(A77,'Locations & Types'!$E:$F,2,FALSE) -> GDN (SW) | C77: 6441859
A78: Farningham | B78: =VLOOKUP(A78,'Locations & Types'!$E:$F,2,FALSE) -> GDN (SE) | C78: 89921069
A79: Farningham B | B79: =VLOOKUP(A79,'Locations & Types'!$E:$F,2,FALSE) -> GDN (SE) | C79: 94634400
A80: Ferny Knoll (AM Paper) | B80: =VLOOKUP(A80,'Locations & Types'!$E:$F,2,FALSE) -> DC | C80: 0
A81: Fiddington | B81: =VLOOKUP(A81,'Locations & Types'!$E:$F,2,FALSE) -> GDN (SW) | C81: 21293234
A82: Ganstead | B82: =VLOOKUP(A82,'Locations & Types'!$E:$F,2,FALSE) -> GDN (NE) | C82: 16610330
A83: Garton Max Refill (Aldbrough) | B83: =VLOOKUP(A83,'Locations & Types'!$E:$F,2,FALSE) -> STORAGE SITE | C83: 325510000
A84: Gilwern | B84: =VLOOKUP(A84,'Locations & Types'!$E:$F,2,FALSE) -> GDN (WS) | C84: 75404154
A85: Glenmavis | B85: =VLOOKUP(A85,'Locations & Types'!$E:$F,2,FALSE) -> GDN (SC) | C85: 128262344
A86: Glenmavis Max Refill | B86: =VLOOKUP(A86,'Locations & Types'!$E:$F,2,FALSE) -> STORAGE SITE | C86: 128720
A87: Goole (Guardian Glass) | B87: =VLOOKUP(A87,'Locations & Types'!$E:$F,2,FALSE) -> DC | C87: 1700000
A88: Gosberton | B88: =VLOOKUP(A88,'Locations & Types'!$E:$F,2,FALSE) -> GDN (EM) | C88: 12321120
A89: Gowkhall (Longannet) | B89: =VLOOKUP(A89,'Locations & Types'!$E:$F,2,FALSE) -> DC | C89: 43320000
A90: Grain Power Station | B90: =VLOOKUP(A90,'Locations & Types'!$E:$F,2,FALSE) -> DC | C90: 48815174.45
A91: Great Wilbraham | B91: =VLOOKUP(A91,'Locations & Types'!$E:$F,2,FALSE) -> GDN (EA) | C91: 23677521
A92: Guyzance | B92: =VLOOKUP(A92,'Locations & Types'!$E:$F,2,FALSE) -> GDN (NO) | C92: 1806988
A93: Hardwick | B93: =VLOOKUP(A93,'Locations & Types'!$E:$F,2,FALSE) -> GDN (SO) | C93: 103540577
A94: Harwarden (Shotton, aka Shotton Paper) | B94: =VLOOKUP(A94,'Locations & Types'!$E:$F,2,FALSE) -> DC | C94: 0
A95: Hatfield Moor Max Refill | B95: =VLOOKUP(A95,'Locations & Types'!$E:$F,2,FALSE) -> STORAGE SITE | C95: 30210000
A96: Hatfield Power Station | B96: =VLOOKUP(A96,'Locations & Types'!$E:$F,2,FALSE) -> DC | C96: 0
A97: Hill Top Farm (Hole House Farm) | B97: =VLOOKUP(A97,'Locations & Types'!$E:$F,2,FALSE) -> STORAGE SITE | C97: 4588175.342
A98: Hole House Max Refill | B98: =VLOOKUP(A98,'Locations & Types'!$E:$F,2,FALSE) -> STORAGE SITE | C98: 684999.2329
A99: Holford | B99: =VLOOKUP(A99,'Locations & Types'!$E:$F,2,FALSE) -> STORAGE SITE | C99: 41731254.82
A100: Hollingsgreen (Hays Chemicals) | B100: =VLOOKUP(A100,'Locations & Types'!$E:$F,2,FALSE) -> DC | C100: 555000
A101: Holmes Chapel | B101: =VLOOKUP(A101,'Locations & Types'!$E:$F,2,FALSE) -> GDN (NW) | C101: 21678773
A102: Horndon | B102: =VLOOKUP(A102,'Locations & Types'!$E:$F,2,FALSE) -> GDN (NT) | C102: 33307669
A103: Hornsea Max Refill | B103: =VLOOKUP(A103,'Locations & Types'!$E:$F,2,FALSE) -> STORAGE SITE | C103: 40337921.03
A104: Humbleton | B104: =VLOOKUP(A104,'Locations & Types'!$E:$F,2,FALSE) -> GDN (NO) | C104: 148471
A105: Hume | B105: =VLOOKUP(A105,'Locations & Types'!$E:$F,2,FALSE) -> GDN (SC) | C105: 1684385
A106: Ilchester | B106: =VLOOKUP(A106,'Locations & Types'!$E:$F,2,FALSE) -> GDN (SW) | C106: 31408565
A107: Ipsden | B107: =VLOOKUP(A107,'Locations & Types'!$E:$F,2,FALSE) -> GDN (SO) | C107: 5760836.036
A108: Ipsden 2 | B108: =VLOOKUP(A108,'Locations & Types'!$E:$F,2,FALSE) -> GDN (SO) | C108: 7429155.345
A109: Keld | B109: =VLOOKUP(A109,'Locations & Types'!$E:$F,2,FALSE) -> GDN (NO) | C109: 1424555
A110: Kenn | B110: =VLOOKUP(A110,'Locations & Types'!$E:$F,2,FALSE) -> GDN (SW) | C110: 14000883
A111: Kinknockie | B111: =VLOOKUP(A111,'Locations & Types'!$E:$F,2,FALSE) -> GDN (SC) | C111: 3068392
A112: Kirkstead | B112: =VLOOKUP(A112,'Locations & Types'!$E:$F,2,FALSE) -> GDN (EM) | C112: 858703
A113: Langage Power Station | B113: =VLOOKUP(A113,'Locations & Types'!$E:$F,2,FALSE) -> DC | C113: 31708219.18
A114: Langholm | B114: =VLOOKUP(A114,'Locations & Types'!$E:$F,2,FALSE) -> GDN (SC) | C114: 255319
A115: Lauderhill | B115: =VLOOKUP(A115,'Locations & Types'!$E:$F,2,FALSE) -> GDN (SC) | C115: 0
A116: Leamington | B116: =VLOOKUP(A116,'Locations & Types'!$E:$F,2,FALSE) -> GDN (WM) | C116: 3634748
A117: Little Burdon | B117: =VLOOKUP(A117,'Locations & Types'!$E:$F,2,FALSE) -> GDN (NO) | C117: 20919521
A118: Littleton Drew | B118: =VLOOKUP(A118,'Locations & Types'!$E:$F,2,FALSE) -> GDN (SW) | C118: 2299463
A119: Lockerbie | B119: =VLOOKUP(A119,'Locations & Types'!$E:$F,2,FALSE) -> GDN (SC) | C119: 7131838
A120: Lower Quinton | B120: =VLOOKUP(A120,'Locations & Types'!$E:$F,2,FALSE) -> GDN (WM) | C120: 29910000
A121: Lupton | B121: =VLOOKUP(A121,'Locations & Types'!$E:$F,2,FALSE) -> GDN (NW) | C121: 19815980
A122: Luxborough Lane | B122: =VLOOKUP(A122,'Locations & Types'!$E:$F,2,FALSE) -> GDN (NT) | C122: 76147689
A123: Lyneham (Choakford) | B123: =VLOOKUP(A123,'Locations & Types'!$E:$F,2,FALSE) -> GDN (SW) | C123: 40420636
A124: Maelor | B124: =VLOOKUP(A124,'Locations & Types'!$E:$F,2,FALSE) -> GDN (WN) | C124: 49258990
A125: Malpas | B125: =VLOOKUP(A125,'Locations & Types'!$E:$F,2,FALSE) -> GDN (NW) | C125: 685222
A126: Mappowder | B126: =VLOOKUP(A126,'Locations & Types'!$E:$F,2,FALSE) -> GDN (SO) | C126: 23569309.04
A127: Marchwood Power Station | B127: =VLOOKUP(A127,'Locations & Types'!$E:$F,2,FALSE) -> DC | C127: 39840000
A128: Market Harborough | B128: =VLOOKUP(A128,'Locations & Types'!$E:$F,2,FALSE) -> GDN (EM) | C128: 6965982
A129: Matching Green | B129: =VLOOKUP(A129,'Locations & Types'!$E:$F,2,FALSE) -> GDN (EA) | C129: 50470504
A130: Medway (aka Isle of Grain Power Station, NOT Grain Power) | B130: =VLOOKUP(A130,'Locations & Types'!$E:$F,2,FALSE) -> DC | C130: 32771084
A131: Melkinthorpe | B131: =VLOOKUP(A131,'Locations & Types'!$E:$F,2,FALSE) -> GDN (NO) | C131: 2432914
A132: Mickle Trafford | B132: =VLOOKUP(A132,'Locations & Types'!$E:$F,2,FALSE) -> GDN (NW) | C132: 29209411
A133: Middle Stoke (Damhead Creek, aka Kingsnorth Power Station) | B133: =VLOOKUP(A133,'Locations & Types'!$E:$F,2,FALSE) -> DC | C133: 95336184
A134: Milwich | B134: =VLOOKUP(A134,'Locations & Types'!$E:$F,2,FALSE) -> GDN (WM) | C134: 18949988
A135: Moffat (Irish Interconnector) | B135: =VLOOKUP(A135,'Locations & Types'!$E:$F,2,FALSE) -> INTERCONNECTOR | C135: 212920231
A136: Netherhowcleugh | B136: =VLOOKUP(A136,'Locations & Types'!$E:$F,2,FALSE) -> GDN (SC) | C136: 322112
A137: Pannal | B137: =VLOOKUP(A137,'Locations & Types'!$E:$F,2,FALSE) -> GDN (NE) | C137: 120179959
A138: Partington | B138: =VLOOKUP(A138,'Locations & Types'!$E:$F,2,FALSE) -> GDN (NW) | C138: 43675148
A139: Partington Max Refill | B139: =VLOOKUP(A139,'Locations & Types'!$E:$F,2,FALSE) -> STORAGE SITE | C139: 0
A140: Paull | B140: =VLOOKUP(A140,'Locations & Types'!$E:$F,2,FALSE) -> GDN (NE) | C140: 46858561
A141: Pembroke Power Station | B141: =VLOOKUP(A141,'Locations & Types'!$E:$F,2,FALSE) -> DC | C141: 121200000
A142: Peterborough (Peterborough Power Station) | B142: =VLOOKUP(A142,'Locations & Types'!$E:$F,2,FALSE) -> DC | C142: 2800000
A143: Peterborough Eye (Tee) | B143: =VLOOKUP(A143,'Locations & Types'!$E:$F,2,FALSE) -> GDN (EA) | C143: 20325523
A144: Peters Green | B144: =VLOOKUP(A144,'Locations & Types'!$E:$F,2,FALSE) -> GDN (NT) | C144: 111963144
A145: Peters Green South Mimms | B145: =VLOOKUP(A145,'Locations & Types'!$E:$F,2,FALSE) -> GDN (NT) | C145: 164876045
A146: Phillips Petroleum, Teesside | B146: =VLOOKUP(A146,'Locations & Types'!$E:$F,2,FALSE) -> DC | C146: 3690000
A147: Pickering | B147: =VLOOKUP(A147,'Locations & Types'!$E:$F,2,FALSE) -> GDN (NE) | C147: 8332710
A148: Pickmere (Winnington Power, aka Brunner Mond) | B148: =VLOOKUP(A148,'Locations & Types'!$E:$F,2,FALSE) -> DC | C148: 8000000
A149: Pitcairngreen | B149: =VLOOKUP(A149,'Locations & Types'!$E:$F,2,FALSE) -> GDN (SC) | C149: 1915791
A150: Pucklechurch | B150: =VLOOKUP(A150,'Locations & Types'!$E:$F,2,FALSE) -> GDN (SW) | C150: 23885892
A151: Rawcliffe | B151: =VLOOKUP(A151,'Locations & Types'!$E:$F,2,FALSE) -> GDN (NE) | C151: 3229202
A152: Rollswood Kintore | B152: =VLOOKUP(A152,'Locations & Types'!$E:$F,2,FALSE) -> DC | C152: 0
A153: Roosecote Power Station (Barrow) | B153: =VLOOKUP(A153,'Locations & Types'!$E:$F,2,FALSE) -> DC | C153: 0
A154: Rosehill (Saltend Power Station) | B154: =VLOOKUP(A154,'Locations & Types'!$E:$F,2,FALSE) -> DC | C154: 57830000
A155: Ross (SW) | B155: =VLOOKUP(A155,'Locations & Types'!$E:$F,2,FALSE) -> GDN (SW) | C155: 4023357
A156: Ross (WM) | B156: =VLOOKUP(A156,'Locations & Types'!$E:$F,2,FALSE) -> GDN (WM) | C156: 9937704
A157: Roudham Heath | B157: =VLOOKUP(A157,'Locations & Types'!$E:$F,2,FALSE) -> GDN (EA) | C157: 20129094
A158: Royston | B158: =VLOOKUP(A158,'Locations & Types'!$E:$F,2,FALSE) -> GDN (EA) | C158: 2367780
A159: Rugby | B159: =VLOOKUP(A159,'Locations & Types'!$E:$F,2,FALSE) -> GDN (WM) | C159: 60380901
A160: Ryehouse | B160: =VLOOKUP(A160,'Locations & Types'!$E:$F,2,FALSE) -> DC | C160: 38660000
A161: Saddle Bow (Kings Lynn) | B161: =VLOOKUP(A161,'Locations & Types'!$E:$F,2,FALSE) -> DC | C161: 14500000
A162: Saltend BPHP (BP Saltend HP) | B162: =VLOOKUP(A162,'Locations & Types'!$E:$F,2,FALSE) -> DC | C162: 9055895
A163: Saltfleetby Storage (Theddlethorpe) | B163: =VLOOKUP(A163,'Locations & Types'!$E:$F,2,FALSE) -> STORAGE SITE | C163: 0
A164: Saltwick Pressure Controlled | B164: =VLOOKUP(A164,'Locations & Types'!$E:$F,2,FALSE) -> GDN (NO) | C164: 0
A165: Saltwick Volumetric Controlled | B165: =VLOOKUP(A165,'Locations & Types'!$E:$F,2,FALSE) -> GDN (NO) | C165: 40011158
A166: Samlesbury | B166: =VLOOKUP(A166,'Locations & Types'!$E:$F,2,FALSE) -> GDN (NW) | C166: 99858652
A167: Sandy Lane (Blackburn CHP, aka Sappi Paper Mill) | B167: =VLOOKUP(A167,'Locations & Types'!$E:$F,2,FALSE) -> DC | C167: 3433103
A168: Seabank (DN) | B168: =VLOOKUP(A168,'Locations & Types'!$E:$F,2,FALSE) -> GDN (SW) | C168: 50365514
A169: Seabank (Seabank Power Station phase II) | B169: =VLOOKUP(A169,'Locations & Types'!$E:$F,2,FALSE) -> DC | C169: 18316938
A170: Seal Sands TGPP | B170: =VLOOKUP(A170,'Locations & Types'!$E:$F,2,FALSE) -> DC | C170: 46487.95244
A171: Sellafield Power Station | B171: =VLOOKUP(A171,'Locations & Types'!$E:$F,2,FALSE) -> DC | C171: 12349999
A172: Shellstar (aka Kemira, not Kemira CHP) | B172: =VLOOKUP(A172,'Locations & Types'!$E:$F,2,FALSE) -> DC | C172: 11732444
A173: Shorne | B173: =VLOOKUP(A173,'Locations & Types'!$E:$F,2,FALSE) -> GDN (SE) | C173: 19826107
A174: Shotwick (Bridgewater Paper) | B174: =VLOOKUP(A174,'Locations & Types'!$E:$F,2,FALSE) -> DC | C174: 310479.4521
A175: Shustoke | B175: =VLOOKUP(A175,'Locations & Types'!$E:$F,2,FALSE) -> GDN (WM) | C175: 100000
A176: Silk Willoughby | B176: =VLOOKUP(A176,'Locations & Types'!$E:$F,2,FALSE) -> GDN (EM) | C176: 2203090
A177: Soutra | B177: =VLOOKUP(A177,'Locations & Types'!$E:$F,2,FALSE) -> GDN (SC) | C177: 10726995
A178: Spalding 2 (South Holland) Power Station | B178: =VLOOKUP(A178,'Locations & Types'!$E:$F,2,FALSE) -> DC | C178: 0
A179: St Fergus | B179: =VLOOKUP(A179,'Locations & Types'!$E:$F,2,FALSE) -> GDN (SC) | C179: 1267112
A180: St. Fergus (Peterhead) | B180: =VLOOKUP(A180,'Locations & Types'!$E:$F,2,FALSE) -> DC | C180: 73267750
A181: St. Fergus (Shell Blackstart) | B181: =VLOOKUP(A181,'Locations & Types'!$E:$F,2,FALSE) -> DC | C181: 2583336
A182: St. Neots (Little Barford) | B182: =VLOOKUP(A182,'Locations & Types'!$E:$F,2,FALSE) -> DC | C182: 26775065.04
A183: Stallingborough | B183: =VLOOKUP(A183,'Locations & Types'!$E:$F,2,FALSE) -> DC | C183: 52700000
A184: Stanford Le Hope (Coryton) | B184: =VLOOKUP(A184,'Locations & Types'!$E:$F,2,FALSE) -> DC | C184: 8267935.726
A185: Staythorpe | B185: =VLOOKUP(A185,'Locations & Types'!$E:$F,2,FALSE) -> DC | C185: 41505935.34
A186: Stranraer | B186: =VLOOKUP(A186,'Locations & Types'!$E:$F,2,FALSE) -> GDN (SC) | C186: 886809
A187: Stratford-upon-Avon | B187: =VLOOKUP(A187,'Locations & Types'!$E:$F,2,FALSE) -> GDN (WM) | C187: 3735040
A188: Stublach (Cheshire) | B188: =VLOOKUP(A188,'Locations & Types'!$E:$F,2,FALSE) -> STORAGE SITE | C188: 30343940
A189: Sutton Bridge | B189: =VLOOKUP(A189,'Locations & Types'!$E:$F,2,FALSE) -> GDN (EM) | C189: 1079269
A190: Sutton Bridge Power Station | B190: =VLOOKUP(A190,'Locations & Types'!$E:$F,2,FALSE) -> DC | C190: 42637000
A191: Tatsfield | B191: =VLOOKUP(A191,'Locations & Types'!$E:$F,2,FALSE) -> GDN (SE) | C191: 213058400
A192: Teesside (BASF, aka BASF Teesside) | B192: =VLOOKUP(A192,'Locations & Types'!$E:$F,2,FALSE) -> DC | C192: 9750000
A193: Teesside Hydrogen | B193: =VLOOKUP(A193,'Locations & Types'!$E:$F,2,FALSE) -> DC | C193: 13276800
A194: Terra Nitrogen (aka ICI, Terra Severnside) | B194: =VLOOKUP(A194,'Locations & Types'!$E:$F,2,FALSE) -> DC | C194: 0
A195: Thornton Curtis (DN) | B195: =VLOOKUP(A195,'Locations & Types'!$E:$F,2,FALSE) -> GDN (EM) | C195: 118190411
A196: Thornton Curtis (Humber Refinery, aka Immingham) | B196: =VLOOKUP(A196,'Locations & Types'!$E:$F,2,FALSE) -> DC | C196: 67000000
A197: Thornton Curtis (Killingholme) | B197: =VLOOKUP(A197,'Locations & Types'!$E:$F,2,FALSE) -> DC | C197: 48268493.15
A198: Thrintoft | B198: =VLOOKUP(A198,'Locations & Types'!$E:$F,2,FALSE) -> GDN (NO) | C198: 6921484
A199: Tilbury Power Station | B199: =VLOOKUP(A199,'Locations & Types'!$E:$F,2,FALSE) -> DC | C199: 0
A200: Tonna (Baglan Bay) | B200: =VLOOKUP(A200,'Locations & Types'!$E:$F,2,FALSE) -> DC | C200: 26750000
... 34 more rows

Sheet 20-21 FCC - Exit (hidden)
A1: Exit Point | B1: Exit Point Type | C1: Forecasted Contracted Capacity
C2: (kWh/d)
A3: Aberdeen | B3: =VLOOKUP(A3,'Locations & Types'!$E:$F,2,FALSE) -> GDN (SC) | C3: 21639348
A4: Abson (Seabank Power Station phase I) | B4: =VLOOKUP(A4,'Locations & Types'!$E:$F,2,FALSE) -> DC | C4: 27843799.79
A5: Alrewas (EM) | B5: =VLOOKUP(A5,'Locations & Types'!$E:$F,2,FALSE) -> GDN (EM) | C5: 59229584
A6: Alrewas (WM) | B6: =VLOOKUP(A6,'Locations & Types'!$E:$F,2,FALSE) -> GDN (WM) | C6: 72462290
A7: Apache (Sage Black Start) | B7: =VLOOKUP(A7,'Locations & Types'!$E:$F,2,FALSE) -> DC | C7: 9073.673973
A8: Armadale | B8: =VLOOKUP(A8,'Locations & Types'!$E:$F,2,FALSE) -> GDN (SC) | C8: 7519525
A9: Aspley | B9: =VLOOKUP(A9,'Locations & Types'!$E:$F,2,FALSE) -> GDN (WM) | C9: 50894176
A10: Asselby | B10: =VLOOKUP(A10,'Locations & Types'!$E:$F,2,FALSE) -> GDN (NE) | C10: 3586201
A11: Audley (NW) | B11: =VLOOKUP(A11,'Locations & Types'!$E:$F,2,FALSE) -> GDN (NW) | C11: 8037574
A12: Audley (WM) | B12: =VLOOKUP(A12,'Locations & Types'!$E:$F,2,FALSE) -> GDN (WM) | C12: 13572412
A13: Austrey | B13: =VLOOKUP(A13,'Locations & Types'!$E:$F,2,FALSE) -> GDN (WM) | C13: 59601211
A14: Avonmouth Max Refill | B14: =VLOOKUP(A14,'Locations & Types'!$E:$F,2,FALSE) -> STORAGE SITE | C14: 661.2054795
A15: Aylesbeare | B15: =VLOOKUP(A15,'Locations & Types'!$E:$F,2,FALSE) -> GDN (SW) | C15: 19411359
A16: Bacton | B16: =VLOOKUP(A16,'Locations & Types'!$E:$F,2,FALSE) -> GDN (EA) | C16: 2472724
A17: Bacton (Baird) | B17: =VLOOKUP(A17,'Locations & Types'!$E:$F,2,FALSE) -> STORAGE SITE | C17: 0
A18: Bacton (BBL) | B18: =VLOOKUP(A18,'Locations & Types'!$E:$F,2,FALSE) -> INTERCONNECTOR | C18: 0
A19: Bacton (Great Yarmouth) | B19: =VLOOKUP(A19,'Locations & Types'!$E:$F,2,FALSE) -> DC | C19: 20000000
A20: Bacton (IUK) | B20: =VLOOKUP(A20,'Locations & Types'!$E:$F,2,FALSE) -> INTERCONNECTOR | C20: 185430316.3
A21: Baldersby | B21: =VLOOKUP(A21,'Locations & Types'!$E:$F,2,FALSE) -> GDN (NE) | C21: 1126642
A22: Balgray | B22: =VLOOKUP(A22,'Locations & Types'!$E:$F,2,FALSE) -> GDN (SC) | C22: 14957981
A23: Barking (Horndon) | B23: =VLOOKUP(A23,'Locations & Types'!$E:$F,2,FALSE) -> DC | C23: 0
A24: Barrow (Bains) | B24: =VLOOKUP(A24,'Locations & Types'!$E:$F,2,FALSE) -> STORAGE SITE | C24: 0
A25: Barrow (Black Start) | B25: =VLOOKUP(A25,'Locations & Types'!$E:$F,2,FALSE) -> DC | C25: 1001369.863
A26: Barrow (Gateway) | B26: =VLOOKUP(A26,'Locations & Types'!$E:$F,2,FALSE) -> STORAGE SITE | C26: 0
A27: Barton Stacey Max Refill (Humbly Grove) | B27: =VLOOKUP(A27,'Locations & Types'!$E:$F,2,FALSE) -> STORAGE SITE | C27: 10181399.89
A28: Bathgate | B28: =VLOOKUP(A28,'Locations & Types'!$E:$F,2,FALSE) -> GDN (SC) | C28: 21081766
A29: Billingham ICI (Terra Billingham) | B29: =VLOOKUP(A29,'Locations & Types'!$E:$F,2,FALSE) -> DC | C29: 33644543
A30: Bishop Auckland | B30: =VLOOKUP(A30,'Locations & Types'!$E:$F,2,FALSE) -> GDN (NO) | C30: 52568615
A31: Bishop Auckland (test facility) | B31: =VLOOKUP(A31,'Locations & Types'!$E:$F,2,FALSE) -> DC | C31: 781914.3562
A32: Blaby | B32: =VLOOKUP(A32,'Locations & Types'!$E:$F,2,FALSE) -> GDN (EM) | C32: 9867513
A33: Blackness (BP Grangemouth) | B33: =VLOOKUP(A33,'Locations & Types'!$E:$F,2,FALSE) -> DC | C33: 27290000
A34: Blackrod | B34: =VLOOKUP(A34,'Locations & Types'!$E:$F,2,FALSE) -> GDN (NW) | C34: 123939267
A35: Blyborough | B35: =VLOOKUP(A35,'Locations & Types'!$E:$F,2,FALSE) -> GDN (EM) | C35: 55825856
A36: Blyborough (Brigg) | B36: =VLOOKUP(A36,'Locations & Types'!$E:$F,2,FALSE) -> DC | C36: 1600000
A37: Blyborough (Cottam) | B37: =VLOOKUP(A37,'Locations & Types'!$E:$F,2,FALSE) -> DC | C37: 12767838.63
A38: Braishfield A | B38: =VLOOKUP(A38,'Locations & Types'!$E:$F,2,FALSE) -> GDN (SO) | C38: 74233847
A39: Braishfield B | B39: =VLOOKUP(A39,'Locations & Types'!$E:$F,2,FALSE) -> GDN (SO) | C39: 57139307
A40: Brine Field (Teesside) Power Station | B40: =VLOOKUP(A40,'Locations & Types'!$E:$F,2,FALSE) -> DC | C40: 50816.9863
A41: Brisley | B41: =VLOOKUP(A41,'Locations & Types'!$E:$F,2,FALSE) -> GDN (EA) | C41: 2077837
A42: Broxburn | B42: =VLOOKUP(A42,'Locations & Types'!$E:$F,2,FALSE) -> GDN (SC) | C42: 56250554
A43: Burley Bank | B43: =VLOOKUP(A43,'Locations & Types'!$E:$F,2,FALSE) -> GDN (NE) | C43: 13868151
A44: Burnhervie | B44: =VLOOKUP(A44,'Locations & Types'!$E:$F,2,FALSE) -> GDN (SC) | C44: 20624435
A45: Burton Point (Connahs Quay) | B45: =VLOOKUP(A45,'Locations & Types'!$E:$F,2,FALSE) -> DC | C45: 11598197.78
A46: Caldecott | B46: =VLOOKUP(A46,'Locations & Types'!$E:$F,2,FALSE) -> GDN (EM) | C46: 8977861
A47: Caldecott (Corby Power Station) | B47: =VLOOKUP(A47,'Locations & Types'!$E:$F,2,FALSE) -> DC | C47: 663937.0959
A48: Cambridge | B48: =VLOOKUP(A48,'Locations & Types'!$E:$F,2,FALSE) -> GDN (EA) | C48: 0
A49: Careston | B49: =VLOOKUP(A49,'Locations & Types'!$E:$F,2,FALSE) -> GDN (SC) | C49: 3576724
A50: Carrington (Partington) Power Station | B50: =VLOOKUP(A50,'Locations & Types'!$E:$F,2,FALSE) -> DC | C50: 26438120.58
A51: Caythorpe | B51: =VLOOKUP(A51,'Locations & Types'!$E:$F,2,FALSE) -> STORAGE SITE | C51: 0
A52: Centrax Industrial | B52: =VLOOKUP(A52,'Locations & Types'!$E:$F,2,FALSE) -> DC | C52: 85000
A53: Cirencester | B53: =VLOOKUP(A53,'Locations & Types'!$E:$F,2,FALSE) -> GDN (SW) | C53: 7417140
A54: Cockenzie Power Station | B54: =VLOOKUP(A54,'Locations & Types'!$E:$F,2,FALSE) -> DC | C54: 0
A55: Coffinswell | B55: =VLOOKUP(A55,'Locations & Types'!$E:$F,2,FALSE) -> GDN (SW) | C55: 5150000
A56: Coldstream | B56: =VLOOKUP(A56,'Locations & Types'!$E:$F,2,FALSE) -> GDN (NO) | C56: 2848927
A57: Corbridge | B57: =VLOOKUP(A57,'Locations & Types'!$E:$F,2,FALSE) -> GDN (NO) | C57: 57846
A58: Coryton 2 (Thames Haven) Power Station | B58: =VLOOKUP(A58,'Locations & Types'!$E:$F,2,FALSE) -> DC | C58: 0
A59: Cowpen Bewley | B59: =VLOOKUP(A59,'Locations & Types'!$E:$F,2,FALSE) -> GDN (NO) | C59: 35635800
A60: Crawley Down | B60: =VLOOKUP(A60,'Locations & Types'!$E:$F,2,FALSE) -> GDN (SO) | C60: 0
A61: Deborah Storage (Bacton) | B61: =VLOOKUP(A61,'Locations & Types'!$E:$F,2,FALSE) -> STORAGE SITE | C61: 0
A62: Deeside | B62: =VLOOKUP(A62,'Locations & Types'!$E:$F,2,FALSE) -> DC | C62: 4448282.164
A63: Didcot | B63: =VLOOKUP(A63,'Locations & Types'!$E:$F,2,FALSE) -> DC | C63: 33674184.27
A64: Dowlais | B64: =VLOOKUP(A64,'Locations & Types'!$E:$F,2,FALSE) -> GDN (WS) | C64: 91369207
A65: Drakelow Power Station | B65: =VLOOKUP(A65,'Locations & Types'!$E:$F,2,FALSE) -> DC | C65: 0
A66: Drointon | B66: =VLOOKUP(A66,'Locations & Types'!$E:$F,2,FALSE) -> GDN (EM) | C66: 47516641
A67: Drum | B67: =VLOOKUP(A67,'Locations & Types'!$E:$F,2,FALSE) -> GDN (SC) | C67: 66956781
A68: Dyffryn Clydach | B68: =VLOOKUP(A68,'Locations & Types'!$E:$F,2,FALSE) -> GDN (WS) | C68: 40231974
A69: Dynevor Max Refill | B69: =VLOOKUP(A69,'Locations & Types'!$E:$F,2,FALSE) -> STORAGE SITE | C69: 23931
A70: Eastoft (Keadby Blackstart) | B70: =VLOOKUP(A70,'Locations & Types'!$E:$F,2,FALSE) -> DC | C70: 1457215
A71: Eastoft (Keadby) | B71: =VLOOKUP(A71,'Locations & Types'!$E:$F,2,FALSE) -> DC | C71: 36060000
A72: Easton Grey | B72: =VLOOKUP(A72,'Locations & Types'!$E:$F,2,FALSE) -> GDN (SW) | C72: 27391725
A73: Ecclestone | B73: =VLOOKUP(A73,'Locations & Types'!$E:$F,2,FALSE) -> GDN (NW) | C73: 16370887
A74: Elton | B74: =VLOOKUP(A74,'Locations & Types'!$E:$F,2,FALSE) -> GDN (NO) | C74: 52818145
A75: Enron Billingham | B75: =VLOOKUP(A75,'Locations & Types'!$E:$F,2,FALSE) -> DC | C75: 0
A76: Epping Green (Enfield Energy, aka Brimsdown) | B76: =VLOOKUP(A76,'Locations & Types'!$E:$F,2,FALSE) -> DC | C76: 9323287.671
A77: Evesham | B77: =VLOOKUP(A77,'Locations & Types'!$E:$F,2,FALSE) -> GDN (SW) | C77: 6570000
A78: Farningham | B78: =VLOOKUP(A78,'Locations & Types'!$E:$F,2,FALSE) -> GDN (SE) | C78: 86623407
A79: Farningham B | B79: =VLOOKUP(A79,'Locations & Types'!$E:$F,2,FALSE) -> GDN (SE) | C79: 80373971
A80: Ferny Knoll (AM Paper) | B80: =VLOOKUP(A80,'Locations & Types'!$E:$F,2,FALSE) -> DC | C80: 0
A81: Fiddington | B81: =VLOOKUP(A81,'Locations & Types'!$E:$F,2,FALSE) -> GDN (SW) | C81: 21964044
A82: Ganstead | B82: =VLOOKUP(A82,'Locations & Types'!$E:$F,2,FALSE) -> GDN (NE) | C82: 16610330
A83: Garton Max Refill (Aldbrough) | B83: =VLOOKUP(A83,'Locations & Types'!$E:$F,2,FALSE) -> STORAGE SITE | C83: 325510000
A84: Gilwern | B84: =VLOOKUP(A84,'Locations & Types'!$E:$F,2,FALSE) -> GDN (WS) | C84: 75404154
A85: Glenmavis | B85: =VLOOKUP(A85,'Locations & Types'!$E:$F,2,FALSE) -> GDN (SC) | C85: 128262344
A86: Glenmavis Max Refill | B86: =VLOOKUP(A86,'Locations & Types'!$E:$F,2,FALSE) -> STORAGE SITE | C86: 128720
A87: Goole (Guardian Glass) | B87: =VLOOKUP(A87,'Locations & Types'!$E:$F,2,FALSE) -> DC | C87: 1700000
A88: Gosberton | B88: =VLOOKUP(A88,'Locations & Types'!$E:$F,2,FALSE) -> GDN (EM) | C88: 12321120
A89: Gowkhall (Longannet) | B89: =VLOOKUP(A89,'Locations & Types'!$E:$F,2,FALSE) -> DC | C89: 43320000
A90: Grain Power Station | B90: =VLOOKUP(A90,'Locations & Types'!$E:$F,2,FALSE) -> DC | C90: 45060366.3
A91: Great Wilbraham | B91: =VLOOKUP(A91,'Locations & Types'!$E:$F,2,FALSE) -> GDN (EA) | C91: 20622606
A92: Guyzance | B92: =VLOOKUP(A92,'Locations & Types'!$E:$F,2,FALSE) -> GDN (NO) | C92: 1806988
A93: Hardwick | B93: =VLOOKUP(A93,'Locations & Types'!$E:$F,2,FALSE) -> GDN (SO) | C93: 95134383
A94: Harwarden (Shotton, aka Shotton Paper) | B94: =VLOOKUP(A94,'Locations & Types'!$E:$F,2,FALSE) -> DC | C94: 0
A95: Hatfield Moor Max Refill | B95: =VLOOKUP(A95,'Locations & Types'!$E:$F,2,FALSE) -> STORAGE SITE | C95: 30210000
A96: Hatfield Power Station | B96: =VLOOKUP(A96,'Locations & Types'!$E:$F,2,FALSE) -> DC | C96: 0
A97: Hill Top Farm (Hole House Farm) | B97: =VLOOKUP(A97,'Locations & Types'!$E:$F,2,FALSE) -> STORAGE SITE | C97: 4588175.342
A98: Hole House Max Refill | B98: =VLOOKUP(A98,'Locations & Types'!$E:$F,2,FALSE) -> STORAGE SITE | C98: 684999.2329
A99: Holford | B99: =VLOOKUP(A99,'Locations & Types'!$E:$F,2,FALSE) -> STORAGE SITE | C99: 41731254.82
A100: Hollingsgreen (Hays Chemicals) | B100: =VLOOKUP(A100,'Locations & Types'!$E:$F,2,FALSE) -> DC | C100: 555000
A101: Holmes Chapel | B101: =VLOOKUP(A101,'Locations & Types'!$E:$F,2,FALSE) -> GDN (NW) | C101: 18387106
A102: Horndon | B102: =VLOOKUP(A102,'Locations & Types'!$E:$F,2,FALSE) -> GDN (NT) | C102: 33307669
A103: Hornsea Max Refill | B103: =VLOOKUP(A103,'Locations & Types'!$E:$F,2,FALSE) -> STORAGE SITE | C103: 40337921.03
A104: Humbleton | B104: =VLOOKUP(A104,'Locations & Types'!$E:$F,2,FALSE) -> GDN (NO) | C104: 148471
A105: Hume | B105: =VLOOKUP(A105,'Locations & Types'!$E:$F,2,FALSE) -> GDN (SC) | C105: 1684385
A106: Ilchester | B106: =VLOOKUP(A106,'Locations & Types'!$E:$F,2,FALSE) -> GDN (SW) | C106: 32714223
A107: Ipsden | B107: =VLOOKUP(A107,'Locations & Types'!$E:$F,2,FALSE) -> GDN (SO) | C107: 8410345
A108: Ipsden 2 | B108: =VLOOKUP(A108,'Locations & Types'!$E:$F,2,FALSE) -> GDN (SO) | C108: 10727430
A109: Keld | B109: =VLOOKUP(A109,'Locations & Types'!$E:$F,2,FALSE) -> GDN (NO) | C109: 1424555
A110: Kenn | B110: =VLOOKUP(A110,'Locations & Types'!$E:$F,2,FALSE) -> GDN (SW) | C110: 14000883
A111: Kinknockie | B111: =VLOOKUP(A111,'Locations & Types'!$E:$F,2,FALSE) -> GDN (SC) | C111: 3068392
A112: Kirkstead | B112: =VLOOKUP(A112,'Locations & Types'!$E:$F,2,FALSE) -> GDN (EM) | C112: 858703
A113: Langage Power Station | B113: =VLOOKUP(A113,'Locations & Types'!$E:$F,2,FALSE) -> DC | C113: 31708219.18
A114: Langholm | B114: =VLOOKUP(A114,'Locations & Types'!$E:$F,2,FALSE) -> GDN (SC) | C114: 155319
A115: Lauderhill | B115: =VLOOKUP(A115,'Locations & Types'!$E:$F,2,FALSE) -> GDN (SC) | C115: 0
A116: Leamington | B116: =VLOOKUP(A116,'Locations & Types'!$E:$F,2,FALSE) -> GDN (WM) | C116: 2586215
A117: Little Burdon | B117: =VLOOKUP(A117,'Locations & Types'!$E:$F,2,FALSE) -> GDN (NO) | C117: 20919521
A118: Littleton Drew | B118: =VLOOKUP(A118,'Locations & Types'!$E:$F,2,FALSE) -> GDN (SW) | C118: 2299463
A119: Lockerbie | B119: =VLOOKUP(A119,'Locations & Types'!$E:$F,2,FALSE) -> GDN (SC) | C119: 6757111
A120: Lower Quinton | B120: =VLOOKUP(A120,'Locations & Types'!$E:$F,2,FALSE) -> GDN (WM) | C120: 26684207
A121: Lupton | B121: =VLOOKUP(A121,'Locations & Types'!$E:$F,2,FALSE) -> GDN (NW) | C121: 15464650
A122: Luxborough Lane | B122: =VLOOKUP(A122,'Locations & Types'!$E:$F,2,FALSE) -> GDN (NT) | C122: 76147689
A123: Lyneham (Choakford) | B123: =VLOOKUP(A123,'Locations & Types'!$E:$F,2,FALSE) -> GDN (SW) | C123: 46264107
A124: Maelor | B124: =VLOOKUP(A124,'Locations & Types'!$E:$F,2,FALSE) -> GDN (WN) | C124: 49258990
A125: Malpas | B125: =VLOOKUP(A125,'Locations & Types'!$E:$F,2,FALSE) -> GDN (NW) | C125: 685222
A126: Mappowder | B126: =VLOOKUP(A126,'Locations & Types'!$E:$F,2,FALSE) -> GDN (SO) | C126: 34661568
A127: Marchwood Power Station | B127: =VLOOKUP(A127,'Locations & Types'!$E:$F,2,FALSE) -> DC | C127: 39840000
A128: Market Harborough | B128: =VLOOKUP(A128,'Locations & Types'!$E:$F,2,FALSE) -> GDN (EM) | C128: 6965982
A129: Matching Green | B129: =VLOOKUP(A129,'Locations & Types'!$E:$F,2,FALSE) -> GDN (EA) | C129: 50470504
A130: Medway (aka Isle of Grain Power Station, NOT Grain Power) | B130: =VLOOKUP(A130,'Locations & Types'!$E:$F,2,FALSE) -> DC | C130: 32771084
A131: Melkinthorpe | B131: =VLOOKUP(A131,'Locations & Types'!$E:$F,2,FALSE) -> GDN (NO) | C131: 2432914
A132: Mickle Trafford | B132: =VLOOKUP(A132,'Locations & Types'!$E:$F,2,FALSE) -> GDN (NW) | C132: 29209411
A133: Middle Stoke (Damhead Creek, aka Kingsnorth Power Station) | B133: =VLOOKUP(A133,'Locations & Types'!$E:$F,2,FALSE) -> DC | C133: 95336184
A134: Milwich | B134: =VLOOKUP(A134,'Locations & Types'!$E:$F,2,FALSE) -> GDN (WM) | C134: 18949988
A135: Moffat (Irish Interconnector) | B135: =VLOOKUP(A135,'Locations & Types'!$E:$F,2,FALSE) -> INTERCONNECTOR | C135: 212920231
A136: Netherhowcleugh | B136: =VLOOKUP(A136,'Locations & Types'!$E:$F,2,FALSE) -> GDN (SC) | C136: 322112
A137: Pannal | B137: =VLOOKUP(A137,'Locations & Types'!$E:$F,2,FALSE) -> GDN (NE) | C137: 120179959
A138: Partington | B138: =VLOOKUP(A138,'Locations & Types'!$E:$F,2,FALSE) -> GDN (NW) | C138: 43675148
A139: Partington Max Refill | B139: =VLOOKUP(A139,'Locations & Types'!$E:$F,2,FALSE) -> STORAGE SITE | C139: 0
A140: Paull | B140: =VLOOKUP(A140,'Locations & Types'!$E:$F,2,FALSE) -> GDN (NE) | C140: 46858561
A141: Pembroke Power Station | B141: =VLOOKUP(A141,'Locations & Types'!$E:$F,2,FALSE) -> DC | C141: 121200000
A142: Peterborough (Peterborough Power Station) | B142: =VLOOKUP(A142,'Locations & Types'!$E:$F,2,FALSE) -> DC | C142: 2800000
A143: Peterborough Eye (Tee) | B143: =VLOOKUP(A143,'Locations & Types'!$E:$F,2,FALSE) -> GDN (EA) | C143: 20325523
A144: Peters Green | B144: =VLOOKUP(A144,'Locations & Types'!$E:$F,2,FALSE) -> GDN (NT) | C144: 111963144
A145: Peters Green South Mimms | B145: =VLOOKUP(A145,'Locations & Types'!$E:$F,2,FALSE) -> GDN (NT) | C145: 164876045
A146: Phillips Petroleum, Teesside | B146: =VLOOKUP(A146,'Locations & Types'!$E:$F,2,FALSE) -> DC | C146: 3690000
A147: Pickering | B147: =VLOOKUP(A147,'Locations & Types'!$E:$F,2,FALSE) -> GDN (NE) | C147: 8332710
A148: Pickmere (Winnington Power, aka Brunner Mond) | B148: =VLOOKUP(A148,'Locations & Types'!$E:$F,2,FALSE) -> DC | C148: 8000000
A149: Pitcairngreen | B149: =VLOOKUP(A149,'Locations & Types'!$E:$F,2,FALSE) -> GDN (SC) | C149: 1915791
A150: Pucklechurch | B150: =VLOOKUP(A150,'Locations & Types'!$E:$F,2,FALSE) -> GDN (SW) | C150: 25189843
A151: Rawcliffe | B151: =VLOOKUP(A151,'Locations & Types'!$E:$F,2,FALSE) -> GDN (NE) | C151: 3229202
A152: Rollswood Kintore | B152: =VLOOKUP(A152,'Locations & Types'!$E:$F,2,FALSE) -> DC | C152: 0
A153: Roosecote Power Station (Barrow) | B153: =VLOOKUP(A153,'Locations & Types'!$E:$F,2,FALSE) -> DC | C153: 0
A154: Rosehill (Saltend Power Station) | B154: =VLOOKUP(A154,'Locations & Types'!$E:$F,2,FALSE) -> DC | C154: 57830000
A155: Ross (SW) | B155: =VLOOKUP(A155,'Locations & Types'!$E:$F,2,FALSE) -> GDN (SW) | C155: 4023357
A156: Ross (WM) | B156: =VLOOKUP(A156,'Locations & Types'!$E:$F,2,FALSE) -> GDN (WM) | C156: 9937704
A157: Roudham Heath | B157: =VLOOKUP(A157,'Locations & Types'!$E:$F,2,FALSE) -> GDN (EA) | C157: 16281005
A158: Royston | B158: =VLOOKUP(A158,'Locations & Types'!$E:$F,2,FALSE) -> GDN (EA) | C158: 2367780
A159: Rugby | B159: =VLOOKUP(A159,'Locations & Types'!$E:$F,2,FALSE) -> GDN (WM) | C159: 59670957
A160: Ryehouse | B160: =VLOOKUP(A160,'Locations & Types'!$E:$F,2,FALSE) -> DC | C160: 38660000
A161: Saddle Bow (Kings Lynn) | B161: =VLOOKUP(A161,'Locations & Types'!$E:$F,2,FALSE) -> DC | C161: 14500000
A162: Saltend BPHP (BP Saltend HP) | B162: =VLOOKUP(A162,'Locations & Types'!$E:$F,2,FALSE) -> DC | C162: 9055895
A163: Saltfleetby Storage (Theddlethorpe) | B163: =VLOOKUP(A163,'Locations & Types'!$E:$F,2,FALSE) -> STORAGE SITE | C163: 0
A164: Saltwick Pressure Controlled | B164: =VLOOKUP(A164,'Locations & Types'!$E:$F,2,FALSE) -> GDN (NO) | C164: 0
A165: Saltwick Volumetric Controlled | B165: =VLOOKUP(A165,'Locations & Types'!$E:$F,2,FALSE) -> GDN (NO) | C165: 37639112
A166: Samlesbury | B166: =VLOOKUP(A166,'Locations & Types'!$E:$F,2,FALSE) -> GDN (NW) | C166: 99858652
A167: Sandy Lane (Blackburn CHP, aka Sappi Paper Mill) | B167: =VLOOKUP(A167,'Locations & Types'!$E:$F,2,FALSE) -> DC | C167: 3433103
A168: Seabank (DN) | B168: =VLOOKUP(A168,'Locations & Types'!$E:$F,2,FALSE) -> GDN (SW) | C168: 53671473
A169: Seabank (Seabank Power Station phase II) | B169: =VLOOKUP(A169,'Locations & Types'!$E:$F,2,FALSE) -> DC | C169: 18316938
A170: Seal Sands TGPP | B170: =VLOOKUP(A170,'Locations & Types'!$E:$F,2,FALSE) -> DC | C170: 46539.45405
A171: Sellafield Power Station | B171: =VLOOKUP(A171,'Locations & Types'!$E:$F,2,FALSE) -> DC | C171: 12349999
A172: Shellstar (aka Kemira, not Kemira CHP) | B172: =VLOOKUP(A172,'Locations & Types'!$E:$F,2,FALSE) -> DC | C172: 11732444
A173: Shorne | B173: =VLOOKUP(A173,'Locations & Types'!$E:$F,2,FALSE) -> GDN (SE) | C173: 19826107
A174: Shotwick (Bridgewater Paper) | B174: =VLOOKUP(A174,'Locations & Types'!$E:$F,2,FALSE) -> DC | C174: 310479.4521
A175: Shustoke | B175: =VLOOKUP(A175,'Locations & Types'!$E:$F,2,FALSE) -> GDN (WM) | C175: 100000
A176: Silk Willoughby | B176: =VLOOKUP(A176,'Locations & Types'!$E:$F,2,FALSE) -> GDN (EM) | C176: 2203090
A177: Soutra | B177: =VLOOKUP(A177,'Locations & Types'!$E:$F,2,FALSE) -> GDN (SC) | C177: 10726995
A178: Spalding 2 (South Holland) Power Station | B178: =VLOOKUP(A178,'Locations & Types'!$E:$F,2,FALSE) -> DC | C178: 0
A179: St Fergus | B179: =VLOOKUP(A179,'Locations & Types'!$E:$F,2,FALSE) -> GDN (SC) | C179: 1055917
A180: St. Fergus (Peterhead) | B180: =VLOOKUP(A180,'Locations & Types'!$E:$F,2,FALSE) -> DC | C180: 73267750
A181: St. Fergus (Shell Blackstart) | B181: =VLOOKUP(A181,'Locations & Types'!$E:$F,2,FALSE) -> DC | C181: 2583336
A182: St. Neots (Little Barford) | B182: =VLOOKUP(A182,'Locations & Types'!$E:$F,2,FALSE) -> DC | C182: 26775065.04
A183: Stallingborough | B183: =VLOOKUP(A183,'Locations & Types'!$E:$F,2,FALSE) -> DC | C183: 52700000
A184: Stanford Le Hope (Coryton) | B184: =VLOOKUP(A184,'Locations & Types'!$E:$F,2,FALSE) -> DC | C184: 8267935.726
A185: Staythorpe | B185: =VLOOKUP(A185,'Locations & Types'!$E:$F,2,FALSE) -> DC | C185: 61331506.85
A186: Stranraer | B186: =VLOOKUP(A186,'Locations & Types'!$E:$F,2,FALSE) -> GDN (SC) | C186: 742435
A187: Stratford-upon-Avon | B187: =VLOOKUP(A187,'Locations & Types'!$E:$F,2,FALSE) -> GDN (WM) | C187: 3735040
A188: Stublach (Cheshire) | B188: =VLOOKUP(A188,'Locations & Types'!$E:$F,2,FALSE) -> STORAGE SITE | C188: 30343940
A189: Sutton Bridge | B189: =VLOOKUP(A189,'Locations & Types'!$E:$F,2,FALSE) -> GDN (EM) | C189: 1079269
A190: Sutton Bridge Power Station | B190: =VLOOKUP(A190,'Locations & Types'!$E:$F,2,FALSE) -> DC | C190: 42637000
A191: Tatsfield | B191: =VLOOKUP(A191,'Locations & Types'!$E:$F,2,FALSE) -> GDN (SE) | C191: 192774633
A192: Teesside (BASF, aka BASF Teesside) | B192: =VLOOKUP(A192,'Locations & Types'!$E:$F,2,FALSE) -> DC | C192: 9750000
A193: Teesside Hydrogen | B193: =VLOOKUP(A193,'Locations & Types'!$E:$F,2,FALSE) -> DC | C193: 13276800
A194: Terra Nitrogen (aka ICI, Terra Severnside) | B194: =VLOOKUP(A194,'Locations & Types'!$E:$F,2,FALSE) -> DC | C194: 0
A195: Thornton Curtis (DN) | B195: =VLOOKUP(A195,'Locations & Types'!$E:$F,2,FALSE) -> GDN (EM) | C195: 118190411
A196: Thornton Curtis (Humber Refinery, aka Immingham) | B196: =VLOOKUP(A196,'Locations & Types'!$E:$F,2,FALSE) -> DC | C196: 67000000
A197: Thornton Curtis (Killingholme) | B197: =VLOOKUP(A197,'Locations & Types'!$E:$F,2,FALSE) -> DC | C197: 48268493.15
A198: Thrintoft | B198: =VLOOKUP(A198,'Locations & Types'!$E:$F,2,FALSE) -> GDN (NO) | C198: 6921484
A199: Tilbury Power Station | B199: =VLOOKUP(A199,'Locations & Types'!$E:$F,2,FALSE) -> DC | C199: 0
A200: Tonna (Baglan Bay) | B200: =VLOOKUP(A200,'Locations & Types'!$E:$F,2,FALSE) -> DC | C200: 26750000
... 34 more rows

Sheet 21-22 FCC - Exit (hidden)
A1: Exit Point | B1: Exit Point Type | C1: Forecasted Contracted Capacity
C2: (kWh/d)
A3: Aberdeen | B3: =VLOOKUP(A3,'Locations & Types'!$E:$F,2,FALSE) -> GDN (SC) | C3: 21639348
A4: Abson (Seabank Power Station phase I) | B4: =VLOOKUP(A4,'Locations & Types'!$E:$F,2,FALSE) -> DC | C4: 27843799.79
A5: Alrewas (EM) | B5: =VLOOKUP(A5,'Locations & Types'!$E:$F,2,FALSE) -> GDN (EM) | C5: 59229584
A6: Alrewas (WM) | B6: =VLOOKUP(A6,'Locations & Types'!$E:$F,2,FALSE) -> GDN (WM) | C6: 72462290
A7: Apache (Sage Black Start) | B7: =VLOOKUP(A7,'Locations & Types'!$E:$F,2,FALSE) -> DC | C7: 9073.673973
A8: Armadale | B8: =VLOOKUP(A8,'Locations & Types'!$E:$F,2,FALSE) -> GDN (SC) | C8: 7519525
A9: Aspley | B9: =VLOOKUP(A9,'Locations & Types'!$E:$F,2,FALSE) -> GDN (WM) | C9: 50894176
A10: Asselby | B10: =VLOOKUP(A10,'Locations & Types'!$E:$F,2,FALSE) -> GDN (NE) | C10: 3586201
A11: Audley (NW) | B11: =VLOOKUP(A11,'Locations & Types'!$E:$F,2,FALSE) -> GDN (NW) | C11: 8037574
A12: Audley (WM) | B12: =VLOOKUP(A12,'Locations & Types'!$E:$F,2,FALSE) -> GDN (WM) | C12: 13572412
A13: Austrey | B13: =VLOOKUP(A13,'Locations & Types'!$E:$F,2,FALSE) -> GDN (WM) | C13: 59601211
A14: Avonmouth Max Refill | B14: =VLOOKUP(A14,'Locations & Types'!$E:$F,2,FALSE) -> STORAGE SITE | C14: 661.2054795
A15: Aylesbeare | B15: =VLOOKUP(A15,'Locations & Types'!$E:$F,2,FALSE) -> GDN (SW) | C15: 19557396
A16: Bacton | B16: =VLOOKUP(A16,'Locations & Types'!$E:$F,2,FALSE) -> GDN (EA) | C16: 2472724
A17: Bacton (Baird) | B17: =VLOOKUP(A17,'Locations & Types'!$E:$F,2,FALSE) -> STORAGE SITE | C17: 0
A18: Bacton (BBL) | B18: =VLOOKUP(A18,'Locations & Types'!$E:$F,2,FALSE) -> INTERCONNECTOR | C18: 0
A19: Bacton (Great Yarmouth) | B19: =VLOOKUP(A19,'Locations & Types'!$E:$F,2,FALSE) -> DC | C19: 20000000
A20: Bacton (IUK) | B20: =VLOOKUP(A20,'Locations & Types'!$E:$F,2,FALSE) -> INTERCONNECTOR | C20: 185430316.3
A21: Baldersby | B21: =VLOOKUP(A21,'Locations & Types'!$E:$F,2,FALSE) -> GDN (NE) | C21: 1126642
A22: Balgray | B22: =VLOOKUP(A22,'Locations & Types'!$E:$F,2,FALSE) -> GDN (SC) | C22: 14957981
A23: Barking (Horndon) | B23: =VLOOKUP(A23,'Locations & Types'!$E:$F,2,FALSE) -> DC | C23: 0
A24: Barrow (Bains) | B24: =VLOOKUP(A24,'Locations & Types'!$E:$F,2,FALSE) -> STORAGE SITE | C24: 0
A25: Barrow (Black Start) | B25: =VLOOKUP(A25,'Locations & Types'!$E:$F,2,FALSE) -> DC | C25: 1001369.863
A26: Barrow (Gateway) | B26: =VLOOKUP(A26,'Locations & Types'!$E:$F,2,FALSE) -> STORAGE SITE | C26: 0
A27: Barton Stacey Max Refill (Humbly Grove) | B27: =VLOOKUP(A27,'Locations & Types'!$E:$F,2,FALSE) -> STORAGE SITE | C27: 10181399.89
A28: Bathgate | B28: =VLOOKUP(A28,'Locations & Types'!$E:$F,2,FALSE) -> GDN (SC) | C28: 21081766
A29: Billingham ICI (Terra Billingham) | B29: =VLOOKUP(A29,'Locations & Types'!$E:$F,2,FALSE) -> DC | C29: 33644543
A30: Bishop Auckland | B30: =VLOOKUP(A30,'Locations & Types'!$E:$F,2,FALSE) -> GDN (NO) | C30: 52568615
A31: Bishop Auckland (test facility) | B31: =VLOOKUP(A31,'Locations & Types'!$E:$F,2,FALSE) -> DC | C31: 781914.3562
A32: Blaby | B32: =VLOOKUP(A32,'Locations & Types'!$E:$F,2,FALSE) -> GDN (EM) | C32: 9867513
A33: Blackness (BP Grangemouth) | B33: =VLOOKUP(A33,'Locations & Types'!$E:$F,2,FALSE) -> DC | C33: 27290000
A34: Blackrod | B34: =VLOOKUP(A34,'Locations & Types'!$E:$F,2,FALSE) -> GDN (NW) | C34: 123939267
A35: Blyborough | B35: =VLOOKUP(A35,'Locations & Types'!$E:$F,2,FALSE) -> GDN (EM) | C35: 55825856
A36: Blyborough (Brigg) | B36: =VLOOKUP(A36,'Locations & Types'!$E:$F,2,FALSE) -> DC | C36: 1600000
A37: Blyborough (Cottam) | B37: =VLOOKUP(A37,'Locations & Types'!$E:$F,2,FALSE) -> DC | C37: 12767838.63
A38: Braishfield A | B38: =VLOOKUP(A38,'Locations & Types'!$E:$F,2,FALSE) -> GDN (SO) | C38: 74233847
A39: Braishfield B | B39: =VLOOKUP(A39,'Locations & Types'!$E:$F,2,FALSE) -> GDN (SO) | C39: 57139307
A40: Brine Field (Teesside) Power Station | B40: =VLOOKUP(A40,'Locations & Types'!$E:$F,2,FALSE) -> DC | C40: 50816.9863
A41: Brisley | B41: =VLOOKUP(A41,'Locations & Types'!$E:$F,2,FALSE) -> GDN (EA) | C41: 2077837
A42: Broxburn | B42: =VLOOKUP(A42,'Locations & Types'!$E:$F,2,FALSE) -> GDN (SC) | C42: 56250554
A43: Burley Bank | B43: =VLOOKUP(A43,'Locations & Types'!$E:$F,2,FALSE) -> GDN (NE) | C43: 13868151
A44: Burnhervie | B44: =VLOOKUP(A44,'Locations & Types'!$E:$F,2,FALSE) -> GDN (SC) | C44: 20624435
A45: Burton Point (Connahs Quay) | B45: =VLOOKUP(A45,'Locations & Types'!$E:$F,2,FALSE) -> DC | C45: 11598197.78
A46: Caldecott | B46: =VLOOKUP(A46,'Locations & Types'!$E:$F,2,FALSE) -> GDN (EM) | C46: 8977861
A47: Caldecott (Corby Power Station) | B47: =VLOOKUP(A47,'Locations & Types'!$E:$F,2,FALSE) -> DC | C47: 663937.0959
A48: Cambridge | B48: =VLOOKUP(A48,'Locations & Types'!$E:$F,2,FALSE) -> GDN (EA) | C48: 0
A49: Careston | B49: =VLOOKUP(A49,'Locations & Types'!$E:$F,2,FALSE) -> GDN (SC) | C49: 3576724
A50: Carrington (Partington) Power Station | B50: =VLOOKUP(A50,'Locations & Types'!$E:$F,2,FALSE) -> DC | C50: 26438120.58
A51: Caythorpe | B51: =VLOOKUP(A51,'Locations & Types'!$E:$F,2,FALSE) -> STORAGE SITE | C51: 0
A52: Centrax Industrial | B52: =VLOOKUP(A52,'Locations & Types'!$E:$F,2,FALSE) -> DC | C52: 85000
A53: Cirencester | B53: =VLOOKUP(A53,'Locations & Types'!$E:$F,2,FALSE) -> GDN (SW) | C53: 7417140
A54: Cockenzie Power Station | B54: =VLOOKUP(A54,'Locations & Types'!$E:$F,2,FALSE) -> DC | C54: 0
A55: Coffinswell | B55: =VLOOKUP(A55,'Locations & Types'!$E:$F,2,FALSE) -> GDN (SW) | C55: 5150000
A56: Coldstream | B56: =VLOOKUP(A56,'Locations & Types'!$E:$F,2,FALSE) -> GDN (NO) | C56: 2848927
A57: Corbridge | B57: =VLOOKUP(A57,'Locations & Types'!$E:$F,2,FALSE) -> GDN (NO) | C57: 57846
A58: Coryton 2 (Thames Haven) Power Station | B58: =VLOOKUP(A58,'Locations & Types'!$E:$F,2,FALSE) -> DC | C58: 0
A59: Cowpen Bewley | B59: =VLOOKUP(A59,'Locations & Types'!$E:$F,2,FALSE) -> GDN (NO) | C59: 35635800
A60: Crawley Down | B60: =VLOOKUP(A60,'Locations & Types'!$E:$F,2,FALSE) -> GDN (SO) | C60: 0
A61: Deborah Storage (Bacton) | B61: =VLOOKUP(A61,'Locations & Types'!$E:$F,2,FALSE) -> STORAGE SITE | C61: 0
A62: Deeside | B62: =VLOOKUP(A62,'Locations & Types'!$E:$F,2,FALSE) -> DC | C62: 4448282.164
A63: Didcot | B63: =VLOOKUP(A63,'Locations & Types'!$E:$F,2,FALSE) -> DC | C63: 33674184.27
A64: Dowlais | B64: =VLOOKUP(A64,'Locations & Types'!$E:$F,2,FALSE) -> GDN (WS) | C64: 91369207
A65: Drakelow Power Station | B65: =VLOOKUP(A65,'Locations & Types'!$E:$F,2,FALSE) -> DC | C65: 0
A66: Drointon | B66: =VLOOKUP(A66,'Locations & Types'!$E:$F,2,FALSE) -> GDN (EM) | C66: 47516641
A67: Drum | B67: =VLOOKUP(A67,'Locations & Types'!$E:$F,2,FALSE) -> GDN (SC) | C67: 66956781
A68: Dyffryn Clydach | B68: =VLOOKUP(A68,'Locations & Types'!$E:$F,2,FALSE) -> GDN (WS) | C68: 40231974
A69: Dynevor Max Refill | B69: =VLOOKUP(A69,'Locations & Types'!$E:$F,2,FALSE) -> STORAGE SITE | C69: 23931
A70: Eastoft (Keadby Blackstart) | B70: =VLOOKUP(A70,'Locations & Types'!$E:$F,2,FALSE) -> DC | C70: 1457215
A71: Eastoft (Keadby) | B71: =VLOOKUP(A71,'Locations & Types'!$E:$F,2,FALSE) -> DC | C71: 36060000
A72: Easton Grey | B72: =VLOOKUP(A72,'Locations & Types'!$E:$F,2,FALSE) -> GDN (SW) | C72: 27391725
A73: Ecclestone | B73: =VLOOKUP(A73,'Locations & Types'!$E:$F,2,FALSE) -> GDN (NW) | C73: 16370887
A74: Elton | B74: =VLOOKUP(A74,'Locations & Types'!$E:$F,2,FALSE) -> GDN (NO) | C74: 52818145
A75: Enron Billingham | B75: =VLOOKUP(A75,'Locations & Types'!$E:$F,2,FALSE) -> DC | C75: 0
A76: Epping Green (Enfield Energy, aka Brimsdown) | B76: =VLOOKUP(A76,'Locations & Types'!$E:$F,2,FALSE) -> DC | C76: 9323287.671
A77: Evesham | B77: =VLOOKUP(A77,'Locations & Types'!$E:$F,2,FALSE) -> GDN (SW) | C77: 6570000
A78: Farningham | B78: =VLOOKUP(A78,'Locations & Types'!$E:$F,2,FALSE) -> GDN (SE) | C78: 86623407
A79: Farningham B | B79: =VLOOKUP(A79,'Locations & Types'!$E:$F,2,FALSE) -> GDN (SE) | C79: 80373971
A80: Ferny Knoll (AM Paper) | B80: =VLOOKUP(A80,'Locations & Types'!$E:$F,2,FALSE) -> DC | C80: 0
A81: Fiddington | B81: =VLOOKUP(A81,'Locations & Types'!$E:$F,2,FALSE) -> GDN (SW) | C81: 22252226
A82: Ganstead | B82: =VLOOKUP(A82,'Locations & Types'!$E:$F,2,FALSE) -> GDN (NE) | C82: 16610330
A83: Garton Max Refill (Aldbrough) | B83: =VLOOKUP(A83,'Locations & Types'!$E:$F,2,FALSE) -> STORAGE SITE | C83: 325510000
A84: Gilwern | B84: =VLOOKUP(A84,'Locations & Types'!$E:$F,2,FALSE) -> GDN (WS) | C84: 75404154
A85: Glenmavis | B85: =VLOOKUP(A85,'Locations & Types'!$E:$F,2,FALSE) -> GDN (SC) | C85: 128262344
A86: Glenmavis Max Refill | B86: =VLOOKUP(A86,'Locations & Types'!$E:$F,2,FALSE) -> STORAGE SITE | C86: 128720
A87: Goole (Guardian Glass) | B87: =VLOOKUP(A87,'Locations & Types'!$E:$F,2,FALSE) -> DC | C87: 1700000
A88: Gosberton | B88: =VLOOKUP(A88,'Locations & Types'!$E:$F,2,FALSE) -> GDN (EM) | C88: 12321120
A89: Gowkhall (Longannet) | B89: =VLOOKUP(A89,'Locations & Types'!$E:$F,2,FALSE) -> DC | C89: 43320000
A90: Grain Power Station | B90: =VLOOKUP(A90,'Locations & Types'!$E:$F,2,FALSE) -> DC | C90: 35628302.39
A91: Great Wilbraham | B91: =VLOOKUP(A91,'Locations & Types'!$E:$F,2,FALSE) -> GDN (EA) | C91: 20622606
A92: Guyzance | B92: =VLOOKUP(A92,'Locations & Types'!$E:$F,2,FALSE) -> GDN (NO) | C92: 1806988
A93: Hardwick | B93: =VLOOKUP(A93,'Locations & Types'!$E:$F,2,FALSE) -> GDN (SO) | C93: 95134383
A94: Harwarden (Shotton, aka Shotton Paper) | B94: =VLOOKUP(A94,'Locations & Types'!$E:$F,2,FALSE) -> DC | C94: 0
A95: Hatfield Moor Max Refill | B95: =VLOOKUP(A95,'Locations & Types'!$E:$F,2,FALSE) -> STORAGE SITE | C95: 30210000
A96: Hatfield Power Station | B96: =VLOOKUP(A96,'Locations & Types'!$E:$F,2,FALSE) -> DC | C96: 0
A97: Hill Top Farm (Hole House Farm) | B97: =VLOOKUP(A97,'Locations & Types'!$E:$F,2,FALSE) -> STORAGE SITE | C97: 4588175.342
A98: Hole House Max Refill | B98: =VLOOKUP(A98,'Locations & Types'!$E:$F,2,FALSE) -> STORAGE SITE | C98: 684999.2329
A99: Holford | B99: =VLOOKUP(A99,'Locations & Types'!$E:$F,2,FALSE) -> STORAGE SITE | C99: 41731254.82
A100: Hollingsgreen (Hays Chemicals) | B100: =VLOOKUP(A100,'Locations & Types'!$E:$F,2,FALSE) -> DC | C100: 555000
A101: Holmes Chapel | B101: =VLOOKUP(A101,'Locations & Types'!$E:$F,2,FALSE) -> GDN (NW) | C101: 18387106
A102: Horndon | B102: =VLOOKUP(A102,'Locations & Types'!$E:$F,2,FALSE) -> GDN (NT) | C102: 33307669
A103: Hornsea Max Refill | B103: =VLOOKUP(A103,'Locations & Types'!$E:$F,2,FALSE) -> STORAGE SITE | C103: 40337921.03
A104: Humbleton | B104: =VLOOKUP(A104,'Locations & Types'!$E:$F,2,FALSE) -> GDN (NO) | C104: 148471
A105: Hume | B105: =VLOOKUP(A105,'Locations & Types'!$E:$F,2,FALSE) -> GDN (SC) | C105: 1684385
A106: Ilchester | B106: =VLOOKUP(A106,'Locations & Types'!$E:$F,2,FALSE) -> GDN (SW) | C106: 32951155
A107: Ipsden | B107: =VLOOKUP(A107,'Locations & Types'!$E:$F,2,FALSE) -> GDN (SO) | C107: 8410345
A108: Ipsden 2 | B108: =VLOOKUP(A108,'Locations & Types'!$E:$F,2,FALSE) -> GDN (SO) | C108: 10727430
A109: Keld | B109: =VLOOKUP(A109,'Locations & Types'!$E:$F,2,FALSE) -> GDN (NO) | C109: 1424555
A110: Kenn | B110: =VLOOKUP(A110,'Locations & Types'!$E:$F,2,FALSE) -> GDN (SW) | C110: 14000883
A111: Kinknockie | B111: =VLOOKUP(A111,'Locations & Types'!$E:$F,2,FALSE) -> GDN (SC) | C111: 3068392
A112: Kirkstead | B112: =VLOOKUP(A112,'Locations & Types'!$E:$F,2,FALSE) -> GDN (EM) | C112: 858703
A113: Langage Power Station | B113: =VLOOKUP(A113,'Locations & Types'!$E:$F,2,FALSE) -> DC | C113: 31708219.18
A114: Langholm | B114: =VLOOKUP(A114,'Locations & Types'!$E:$F,2,FALSE) -> GDN (SC) | C114: 155319
A115: Lauderhill | B115: =VLOOKUP(A115,'Locations & Types'!$E:$F,2,FALSE) -> GDN (SC) | C115: 0
A116: Leamington | B116: =VLOOKUP(A116,'Locations & Types'!$E:$F,2,FALSE) -> GDN (WM) | C116: 2586215
A117: Little Burdon | B117: =VLOOKUP(A117,'Locations & Types'!$E:$F,2,FALSE) -> GDN (NO) | C117: 20919521
A118: Littleton Drew | B118: =VLOOKUP(A118,'Locations & Types'!$E:$F,2,FALSE) -> GDN (SW) | C118: 2299463
A119: Lockerbie | B119: =VLOOKUP(A119,'Locations & Types'!$E:$F,2,FALSE) -> GDN (SC) | C119: 6757111
A120: Lower Quinton | B120: =VLOOKUP(A120,'Locations & Types'!$E:$F,2,FALSE) -> GDN (WM) | C120: 26684207
A121: Lupton | B121: =VLOOKUP(A121,'Locations & Types'!$E:$F,2,FALSE) -> GDN (NW) | C121: 15464650
A122: Luxborough Lane | B122: =VLOOKUP(A122,'Locations & Types'!$E:$F,2,FALSE) -> GDN (NT) | C122: 76147689
A123: Lyneham (Choakford) | B123: =VLOOKUP(A123,'Locations & Types'!$E:$F,2,FALSE) -> GDN (SW) | C123: 46745947
A124: Maelor | B124: =VLOOKUP(A124,'Locations & Types'!$E:$F,2,FALSE) -> GDN (WN) | C124: 49258990
A125: Malpas | B125: =VLOOKUP(A125,'Locations & Types'!$E:$F,2,FALSE) -> GDN (NW) | C125: 685222
A126: Mappowder | B126: =VLOOKUP(A126,'Locations & Types'!$E:$F,2,FALSE) -> GDN (SO) | C126: 34661568
A127: Marchwood Power Station | B127: =VLOOKUP(A127,'Locations & Types'!$E:$F,2,FALSE) -> DC | C127: 39840000
A128: Market Harborough | B128: =VLOOKUP(A128,'Locations & Types'!$E:$F,2,FALSE) -> GDN (EM) | C128: 6965982
A129: Matching Green | B129: =VLOOKUP(A129,'Locations & Types'!$E:$F,2,FALSE) -> GDN (EA) | C129: 50470504
A130: Medway (aka Isle of Grain Power Station, NOT Grain Power) | B130: =VLOOKUP(A130,'Locations & Types'!$E:$F,2,FALSE) -> DC | C130: 32771084
A131: Melkinthorpe | B131: =VLOOKUP(A131,'Locations & Types'!$E:$F,2,FALSE) -> GDN (NO) | C131: 2432914
A132: Mickle Trafford | B132: =VLOOKUP(A132,'Locations & Types'!$E:$F,2,FALSE) -> GDN (NW) | C132: 29209411
A133: Middle Stoke (Damhead Creek, aka Kingsnorth Power Station) | B133: =VLOOKUP(A133,'Locations & Types'!$E:$F,2,FALSE) -> DC | C133: 95336184
A134: Milwich | B134: =VLOOKUP(A134,'Locations & Types'!$E:$F,2,FALSE) -> GDN (WM) | C134: 18949988
A135: Moffat (Irish Interconnector) | B135: =VLOOKUP(A135,'Locations & Types'!$E:$F,2,FALSE) -> INTERCONNECTOR | C135: 212920231
A136: Netherhowcleugh | B136: =VLOOKUP(A136,'Locations & Types'!$E:$F,2,FALSE) -> GDN (SC) | C136: 322112
A137: Pannal | B137: =VLOOKUP(A137,'Locations & Types'!$E:$F,2,FALSE) -> GDN (NE) | C137: 120179959
A138: Partington | B138: =VLOOKUP(A138,'Locations & Types'!$E:$F,2,FALSE) -> GDN (NW) | C138: 43675148
A139: Partington Max Refill | B139: =VLOOKUP(A139,'Locations & Types'!$E:$F,2,FALSE) -> STORAGE SITE | C139: 0
A140: Paull | B140: =VLOOKUP(A140,'Locations & Types'!$E:$F,2,FALSE) -> GDN (NE) | C140: 46858561
A141: Pembroke Power Station | B141: =VLOOKUP(A141,'Locations & Types'!$E:$F,2,FALSE) -> DC | C141: 121200000
A142: Peterborough (Peterborough Power Station) | B142: =VLOOKUP(A142,'Locations & Types'!$E:$F,2,FALSE) -> DC | C142: 2800000
A143: Peterborough Eye (Tee) | B143: =VLOOKUP(A143,'Locations & Types'!$E:$F,2,FALSE) -> GDN (EA) | C143: 20325523
A144: Peters Green | B144: =VLOOKUP(A144,'Locations & Types'!$E:$F,2,FALSE) -> GDN (NT) | C144: 111963144
A145: Peters Green South Mimms | B145: =VLOOKUP(A145,'Locations & Types'!$E:$F,2,FALSE) -> GDN (NT) | C145: 164876045
A146: Phillips Petroleum, Teesside | B146: =VLOOKUP(A146,'Locations & Types'!$E:$F,2,FALSE) -> DC | C146: 3690000
A147: Pickering | B147: =VLOOKUP(A147,'Locations & Types'!$E:$F,2,FALSE) -> GDN (NE) | C147: 8332710
A148: Pickmere (Winnington Power, aka Brunner Mond) | B148: =VLOOKUP(A148,'Locations & Types'!$E:$F,2,FALSE) -> DC | C148: 8000000
A149: Pitcairngreen | B149: =VLOOKUP(A149,'Locations & Types'!$E:$F,2,FALSE) -> GDN (SC) | C149: 1915791
A150: Pucklechurch | B150: =VLOOKUP(A150,'Locations & Types'!$E:$F,2,FALSE) -> GDN (SW) | C150: 25368959
A151: Rawcliffe | B151: =VLOOKUP(A151,'Locations & Types'!$E:$F,2,FALSE) -> GDN (NE) | C151: 3229202
A152: Rollswood Kintore | B152: =VLOOKUP(A152,'Locations & Types'!$E:$F,2,FALSE) -> DC | C152: 0
A153: Roosecote Power Station (Barrow) | B153: =VLOOKUP(A153,'Locations & Types'!$E:$F,2,FALSE) -> DC | C153: 0
A154: Rosehill (Saltend Power Station) | B154: =VLOOKUP(A154,'Locations & Types'!$E:$F,2,FALSE) -> DC | C154: 57830000
A155: Ross (SW) | B155: =VLOOKUP(A155,'Locations & Types'!$E:$F,2,FALSE) -> GDN (SW) | C155: 4023357
A156: Ross (WM) | B156: =VLOOKUP(A156,'Locations & Types'!$E:$F,2,FALSE) -> GDN (WM) | C156: 9937704
A157: Roudham Heath | B157: =VLOOKUP(A157,'Locations & Types'!$E:$F,2,FALSE) -> GDN (EA) | C157: 16281005
A158: Royston | B158: =VLOOKUP(A158,'Locations & Types'!$E:$F,2,FALSE) -> GDN (EA) | C158: 2367780
A159: Rugby | B159: =VLOOKUP(A159,'Locations & Types'!$E:$F,2,FALSE) -> GDN (WM) | C159: 59670957
A160: Ryehouse | B160: =VLOOKUP(A160,'Locations & Types'!$E:$F,2,FALSE) -> DC | C160: 38660000
A161: Saddle Bow (Kings Lynn) | B161: =VLOOKUP(A161,'Locations & Types'!$E:$F,2,FALSE) -> DC | C161: 14500000
A162: Saltend BPHP (BP Saltend HP) | B162: =VLOOKUP(A162,'Locations & Types'!$E:$F,2,FALSE) -> DC | C162: 9055895
A163: Saltfleetby Storage (Theddlethorpe) | B163: =VLOOKUP(A163,'Locations & Types'!$E:$F,2,FALSE) -> STORAGE SITE | C163: 0
A164: Saltwick Pressure Controlled | B164: =VLOOKUP(A164,'Locations & Types'!$E:$F,2,FALSE) -> GDN (NO) | C164: 0
A165: Saltwick Volumetric Controlled | B165: =VLOOKUP(A165,'Locations & Types'!$E:$F,2,FALSE) -> GDN (NO) | C165: 37639112
A166: Samlesbury | B166: =VLOOKUP(A166,'Locations & Types'!$E:$F,2,FALSE) -> GDN (NW) | C166: 99858652
A167: Sandy Lane (Blackburn CHP, aka Sappi Paper Mill) | B167: =VLOOKUP(A167,'Locations & Types'!$E:$F,2,FALSE) -> DC | C167: 3433103
A168: Seabank (DN) | B168: =VLOOKUP(A168,'Locations & Types'!$E:$F,2,FALSE) -> GDN (SW) | C168: 54053845
A169: Seabank (Seabank Power Station phase II) | B169: =VLOOKUP(A169,'Locations & Types'!$E:$F,2,FALSE) -> DC | C169: 18316938
A170: Seal Sands TGPP | B170: =VLOOKUP(A170,'Locations & Types'!$E:$F,2,FALSE) -> DC | C170: 46575.34247
A171: Sellafield Power Station | B171: =VLOOKUP(A171,'Locations & Types'!$E:$F,2,FALSE) -> DC | C171: 12349999
A172: Shellstar (aka Kemira, not Kemira CHP) | B172: =VLOOKUP(A172,'Locations & Types'!$E:$F,2,FALSE) -> DC | C172: 11732444
A173: Shorne | B173: =VLOOKUP(A173,'Locations & Types'!$E:$F,2,FALSE) -> GDN (SE) | C173: 19826107
A174: Shotwick (Bridgewater Paper) | B174: =VLOOKUP(A174,'Locations & Types'!$E:$F,2,FALSE) -> DC | C174: 310479.4521
A175: Shustoke | B175: =VLOOKUP(A175,'Locations & Types'!$E:$F,2,FALSE) -> GDN (WM) | C175: 100000
A176: Silk Willoughby | B176: =VLOOKUP(A176,'Locations & Types'!$E:$F,2,FALSE) -> GDN (EM) | C176: 2203090
A177: Soutra | B177: =VLOOKUP(A177,'Locations & Types'!$E:$F,2,FALSE) -> GDN (SC) | C177: 10726995
A178: Spalding 2 (South Holland) Power Station | B178: =VLOOKUP(A178,'Locations & Types'!$E:$F,2,FALSE) -> DC | C178: 0
A179: St Fergus | B179: =VLOOKUP(A179,'Locations & Types'!$E:$F,2,FALSE) -> GDN (SC) | C179: 1055917
A180: St. Fergus (Peterhead) | B180: =VLOOKUP(A180,'Locations & Types'!$E:$F,2,FALSE) -> DC | C180: 73267750
A181: St. Fergus (Shell Blackstart) | B181: =VLOOKUP(A181,'Locations & Types'!$E:$F,2,FALSE) -> DC | C181: 2583336
A182: St. Neots (Little Barford) | B182: =VLOOKUP(A182,'Locations & Types'!$E:$F,2,FALSE) -> DC | C182: 26775065.04
A183: Stallingborough | B183: =VLOOKUP(A183,'Locations & Types'!$E:$F,2,FALSE) -> DC | C183: 52700000
A184: Stanford Le Hope (Coryton) | B184: =VLOOKUP(A184,'Locations & Types'!$E:$F,2,FALSE) -> DC | C184: 8267935.726
A185: Staythorpe | B185: =VLOOKUP(A185,'Locations & Types'!$E:$F,2,FALSE) -> DC | C185: 82000000
A186: Stranraer | B186: =VLOOKUP(A186,'Locations & Types'!$E:$F,2,FALSE) -> GDN (SC) | C186: 742435
A187: Stratford-upon-Avon | B187: =VLOOKUP(A187,'Locations & Types'!$E:$F,2,FALSE) -> GDN (WM) | C187: 3735040
A188: Stublach (Cheshire) | B188: =VLOOKUP(A188,'Locations & Types'!$E:$F,2,FALSE) -> STORAGE SITE | C188: 30343940
A189: Sutton Bridge | B189: =VLOOKUP(A189,'Locations & Types'!$E:$F,2,FALSE) -> GDN (EM) | C189: 1079269
A190: Sutton Bridge Power Station | B190: =VLOOKUP(A190,'Locations & Types'!$E:$F,2,FALSE) -> DC | C190: 42637000
A191: Tatsfield | B191: =VLOOKUP(A191,'Locations & Types'!$E:$F,2,FALSE) -> GDN (SE) | C191: 192774633
A192: Teesside (BASF, aka BASF Teesside) | B192: =VLOOKUP(A192,'Locations & Types'!$E:$F,2,FALSE) -> DC | C192: 9750000
A193: Teesside Hydrogen | B193: =VLOOKUP(A193,'Locations & Types'!$E:$F,2,FALSE) -> DC | C193: 13276800
A194: Terra Nitrogen (aka ICI, Terra Severnside) | B194: =VLOOKUP(A194,'Locations & Types'!$E:$F,2,FALSE) -> DC | C194: 0
A195: Thornton Curtis (DN) | B195: =VLOOKUP(A195,'Locations & Types'!$E:$F,2,FALSE) -> GDN (EM) | C195: 118190411
A196: Thornton Curtis (Humber Refinery, aka Immingham) | B196: =VLOOKUP(A196,'Locations & Types'!$E:$F,2,FALSE) -> DC | C196: 67000000
A197: Thornton Curtis (Killingholme) | B197: =VLOOKUP(A197,'Locations & Types'!$E:$F,2,FALSE) -> DC | C197: 48268493.15
A198: Thrintoft | B198: =VLOOKUP(A198,'Locations & Types'!$E:$F,2,FALSE) -> GDN (NO) | C198: 6921484
A199: Tilbury Power Station | B199: =VLOOKUP(A199,'Locations & Types'!$E:$F,2,FALSE) -> DC | C199: 0
A200: Tonna (Baglan Bay) | B200: =VLOOKUP(A200,'Locations & Types'!$E:$F,2,FALSE) -> DC | C200: 26750000
... 34 more rows

Sheet 22-23 FCC - Exit (hidden)
A1: Exit Point | B1: Exit Point Type | C1: Forecasted Contracted Capacity
C2: (kWh/d)
A3: Aberdeen | B3: =VLOOKUP(A3,'Locations & Types'!$E:$F,2,FALSE) -> GDN (SC) | C3: 21639348
A4: Abson (Seabank Power Station phase I) | B4: =VLOOKUP(A4,'Locations & Types'!$E:$F,2,FALSE) -> DC | C4: 27843799.79
A5: Alrewas (EM) | B5: =VLOOKUP(A5,'Locations & Types'!$E:$F,2,FALSE) -> GDN (EM) | C5: 59229584
A6: Alrewas (WM) | B6: =VLOOKUP(A6,'Locations & Types'!$E:$F,2,FALSE) -> GDN (WM) | C6: 72462290
A7: Apache (Sage Black Start) | B7: =VLOOKUP(A7,'Locations & Types'!$E:$F,2,FALSE) -> DC | C7: 9073.673973
A8: Armadale | B8: =VLOOKUP(A8,'Locations & Types'!$E:$F,2,FALSE) -> GDN (SC) | C8: 7519525
A9: Aspley | B9: =VLOOKUP(A9,'Locations & Types'!$E:$F,2,FALSE) -> GDN (WM) | C9: 50894176
A10: Asselby | B10: =VLOOKUP(A10,'Locations & Types'!$E:$F,2,FALSE) -> GDN (NE) | C10: 3586201
A11: Audley (NW) | B11: =VLOOKUP(A11,'Locations & Types'!$E:$F,2,FALSE) -> GDN (NW) | C11: 8037574
A12: Audley (WM) | B12: =VLOOKUP(A12,'Locations & Types'!$E:$F,2,FALSE) -> GDN (WM) | C12: 13572412
A13: Austrey | B13: =VLOOKUP(A13,'Locations & Types'!$E:$F,2,FALSE) -> GDN (WM) | C13: 59601211
A14: Avonmouth Max Refill | B14: =VLOOKUP(A14,'Locations & Types'!$E:$F,2,FALSE) -> STORAGE SITE | C14: 661.2054795
A15: Aylesbeare | B15: =VLOOKUP(A15,'Locations & Types'!$E:$F,2,FALSE) -> GDN (SW) | C15: 19557396
A16: Bacton | B16: =VLOOKUP(A16,'Locations & Types'!$E:$F,2,FALSE) -> GDN (EA) | C16: 2472724
A17: Bacton (Baird) | B17: =VLOOKUP(A17,'Locations & Types'!$E:$F,2,FALSE) -> STORAGE SITE | C17: 0
A18: Bacton (BBL) | B18: =VLOOKUP(A18,'Locations & Types'!$E:$F,2,FALSE) -> INTERCONNECTOR | C18: 0
A19: Bacton (Great Yarmouth) | B19: =VLOOKUP(A19,'Locations & Types'!$E:$F,2,FALSE) -> DC | C19: 20000000
A20: Bacton (IUK) | B20: =VLOOKUP(A20,'Locations & Types'!$E:$F,2,FALSE) -> INTERCONNECTOR | C20: 185430316.3
A21: Baldersby | B21: =VLOOKUP(A21,'Locations & Types'!$E:$F,2,FALSE) -> GDN (NE) | C21: 1126642
A22: Balgray | B22: =VLOOKUP(A22,'Locations & Types'!$E:$F,2,FALSE) -> GDN (SC) | C22: 14957981
A23: Barking (Horndon) | B23: =VLOOKUP(A23,'Locations & Types'!$E:$F,2,FALSE) -> DC | C23: 0
A24: Barrow (Bains) | B24: =VLOOKUP(A24,'Locations & Types'!$E:$F,2,FALSE) -> STORAGE SITE | C24: 0
A25: Barrow (Black Start) | B25: =VLOOKUP(A25,'Locations & Types'!$E:$F,2,FALSE) -> DC | C25: 1001369.863
A26: Barrow (Gateway) | B26: =VLOOKUP(A26,'Locations & Types'!$E:$F,2,FALSE) -> STORAGE SITE | C26: 0
A27: Barton Stacey Max Refill (Humbly Grove) | B27: =VLOOKUP(A27,'Locations & Types'!$E:$F,2,FALSE) -> STORAGE SITE | C27: 10181399.89
A28: Bathgate | B28: =VLOOKUP(A28,'Locations & Types'!$E:$F,2,FALSE) -> GDN (SC) | C28: 21081766
A29: Billingham ICI (Terra Billingham) | B29: =VLOOKUP(A29,'Locations & Types'!$E:$F,2,FALSE) -> DC | C29: 33644543
A30: Bishop Auckland | B30: =VLOOKUP(A30,'Locations & Types'!$E:$F,2,FALSE) -> GDN (NO) | C30: 52568615
A31: Bishop Auckland (test facility) | B31: =VLOOKUP(A31,'Locations & Types'!$E:$F,2,FALSE) -> DC | C31: 781914.3562
A32: Blaby | B32: =VLOOKUP(A32,'Locations & Types'!$E:$F,2,FALSE) -> GDN (EM) | C32: 9867513
A33: Blackness (BP Grangemouth) | B33: =VLOOKUP(A33,'Locations & Types'!$E:$F,2,FALSE) -> DC | C33: 27290000
A34: Blackrod | B34: =VLOOKUP(A34,'Locations & Types'!$E:$F,2,FALSE) -> GDN (NW) | C34: 123939267
A35: Blyborough | B35: =VLOOKUP(A35,'Locations & Types'!$E:$F,2,FALSE) -> GDN (EM) | C35: 55825856
A36: Blyborough (Brigg) | B36: =VLOOKUP(A36,'Locations & Types'!$E:$F,2,FALSE) -> DC | C36: 1600000
A37: Blyborough (Cottam) | B37: =VLOOKUP(A37,'Locations & Types'!$E:$F,2,FALSE) -> DC | C37: 12767838.63
A38: Braishfield A | B38: =VLOOKUP(A38,'Locations & Types'!$E:$F,2,FALSE) -> GDN (SO) | C38: 74233847
A39: Braishfield B | B39: =VLOOKUP(A39,'Locations & Types'!$E:$F,2,FALSE) -> GDN (SO) | C39: 57139307
A40: Brine Field (Teesside) Power Station | B40: =VLOOKUP(A40,'Locations & Types'!$E:$F,2,FALSE) -> DC | C40: 50816.9863
A41: Brisley | B41: =VLOOKUP(A41,'Locations & Types'!$E:$F,2,FALSE) -> GDN (EA) | C41: 2077837
A42: Broxburn | B42: =VLOOKUP(A42,'Locations & Types'!$E:$F,2,FALSE) -> GDN (SC) | C42: 56250554
A43: Burley Bank | B43: =VLOOKUP(A43,'Locations & Types'!$E:$F,2,FALSE) -> GDN (NE) | C43: 13868151
A44: Burnhervie | B44: =VLOOKUP(A44,'Locations & Types'!$E:$F,2,FALSE) -> GDN (SC) | C44: 20624435
A45: Burton Point (Connahs Quay) | B45: =VLOOKUP(A45,'Locations & Types'!$E:$F,2,FALSE) -> DC | C45: 11598197.78
A46: Caldecott | B46: =VLOOKUP(A46,'Locations & Types'!$E:$F,2,FALSE) -> GDN (EM) | C46: 8977861
A47: Caldecott (Corby Power Station) | B47: =VLOOKUP(A47,'Locations & Types'!$E:$F,2,FALSE) -> DC | C47: 663937.0959
A48: Cambridge | B48: =VLOOKUP(A48,'Locations & Types'!$E:$F,2,FALSE) -> GDN (EA) | C48: 0
A49: Careston | B49: =VLOOKUP(A49,'Locations & Types'!$E:$F,2,FALSE) -> GDN (SC) | C49: 3576724
A50: Carrington (Partington) Power Station | B50: =VLOOKUP(A50,'Locations & Types'!$E:$F,2,FALSE) -> DC | C50: 26438120.58
A51: Caythorpe | B51: =VLOOKUP(A51,'Locations & Types'!$E:$F,2,FALSE) -> STORAGE SITE | C51: 0
A52: Centrax Industrial | B52: =VLOOKUP(A52,'Locations & Types'!$E:$F,2,FALSE) -> DC | C52: 85000
A53: Cirencester | B53: =VLOOKUP(A53,'Locations & Types'!$E:$F,2,FALSE) -> GDN (SW) | C53: 7417140
A54: Cockenzie Power Station | B54: =VLOOKUP(A54,'Locations & Types'!$E:$F,2,FALSE) -> DC | C54: 0
A55: Coffinswell | B55: =VLOOKUP(A55,'Locations & Types'!$E:$F,2,FALSE) -> GDN (SW) | C55: 5150000
A56: Coldstream | B56: =VLOOKUP(A56,'Locations & Types'!$E:$F,2,FALSE) -> GDN (NO) | C56: 2848927
A57: Corbridge | B57: =VLOOKUP(A57,'Locations & Types'!$E:$F,2,FALSE) -> GDN (NO) | C57: 57846
A58: Coryton 2 (Thames Haven) Power Station | B58: =VLOOKUP(A58,'Locations & Types'!$E:$F,2,FALSE) -> DC | C58: 0
A59: Cowpen Bewley | B59: =VLOOKUP(A59,'Locations & Types'!$E:$F,2,FALSE) -> GDN (NO) | C59: 35635800
A60: Crawley Down | B60: =VLOOKUP(A60,'Locations & Types'!$E:$F,2,FALSE) -> GDN (SO) | C60: 0
A61: Deborah Storage (Bacton) | B61: =VLOOKUP(A61,'Locations & Types'!$E:$F,2,FALSE) -> STORAGE SITE | C61: 0
A62: Deeside | B62: =VLOOKUP(A62,'Locations & Types'!$E:$F,2,FALSE) -> DC | C62: 4448282.164
A63: Didcot | B63: =VLOOKUP(A63,'Locations & Types'!$E:$F,2,FALSE) -> DC | C63: 33674184.27
A64: Dowlais | B64: =VLOOKUP(A64,'Locations & Types'!$E:$F,2,FALSE) -> GDN (WS) | C64: 91369207
A65: Drakelow Power Station | B65: =VLOOKUP(A65,'Locations & Types'!$E:$F,2,FALSE) -> DC | C65: 0
A66: Drointon | B66: =VLOOKUP(A66,'Locations & Types'!$E:$F,2,FALSE) -> GDN (EM) | C66: 47516641
A67: Drum | B67: =VLOOKUP(A67,'Locations & Types'!$E:$F,2,FALSE) -> GDN (SC) | C67: 66956781
A68: Dyffryn Clydach | B68: =VLOOKUP(A68,'Locations & Types'!$E:$F,2,FALSE) -> GDN (WS) | C68: 40231974
A69: Dynevor Max Refill | B69: =VLOOKUP(A69,'Locations & Types'!$E:$F,2,FALSE) -> STORAGE SITE | C69: 23931
A70: Eastoft (Keadby Blackstart) | B70: =VLOOKUP(A70,'Locations & Types'!$E:$F,2,FALSE) -> DC | C70: 13184756.91
A71: Eastoft (Keadby) | B71: =VLOOKUP(A71,'Locations & Types'!$E:$F,2,FALSE) -> DC | C71: 36060000
A72: Easton Grey | B72: =VLOOKUP(A72,'Locations & Types'!$E:$F,2,FALSE) -> GDN (SW) | C72: 27391725
A73: Ecclestone | B73: =VLOOKUP(A73,'Locations & Types'!$E:$F,2,FALSE) -> GDN (NW) | C73: 16370887
A74: Elton | B74: =VLOOKUP(A74,'Locations & Types'!$E:$F,2,FALSE) -> GDN (NO) | C74: 52818145
A75: Enron Billingham | B75: =VLOOKUP(A75,'Locations & Types'!$E:$F,2,FALSE) -> DC | C75: 0
A76: Epping Green (Enfield Energy, aka Brimsdown) | B76: =VLOOKUP(A76,'Locations & Types'!$E:$F,2,FALSE) -> DC | C76: 9323287.671
A77: Evesham | B77: =VLOOKUP(A77,'Locations & Types'!$E:$F,2,FALSE) -> GDN (SW) | C77: 6570000
A78: Farningham | B78: =VLOOKUP(A78,'Locations & Types'!$E:$F,2,FALSE) -> GDN (SE) | C78: 86623407
A79: Farningham B | B79: =VLOOKUP(A79,'Locations & Types'!$E:$F,2,FALSE) -> GDN (SE) | C79: 80373971
A80: Ferny Knoll (AM Paper) | B80: =VLOOKUP(A80,'Locations & Types'!$E:$F,2,FALSE) -> DC | C80: 0
A81: Fiddington | B81: =VLOOKUP(A81,'Locations & Types'!$E:$F,2,FALSE) -> GDN (SW) | C81: 22252226
A82: Ganstead | B82: =VLOOKUP(A82,'Locations & Types'!$E:$F,2,FALSE) -> GDN (NE) | C82: 16610330
A83: Garton Max Refill (Aldbrough) | B83: =VLOOKUP(A83,'Locations & Types'!$E:$F,2,FALSE) -> STORAGE SITE | C83: 325510000
A84: Gilwern | B84: =VLOOKUP(A84,'Locations & Types'!$E:$F,2,FALSE) -> GDN (WS) | C84: 75404154
A85: Glenmavis | B85: =VLOOKUP(A85,'Locations & Types'!$E:$F,2,FALSE) -> GDN (SC) | C85: 128262344
A86: Glenmavis Max Refill | B86: =VLOOKUP(A86,'Locations & Types'!$E:$F,2,FALSE) -> STORAGE SITE | C86: 128720
A87: Goole (Guardian Glass) | B87: =VLOOKUP(A87,'Locations & Types'!$E:$F,2,FALSE) -> DC | C87: 1700000
A88: Gosberton | B88: =VLOOKUP(A88,'Locations & Types'!$E:$F,2,FALSE) -> GDN (EM) | C88: 12321120
A89: Gowkhall (Longannet) | B89: =VLOOKUP(A89,'Locations & Types'!$E:$F,2,FALSE) -> DC | C89: 43320000
A90: Grain Power Station | B90: =VLOOKUP(A90,'Locations & Types'!$E:$F,2,FALSE) -> DC | C90: 29678000.96
A91: Great Wilbraham | B91: =VLOOKUP(A91,'Locations & Types'!$E:$F,2,FALSE) -> GDN (EA) | C91: 20622606
A92: Guyzance | B92: =VLOOKUP(A92,'Locations & Types'!$E:$F,2,FALSE) -> GDN (NO) | C92: 1806988
A93: Hardwick | B93: =VLOOKUP(A93,'Locations & Types'!$E:$F,2,FALSE) -> GDN (SO) | C93: 95134383
A94: Harwarden (Shotton, aka Shotton Paper) | B94: =VLOOKUP(A94,'Locations & Types'!$E:$F,2,FALSE) -> DC | C94: 0
A95: Hatfield Moor Max Refill | B95: =VLOOKUP(A95,'Locations & Types'!$E:$F,2,FALSE) -> STORAGE SITE | C95: 30210000
A96: Hatfield Power Station | B96: =VLOOKUP(A96,'Locations & Types'!$E:$F,2,FALSE) -> DC | C96: 0
A97: Hill Top Farm (Hole House Farm) | B97: =VLOOKUP(A97,'Locations & Types'!$E:$F,2,FALSE) -> STORAGE SITE | C97: 4588175.342
A98: Hole House Max Refill | B98: =VLOOKUP(A98,'Locations & Types'!$E:$F,2,FALSE) -> STORAGE SITE | C98: 684999.2329
A99: Holford | B99: =VLOOKUP(A99,'Locations & Types'!$E:$F,2,FALSE) -> STORAGE SITE | C99: 41731254.82
A100: Hollingsgreen (Hays Chemicals) | B100: =VLOOKUP(A100,'Locations & Types'!$E:$F,2,FALSE) -> DC | C100: 555000
A101: Holmes Chapel | B101: =VLOOKUP(A101,'Locations & Types'!$E:$F,2,FALSE) -> GDN (NW) | C101: 18387106
A102: Horndon | B102: =VLOOKUP(A102,'Locations & Types'!$E:$F,2,FALSE) -> GDN (NT) | C102: 33307669
A103: Hornsea Max Refill | B103: =VLOOKUP(A103,'Locations & Types'!$E:$F,2,FALSE) -> STORAGE SITE | C103: 40337921.03
A104: Humbleton | B104: =VLOOKUP(A104,'Locations & Types'!$E:$F,2,FALSE) -> GDN (NO) | C104: 148471
A105: Hume | B105: =VLOOKUP(A105,'Locations & Types'!$E:$F,2,FALSE) -> GDN (SC) | C105: 1684385
A106: Ilchester | B106: =VLOOKUP(A106,'Locations & Types'!$E:$F,2,FALSE) -> GDN (SW) | C106: 32951155
A107: Ipsden | B107: =VLOOKUP(A107,'Locations & Types'!$E:$F,2,FALSE) -> GDN (SO) | C107: 8410345
A108: Ipsden 2 | B108: =VLOOKUP(A108,'Locations & Types'!$E:$F,2,FALSE) -> GDN (SO) | C108: 10727430
A109: Keld | B109: =VLOOKUP(A109,'Locations & Types'!$E:$F,2,FALSE) -> GDN (NO) | C109: 1424555
A110: Kenn | B110: =VLOOKUP(A110,'Locations & Types'!$E:$F,2,FALSE) -> GDN (SW) | C110: 14000883
A111: Kinknockie | B111: =VLOOKUP(A111,'Locations & Types'!$E:$F,2,FALSE) -> GDN (SC) | C111: 3068392
A112: Kirkstead | B112: =VLOOKUP(A112,'Locations & Types'!$E:$F,2,FALSE) -> GDN (EM) | C112: 858703
A113: Langage Power Station | B113: =VLOOKUP(A113,'Locations & Types'!$E:$F,2,FALSE) -> DC | C113: 31708219.18
A114: Langholm | B114: =VLOOKUP(A114,'Locations & Types'!$E:$F,2,FALSE) -> GDN (SC) | C114: 155319
A115: Lauderhill | B115: =VLOOKUP(A115,'Locations & Types'!$E:$F,2,FALSE) -> GDN (SC) | C115: 0
A116: Leamington | B116: =VLOOKUP(A116,'Locations & Types'!$E:$F,2,FALSE) -> GDN (WM) | C116: 2586215
A117: Little Burdon | B117: =VLOOKUP(A117,'Locations & Types'!$E:$F,2,FALSE) -> GDN (NO) | C117: 20919521
A118: Littleton Drew | B118: =VLOOKUP(A118,'Locations & Types'!$E:$F,2,FALSE) -> GDN (SW) | C118: 2299463
A119: Lockerbie | B119: =VLOOKUP(A119,'Locations & Types'!$E:$F,2,FALSE) -> GDN (SC) | C119: 6757111
A120: Lower Quinton | B120: =VLOOKUP(A120,'Locations & Types'!$E:$F,2,FALSE) -> GDN (WM) | C120: 26684207
A121: Lupton | B121: =VLOOKUP(A121,'Locations & Types'!$E:$F,2,FALSE) -> GDN (NW) | C121: 15464650
A122: Luxborough Lane | B122: =VLOOKUP(A122,'Locations & Types'!$E:$F,2,FALSE) -> GDN (NT) | C122: 76147689
A123: Lyneham (Choakford) | B123: =VLOOKUP(A123,'Locations & Types'!$E:$F,2,FALSE) -> GDN (SW) | C123: 46745947
A124: Maelor | B124: =VLOOKUP(A124,'Locations & Types'!$E:$F,2,FALSE) -> GDN (WN) | C124: 49258990
A125: Malpas | B125: =VLOOKUP(A125,'Locations & Types'!$E:$F,2,FALSE) -> GDN (NW) | C125: 685222
A126: Mappowder | B126: =VLOOKUP(A126,'Locations & Types'!$E:$F,2,FALSE) -> GDN (SO) | C126: 34661568
A127: Marchwood Power Station | B127: =VLOOKUP(A127,'Locations & Types'!$E:$F,2,FALSE) -> DC | C127: 39840000
A128: Market Harborough | B128: =VLOOKUP(A128,'Locations & Types'!$E:$F,2,FALSE) -> GDN (EM) | C128: 6965982
A129: Matching Green | B129: =VLOOKUP(A129,'Locations & Types'!$E:$F,2,FALSE) -> GDN (EA) | C129: 50470504
A130: Medway (aka Isle of Grain Power Station, NOT Grain Power) | B130: =VLOOKUP(A130,'Locations & Types'!$E:$F,2,FALSE) -> DC | C130: 32771084
A131: Melkinthorpe | B131: =VLOOKUP(A131,'Locations & Types'!$E:$F,2,FALSE) -> GDN (NO) | C131: 2432914
A132: Mickle Trafford | B132: =VLOOKUP(A132,'Locations & Types'!$E:$F,2,FALSE) -> GDN (NW) | C132: 29209411
A133: Middle Stoke (Damhead Creek, aka Kingsnorth Power Station) | B133: =VLOOKUP(A133,'Locations & Types'!$E:$F,2,FALSE) -> DC | C133: 95336184
A134: Milwich | B134: =VLOOKUP(A134,'Locations & Types'!$E:$F,2,FALSE) -> GDN (WM) | C134: 18949988
A135: Moffat (Irish Interconnector) | B135: =VLOOKUP(A135,'Locations & Types'!$E:$F,2,FALSE) -> INTERCONNECTOR | C135: 212920231
A136: Netherhowcleugh | B136: =VLOOKUP(A136,'Locations & Types'!$E:$F,2,FALSE) -> GDN (SC) | C136: 322112
A137: Pannal | B137: =VLOOKUP(A137,'Locations & Types'!$E:$F,2,FALSE) -> GDN (NE) | C137: 120179959
A138: Partington | B138: =VLOOKUP(A138,'Locations & Types'!$E:$F,2,FALSE) -> GDN (NW) | C138: 43675148
A139: Partington Max Refill | B139: =VLOOKUP(A139,'Locations & Types'!$E:$F,2,FALSE) -> STORAGE SITE | C139: 0
A140: Paull | B140: =VLOOKUP(A140,'Locations & Types'!$E:$F,2,FALSE) -> GDN (NE) | C140: 46858561
A141: Pembroke Power Station | B141: =VLOOKUP(A141,'Locations & Types'!$E:$F,2,FALSE) -> DC | C141: 121200000
A142: Peterborough (Peterborough Power Station) | B142: =VLOOKUP(A142,'Locations & Types'!$E:$F,2,FALSE) -> DC | C142: 2800000
A143: Peterborough Eye (Tee) | B143: =VLOOKUP(A143,'Locations & Types'!$E:$F,2,FALSE) -> GDN (EA) | C143: 20325523
A144: Peters Green | B144: =VLOOKUP(A144,'Locations & Types'!$E:$F,2,FALSE) -> GDN (NT) | C144: 111963144
A145: Peters Green South Mimms | B145: =VLOOKUP(A145,'Locations & Types'!$E:$F,2,FALSE) -> GDN (NT) | C145: 164876045
A146: Phillips Petroleum, Teesside | B146: =VLOOKUP(A146,'Locations & Types'!$E:$F,2,FALSE) -> DC | C146: 3690000
A147: Pickering | B147: =VLOOKUP(A147,'Locations & Types'!$E:$F,2,FALSE) -> GDN (NE) | C147: 8332710
A148: Pickmere (Winnington Power, aka Brunner Mond) | B148: =VLOOKUP(A148,'Locations & Types'!$E:$F,2,FALSE) -> DC | C148: 8000000
A149: Pitcairngreen | B149: =VLOOKUP(A149,'Locations & Types'!$E:$F,2,FALSE) -> GDN (SC) | C149: 1915791
A150: Pucklechurch | B150: =VLOOKUP(A150,'Locations & Types'!$E:$F,2,FALSE) -> GDN (SW) | C150: 25368959
A151: Rawcliffe | B151: =VLOOKUP(A151,'Locations & Types'!$E:$F,2,FALSE) -> GDN (NE) | C151: 3229202
A152: Rollswood Kintore | B152: =VLOOKUP(A152,'Locations & Types'!$E:$F,2,FALSE) -> DC | C152: 0
A153: Roosecote Power Station (Barrow) | B153: =VLOOKUP(A153,'Locations & Types'!$E:$F,2,FALSE) -> DC | C153: 0
A154: Rosehill (Saltend Power Station) | B154: =VLOOKUP(A154,'Locations & Types'!$E:$F,2,FALSE) -> DC | C154: 57830000
A155: Ross (SW) | B155: =VLOOKUP(A155,'Locations & Types'!$E:$F,2,FALSE) -> GDN (SW) | C155: 4023357
A156: Ross (WM) | B156: =VLOOKUP(A156,'Locations & Types'!$E:$F,2,FALSE) -> GDN (WM) | C156: 9937704
A157: Roudham Heath | B157: =VLOOKUP(A157,'Locations & Types'!$E:$F,2,FALSE) -> GDN (EA) | C157: 16281005
A158: Royston | B158: =VLOOKUP(A158,'Locations & Types'!$E:$F,2,FALSE) -> GDN (EA) | C158: 2367780
A159: Rugby | B159: =VLOOKUP(A159,'Locations & Types'!$E:$F,2,FALSE) -> GDN (WM) | C159: 59670957
A160: Ryehouse | B160: =VLOOKUP(A160,'Locations & Types'!$E:$F,2,FALSE) -> DC | C160: 38660000
A161: Saddle Bow (Kings Lynn) | B161: =VLOOKUP(A161,'Locations & Types'!$E:$F,2,FALSE) -> DC | C161: 14500000
A162: Saltend BPHP (BP Saltend HP) | B162: =VLOOKUP(A162,'Locations & Types'!$E:$F,2,FALSE) -> DC | C162: 9055895
A163: Saltfleetby Storage (Theddlethorpe) | B163: =VLOOKUP(A163,'Locations & Types'!$E:$F,2,FALSE) -> STORAGE SITE | C163: 0
A164: Saltwick Pressure Controlled | B164: =VLOOKUP(A164,'Locations & Types'!$E:$F,2,FALSE) -> GDN (NO) | C164: 0
A165: Saltwick Volumetric Controlled | B165: =VLOOKUP(A165,'Locations & Types'!$E:$F,2,FALSE) -> GDN (NO) | C165: 37639112
A166: Samlesbury | B166: =VLOOKUP(A166,'Locations & Types'!$E:$F,2,FALSE) -> GDN (NW) | C166: 99858652
A167: Sandy Lane (Blackburn CHP, aka Sappi Paper Mill) | B167: =VLOOKUP(A167,'Locations & Types'!$E:$F,2,FALSE) -> DC | C167: 3433103
A168: Seabank (DN) | B168: =VLOOKUP(A168,'Locations & Types'!$E:$F,2,FALSE) -> GDN (SW) | C168: 54053845
A169: Seabank (Seabank Power Station phase II) | B169: =VLOOKUP(A169,'Locations & Types'!$E:$F,2,FALSE) -> DC | C169: 18316938
A170: Seal Sands TGPP | B170: =VLOOKUP(A170,'Locations & Types'!$E:$F,2,FALSE) -> DC | C170: 46571.43097
A171: Sellafield Power Station | B171: =VLOOKUP(A171,'Locations & Types'!$E:$F,2,FALSE) -> DC | C171: 12349999
A172: Shellstar (aka Kemira, not Kemira CHP) | B172: =VLOOKUP(A172,'Locations & Types'!$E:$F,2,FALSE) -> DC | C172: 11732444
A173: Shorne | B173: =VLOOKUP(A173,'Locations & Types'!$E:$F,2,FALSE) -> GDN (SE) | C173: 19826107
A174: Shotwick (Bridgewater Paper) | B174: =VLOOKUP(A174,'Locations & Types'!$E:$F,2,FALSE) -> DC | C174: 310479.4521
A175: Shustoke | B175: =VLOOKUP(A175,'Locations & Types'!$E:$F,2,FALSE) -> GDN (WM) | C175: 100000
A176: Silk Willoughby | B176: =VLOOKUP(A176,'Locations & Types'!$E:$F,2,FALSE) -> GDN (EM) | C176: 2203090
A177: Soutra | B177: =VLOOKUP(A177,'Locations & Types'!$E:$F,2,FALSE) -> GDN (SC) | C177: 10726995
A178: Spalding 2 (South Holland) Power Station | B178: =VLOOKUP(A178,'Locations & Types'!$E:$F,2,FALSE) -> DC | C178: 0
A179: St Fergus | B179: =VLOOKUP(A179,'Locations & Types'!$E:$F,2,FALSE) -> GDN (SC) | C179: 1055917
A180: St. Fergus (Peterhead) | B180: =VLOOKUP(A180,'Locations & Types'!$E:$F,2,FALSE) -> DC | C180: 73267750
A181: St. Fergus (Shell Blackstart) | B181: =VLOOKUP(A181,'Locations & Types'!$E:$F,2,FALSE) -> DC | C181: 2583336
A182: St. Neots (Little Barford) | B182: =VLOOKUP(A182,'Locations & Types'!$E:$F,2,FALSE) -> DC | C182: 26775065.04
A183: Stallingborough | B183: =VLOOKUP(A183,'Locations & Types'!$E:$F,2,FALSE) -> DC | C183: 52700000
A184: Stanford Le Hope (Coryton) | B184: =VLOOKUP(A184,'Locations & Types'!$E:$F,2,FALSE) -> DC | C184: 8267935.726
A185: Staythorpe | B185: =VLOOKUP(A185,'Locations & Types'!$E:$F,2,FALSE) -> DC | C185: 82000000
A186: Stranraer | B186: =VLOOKUP(A186,'Locations & Types'!$E:$F,2,FALSE) -> GDN (SC) | C186: 742435
A187: Stratford-upon-Avon | B187: =VLOOKUP(A187,'Locations & Types'!$E:$F,2,FALSE) -> GDN (WM) | C187: 3735040
A188: Stublach (Cheshire) | B188: =VLOOKUP(A188,'Locations & Types'!$E:$F,2,FALSE) -> STORAGE SITE | C188: 30343940
A189: Sutton Bridge | B189: =VLOOKUP(A189,'Locations & Types'!$E:$F,2,FALSE) -> GDN (EM) | C189: 1079269
A190: Sutton Bridge Power Station | B190: =VLOOKUP(A190,'Locations & Types'!$E:$F,2,FALSE) -> DC | C190: 42637000
A191: Tatsfield | B191: =VLOOKUP(A191,'Locations & Types'!$E:$F,2,FALSE) -> GDN (SE) | C191: 192774633
A192: Teesside (BASF, aka BASF Teesside) | B192: =VLOOKUP(A192,'Locations & Types'!$E:$F,2,FALSE) -> DC | C192: 9750000
A193: Teesside Hydrogen | B193: =VLOOKUP(A193,'Locations & Types'!$E:$F,2,FALSE) -> DC | C193: 13276800
A194: Terra Nitrogen (aka ICI, Terra Severnside) | B194: =VLOOKUP(A194,'Locations & Types'!$E:$F,2,FALSE) -> DC | C194: 0
A195: Thornton Curtis (DN) | B195: =VLOOKUP(A195,'Locations & Types'!$E:$F,2,FALSE) -> GDN (EM) | C195: 118190411
A196: Thornton Curtis (Humber Refinery, aka Immingham) | B196: =VLOOKUP(A196,'Locations & Types'!$E:$F,2,FALSE) -> DC | C196: 67000000
A197: Thornton Curtis (Killingholme) | B197: =VLOOKUP(A197,'Locations & Types'!$E:$F,2,FALSE) -> DC | C197: 48268493.15
A198: Thrintoft | B198: =VLOOKUP(A198,'Locations & Types'!$E:$F,2,FALSE) -> GDN (NO) | C198: 6921484
A199: Tilbury Power Station | B199: =VLOOKUP(A199,'Locations & Types'!$E:$F,2,FALSE) -> DC | C199: 0
A200: Tonna (Baglan Bay) | B200: =VLOOKUP(A200,'Locations & Types'!$E:$F,2,FALSE) -> DC | C200: 26750000
... 34 more rows

Sheet Distance Matrix (hidden)
C1: Non-IP | D1: IP | E1: Non-IP | F1: Non-IP | G1: Non-IP | H1: Non-IP | I1: Non-IP | J1: Non-IP | K1: Non-IP | L1: Non-IP | M1: Non-IP | N1: Non-IP | O1: Non-IP | P1: Non-IP | Q1: Non-IP | R1: Non-IP | S1: Non-IP | T1: Non-IP | U1: Non-IP | V1: Non-IP | W1: Non-IP | X1: Non-IP | Y1: Non-IP | Z1: Non-IP | AA1: Non-IP | AB1: Non-IP | AC1: Non-IP
B2: DISTANCES (KM) | C2: Avonmouth | D2: Bacton IP | E2: Bacton UKCS | F2: Burton Point | G2: Barrow | H2: Barton Stacey | I2: Canonbie | J2: Cheshire | K2: Caythorpe | L2: Dynevor Arms | M2: Easington | N2: Fleetwood | O2: Glenmavis | P2: Garton | Q2: Hole House Farm | R2: Hatfield Moor (onshore) | S2: Hornsea | T2: Hatfield Moor (storage) | U2: Isle of Grain | V2: Milford Haven | W2: Partington | X2: Moffat (Irish Interconnector) | Y2: Murrow | Z2: St Fergus | AA2: Teesside | AB2: Theddlethorpe | AC2: Wytch Farm | AD2: Average
A3: Non-IP | B3: Aberdeen | C3: 892.01 | D3: 761.26 | E3: 761.26 | F3: 642.84 | G3: 491.81 | H3: 888.26 | I3: 337.77 | J3: 583.33 | K3: 497.14 | L3: 911.05 | M3: 558.59 | N3: 484.8 | O3: 223.74 | P3: 540.8 | Q3: 592.77 | R3: 536.87 | S3: 514.34 | T3: 536.87 | U3: 883.02 | V3: 1062.26 | W3: 565.64 | X3: 291.53 | Y3: 683.58 | Z3: 63.9 | AA3: 406.95 | AB3: 621.87 | AC3: 957.3 | AD3: =AVERAGE(C3:AC3) -> 603.3911111
A4: Non-IP | B4: Abson (Seabank Power Station phase I) | C4: 25.62 | D4: 341.05 | E4: 341.05 | F4: 326.26 | G4: 477.08 | H4: 183.26 | I4: 528.82 | J4: 286.71 | K4: 397.32 | L4: 201.7 | M4: 377.32 | N4: 387.76 | O4: 679.49 | P4: 369.54 | Q4: 277.27 | R4: 348.83 | S4: 386.9 | T4: 348.83 | U4: 428.48 | V4: 352.91 | W4: 307.81 | X4: 575.06 | Y4: 268.31 | Z4: 930.49 | AA4: 513.1 | AB4: 333.05 | AC4: 90.71 | AD4: =AVERAGE(C4:AC4) -> 373.5085185
A5: Non-IP | B5: Alrewas (EM) | C5: 221.51 | D5: 241.97 | E5: 241.97 | F5: 130.17 | G5: 280.99 | H5: 334.64 | I5: 332.73 | J5: 90.62 | K5: 298.24 | L5: 240.55 | M5: 278.24 | N5: 191.67 | O5: 483.4 | P5: 270.46 | Q5: 81.18 | R5: 249.75 | S5: 287.82 | T5: 249.75 | U5: 329.4 | V5: 391.76 | W5: 111.72 | X5: 378.97 | Y5: 169.23 | Z5: 734.4 | AA5: 414.02 | AB5: 233.97 | AC5: 286.8 | AD5: 279.8492593
A6: Non-IP | B6: Alrewas (WM) | C6: 221.51 | D6: 241.97 | E6: 241.97 | F6: 130.17 | G6: 280.99 | H6: 334.64 | I6: 332.73 | J6: 90.62 | K6: 298.24 | L6: 240.55 | M6: 278.24 | N6: 191.67 | O6: 483.4 | P6: 270.46 | Q6: 81.18 | R6: 249.75 | S6: 287.82 | T6: 249.75 | U6: 329.4 | V6: 391.76 | W6: 111.72 | X6: 378.97 | Y6: 169.23 | Z6: 734.4 | AA6: 414.02 | AB6: 233.97 | AC6: 286.8 | AD6: 279.8492593
A7: Non-IP | B7: Apache (Sage Black Start) | C7: 955.91 | D7: 825.16 | E7: 825.16 | F7: 706.74 | G7: 555.71 | H7: 952.16 | I7: 401.67 | J7: 647.23 | K7: 561.04 | L7: 974.95 | M7: 622.49 | N7: 548.7 | O7: 287.64 | P7: 604.7 | Q7: 656.67 | R7: 600.77 | S7: 578.24 | T7: 600.77 | U7: 946.92 | V7: 1126.16 | W7: 629.54 | X7: 355.43 | Y7: 747.48 | Z7: 0 | AA7: 470.85 | AB7: 685.77 | AC7: 1021.2 | AD7: 662.5577778
A8: Non-IP | B8: Armadale | C8: 692.42 | D8: 632.39 | E8: 632.39 | F8: 443.25 | G8: 292.22 | H8: 759.39 | I8: 138.18 | J8: 383.74 | K8: 368.27 | L8: 711.46 | M8: 429.72 | N8: 285.21 | O8: 24.15 | P8: 411.93 | Q8: 393.18 | R8: 408 | S8: 385.47 | T8: 408 | U8: 754.15 | V8: 862.67 | W8: 366.05 | X8: 91.94 | Y8: 554.71 | Z8: 275.15 | AA8: 278.08 | AB8: 493 | AC8: 757.71 | AD8: 453.0677778
A9: Non-IP | B9: Aspley | C9: 265.13 | D9: 285.59 | E9: 285.59 | F9: 86.55 | G9: 237.37 | H9: 378.26 | I9: 289.11 | J9: 47 | K9: 341.86 | L9: 284.17 | M9: 321.86 | N9: 148.05 | O9: 439.78 | P9: 314.08 | Q9: 37.56 | R9: 293.37 | S9: 331.44 | T9: 293.37 | U9: 373.02 | V9: 435.38 | W9: 68.1 | X9: 335.35 | Y9: 212.85 | Z9: 690.78 | AA9: 395.33 | AB9: 277.59 | AC9: 330.42 | AD9: 288.8503704
A10: Non-IP | B10: Asselby | C10: 401.64 | D10: 251.78 | E10: 251.78 | F10: 370.08 | G10: 219.05 | H10: 378.78 | I10: 242.43 | J10: 310.57 | K10: 81.64 | L10: 420.68 | M10: 84.51 | N10: 212.04 | O10: 393.1 | P10: 66.72 | Q10: 320.01 | R10: 27.39 | S10: 71.22 | T10: 27.39 | U10: 373.54 | V10: 571.89 | W10: 292.88 | X10: 288.67 | Y10: 174.1 | Z10: 573.38 | AA10: 136.88 | AB10: 112.39 | AC10: 466.93 | AD10: 263.7581481
A11: Non-IP | B11: Audley (NW) | C11: 288.91 | D11: 309.37 | E11: 309.37 | F11: 62.77 | G11: 213.59 | H11: 402.04 | I11: 265.33 | J11: 23.22 | K11: 365.64 | L11: 307.95 | M11: 345.64 | N11: 124.27 | O11: 416 | P11: 337.86 | Q11: 13.78 | R11: 317.15 | S11: 355.22 | T11: 317.15 | U11: 396.8 | V11: 459.16 | W11: 44.32 | X11: 311.57 | Y11: 236.63 | Z11: 667 | AA11: 371.55 | AB11: 301.37 | AC11: 354.2 | AD11: 293.2540741
A12: Non-IP | B12: Audley (WM) | C12: 288.91 | D12: 309.37 | E12: 309.37 | F12: 62.77 | G12: 213.59 | H12: 402.04 | I12: 265.33 | J12: 23.22 | K12: 365.64 | L12: 307.95 | M12: 345.64 | N12: 124.27 | O12: 416 | P12: 337.86 | Q12: 13.78 | R12: 317.15 | S12: 355.22 | T12: 317.15 | U12: 396.8 | V12: 459.16 | W12: 44.32 | X12: 311.57 | Y12: 236.63 | Z12: 667 | AA12: 371.55 | AB12: 301.37 | AC12: 354.2 | AD12: 293.2540741
A13: Non-IP | B13: Austrey | C13: 203.6 | D13: 232.43 | E13: 232.43 | F13: 148.08 | G13: 298.9 | H13: 325.1 | I13: 350.64 | J13: 108.53 | K13: 288.7 | L13: 222.64 | M13: 268.7 | N13: 209.58 | O13: 501.31 | P13: 260.92 | Q13: 99.09 | R13: 240.21 | S13: 278.28 | T13: 240.21 | U13: 319.86 | V13: 373.85 | W13: 129.63 | X13: 396.88 | Y13: 159.69 | Z13: 752.31 | AA13: 404.48 | AB13: 224.43 | AC13: 268.89 | AD13: 279.2359259
A14: Non-IP | B14: Avonmouth Max Refill | C14: 0 | D14: 366.47 | E14: 366.47 | F14: 351.68 | G14: 502.5 | H14: 208.88 | I14: 554.24 | J14: 312.13 | K14: 422.74 | L14: 227.12 | M14: 402.74 | N14: 413.18 | O14: 704.91 | P14: 394.96 | Q14: 302.69 | R14: 374.25 | S14: 412.32 | T14: 374.25 | U14: 453.9 | V14: 378.33 | W14: 333.23 | X14: 600.48 | Y14: 293.73 | Z14: 955.91 | AA14: 538.52 | AB14: 358.47 | AC14: 116.33 | AD14: 397.052963
A15: Non-IP | B15: Aylesbeare | C15: 147.94 | D15: 463.37 | E15: 463.37 | F15: 448.58 | G15: 599.4 | H15: 184.84 | I15: 651.14 | J15: 409.03 | K15: 519.64 | L15: 324.02 | M15: 499.64 | N15: 510.08 | O15: 801.81 | P15: 491.86 | Q15: 399.59 | R15: 471.15 | S15: 509.22 | T15: 471.15 | U15: 504.21 | V15: 475.23 | W15: 430.13 | X15: 697.38 | Y15: 390.63 | Z15: 1052.81 | AA15: 635.42 | AB15: 455.37 | AC15: 92.29 | AD15: 485.1592593
A16: Non-IP | B16: Bacton | C16: 366.47 | D16: 0 | E16: 0 | F16: 372.14 | G16: 470.83 | H16: 333.81 | I16: 494.21 | J16: 332.59 | K16: 272.88 | L16: 385.51 | M16: 252.88 | N16: 433.64 | O16: 644.88 | P16: 245.1 | Q16: 323.15 | R16: 224.39 | S16: 262.46 | T16: 224.39 | U16: 216.9 | V16: 536.72 | W16: 353.69 | X16: 540.45 | Y16: 111.1 | Z16: 825.16 | AA16: 388.66 | AB16: 208.61 | AC16: 426.36 | AD16: 342.4807407
A17: Non-IP | B17: Bacton (Baird) | C17: 366.47 | D17: 0 | E17: 0 | F17: 372.14 | G17: 470.83 | H17: 333.81 | I17: 494.21 | J17: 332.59 | K17: 272.88 | L17: 385.51 | M17: 252.88 | N17: 433.64 | O17: 644.88 | P17: 245.1 | Q17: 323.15 | R17: 224.39 | S17: 262.46 | T17: 224.39 | U17: 216.9 | V17: 536.72 | W17: 353.69 | X17: 540.45 | Y17: 111.1 | Z17: 825.16 | AA17: 388.66 | AB17: 208.61 | AC17: 426.36 | AD17: 342.4807407
A18: IP | B18: Bacton (BBL) | C18: 366.47 | D18: 0 | E18: 0 | F18: 372.14 | G18: 470.83 | H18: 333.81 | I18: 494.21 | J18: 332.59 | K18: 272.88 | L18: 385.51 | M18: 252.88 | N18: 433.64 | O18: 644.88 | P18: 245.1 | Q18: 323.15 | R18: 224.39 | S18: 262.46 | T18: 224.39 | U18: 216.9 | V18: 536.72 | W18: 353.69 | X18: 540.45 | Y18: 111.1 | Z18: 825.16 | AA18: 388.66 | AB18: 208.61 | AC18: 426.36 | AD18: 342.4807407
A19: Non-IP | B19: Bacton (Great Yarmouth) | C19: 366.47 | D19: 0 | E19: 0 | F19: 372.14 | G19: 470.83 | H19: 333.81 | I19: 494.21 | J19: 332.59 | K19: 272.88 | L19: 385.51 | M19: 252.88 | N19: 433.64 | O19: 644.88 | P19: 245.1 | Q19: 323.15 | R19: 224.39 | S19: 262.46 | T19: 224.39 | U19: 216.9 | V19: 536.72 | W19: 353.69 | X19: 540.45 | Y19: 111.1 | Z19: 825.16 | AA19: 388.66 | AB19: 208.61 | AC19: 426.36 | AD19: 342.4807407
A20: IP | B20: Bacton (IUK) | C20: 366.47 | D20: 0 | E20: 0 | F20: 372.14 | G20: 470.83 | H20: 333.81 | I20: 494.21 | J20: 332.59 | K20: 272.88 | L20: 385.51 | M20: 252.88 | N20: 433.64 | O20: 644.88 | P20: 245.1 | Q20: 323.15 | R20: 224.39 | S20: 262.46 | T20: 224.39 | U20: 216.9 | V20: 536.72 | W20: 353.69 | X20: 540.45 | Y20: 111.1 | Z20: 825.16 | AA20: 388.66 | AB20: 208.61 | AC20: 426.36 | AD20: 342.4807407
A21: Non-IP | B21: Baldersby | C21: 476.14 | D21: 326.28 | E21: 326.28 | F21: 381.12 | G21: 230.09 | H21: 453.28 | I21: 167.93 | J21: 321.61 | K21: 142.64 | L21: 495.18 | M21: 159.01 | N21: 223.08 | O21: 318.6 | P21: 141.22 | Q21: 331.05 | R21: 101.89 | S21: 145.72 | T21: 101.89 | U21: 448.04 | V21: 646.39 | W21: 303.92 | X21: 214.17 | Y21: 248.6 | Z21: 498.88 | AA21: 62.38 | AB21: 186.89 | AC21: 541.43 | AD21: 296.0633333
A22: Non-IP | B22: Balgray | C22: 800.46 | D22: 740.43 | E22: 740.43 | F22: 551.29 | G22: 400.26 | H22: 867.43 | I22: 246.22 | J22: 491.78 | K22: 476.31 | L22: 819.5 | M22: 537.76 | N22: 393.25 | O22: 132.19 | P22: 519.97 | Q22: 501.22 | R22: 516.04 | S22: 493.51 | T22: 516.04 | U22: 862.19 | V22: 970.71 | W22: 474.09 | X22: 199.98 | Y22: 662.75 | Z22: 155.45 | AA22: 386.12 | AB22: 601.04 | AC22: 865.75 | AD22: 552.672963
A23: Non-IP | B23: Barking (Horndon) | C23: 421.33 | D23: 184.33 | E23: 184.33 | F23: 427 | G23: 560.02 | H23: 286.8 | I23: 583.4 | J23: 387.45 | K23: 362.07 | L23: 440.37 | M23: 342.07 | N23: 488.5 | O23: 734.07 | P23: 334.29 | Q23: 378.01 | R23: 313.58 | S23: 351.65 | T23: 313.58 | U23: 32.57 | V23: 591.58 | W23: 408.55 | X23: 629.64 | Y23: 189.06 | Z23: 914.35 | AA23: 477.85 | AB23: 297.8 | AC23: 379.35 | AD23: 407.9111111
A24: Non-IP | B24: Barrow (Bains) | C24: 502.5 | D24: 470.83 | E24: 470.83 | F24: 253.33 | G24: 0 | H24: 597.83 | I24: 154.04 | J24: 193.82 | K24: 300.69 | L24: 521.54 | M24: 303.56 | N24: 95.29 | O24: 304.71 | P24: 285.77 | Q24: 203.26 | R24: 246.44 | S24: 290.27 | T24: 246.44 | U24: 592.59 | V24: 672.75 | W24: 176.13 | X24: 200.28 | Y24: 393.15 | Z24: 555.71 | AA24: 260.26 | AB24: 331.44 | AC24: 567.79 | AD24: 340.4166667
A25: Non-IP | B25: Barrow (Black Start) | C25: 502.5 | D25: 470.83 | E25: 470.83 | F25: 253.33 | G25: 0 | H25: 597.83 | I25: 154.04 | J25: 193.82 | K25: 300.69 | L25: 521.54 | M25: 303.56 | N25: 95.29 | O25: 304.71 | P25: 285.77 | Q25: 203.26 | R25: 246.44 | S25: 290.27 | T25: 246.44 | U25: 592.59 | V25: 672.75 | W25: 176.13 | X25: 200.28 | Y25: 393.15 | Z25: 555.71 | AA25: 260.26 | AB25: 331.44 | AC25: 567.79 | AD25: 340.4166667
A26: Non-IP | B26: Barrow (Gateway) | C26: 502.5 | D26: 470.83 | E26: 470.83 | F26: 253.33 | G26: 0 | H26: 597.83 | I26: 154.04 | J26: 193.82 | K26: 300.69 | L26: 521.54 | M26: 303.56 | N26: 95.29 | O26: 304.71 | P26: 285.77 | Q26: 203.26 | R26: 246.44 | S26: 290.27 | T26: 246.44 | U26: 592.59 | V26: 672.75 | W26: 176.13 | X26: 200.28 | Y26: 393.15 | Z26: 555.71 | AA26: 260.26 | AB26: 331.44 | AC26: 567.79 | AD26: 340.4166667
A27: Non-IP | B27: Barton Stacey Max Refill (Humbly Grove) | C27: 208.88 | D27: 333.81 | E27: 333.81 | F27: 464.81 | G27: 597.83 | H27: 0 | I27: 621.21 | J27: 425.26 | K27: 399.88 | L27: 384.96 | M27: 379.88 | N27: 526.31 | O27: 771.88 | P27: 372.1 | Q27: 415.82 | R27: 351.39 | S27: 389.46 | T27: 351.39 | U27: 319.37 | V27: 536.17 | W27: 446.36 | X27: 667.45 | Y27: 226.87 | Z27: 952.16 | AA27: 515.66 | AB27: 335.61 | AC27: 92.55 | AD27: 422.9955556
A28: Non-IP | B28: Bathgate | C28: 686.59 | D28: 626.56 | E28: 626.56 | F28: 437.42 | G28: 286.39 | H28: 753.56 | I28: 132.35 | J28: 377.91 | K28: 362.44 | L28: 705.63 | M28: 423.89 | N28: 279.38 | O28: 18.32 | P28: 406.1 | Q28: 387.35 | R28: 402.17 | S28: 379.64 | T28: 402.17 | U28: 748.32 | V28: 856.84 | W28: 360.22 | X28: 86.11 | Y28: 548.88 | Z28: 269.32 | AA28: 272.25 | AB28: 487.17 | AC28: 751.88 | AD28: 447.2377778
A29: Non-IP | B29: Billingham ICI (Terra Billingham) | C29: 535.88 | D29: 386.02 | E29: 386.02 | F29: 408.65 | G29: 257.62 | H29: 513.02 | I29: 137.26 | J29: 349.14 | K29: 121.9 | L29: 554.92 | M29: 183.35 | N29: 250.61 | O29: 287.93 | P29: 165.56 | Q29: 358.58 | R29: 161.63 | S29: 139.1 | T29: 161.63 | U29: 507.78 | V29: 706.13 | W29: 331.45 | X29: 183.5 | Y29: 308.34 | Z29: 468.21 | AA29: 8.7 | AB29: 246.63 | AC29: 601.17 | AD29: 322.99
A30: Non-IP | B30: Bishop Auckland | C30: 538.34 | D30: 388.48 | E30: 388.48 | F30: 400.84 | G30: 249.81 | H30: 515.48 | I30: 105.73 | J30: 341.33 | K30: 124.36 | L30: 557.38 | M30: 185.81 | N30: 242.8 | O30: 256.4 | P30: 168.02 | Q30: 350.77 | R30: 164.09 | S30: 141.56 | T30: 164.09 | U30: 510.24 | V30: 708.59 | W30: 323.64 | X30: 151.97 | Y30: 310.8 | Z30: 436.68 | AA30: 34.17 | AB30: 249.09 | AC30: 603.63 | AD30: 318.9844444
A31: Non-IP | B31: Bishop Auckland (test facility) | C31: 538.34 | D31: 388.48 | E31: 388.48 | F31: 400.84 | G31: 249.81 | H31: 515.48 | I31: 105.73 | J31: 341.33 | K31: 124.36 | L31: 557.38 | M31: 185.81 | N31: 242.8 | O31: 256.4 | P31: 168.02 | Q31: 350.77 | R31: 164.09 | S31: 141.56 | T31: 164.09 | U31: 510.24 | V31: 708.59 | W31: 323.64 | X31: 151.97 | Y31: 310.8 | Z31: 436.68 | AA31: 34.17 | AB31: 249.09 | AC31: 603.63 | AD31: 318.9844444
A32: Non-IP | B32: Blaby | C32: 272.41 | D32: 191.07 | E32: 191.07 | F32: 181.07 | G32: 331.89 | H32: 283.74 | I32: 383.63 | J32: 141.52 | K32: 247.34 | L32: 291.45 | M32: 227.34 | N32: 242.57 | O32: 534.3 | P32: 219.56 | Q32: 132.08 | R32: 198.85 | S32: 236.92 | T32: 198.85 | U32: 278.5 | V32: 442.66 | W32: 162.62 | X32: 429.87 | Y32: 118.33 | Z32: 785.3 | AA32: 363.12 | AB32: 183.07 | AC32: 337.7 | AD32: 281.7344444
A33: Non-IP | B33: Blackness (BP Grangemouth) | C33: 706.16 | D33: 646.13 | E33: 646.13 | F33: 456.99 | G33: 305.96 | H33: 773.13 | I33: 151.92 | J33: 397.48 | K33: 382.01 | L33: 725.2 | M33: 443.46 | N33: 298.95 | O33: 37.89 | P33: 425.67 | Q33: 406.92 | R33: 421.74 | S33: 399.21 | T33: 421.74 | U33: 767.89 | V33: 876.41 | W33: 379.79 | X33: 105.68 | Y33: 568.45 | Z33: 249.75 | AA33: 291.82 | AB33: 506.74 | AC33: 771.45 | AD33: 465.3581481
A34: Non-IP | B34: Blackrod | C34: 535.25 | D34: 471.2 | E34: 471.2 | F34: 286.08 | G34: 135.05 | H34: 598.2 | I34: 186.79 | J34: 226.57 | K34: 301.06 | L34: 554.29 | M34: 303.93 | N34: 128.04 | O34: 337.46 | P34: 286.14 | Q34: 236.01 | R34: 246.81 | S34: 290.64 | T34: 246.81 | U34: 592.96 | V34: 705.5 | W34: 208.88 | X34: 233.03 | Y34: 393.52 | Z34: 588.46 | AA34: 260.63 | AB34: 331.81 | AC34: 600.54 | AD34: 361.3651852
A35: Non-IP | B35: Blyborough | C35: 355.59 | D35: 205.73 | E35: 205.73 | F35: 361.26 | G35: 265.1 | H35: 332.73 | I35: 288.48 | J35: 321.71 | K35: 127.69 | L35: 374.63 | M35: 110.61 | N35: 258.09 | O35: 439.15 | P35: 102.83 | Q35: 312.27 | R35: 18.66 | S35: 117.27 | T35: 18.66 | U35: 327.49 | V35: 525.84 | W35: 338.93 | X35: 334.72 | Y35: 128.05 | Z35: 619.43 | AA35: 182.93 | AB35: 66.34 | AC35: 420.88 | AD35: 265.2148148
A36: Non-IP | B36: Blyborough (Brigg) | C36: 355.59 | D36: 205.73 | E36: 205.73 | F36: 361.26 | G36: 265.1 | H36: 332.73 | I36: 288.48 | J36: 321.71 | K36: 127.69 | L36: 374.63 | M36: 110.61 | N36: 258.09 | O36: 439.15 | P36: 102.83 | Q36: 312.27 | R36: 18.66 | S36: 117.27 | T36: 18.66 | U36: 327.49 | V36: 525.84 | W36: 338.93 | X36: 334.72 | Y36: 128.05 | Z36: 619.43 | AA36: 182.93 | AB36: 66.34 | AC36: 420.88 | AD36: 265.2148148
A37: Non-IP | B37: Blyborough (Cottam) | C37: 355.59 | D37: 205.73 | E37: 205.73 | F37: 361.26 | G37: 265.1 | H37: 332.73 | I37: 288.48 | J37: 321.71 | K37: 127.69 | L37: 374.63 | M37: 110.61 | N37: 258.09 | O37: 439.15 | P37: 102.83 | Q37: 312.27 | R37: 18.66 | S37: 117.27 | T37: 18.66 | U37: 327.49 | V37: 525.84 | W37: 338.93 | X37: 334.72 | Y37: 128.05 | Z37: 619.43 | AA37: 182.93 | AB37: 66.34 | AC37: 420.88 | AD37: 265.2148148
A38: Non-IP | B38: Braishfield A | C38: 191.64 | D38: 356.01 | E38: 356.01 | F38: 487.01 | G38: 620.03 | H38: 22.2 | I38: 643.41 | J38: 447.46 | K38: 422.08 | L38: 367.72 | M38: 402.08 | N38: 548.51 | O38: 794.08 | P38: 394.3 | Q38: 438.02 | R38: 373.59 | S38: 411.66 | T38: 373.59 | U38: 341.57 | V38: 518.93 | W38: 468.56 | X38: 689.65 | Y38: 249.07 | Z38: 974.36 | AA38: 537.86 | AB38: 357.81 | AC38: 75.31 | AD38: 439.3525926
A39: Non-IP | B39: Braishfield B | C39: 191.64 | D39: 356.01 | E39: 356.01 | F39: 487.01 | G39: 620.03 | H39: 22.2 | I39: 643.41 | J39: 447.46 | K39: 422.08 | L39: 367.72 | M39: 402.08 | N39: 548.51 | O39: 794.08 | P39: 394.3 | Q39: 438.02 | R39: 373.59 | S39: 411.66 | T39: 373.59 | U39: 341.57 | V39: 518.93 | W39: 468.56 | X39: 689.65 | Y39: 249.07 | Z39: 974.36 | AA39: 537.86 | AB39: 357.81 | AC39: 75.31 | AD39: 439.3525926
A40: Non-IP | B40: Brine Field (Teesside) Power Station | C40: 538.52 | D40: 388.66 | E40: 388.66 | F40: 411.29 | G40: 260.26 | H40: 515.66 | I40: 139.9 | J40: 351.78 | K40: 124.54 | L40: 557.56 | M40: 185.99 | N40: 253.25 | O40: 290.57 | P40: 168.2 | Q40: 361.22 | R40: 164.27 | S40: 141.74 | T40: 164.27 | U40: 510.42 | V40: 708.77 | W40: 334.09 | X40: 186.14 | Y40: 310.98 | Z40: 470.85 | AA40: 0 | AB40: 249.27 | AC40: 603.81 | AD40: 325.21
A41: Non-IP | B41: Brisley | C41: 325.64 | D41: 40.83 | E41: 40.83 | F41: 331.31 | G41: 430 | H41: 297.14 | I41: 453.38 | J41: 291.76 | K41: 232.05 | L41: 344.68 | M41: 212.05 | N41: 392.81 | O41: 604.05 | P41: 204.27 | Q41: 282.32 | R41: 183.56 | S41: 221.63 | T41: 183.56 | U41: 257.73 | V41: 495.89 | W41: 312.86 | X41: 499.62 | Y41: 70.27 | Z41: 784.33 | AA41: 347.83 | AB41: 167.78 | AC41: 389.69 | AD41: 311.0322222
A42: Non-IP | B42: Broxburn | C42: 709.03 | D42: 639.85 | E42: 639.85 | F42: 459.86 | G42: 308.83 | H42: 766.85 | I42: 154.79 | J42: 400.35 | K42: 375.73 | L42: 728.07 | M42: 437.18 | N42: 301.82 | O42: 40.76 | P42: 419.39 | Q42: 409.79 | R42: 415.46 | S42: 392.93 | T42: 415.46 | U42: 761.61 | V42: 879.28 | W42: 382.66 | X42: 108.55 | Y42: 562.17 | Z42: 291.76 | AA42: 285.54 | AB42: 500.46 | AC42: 774.32 | AD42: 465.2722222
A43: Non-IP | B43: Burley Bank | C43: 464.87 | D43: 315.01 | E43: 315.01 | F43: 319.43 | G43: 168.4 | H43: 442.01 | I43: 187.14 | J43: 259.92 | K43: 144.87 | L43: 483.91 | M43: 147.74 | N43: 161.39 | O43: 337.81 | P43: 129.95 | Q43: 269.36 | R43: 90.62 | S43: 134.45 | T43: 90.62 | U43: 436.77 | V43: 635.12 | W43: 242.23 | X43: 233.38 | Y43: 237.33 | Z43: 518.09 | AA43: 91.86 | AB43: 175.62 | AC43: 530.16 | AD43: 280.1137037
A44: Non-IP | B44: Burnhervie | C44: 912.45 | D44: 781.7 | E44: 781.7 | F44: 663.28 | G44: 512.25 | H44: 908.7 | I44: 358.21 | J44: 603.77 | K44: 517.58 | L44: 931.49 | M44: 579.03 | N44: 505.24 | O44: 244.18 | P44: 561.24 | Q44: 613.21 | R44: 557.31 | S44: 534.78 | T44: 557.31 | U44: 903.46 | V44: 1082.7 | W44: 586.08 | X44: 311.97 | Y44: 704.02 | Z44: 57.93 | AA44: 427.39 | AB44: 642.31 | AC44: 977.74 | AD44: 622.852963
A45: Non-IP | B45: Burton Point (Connahs Quay) | C45: 351.68 | D45: 372.14 | E45: 372.14 | F45: 0 | G45: 253.33 | H45: 464.81 | I45: 305.07 | J45: 59.51 | K45: 428.41 | L45: 370.72 | M45: 408.41 | N45: 164.01 | O45: 455.74 | P45: 400.63 | Q45: 52.06 | R45: 379.92 | S45: 417.99 | T45: 379.92 | U45: 459.57 | V45: 521.93 | W45: 84.06 | X45: 351.31 | Y45: 299.4 | Z45: 706.74 | AA45: 411.29 | AB45: 364.14 | AC45: 416.97 | AD45: 342.662963
A46: Non-IP | B46: Caldecott | C46: 209.49 | D46: 156.98 | E46: 156.98 | F46: 223.53 | G46: 374.35 | H46: 249.65 | I46: 426.09 | J46: 183.98 | K46: 213.25 | L46: 228.53 | M46: 193.25 | N46: 285.03 | O46: 576.76 | P46: 185.47 | Q46: 174.54 | R46: 164.76 | S46: 202.83 | T46: 164.76 | U46: 244.41 | V46: 379.74 | W46: 205.08 | X46: 472.33 | Y46: 84.24 | Z46: 765.53 | AA46: 329.03 | AB46: 148.98 | AC46: 274.78 | AD46: 269.4203704
A47: Non-IP | B47: Caldecott (Corby Power Station) | C47: 209.49 | D47: 156.98 | E47: 156.98 | F47: 223.53 | G47: 374.35 | H47: 249.65 | I47: 426.09 | J47: 183.98 | K47: 213.25 | L47: 228.53 | M47: 193.25 | N47: 285.03 | O47: 576.76 | P47: 185.47 | Q47: 174.54 | R47: 164.76 | S47: 202.83 | T47: 164.76 | U47: 244.41 | V47: 379.74 | W47: 205.08 | X47: 472.33 | Y47: 84.24 | Z47: 765.53 | AA47: 329.03 | AB47: 148.98 | AC47: 274.78 | AD47: 269.4203704
A48: Non-IP | B48: Cambridge | C48: 336.26 | D48: 132.08 | E48: 132.08 | F48: 341.93 | G48: 474.95 | H48: 201.73 | I48: 498.33 | J48: 302.38 | K48: 277 | L48: 355.3 | M48: 257 | N48: 403.43 | O48: 649 | P48: 249.22 | Q48: 292.94 | R48: 228.51 | S48: 266.58 | T48: 228.51 | U48: 117.64 | V48: 506.51 | W48: 323.48 | X48: 544.57 | Y48: 103.99 | Z48: 829.28 | AA48: 392.78 | AB48: 212.73 | AC48: 294.28 | AD48: 331.5737037
A49: Non-IP | B49: Careston | C49: 831.52 | D49: 771.49 | E49: 771.49 | F49: 582.35 | G49: 431.32 | H49: 898.49 | I49: 277.28 | J49: 522.84 | K49: 507.37 | L49: 850.56 | M49: 568.82 | N49: 424.31 | O49: 163.25 | P49: 551.03 | Q49: 532.28 | R49: 547.1 | S49: 524.57 | T49: 547.1 | U49: 893.25 | V49: 1001.77 | W49: 505.15 | X49: 231.04 | Y49: 693.81 | Z49: 125.76 | AA49: 417.18 | AB49: 632.1 | AC49: 896.81 | AD49: 581.482963
A50: Non-IP | B50: Carrington (Partington) Power Station | C50: 333.23 | D50: 353.69 | E50: 353.69 | F50: 84.06 | G50: 176.13 | H50: 446.36 | I50: 227.87 | J50: 24.55 | K50: 374.52 | L50: 352.27 | M50: 377.39 | N50: 86.81 | O50: 378.54 | P50: 359.6 | Q50: 33.99 | R50: 320.27 | S50: 364.1 | T50: 320.27 | U50: 441.12 | V50: 503.48 | W50: 0 | X50: 274.11 | Y50: 280.95 | Z50: 629.54 | AA50: 334.09 | AB50: 345.69 | AC50: 398.52 | AD50: 302.7718519
A51: Non-IP | B51: Caythorpe | C51: 422.74 | D51: 272.88 | E51: 272.88 | F51: 428.41 | G51: 300.69 | H51: 399.88 | I51: 230.09 | J51: 388.86 | K51: 0 | L51: 441.78 | M51: 61.45 | N51: 293.68 | O51: 380.76 | P51: 43.66 | Q51: 379.42 | R51: 109.03 | S51: 17.2 | T51: 109.03 | U51: 394.64 | V51: 592.99 | W51: 374.52 | X51: 276.33 | Y51: 195.2 | Z51: 561.04 | AA51: 124.54 | AB51: 133.49 | AC51: 488.03 | AD51: 284.9340741
A52: Non-IP | B52: Centrax Industrial | C52: 183.65 | D52: 499.08 | E52: 499.08 | F52: 484.29 | G52: 635.11 | H52: 220.55 | I52: 686.85 | J52: 444.74 | K52: 555.35 | L52: 359.73 | M52: 535.35 | N52: 545.79 | O52: 837.52 | P52: 527.57 | Q52: 435.3 | R52: 506.86 | S52: 544.93 | T52: 506.86 | U52: 539.92 | V52: 510.94 | W52: 465.84 | X52: 733.09 | Y52: 426.34 | Z52: 1088.52 | AA52: 671.13 | AB52: 491.08 | AC52: 128 | AD52: 520.8692593
A53: Non-IP | B53: Cirencester | C53: 74.6 | D53: 309.67 | E53: 309.67 | F53: 294.88 | G53: 445.7 | H53: 232.44 | I53: 497.44 | J53: 255.33 | K53: 365.94 | L53: 170.32 | M53: 345.94 | N53: 356.38 | O53: 648.11 | P53: 338.16 | Q53: 245.89 | R53: 317.45 | S53: 355.52 | T53: 317.45 | U53: 397.1 | V53: 321.53 | W53: 276.43 | X53: 543.68 | Y53: 236.93 | Z53: 899.11 | AA53: 481.72 | AB53: 301.67 | AC53: 139.89 | AD53: 351.0722222
A54: Non-IP | B54: Cockenzie Power Station | C54: 751.94 | D54: 602.08 | E54: 602.08 | F54: 614.44 | G54: 463.41 | H54: 729.08 | I54: 319.33 | J54: 554.93 | K54: 337.96 | L54: 770.98 | M54: 399.41 | N54: 456.4 | O54: 217.37 | P54: 381.62 | Q54: 564.37 | R54: 377.69 | S54: 355.16 | T54: 377.69 | U54: 723.84 | V54: 922.19 | W54: 537.24 | X54: 285.16 | Y54: 524.4 | Z54: 223.08 | AA54: 247.77 | AB54: 462.69 | AC54: 817.23 | AD54: 504.4274074
A55: Non-IP | B55: Coffinswell | C55: 186.54 | D55: 501.97 | E55: 501.97 | F55: 487.18 | G55: 638 | H55: 223.44 | I55: 689.74 | J55: 447.63 | K55: 558.24 | L55: 362.62 | M55: 538.24 | N55: 548.68 | O55: 840.41 | P55: 530.46 | Q55: 438.19 | R55: 509.75 | S55: 547.82 | T55: 509.75 | U55: 542.81 | V55: 513.83 | W55: 468.73 | X55: 735.98 | Y55: 429.23 | Z55: 1091.41 | AA55: 674.02 | AB55: 493.97 | AC55: 130.89 | AD55: 523.7592593
A56: Non-IP | B56: Coldstream | C56: 694 | D56: 544.14 | E56: 544.14 | F56: 555.57 | G56: 404.54 | H56: 671.14 | I56: 250.5 | J56: 496.06 | K56: 280.02 | L56: 713.04 | M56: 341.47 | N56: 397.53 | O56: 136.47 | P56: 323.68 | Q56: 505.5 | R56: 319.75 | S56: 297.22 | T56: 319.75 | U56: 665.9 | V56: 864.25 | W56: 478.37 | X56: 204.26 | Y56: 466.46 | Z56: 303.98 | AA56: 189.83 | AB56: 404.75 | AC56: 759.29 | AD56: 449.3188889
A57: Non-IP | B57: Corbridge | C57: 603.77 | D57: 453.91 | E57: 453.91 | F57: 466.27 | G57: 315.24 | H57: 580.91 | I57: 171.16 | J57: 406.76 | K57: 189.79 | L57: 622.81 | M57: 251.24 | N57: 308.23 | O57: 226.7 | P57: 233.45 | Q57: 416.2 | R57: 229.52 | S57: 206.99 | T57: 229.52 | U57: 575.67 | V57: 774.02 | W57: 389.07 | X57: 217.4 | Y57: 376.23 | Z57: 371.25 | AA57: 99.6 | AB57: 314.52 | AC57: 669.06 | AD57: 376.0444444
A58: Non-IP | B58: Coryton 2 (Thames Haven) Power Station | C58: 425.39 | D58: 188.39 | E58: 188.39 | F58: 431.06 | G58: 564.08 | H58: 290.86 | I58: 587.46 | J58: 391.51 | K58: 366.13 | L58: 444.43 | M58: 346.13 | N58: 492.56 | O58: 738.13 | P58: 338.35 | Q58: 382.07 | R58: 317.64 | S58: 355.71 | T58: 317.64 | U58: 28.51 | V58: 595.64 | W58: 412.61 | X58: 633.7 | Y58: 193.12 | Z58: 918.41 | AA58: 481.91 | AB58: 301.86 | AC58: 383.41 | AD58: 411.6703704
A59: Non-IP | B59: Cowpen Bewley | C59: 532.85 | D59: 382.99 | E59: 382.99 | F59: 405.62 | G59: 254.59 | H59: 509.99 | I59: 134.23 | J59: 346.11 | K59: 118.87 | L59: 551.89 | M59: 180.32 | N59: 247.58 | O59: 284.9 | P59: 162.53 | Q59: 355.55 | R59: 158.6 | S59: 136.07 | T59: 158.6 | U59: 504.75 | V59: 703.1 | W59: 328.42 | X59: 180.47 | Y59: 305.31 | Z59: 465.18 | AA59: 5.67 | AB59: 243.6 | AC59: 598.14 | AD59: 319.96
A60: Non-IP | B60: Crawley Down | C60: 205.4 | D60: 341.36 | E60: 341.36 | F60: 472.36 | G60: 605.38 | H60: 7.55 | I60: 628.76 | J60: 432.81 | K60: 407.43 | L60: 381.48 | M60: 387.43 | N60: 533.86 | O60: 779.43 | P60: 379.65 | Q60: 423.37 | R60: 358.94 | S60: 397.01 | T60: 358.94 | U60: 326.92 | V60: 532.69 | W60: 453.91 | X60: 675 | Y60: 234.42 | Z60: 959.71 | AA60: 523.21 | AB60: 343.16 | AC60: 89.07 | AD60: 428.9114815
A61: Non-IP | B61: Deborah Storage (Bacton) | C61: 366.47 | D61: 0 | E61: 0 | F61: 372.14 | G61: 470.83 | H61: 333.81 | I61: 494.21 | J61: 332.59 | K61: 272.88 | L61: 385.51 | M61: 252.88 | N61: 433.64 | O61: 644.88 | P61: 245.1 | Q61: 323.15 | R61: 224.39 | S61: 262.46 | T61: 224.39 | U61: 216.9 | V61: 536.72 | W61: 353.69 | X61: 540.45 | Y61: 111.1 | Z61: 825.16 | AA61: 388.66 | AB61: 208.61 | AC61: 426.36 | AD61: 342.4807407
A62: Non-IP | B62: Deeside | C62: 351.71 | D62: 372.17 | E62: 372.17 | F62: 0.57 | G62: 253.36 | H62: 464.84 | I62: 305.1 | J62: 59.54 | K62: 428.44 | L62: 370.75 | M62: 408.44 | N62: 164.04 | O62: 455.77 | P62: 400.66 | Q62: 52.09 | R62: 379.95 | S62: 418.02 | T62: 379.95 | U62: 459.6 | V62: 521.96 | W62: 84.09 | X62: 351.34 | Y62: 299.43 | Z62: 706.77 | AA62: 411.32 | AB62: 364.17 | AC62: 417 | AD62: 342.712963
A63: Non-IP | B63: Didcot | C63: 298.17 | D63: 279.48 | E63: 279.48 | F63: 410.48 | G63: 543.5 | H63: 89.29 | I63: 566.88 | J63: 370.93 | K63: 345.55 | L63: 423.85 | M63: 325.55 | N63: 471.98 | O63: 717.55 | P63: 317.77 | Q63: 361.49 | R63: 297.06 | S63: 335.13 | T63: 297.06 | U63: 265.04 | V63: 575.06 | W63: 392.03 | X63: 613.12 | Y63: 172.54 | Z63: 897.83 | AA63: 461.33 | AB63: 281.28 | AC63: 181.84 | AD63: 391.5285185
A64: Non-IP | B64: Dowlais | C64: 219.06 | D64: 377.45 | E64: 377.45 | F64: 362.66 | G64: 513.48 | H64: 376.9 | I64: 565.22 | J64: 323.11 | K64: 433.72 | L64: 8.06 | M64: 413.72 | N64: 424.16 | O64: 715.89 | P64: 405.94 | Q64: 313.67 | R64: 385.23 | S64: 423.3 | T64: 385.23 | U64: 464.88 | V64: 159.27 | W64: 344.21 | X64: 611.46 | Y64: 304.71 | Z64: 966.89 | AA64: 549.5 | AB64: 369.45 | AC64: 284.35 | AD64: 410.3322222
A65: Non-IP | B65: Drakelow Power Station | C65: 228.51 | D65: 234.97 | E65: 234.97 | F65: 137.17 | G65: 287.99 | H65: 327.64 | I65: 339.73 | J65: 97.62 | K65: 291.24 | L65: 247.55 | M65: 271.24 | N65: 198.67 | O65: 490.4 | P65: 263.46 | Q65: 88.18 | R65: 242.75 | S65: 280.82 | T65: 242.75 | U65: 322.4 | V65: 398.76 | W65: 118.72 | X65: 385.97 | Y65: 162.23 | Z65: 741.4 | AA65: 407.02 | AB65: 226.97 | AC65: 293.8 | AD65: 280.1085185
A66: Non-IP | B66: Drointon | C66: 237.72 | D66: 258.18 | E66: 258.18 | F66: 113.96 | G66: 264.78 | H66: 350.85 | I66: 316.52 | J66: 74.41 | K66: 314.45 | L66: 256.76 | M66: 294.45 | N66: 175.46 | O66: 467.19 | P66: 286.67 | Q66: 64.97 | R66: 265.96 | S66: 304.03 | T66: 265.96 | U66: 345.61 | V66: 407.97 | W66: 95.51 | X66: 362.76 | Y66: 185.44 | Z66: 718.19 | AA66: 422.74 | AB66: 250.18 | AC66: 303.01 | AD66: 283.7744444
A67: Non-IP | B67: Drum | C67: 726.78 | D67: 666.75 | E67: 666.75 | F67: 477.61 | G67: 326.58 | H67: 793.75 | I67: 172.54 | J67: 418.1 | K67: 402.63 | L67: 745.82 | M67: 464.08 | N67: 319.57 | O67: 58.51 | P67: 446.29 | Q67: 427.54 | R67: 442.36 | S67: 419.83 | T67: 442.36 | U67: 788.51 | V67: 897.03 | W67: 400.41 | X67: 126.3 | Y67: 589.07 | Z67: 229.13 | AA67: 312.44 | AB67: 527.36 | AC67: 792.07 | AD67: 484.4507407
A68: Non-IP | B68: Dyffryn Clydach | C68: 261.27 | D68: 419.66 | E68: 419.66 | F68: 404.87 | G68: 555.69 | H68: 419.11 | I68: 607.43 | J68: 365.32 | K68: 475.93 | L68: 34.15 | M68: 455.93 | N68: 466.37 | O68: 758.1 | P68: 448.15 | Q68: 355.88 | R68: 427.44 | S68: 465.51 | T68: 427.44 | U68: 507.09 | V68: 125.2 | W68: 386.42 | X68: 653.67 | Y68: 346.92 | Z68: 1009.1 | AA68: 591.71 | AB68: 411.66 | AC68: 326.56 | AD68: =AVERAGE(C68:AC68) -> 449.12
A69: Non-IP | B69: Dynevor Max Refill | C69: 227.12 | D69: 385.51 | E69: 385.51 | F69: 370.72 | G69: 521.54 | H69: 384.96 | I69: 573.28 | J69: 331.17 | K69: 441.78 | L69: 0 | M69: 421.78 | N69: 432.22 | O69: 723.95 | P69: 414 | Q69: 321.73 | R69: 393.29 | S69: 431.36 | T69: 393.29 | U69: 472.94 | V69: 151.21 | W69: 352.27 | X69: 619.52 | Y69: 312.77 | Z69: 974.95 | AA69: 557.56 | AB69: 377.51 | AC69: 292.41 | AD69: 417.1981481
A70: Non-IP | B70: Eastoft (Keadby Blackstart) | C70: 380.94 | D70: 231.08 | E70: 231.08 | F70: 386.61 | G70: 239.75 | H70: 358.08 | I70: 263.13 | J70: 331.27 | K70: 102.34 | L70: 399.98 | M70: 105.21 | N70: 232.74 | O70: 413.8 | P70: 87.42 | Q70: 337.62 | R70: 6.69 | S70: 91.92 | T70: 6.69 | U70: 352.84 | V70: 551.19 | W70: 313.58 | X70: 309.37 | Y70: 153.4 | Z70: 594.08 | AA70: 157.58 | AB70: 91.69 | AC70: 446.23 | AD70: 265.7892593
A71: Non-IP | B71: Eastoft (Keadby) | C71: 380.94 | D71: 231.08 | E71: 231.08 | F71: 386.61 | G71: 239.75 | H71: 358.08 | I71: 263.13 | J71: 331.27 | K71: 102.34 | L71: 399.98 | M71: 105.21 | N71: 232.74 | O71: 413.8 | P71: 87.42 | Q71: 337.62 | R71: 6.69 | S71: 91.92 | T71: 6.69 | U71: 352.84 | V71: 551.19 | W71: 313.58 | X71: 309.37 | Y71: 153.4 | Z71: 594.08 | AA71: 157.58 | AB71: 91.69 | AC71: 446.23 | AD71: 265.7892593
A72: Non-IP | B72: Easton Grey | C72: 49.23 | D72: 317.24 | E72: 317.24 | F72: 302.45 | G72: 453.27 | H72: 207.07 | I72: 505.01 | J72: 262.9 | K72: 373.51 | L72: 177.89 | M72: 353.51 | N72: 363.95 | O72: 655.68 | P72: 345.73 | Q72: 253.46 | R72: 325.02 | S72: 363.09 | T72: 325.02 | U72: 404.67 | V72: 329.1 | W72: 284 | X72: 551.25 | Y72: 244.5 | Z72: 906.68 | AA72: 489.29 | AB72: 309.24 | AC72: 114.52 | AD72: 354.9822222
A73: Non-IP | B73: Ecclestone | C73: 336.14 | D73: 356.6 | E73: 356.6 | F73: 27.39 | G73: 245.28 | H73: 449.27 | I73: 297.02 | J73: 51.46 | K73: 412.87 | L73: 355.18 | M73: 392.87 | N73: 155.96 | O73: 447.69 | P73: 385.09 | Q73: 44.01 | R73: 364.38 | S73: 402.45 | T73: 364.38 | U73: 444.03 | V73: 506.39 | W73: 76.01 | X73: 343.26 | Y73: 283.86 | Z73: 698.69 | AA73: 403.24 | AB73: 348.6 | AC73: 401.43 | AD73: 331.487037
A74: Non-IP | B74: Elton | C74: 516.38 | D74: 366.52 | E74: 366.52 | F74: 389.15 | G74: 238.12 | H74: 493.52 | I74: 127.69 | J74: 329.64 | K74: 102.4 | L74: 535.42 | M74: 163.85 | N74: 231.11 | O74: 278.36 | P74: 146.06 | Q74: 339.08 | R74: 142.13 | S74: 119.6 | T74: 142.13 | U74: 488.28 | V74: 686.63 | W74: 311.95 | X74: 173.93 | Y74: 288.84 | Z74: 458.64 | AA74: 22.14 | AB74: 227.13 | AC74: 581.67 | AD74: 306.1811111
A75: Non-IP | B75: Enron Billingham | C75: 536 | D75: 386.14 | E75: 386.14 | F75: 408.77 | G75: 257.74 | H75: 513.14 | I75: 137.38 | J75: 349.26 | K75: 122.02 | L75: 555.04 | M75: 183.47 | N75: 250.73 | O75: 288.05 | P75: 165.68 | Q75: 358.7 | R75: 161.75 | S75: 139.22 | T75: 161.75 | U75: 507.9 | V75: 706.25 | W75: 331.57 | X75: 183.62 | Y75: 308.46 | Z75: 468.33 | AA75: 8.82 | AB75: 246.75 | AC75: 601.29 | AD75: 323.11
A76: Non-IP | B76: Epping Green (Enfield Energy, aka Brimsdown) | C76: 395.48 | D76: 191.3 | E76: 191.3 | F76: 401.15 | G76: 534.17 | H76: 260.95 | I76: 557.55 | J76: 361.6 | K76: 336.22 | L76: 414.52 | M76: 316.22 | N76: 462.65 | O76: 708.22 | P76: 308.44 | Q76: 352.16 | R76: 287.73 | S76: 325.8 | T76: 287.73 | U76: 85.78 | V76: 565.73 | W76: 382.7 | X76: 603.79 | Y76: 163.21 | Z76: 888.5 | AA76: 452 | AB76: 271.95 | AC76: 353.5 | AD76: 387.4203704
A77: Non-IP | B77: Evesham | C77: 108.14 | D77: 258.33 | E77: 258.33 | F77: 243.54 | G77: 394.36 | H77: 265.98 | I77: 446.1 | J77: 203.99 | K77: 314.6 | L77: 127.18 | M77: 294.6 | N77: 305.04 | O77: 596.77 | P77: 286.82 | Q77: 194.55 | R77: 266.11 | S77: 304.18 | T77: 266.11 | U77: 345.76 | V77: 278.39 | W77: 225.09 | X77: 492.34 | Y77: 185.59 | Z77: 847.77 | AA77: 430.38 | AB77: 250.33 | AC77: 173.43 | AD77: 309.7707407
A78: Non-IP | B78: Farningham | C78: 448.81 | D78: 211.81 | E78: 211.81 | F78: 454.48 | G78: 587.5 | H78: 314.28 | I78: 610.88 | J78: 414.93 | K78: 389.55 | L78: 467.85 | M78: 369.55 | N78: 515.98 | O78: 761.55 | P78: 361.77 | Q78: 405.49 | R78: 341.06 | S78: 379.13 | T78: 341.06 | U78: 34.13 | V78: 619.06 | W78: 436.03 | X78: 657.12 | Y78: 216.54 | Z78: 941.83 | AA78: 505.33 | AB78: 325.28 | AC78: 406.83 | AD78: 434.4311111
A79: Non-IP | B79: Farningham B | C79: 448.81 | D79: 211.81 | E79: 211.81 | F79: 454.48 | G79: 587.5 | H79: 314.28 | I79: 610.88 | J79: 414.93 | K79: 389.55 | L79: 467.85 | M79: 369.55 | N79: 515.98 | O79: 761.55 | P79: 361.77 | Q79: 405.49 | R79: 341.06 | S79: 379.13 | T79: 341.06 | U79: 34.13 | V79: 619.06 | W79: 436.03 | X79: 657.12 | Y79: 216.54 | Z79: 941.83 | AA79: 505.33 | AB79: 325.28 | AC79: 406.83 | AD79: 434.4311111
A80: Non-IP | B80: Ferny Knoll (AM Paper) | C80: 365.17 | D80: 385.63 | E80: 385.63 | F80: 116 | G80: 137.33 | H80: 478.3 | I80: 189.07 | J80: 56.49 | K80: 335.72 | L80: 384.21 | M80: 338.59 | N80: 48.01 | O80: 339.74 | P80: 320.8 | Q80: 65.93 | R80: 281.47 | S80: 325.3 | T80: 281.47 | U80: 473.06 | V80: 535.42 | W80: 38.8 | X80: 235.31 | Y80: 312.89 | Z80: 590.74 | AA80: 295.29 | AB80: 366.47 | AC80: 430.46 | AD80: 300.4925926
A81: Non-IP | B81: Fiddington | C81: 118.37 | D81: 276.76 | E81: 276.76 | F81: 261.97 | G81: 412.79 | H81: 276.21 | I81: 464.53 | J81: 222.42 | K81: 333.03 | L81: 109.07 | M81: 313.03 | N81: 323.47 | O81: 615.2 | P81: 305.25 | Q81: 212.98 | R81: 284.54 | S81: 322.61 | T81: 284.54 | U81: 364.19 | V81: 260.28 | W81: 243.52 | X81: 510.77 | Y81: 204.02 | Z81: 866.2 | AA81: 448.81 | AB81: 268.76 | AC81: 183.66 | AD81: 324.582963
A82: Non-IP | B82: Ganstead | C82: 393.45 | D82: 243.59 | E82: 243.59 | F82: 399.12 | G82: 271.4 | H82: 370.59 | I82: 259.38 | J82: 359.57 | K82: 29.29 | L82: 412.49 | M82: 32.16 | N82: 264.39 | O82: 410.05 | P82: 14.37 | Q82: 350.13 | R82: 79.74 | S82: 18.87 | T82: 79.74 | U82: 365.35 | V82: 563.7 | W82: 345.23 | X82: 305.62 | Y82: 165.91 | Z82: 590.33 | AA82: 153.83 | AB82: 104.2 | AC82: 458.74 | AD82: 269.8085185
A83: Non-IP | B83: Garton Max Refill (Aldbrough) | C83: 394.96 | D83: 245.1 | E83: 245.1 | F83: 400.63 | G83: 285.77 | H83: 372.1 | I83: 273.75 | J83: 361.08 | K83: 43.66 | L83: 414 | M83: 38.78 | N83: 278.76 | O83: 424.42 | P83: 0 | Q83: 351.64 | R83: 94.11 | S83: 33.24 | T83: 94.11 | U83: 366.86 | V83: 565.21 | W83: 359.6 | X83: 319.99 | Y83: 167.42 | Z83: 604.7 | AA83: 168.2 | AB83: 105.71 | AC83: 460.25 | AD83: 276.6351852
A84: Non-IP | B84: Gilwern | C84: 202.29 | D84: 360.68 | E84: 360.68 | F84: 345.89 | G84: 496.71 | H84: 360.13 | I84: 548.45 | J84: 306.34 | K84: 416.95 | L84: 24.83 | M84: 396.95 | N84: 407.39 | O84: 699.12 | P84: 389.17 | Q84: 296.9 | R84: 368.46 | S84: 406.53 | T84: 368.46 | U84: 448.11 | V84: 176.04 | W84: 327.44 | X84: 594.69 | Y84: 287.94 | Z84: 950.12 | AA84: 532.73 | AB84: 352.68 | AC84: 267.58 | AD84: 396.0466667
A85: Non-IP | B85: Glenmavis | C85: 704.91 | D85: 644.88 | E85: 644.88 | F85: 455.74 | G85: 304.71 | H85: 771.88 | I85: 150.67 | J85: 396.23 | K85: 380.76 | L85: 723.95 | M85: 442.21 | N85: 297.7 | O85: 0 | P85: 424.42 | Q85: 405.67 | R85: 420.49 | S85: 397.96 | T85: 420.49 | U85: 766.64 | V85: 875.16 | W85: 378.54 | X85: 104.43 | Y85: 567.2 | Z85: 287.64 | AA85: 290.57 | AB85: 505.49 | AC85: 770.2 | AD85: 464.2007407
A86: Non-IP | B86: Glenmavis Max Refill | C86: 704.91 | D86: 644.88 | E86: 644.88 | F86: 455.74 | G86: 304.71 | H86: 771.88 | I86: 150.67 | J86: 396.23 | K86: 380.76 | L86: 723.95 | M86: 442.21 | N86: 297.7 | O86: 0 | P86: 424.42 | Q86: 405.67 | R86: 420.49 | S86: 397.96 | T86: 420.49 | U86: 766.64 | V86: 875.16 | W86: 378.54 | X86: 104.43 | Y86: 567.2 | Z86: 287.64 | AA86: 290.57 | AB86: 505.49 | AC86: 770.2 | AD86: 464.2007407
A87: Non-IP | B87: Goole (Guardian Glass) | C87: 395.94 | D87: 246.08 | E87: 246.08 | F87: 375.78 | G87: 224.75 | H87: 373.08 | I87: 248.13 | J87: 316.27 | K87: 87.34 | L87: 414.98 | M87: 90.21 | N87: 217.74 | O87: 398.8 | P87: 72.42 | Q87: 325.71 | R87: 21.69 | S87: 76.92 | T87: 21.69 | U87: 367.84 | V87: 566.19 | W87: 298.58 | X87: 294.37 | Y87: 168.4 | Z87: 579.08 | AA87: 142.58 | AB87: 106.69 | AC87: 461.23 | AD87: 264.3914815
A88: Non-IP | B88: Gosberton | C88: 309.47 | D88: 126.84 | E88: 126.84 | F88: 315.14 | G88: 343.99 | H88: 276.03 | I88: 367.37 | J88: 275.59 | K88: 146.04 | L88: 328.51 | M88: 126.04 | N88: 336.98 | O88: 518.04 | P88: 118.26 | Q88: 266.15 | R88: 97.55 | S88: 135.62 | T88: 97.55 | U88: 270.79 | V88: 479.72 | W88: 296.69 | X88: 413.61 | Y88: 49.16 | Z88: 698.32 | AA88: 261.82 | AB88: 81.77 | AC88: 368.58 | AD88: 267.8692593
A89: Non-IP | B89: Gowkhall (Longannet) | C89: 715.84 | D89: 655.81 | E89: 655.81 | F89: 466.67 | G89: 315.64 | H89: 782.81 | I89: 161.6 | J89: 407.16 | K89: 391.69 | L89: 734.88 | M89: 453.14 | N89: 308.63 | O89: 47.57 | P89: 435.35 | Q89: 416.6 | R89: 431.42 | S89: 408.89 | T89: 431.42 | U89: 777.57 | V89: 886.09 | W89: 389.47 | X89: 115.36 | Y89: 578.13 | Z89: 240.21 | AA89: 301.5 | AB89: 516.42 | AC89: 781.13 | AD89: 474.3262963
A90: Non-IP | B90: Grain Power Station | C90: 453.9 | D90: 216.9 | E90: 216.9 | F90: 459.57 | G90: 592.59 | H90: 319.37 | I90: 615.97 | J90: 420.02 | K90: 394.64 | L90: 472.94 | M90: 374.64 | N90: 521.07 | O90: 766.64 | P90: 366.86 | Q90: 410.58 | R90: 346.15 | S90: 384.22 | T90: 346.15 | U90: 0 | V90: 624.15 | W90: 441.12 | X90: 662.21 | Y90: 221.63 | Z90: 946.92 | AA90: 510.42 | AB90: 330.37 | AC90: 411.92 | AD90: 438.0685185
A91: Non-IP | B91: Great Wilbraham | C91: 350.05 | D91: 118.29 | E91: 118.29 | F91: 355.72 | G91: 488.74 | H91: 215.52 | I91: 512.12 | J91: 316.17 | K91: 290.79 | L91: 369.09 | M91: 270.79 | N91: 417.22 | O91: 662.79 | P91: 263.01 | Q91: 306.73 | R91: 242.3 | S91: 280.37 | T91: 242.3 | U91: 131.43 | V91: 520.3 | W91: 337.27 | X91: 558.36 | Y91: 117.78 | Z91: 843.07 | AA91: 406.57 | AB91: 226.52 | AC91: 308.07 | AD91: 343.3207407
A92: Non-IP | B92: Guyzance | C92: 640.28 | D92: 490.42 | E92: 490.42 | F92: 502.78 | G92: 351.75 | H92: 617.42 | I92: 207.67 | J92: 443.27 | K92: 226.3 | L92: 659.32 | M92: 287.75 | N92: 344.74 | O92: 190.19 | P92: 269.96 | Q92: 452.71 | R92: 266.03 | S92: 243.5 | T92: 266.03 | U92: 612.18 | V92: 810.53 | W92: 425.58 | X92: 253.91 | Y92: 412.74 | Z92: 334.74 | AA92: 136.11 | AB92: 351.03 | AC92: 705.57 | AD92: 407.1455556
A93: Non-IP | B93: Hardwick | C93: 313.84 | D93: 228.85 | E93: 228.85 | F93: 359.85 | G93: 492.87 | H93: 104.96 | I93: 516.25 | J93: 320.3 | K93: 294.92 | L93: 373.22 | M93: 274.92 | N93: 421.35 | O93: 666.92 | P93: 267.14 | Q93: 310.86 | R93: 246.43 | S93: 284.5 | T93: 246.43 | U93: 214.41 | V93: 524.43 | W93: 341.4 | X93: 562.49 | Y93: 121.91 | Z93: 847.2 | AA93: 410.7 | AB93: 230.65 | AC93: 197.51 | AD93: 348.2651852
A94: Non-IP | B94: Harwarden (Shotton, aka Shotton Paper) | C94: 350.29 | D94: 370.75 | E94: 370.75 | F94: 1.39 | G94: 251.94 | H94: 463.42 | I94: 303.68 | J94: 58.12 | K94: 427.02 | L94: 369.33 | M94: 407.02 | N94: 162.62 | O94: 454.35 | P94: 399.24 | Q94: 50.67 | R94: 378.53 | S94: 416.6 | T94: 378.53 | U94: 458.18 | V94: 520.54 | W94: 82.67 | X94: 349.92 | Y94: 298.01 | Z94: 705.35 | AA94: 409.9 | AB94: 362.75 | AC94: 415.58 | AD94: 341.3759259
A95: Non-IP | B95: Hatfield Moor Max Refill | C95: 374.25 | D95: 224.39 | E95: 224.39 | F95: 379.92 | G95: 246.44 | H95: 351.39 | I95: 269.82 | J95: 337.96 | K95: 109.03 | L95: 393.29 | M95: 111.9 | N95: 239.43 | O95: 420.49 | P95: 94.11 | Q95: 330.93 | R95: 0 | S95: 98.61 | T95: 0 | U95: 346.15 | V95: 544.5 | W95: 320.27 | X95: 316.06 | Y95: 146.71 | Z95: 600.77 | AA95: 164.27 | AB95: 85 | AC95: 439.54 | AD95: 265.5414815
A96: Non-IP | B96: Hatfield Power Station | C96: 374.25 | D96: 224.39 | E96: 224.39 | F96: 379.92 | G96: 246.44 | H96: 351.39 | I96: 269.82 | J96: 337.96 | K96: 109.03 | L96: 393.29 | M96: 111.9 | N96: 239.43 | O96: 420.49 | P96: 94.11 | Q96: 330.93 | R96: 0 | S96: 98.61 | T96: 0 | U96: 346.15 | V96: 544.5 | W96: 320.27 | X96: 316.06 | Y96: 146.71 | Z96: 600.77 | AA96: 164.27 | AB96: 85 | AC96: 439.54 | AD96: 265.5414815
A97: Non-IP | B97: Hill Top Farm (Hole House Farm) | C97: 302.69 | D97: 323.15 | E97: 323.15 | F97: 52.06 | G97: 203.26 | H97: 415.82 | I97: 255 | J97: 9.44 | K97: 379.42 | L97: 321.73 | M97: 359.42 | N97: 113.94 | O97: 405.67 | P97: 351.64 | Q97: 0 | R97: 330.93 | S97: 369 | T97: 330.93 | U97: 410.58 | V97: 472.94 | W97: 33.99 | X97: 301.24 | Y97: 250.41 | Z97: 656.67 | AA97: 361.22 | AB97: 315.15 | AC97: 367.98 | AD97: 296.9418519
A98: Non-IP | B98: Hole House Max Refill | C98: 302.69 | D98: 323.15 | E98: 323.15 | F98: 52.06 | G98: 203.26 | H98: 415.82 | I98: 255 | J98: 9.44 | K98: 379.42 | L98: 321.73 | M98: 359.42 | N98: 113.94 | O98: 405.67 | P98: 351.64 | Q98: 0 | R98: 330.93 | S98: 369 | T98: 330.93 | U98: 410.58 | V98: 472.94 | W98: 33.99 | X98: 301.24 | Y98: 250.41 | Z98: 656.67 | AA98: 361.22 | AB98: 315.15 | AC98: 367.98 | AD98: 296.9418519
A99: Non-IP | B99: Holford | C99: 312.13 | D99: 332.59 | E99: 332.59 | F99: 59.51 | G99: 193.82 | H99: 425.26 | I99: 245.56 | J99: 0 | K99: 388.86 | L99: 331.17 | M99: 368.86 | N99: 104.5 | O99: 396.23 | P99: 361.08 | Q99: 9.44 | R99: 337.96 | S99: 378.44 | T99: 337.96 | U99: 420.02 | V99: 482.38 | W99: 24.55 | X99: 291.8 | Y99: 259.85 | Z99: 647.23 | AA99: 351.78 | AB99: 324.59 | AC99: 377.42 | AD99: 299.8362963
A100: Non-IP | B100: Hollingsgreen (Hays Chemicals) | C100: 304.26 | D100: 324.72 | E100: 324.72 | F100: 51.64 | G100: 201.69 | H100: 417.39 | I100: 253.43 | J100: 7.87 | K100: 380.99 | L100: 323.3 | M100: 360.99 | N100: 112.37 | O100: 404.1 | P100: 353.21 | Q100: 1.57 | R100: 332.5 | S100: 370.57 | T100: 332.5 | U100: 412.15 | V100: 474.51 | W100: 32.42 | X100: 299.67 | Y100: 251.98 | Z100: 655.1 | AA100: 359.65 | AB100: 316.72 | AC100: 369.55 | AD100: 297.3914815
A101: Non-IP | B101: Holmes Chapel | C101: 306.86 | D101: 327.32 | E101: 327.32 | F101: 80.72 | G101: 195.64 | H101: 419.99 | I101: 247.38 | J101: 41.17 | K101: 383.59 | L101: 325.9 | M101: 363.59 | N101: 106.32 | O101: 398.05 | P101: 355.81 | Q101: 31.73 | R101: 335.1 | S101: 373.17 | T101: 335.1 | U101: 414.75 | V101: 477.11 | W101: 26.37 | X101: 293.62 | Y101: 254.58 | Z101: 649.05 | AA101: 353.6 | AB101: 319.32 | AC101: 372.15 | AD101: 300.567037
A102: Non-IP | B102: Horndon | C102: 421.33 | D102: 184.33 | E102: 184.33 | F102: 427 | G102: 560.02 | H102: 286.8 | I102: 583.4 | J102: 387.45 | K102: 362.07 | L102: 440.37 | M102: 342.07 | N102: 488.5 | O102: 734.07 | P102: 334.29 | Q102: 378.01 | R102: 313.58 | S102: 351.65 | T102: 313.58 | U102: 32.57 | V102: 591.58 | W102: 408.55 | X102: 629.64 | Y102: 189.06 | Z102: 914.35 | AA102: 477.85 | AB102: 297.8 | AC102: 379.35 | AD102: 407.9111111
A103: Non-IP | B103: Hornsea Max Refill | C103: 412.32 | D103: 262.46 | E103: 262.46 | F103: 417.99 | G103: 290.27 | H103: 389.46 | I103: 247.29 | J103: 378.44 | K103: 17.2 | L103: 431.36 | M103: 51.03 | N103: 283.26 | O103: 397.96 | P103: 33.24 | Q103: 369 | R103: 98.61 | S103: 0 | T103: 98.61 | U103: 384.22 | V103: 582.57 | W103: 364.1 | X103: 293.53 | Y103: 184.78 | Z103: 578.24 | AA103: 141.74 | AB103: 123.07 | AC103: 477.61 | AD103: 280.4007407
A104: Non-IP | B104: Humbleton | C104: 686.7 | D104: 536.84 | E104: 536.84 | F104: 549.2 | G104: 398.17 | H104: 663.84 | I104: 254.09 | J104: 489.69 | K104: 272.72 | L104: 705.74 | M104: 334.17 | N104: 391.16 | O104: 152.13 | P104: 316.38 | Q104: 499.13 | R104: 312.45 | S104: 289.92 | T104: 312.45 | U104: 658.6 | V104: 856.95 | W104: 472 | X104: 219.92 | Y104: 459.16 | Z104: 296.68 | AA104: 182.53 | AB104: 397.45 | AC104: 751.99 | AD104: 444.3296296
A105: Non-IP | B105: Hume | C105: 707.94 | D105: 558.08 | E105: 558.08 | F105: 541.63 | G105: 390.6 | H105: 685.08 | I105: 236.56 | J105: 482.12 | K105: 293.96 | L105: 726.98 | M105: 355.41 | N105: 383.59 | O105: 122.53 | P105: 337.62 | Q105: 491.56 | R105: 333.69 | S105: 311.16 | T105: 333.69 | U105: 679.84 | V105: 878.19 | W105: 464.43 | X105: 190.32 | Y105: 480.4 | Z105: 317.92 | AA105: 203.77 | AB105: 418.69 | AC105: 773.23 | AD105: 453.9655556
A106: Non-IP | B106: Ilchester | C106: 85.99 | D106: 401.42 | E106: 401.42 | F106: 386.63 | G106: 537.45 | H106: 122.89 | I106: 589.19 | J106: 347.08 | K106: 457.69 | L106: 262.07 | M106: 437.69 | N106: 448.13 | O106: 739.86 | P106: 429.91 | Q106: 337.64 | R106: 409.2 | S106: 447.27 | T106: 409.2 | U106: 442.26 | V106: 413.28 | W106: 368.18 | X106: 635.43 | Y106: 328.68 | Z106: 990.86 | AA106: 573.47 | AB106: 393.42 | AC106: 30.34 | AD106: 423.2092593
A107: Non-IP | B107: Ipsden | C107: 269.76 | D107: 275.46 | E107: 275.46 | F107: 406.46 | G107: 539.48 | H107: 60.88 | I107: 562.86 | J107: 366.91 | K107: 341.53 | L107: 419.83 | M107: 321.53 | N107: 467.96 | O107: 713.53 | P107: 313.75 | Q107: 357.47 | R107: 293.04 | S107: 331.11 | T107: 293.04 | U107: 261.02 | V107: 571.04 | W107: 388.01 | X107: 609.1 | Y107: 168.52 | Z107: 893.81 | AA107: 457.31 | AB107: 277.26 | AC107: 153.43 | AD107: 384.7985185
A108: Non-IP | B108: Ipsden 2 | C108: 269.76 | D108: 275.46 | E108: 275.46 | F108: 406.46 | G108: 539.48 | H108: 60.88 | I108: 562.86 | J108: 366.91 | K108: 341.53 | L108: 419.83 | M108: 321.53 | N108: 467.96 | O108: 713.53 | P108: 313.75 | Q108: 357.47 | R108: 293.04 | S108: 331.11 | T108: 293.04 | U108: 261.02 | V108: 571.04 | W108: 388.01 | X108: 609.1 | Y108: 168.52 | Z108: 893.81 | AA108: 457.31 | AB108: 277.26 | AC108: 153.43 | AD108: 384.7985185
A109: Non-IP | B109: Keld | C109: 489.66 | D109: 457.99 | E109: 457.99 | F109: 240.49 | G109: 89.46 | H109: 584.99 | I109: 65.79 | J109: 180.98 | K109: 287.85 | L109: 508.7 | M109: 290.72 | N109: 82.45 | O109: 216.46 | P109: 272.93 | Q109: 190.42 | R109: 233.6 | S109: 277.43 | T109: 233.6 | U109: 579.75 | V109: 659.91 | W109: 163.29 | X109: 112.03 | Y109: 380.31 | Z109: 467.46 | AA109: 205.69 | AB109: 318.6 | AC109: 554.95 | AD109: 318.6481481
A110: Non-IP | B110: Kenn | C110: 163.62 | D110: 479.05 | E110: 479.05 | F110: 464.26 | G110: 615.08 | H110: 200.52 | I110: 666.82 | J110: 424.71 | K110: 535.32 | L110: 339.7 | M110: 515.32 | N110: 525.76 | O110: 817.49 | P110: 507.54 | Q110: 415.27 | R110: 486.83 | S110: 524.9 | T110: 486.83 | U110: 519.89 | V110: 490.91 | W110: 445.81 | X110: 713.06 | Y110: 406.31 | Z110: 1068.49 | AA110: 651.1 | AB110: 471.05 | AC110: 107.97 | AD110: 500.8392593
A111: Non-IP | B111: Kinknockie | C111: 940.37 | D111: 809.62 | E111: 809.62 | F111: 691.2 | G111: 540.17 | H111: 936.62 | I111: 386.13 | J111: 631.69 | K111: 545.5 | L111: 959.41 | M111: 606.95 | N111: 533.16 | O111: 272.1 | P111: 589.16 | Q111: 641.13 | R111: 585.23 | S111: 562.7 | T111: 585.23 | U111: 931.38 | V111: 1110.62 | W111: 614 | X111: 339.89 | Y111: 731.94 | Z111: 15.54 | AA111: 455.31 | AB111: 670.23 | AC111: 1005.66 | AD111: 648.1688889
A112: Non-IP | B112: Kirkstead | C112: 339.19 | D112: 156.56 | E112: 156.56 | F112: 344.86 | G112: 314.27 | H112: 305.75 | I112: 337.65 | J112: 305.31 | K112: 116.32 | L112: 358.23 | M112: 96.32 | N112: 307.26 | O112: 488.32 | P112: 88.54 | Q112: 295.87 | R112: 67.83 | S112: 105.9 | T112: 67.83 | U112: 300.51 | V112: 509.44 | W112: 326.41 | X112: 383.89 | Y112: 78.88 | Z112: 668.6 | AA112: 232.1 | AB112: 52.05 | AC112: 398.3 | AD112: 266.7685185
A113: Non-IP | B113: Langage Power Station | C113: 226.18 | D113: 541.61 | E113: 541.61 | F113: 526.82 | G113: 677.64 | H113: 263.08 | I113: 729.38 | J113: 487.27 | K113: 597.88 | L113: 402.26 | M113: 577.88 | N113: 588.32 | O113: 880.05 | P113: 570.1 | Q113: 477.83 | R113: 549.39 | S113: 587.46 | T113: 549.39 | U113: 582.45 | V113: 553.47 | W113: 508.37 | X113: 775.62 | Y113: 468.87 | Z113: 1131.05 | AA113: 713.66 | AB113: 533.61 | AC113: 170.53 | AD113: 563.3992593
A114: Non-IP | B114: Langholm | C114: 570.71 | D114: 510.68 | E114: 510.68 | F114: 321.54 | G114: 170.51 | H114: 637.68 | I114: 16.47 | J114: 262.03 | K114: 246.56 | L114: 589.75 | M114: 308.01 | N114: 163.5 | O114: 134.2 | P114: 290.22 | Q114: 271.47 | R114: 286.29 | S114: 263.76 | T114: 286.29 | U114: 632.44 | V114: 740.96 | W114: 244.34 | X114: 29.77 | Y114: 433 | Z114: 385.2 | AA114: 156.37 | AB114: 371.29 | AC114: 636 | AD114: 350.7303704
A115: Non-IP | B115: Lauderhill | C115: 724.14 | D115: 574.28 | E115: 574.28 | F115: 525.43 | G115: 374.4 | H115: 701.28 | I115: 220.36 | J115: 465.92 | K115: 310.16 | L115: 743.18 | M115: 371.61 | N115: 367.39 | O115: 106.33 | P115: 353.82 | Q115: 475.36 | R115: 349.89 | S115: 327.36 | T115: 349.89 | U115: 696.04 | V115: 894.39 | W115: 448.23 | X115: 174.12 | Y115: 496.6 | Z115: 334.12 | AA115: 219.97 | AB115: 434.89 | AC115: 789.43 | AD115: 459.3655556
A116: Non-IP | B116: Leamington | C116: 145.72 | D116: 220.75 | E116: 220.75 | F116: 205.96 | G116: 356.78 | H116: 303.56 | I116: 408.52 | J116: 166.41 | K116: 277.02 | L116: 164.76 | M116: 257.02 | N116: 267.46 | O116: 559.19 | P116: 249.24 | Q116: 156.97 | R116: 228.53 | S116: 266.6 | T116: 228.53 | U116: 308.18 | V116: 315.97 | W116: 187.51 | X116: 454.76 | Y116: 148.01 | Z116: 810.19 | AA116: 392.8 | AB116: 212.75 | AC116: 211.01 | AD116: 286.1092593
A117: Non-IP | B117: Little Burdon | C117: 522.38 | D117: 372.52 | E117: 372.52 | F117: 383.15 | G117: 232.12 | H117: 499.52 | I117: 123.42 | J117: 323.64 | K117: 108.4 | L117: 541.42 | M117: 169.85 | N117: 225.11 | O117: 274.09 | P117: 152.06 | Q117: 333.08 | R117: 148.13 | S117: 125.6 | T117: 148.13 | U117: 494.28 | V117: 692.63 | W117: 305.95 | X117: 169.66 | Y117: 294.84 | Z117: 454.37 | AA117: 28.14 | AB117: 233.13 | AC117: 587.67 | AD117: 307.992963
A118: Non-IP | B118: Littleton Drew | C118: 37.89 | D118: 328.68 | E118: 328.68 | F118: 313.89 | G118: 464.71 | H118: 195.73 | I118: 516.45 | J118: 274.34 | K118: 384.95 | L118: 189.33 | M118: 364.95 | N118: 375.39 | O118: 667.12 | P118: 357.17 | Q118: 264.9 | R118: 336.46 | S118: 374.53 | T118: 336.46 | U118: 416.11 | V118: 340.54 | W118: 295.44 | X118: 562.69 | Y118: 255.94 | Z118: 918.12 | AA118: 500.73 | AB118: 320.68 | AC118: 103.18 | AD118: 363.8911111
A119: Non-IP | B119: Lockerbie | C119: 585.47 | D119: 525.44 | E119: 525.44 | F119: 336.3 | G119: 185.27 | H119: 652.44 | I119: 31.23 | J119: 276.79 | K119: 261.32 | L119: 604.51 | M119: 322.77 | N119: 178.26 | O119: 121.23 | P119: 304.98 | Q119: 286.23 | R119: 301.05 | S119: 278.52 | T119: 301.05 | U119: 647.2 | V119: 755.72 | W119: 259.1 | X119: 16.8 | Y119: 447.76 | Z119: 372.23 | AA119: 171.13 | AB119: 386.05 | AC119: 650.76 | AD119: 362.4092593
A120: Non-IP | B120: Lower Quinton | C120: 123.72 | D120: 247.32 | E120: 247.32 | F120: 232.53 | G120: 383.35 | H120: 281.56 | I120: 435.09 | J120: 192.98 | K120: 303.59 | L120: 142.76 | M120: 283.59 | N120: 294.03 | O120: 585.76 | P120: 275.81 | Q120: 183.54 | R120: 255.1 | S120: 293.17 | T120: 255.1 | U120: 334.75 | V120: 293.97 | W120: 214.08 | X120: 481.33 | Y120: 174.58 | Z120: 836.76 | AA120: 419.37 | AB120: 239.32 | AC120: 189.01 | AD120: 303.6848148
A121: Non-IP | B121: Lupton | C121: 451.35 | D121: 419.68 | E121: 419.68 | F121: 202.18 | G121: 51.15 | H121: 546.68 | I121: 102.89 | J121: 142.67 | K121: 249.54 | L121: 470.39 | M121: 252.41 | N121: 44.14 | O121: 253.56 | P121: 234.62 | Q121: 152.11 | R121: 195.29 | S121: 239.12 | T121: 195.29 | U121: 541.44 | V121: 621.6 | W121: 124.98 | X121: 149.13 | Y121: 342 | Z121: 504.56 | AA121: 209.11 | AB121: 280.29 | AC121: 516.64 | AD121: 293.0555556
A122: Non-IP | B122: Luxborough Lane | C122: 406.82 | D122: 187.39 | E122: 187.39 | F122: 412.49 | G122: 545.51 | H122: 272.29 | I122: 568.89 | J122: 372.94 | K122: 347.56 | L122: 425.86 | M122: 327.56 | N122: 473.99 | O122: 719.56 | P122: 319.78 | Q122: 363.5 | R122: 299.07 | S122: 337.14 | T122: 299.07 | U122: 68 | V122: 577.07 | W122: 394.04 | X122: 615.13 | Y122: 174.55 | Z122: 899.84 | AA122: 463.34 | AB122: 283.29 | AC122: 364.84 | AD122: 396.5522222
A123: Non-IP | B123: Lyneham (Choakford) | C123: 226.18 | D123: 541.61 | E123: 541.61 | F123: 526.82 | G123: 677.64 | H123: 263.08 | I123: 729.38 | J123: 487.27 | K123: 597.88 | L123: 402.26 | M123: 577.88 | N123: 588.32 | O123: 880.05 | P123: 570.1 | Q123: 477.83 | R123: 549.39 | S123: 587.46 | T123: 549.39 | U123: 582.45 | V123: 553.47 | W123: 508.37 | X123: 775.62 | Y123: 468.87 | Z123: 1131.05 | AA123: 713.66 | AB123: 533.61 | AC123: 170.53 | AD123: 563.3992593
A124: Non-IP | B124: Maelor | C124: 328.16 | D124: 348.62 | E124: 348.62 | F124: 48.19 | G124: 252.84 | H124: 441.29 | I124: 304.58 | J124: 62.47 | K124: 404.89 | L124: 347.2 | M124: 384.89 | N124: 163.52 | O124: 455.25 | P124: 377.11 | Q124: 53.03 | R124: 356.4 | S124: 394.47 | T124: 356.4 | U124: 436.05 | V124: 498.41 | W124: 83.57 | X124: 350.82 | Y124: 275.88 | Z124: 706.25 | AA124: 410.8 | AB124: 340.62 | AC124: 393.45 | AD124: 330.5103704
A125: Non-IP | B125: Malpas | C125: 316.45 | D125: 336.91 | E125: 336.91 | F125: 47.08 | G125: 241.13 | H125: 429.58 | I125: 292.87 | J125: 50.76 | K125: 393.18 | L125: 335.49 | M125: 373.18 | N125: 151.81 | O125: 443.54 | P125: 365.4 | Q125: 41.32 | R125: 344.69 | S125: 382.76 | T125: 344.69 | U125: 424.34 | V125: 486.7 | W125: 71.86 | X125: 339.11 | Y125: 264.17 | Z125: 694.54 | AA125: 399.09 | AB125: 328.91 | AC125: 381.74 | AD125: 319.192963
A126: Non-IP | B126: Mappowder | C126: 116.33 | D126: 426.36 | E126: 426.36 | F126: 416.97 | G126: 567.79 | H126: 92.55 | I126: 619.53 | J126: 377.42 | K126: 488.03 | L126: 292.41 | M126: 468.03 | N126: 478.47 | O126: 770.2 | P126: 460.25 | Q126: 367.98 | R126: 439.54 | S126: 477.61 | T126: 439.54 | U126: 411.92 | V126: 443.62 | W126: 398.52 | X126: 665.77 | Y126: 319.42 | Z126: 1021.2 | AA126: 603.81 | AB126: 423.76 | AC126: 0 | AD126: 444.9403704
A127: Non-IP | B127: Marchwood Power Station | C127: 183.04 | D127: 359.65 | E127: 359.65 | F127: 483.68 | G127: 623.67 | H127: 25.84 | I127: 647.05 | J127: 444.13 | K127: 425.72 | L127: 359.12 | M127: 405.72 | N127: 545.18 | O127: 797.72 | P127: 397.94 | Q127: 434.69 | R127: 377.23 | S127: 415.3 | T127: 377.23 | U127: 345.21 | V127: 510.33 | W127: 465.23 | X127: 693.29 | Y127: 252.71 | Z127: 978 | AA127: 541.5 | AB127: 361.45 | AC127: 66.71 | AD127: 439.8885185
A128: Non-IP | B128: Market Harborough | C128: 193.07 | D128: 173.4 | E128: 173.4 | F128: 207.11 | G128: 357.93 | H128: 266.07 | I128: 409.67 | J128: 167.56 | K128: 229.67 | L128: 212.11 | M128: 209.67 | N128: 268.61 | O128: 560.34 | P128: 201.89 | Q128: 158.12 | R128: 181.18 | S128: 219.25 | T128: 181.18 | U128: 260.83 | V128: 363.32 | W128: 188.66 | X128: 455.91 | Y128: 100.66 | Z128: 781.95 | AA128: 345.45 | AB128: 165.4 | AC128: 258.36 | AD128: 270.0285185
A129: Non-IP | B129: Matching Green | C129: 381.8 | D129: 177.62 | E129: 177.62 | F129: 387.47 | G129: 520.49 | H129: 247.27 | I129: 543.87 | J129: 347.92 | K129: 322.54 | L129: 400.84 | M129: 302.54 | N129: 448.97 | O129: 694.54 | P129: 294.76 | Q129: 338.48 | R129: 274.05 | S129: 312.12 | T129: 274.05 | U129: 72.1 | V129: 552.05 | W129: 369.02 | X129: 590.11 | Y129: 149.53 | Z129: 874.82 | AA129: 438.32 | AB129: 258.27 | AC129: 339.82 | AD129: 373.7403704
A130: Non-IP | B130: Medway (aka Isle of Grain Power Station, NOT Grain Power) | C130: 455.19 | D130: 218.19 | E130: 218.19 | F130: 460.86 | G130: 593.88 | H130: 320.66 | I130: 617.26 | J130: 421.31 | K130: 395.93 | L130: 474.23 | M130: 375.93 | N130: 522.36 | O130: 767.93 | P130: 368.15 | Q130: 411.87 | R130: 347.44 | S130: 385.51 | T130: 347.44 | U130: 1.29 | V130: 625.44 | W130: 442.41 | X130: 663.5 | Y130: 222.92 | Z130: 948.21 | AA130: 511.71 | AB130: 331.66 | AC130: 413.21 | AD130: 439.3585185
A131: Non-IP | B131: Melkinthorpe | C131: 499.42 | D131: 467.75 | E131: 467.75 | F131: 250.25 | G131: 99.22 | H131: 594.75 | I131: 54.82 | J131: 190.74 | K131: 284.91 | L131: 518.46 | M131: 300.48 | N131: 92.21 | O131: 205.49 | P131: 282.69 | Q131: 200.18 | R131: 243.36 | S131: 287.19 | T131: 243.36 | U131: 589.51 | V131: 669.67 | W131: 173.05 | X131: 101.06 | Y131: 390.07 | Z131: 456.49 | AA131: 194.72 | AB131: 328.36 | AC131: 564.71 | AD131: 324.0988889
A132: Non-IP | B132: Mickle Trafford | C132: 333.96 | D132: 354.42 | E132: 354.42 | F132: 17.72 | G132: 235.61 | H132: 447.09 | I132: 287.35 | J132: 41.79 | K132: 410.69 | L132: 353 | M132: 390.69 | N132: 146.29 | O132: 438.02 | P132: 382.91 | Q132: 34.34 | R132: 362.2 | S132: 400.27 | T132: 362.2 | U132: 441.85 | V132: 504.21 | W132: 66.34 | X132: 333.59 | Y132: 281.68 | Z132: 689.02 | AA132: 393.57 | AB132: 346.42 | AC132: 399.25 | AD132: =AVERAGE(C132:AC132) -> 326.2555556
A133: Non-IP | B133: Middle Stoke (Damhead Creek, aka Kingsnorth Power Station) | C133: 449.19 | D133: 212.19 | E133: 212.19 | F133: 454.86 | G133: 587.88 | H133: 314.66 | I133: 611.26 | J133: 415.31 | K133: 389.93 | L133: 468.23 | M133: 369.93 | N133: 516.36 | O133: 761.93 | P133: 362.15 | Q133: 405.87 | R133: 341.44 | S133: 379.51 | T133: 341.44 | U133: 4.71 | V133: 619.44 | W133: 436.41 | X133: 657.5 | Y133: 216.92 | Z133: 942.21 | AA133: 505.71 | AB133: 325.66 | AC133: 407.21 | AD133: 433.7074074
A134: Non-IP | B134: Milwich | C134: 246.95 | D134: 267.41 | E134: 267.41 | F134: 104.73 | G134: 255.55 | H134: 360.08 | I134: 307.29 | J134: 65.18 | K134: 323.68 | L134: 265.99 | M134: 303.68 | N134: 166.23 | O134: 457.96 | P134: 295.9 | Q134: 55.74 | R134: 275.19 | S134: 313.26 | T134: 275.19 | U134: 354.84 | V134: 417.2 | W134: 86.28 | X134: 353.53 | Y134: 194.67 | Z134: 708.96 | AA134: 413.51 | AB134: 259.41 | AC134: 312.24 | AD134: 285.4837037
A135: IP | B135: Moffat (Irish Interconnector) | C135: 600.48 | D135: 540.45 | E135: 540.45 | F135: 351.31 | G135: 200.28 | H135: 667.45 | I135: 46.24 | J135: 291.8 | K135: 276.33 | L135: 619.52 | M135: 337.78 | N135: 193.27 | O135: 104.43 | P135: 319.99 | Q135: 301.24 | R135: 316.06 | S135: 293.53 | T135: 316.06 | U135: 662.21 | V135: 770.73 | W135: 274.11 | X135: 0 | Y135: 462.77 | Z135: 355.43 | AA135: 186.14 | AB135: 401.06 | AC135: 665.77 | AD135: 373.8848148
A136: Non-IP | B136: Netherhowcleugh | C136: 611.27 | D136: 551.24 | E136: 551.24 | F136: 362.1 | G136: 211.07 | H136: 678.24 | I136: 57.03 | J136: 302.59 | K136: 287.12 | L136: 630.31 | M136: 348.57 | N136: 204.06 | O136: 94.55 | P136: 330.78 | Q136: 312.03 | R136: 326.85 | S136: 304.32 | T136: 326.85 | U136: 673 | V136: 781.52 | W136: 284.9 | X136: 10.79 | Y136: 473.56 | Z136: 345.55 | AA136: 196.93 | AB136: 411.85 | AC136: 676.56 | AD136: 383.1437037
A137: Non-IP | B137: Pannal | C137: 458.58 | D137: 308.72 | E137: 308.72 | F137: 313.14 | G137: 162.11 | H137: 435.72 | I137: 193.43 | J137: 253.63 | K137: 138.58 | L137: 477.62 | M137: 141.45 | N137: 155.1 | O137: 344.1 | P137: 123.66 | Q137: 263.07 | R137: 84.33 | S137: 128.16 | T137: 84.33 | U137: 430.48 | V137: 628.83 | W137: 235.94 | X137: 239.67 | Y137: 231.04 | Z137: 524.38 | AA137: 98.15 | AB137: 169.33 | AC137: 523.87 | AD137: 276.1533333
A138: Non-IP | B138: Partington | C138: 333.23 | D138: 353.69 | E138: 353.69 | F138: 84.06 | G138: 176.13 | H138: 446.36 | I138: 227.87 | J138: 24.55 | K138: 374.52 | L138: 352.27 | M138: 377.39 | N138: 86.81 | O138: 378.54 | P138: 359.6 | Q138: 33.99 | R138: 320.27 | S138: 364.1 | T138: 320.27 | U138: 441.12 | V138: 503.48 | W138: 0 | X138: 274.11 | Y138: 280.95 | Z138: 629.54 | AA138: 334.09 | AB138: 345.69 | AC138: 398.52 | AD138: 302.7718519
A139: Non-IP | B139: Partington Max Refill | C139: 333.23 | D139: 353.69 | E139: 353.69 | F139: 84.06 | G139: 176.13 | H139: 446.36 | I139: 227.87 | J139: 24.55 | K139: 374.52 | L139: 352.27 | M139: 377.39 | N139: 86.81 | O139: 378.54 | P139: 359.6 | Q139: 33.99 | R139: 320.27 | S139: 364.1 | T139: 320.27 | U139: 441.12 | V139: 503.48 | W139: 0 | X139: 274.11 | Y139: 280.95 | Z139: 629.54 | AA139: 334.09 | AB139: 345.69 | AC139: 398.52 | AD139: 302.7718519
A140: Non-IP | B140: Paull | C140: 379.46 | D140: 229.6 | E140: 229.6 | F140: 385.13 | G140: 285.39 | H140: 356.6 | I140: 273.37 | J140: 345.58 | K140: 43.28 | L140: 398.5 | M140: 23.28 | N140: 278.38 | O140: 424.04 | P140: 15.5 | Q140: 336.14 | R140: 93.73 | S140: 32.86 | T140: 93.73 | U140: 351.36 | V140: 549.71 | W140: 359.22 | X140: 319.61 | Y140: 151.92 | Z140: 604.32 | AA140: 167.82 | AB140: 90.21 | AC140: 444.75 | AD140: 269.0033333
A141: Non-IP | B141: Pembroke Power Station | C141: 371.29 | D141: 529.68 | E141: 529.68 | F141: 514.89 | G141: 665.71 | H141: 529.13 | I141: 717.45 | J141: 475.34 | K141: 585.95 | L141: 144.17 | M141: 565.95 | N141: 576.39 | O141: 868.12 | P141: 558.17 | Q141: 465.9 | R141: 537.46 | S141: 575.53 | T141: 537.46 | U141: 617.11 | V141: 7.04 | W141: 496.44 | X141: 763.69 | Y141: 456.94 | Z141: 1119.12 | AA141: 701.73 | AB141: 521.68 | AC141: 436.58 | AD141: 550.6888889
A142: Non-IP | B142: Peterborough (Peterborough Power Station) | C142: 257.89 | D142: 123.26 | E142: 123.26 | F142: 263.56 | G142: 396.58 | H142: 235.03 | I142: 419.96 | J142: 224.01 | K142: 198.63 | L142: 276.93 | M142: 178.63 | N142: 325.06 | O142: 570.63 | P142: 170.85 | Q142: 214.57 | R142: 150.14 | S142: 188.21 | T142: 150.14 | U142: 229.79 | V142: 428.14 | W142: 245.11 | X142: 466.2 | Y142: 50.52 | Z142: 750.91 | AA142: 314.41 | AB142: 134.36 | AC142: 323.18 | AD142: 274.442963
A143: Non-IP | B143: Peterborough Eye (Tee) | C143: 257.89 | D143: 123.26 | E143: 123.26 | F143: 263.56 | G143: 396.58 | H143: 235.03 | I143: 419.96 | J143: 224.01 | K143: 198.63 | L143: 276.93 | M143: 178.63 | N143: 325.06 | O143: 570.63 | P143: 170.85 | Q143: 214.57 | R143: 150.14 | S143: 188.21 | T143: 150.14 | U143: 229.79 | V143: 428.14 | W143: 245.11 | X143: 466.2 | Y143: 50.52 | Z143: 750.91 | AA143: 314.41 | AB143: 134.36 | AC143: 323.18 | AD143: 274.442963
A144: Non-IP | B144: Peters Green | C144: 352 | D144: 179.11 | E144: 179.11 | F144: 357.67 | G144: 490.69 | H144: 167 | I144: 514.07 | J144: 318.12 | K144: 292.74 | L144: 371.04 | M144: 272.74 | N144: 419.17 | O144: 664.74 | P144: 264.96 | Q144: 308.68 | R144: 244.25 | S144: 282.32 | T144: 244.25 | U144: 164.67 | V144: 522.25 | W144: 339.22 | X144: 560.31 | Y144: 119.73 | Z144: 845.02 | AA144: 408.52 | AB144: 228.47 | AC144: 259.55 | AD144: 347.0518519
A145: Non-IP | B145: Peters Green South Mimms | C145: 352 | D145: 179.11 | E145: 179.11 | F145: 357.67 | G145: 490.69 | H145: 167 | I145: 514.07 | J145: 318.12 | K145: 292.74 | L145: 371.04 | M145: 272.74 | N145: 419.17 | O145: 664.74 | P145: 264.96 | Q145: 308.68 | R145: 244.25 | S145: 282.32 | T145: 244.25 | U145: 164.67 | V145: 522.25 | W145: 339.22 | X145: 560.31 | Y145: 119.73 | Z145: 845.02 | AA145: 408.52 | AB145: 228.47 | AC145: 259.55 | AD145: 347.0518519
A146: Non-IP | B146: Phillips Petroleum, Teesside | C146: 538.52 | D146: 388.66 | E146: 388.66 | F146: 411.29 | G146: 260.26 | H146: 515.66 | I146: 139.9 | J146: 351.78 | K146: 124.54 | L146: 557.56 | M146: 185.99 | N146: 253.25 | O146: 290.57 | P146: 168.2 | Q146: 361.22 | R146: 164.27 | S146: 141.74 | T146: 164.27 | U146: 510.42 | V146: 708.77 | W146: 334.09 | X146: 186.14 | Y146: 310.98 | Z146: 470.85 | AA146: 0 | AB146: 249.27 | AC146: 603.81 | AD146: 325.21
A147: Non-IP | B147: Pickering | C147: 461.96 | D147: 312.1 | E147: 312.1 | F147: 452.33 | G147: 301.3 | H147: 439.1 | I147: 190.87 | J147: 392.82 | K147: 39.22 | L147: 481 | M147: 100.67 | N147: 294.29 | O147: 341.54 | P147: 82.88 | Q147: 402.26 | R147: 148.25 | S147: 56.42 | T147: 148.25 | U147: 433.86 | V147: 632.21 | W147: 375.13 | X147: 237.11 | Y147: 234.42 | Z147: 521.82 | AA147: 85.32 | AB147: 172.71 | AC147: 527.25 | AD147: 302.8588889
A148: Non-IP | B148: Pickmere (Winnington Power, aka Brunner Mond) | C148: 321.62 | D148: 342.08 | E148: 342.08 | F148: 69 | G148: 184.33 | H148: 434.75 | I148: 236.07 | J148: 9.49 | K148: 382.72 | L148: 340.66 | M148: 378.35 | N148: 95.01 | O148: 386.74 | P148: 367.8 | Q148: 18.93 | R148: 328.47 | S148: 372.3 | T148: 328.47 | U148: 429.51 | V148: 491.87 | W148: 15.06 | X148: 282.31 | Y148: 269.34 | Z148: 637.74 | AA148: 342.29 | AB148: 334.08 | AC148: 386.91 | AD148: 301.0362963
A149: Non-IP | B149: Pitcairngreen | C149: 770.61 | D149: 710.58 | E149: 710.58 | F149: 521.44 | G149: 370.41 | H149: 837.58 | I149: 216.37 | J149: 461.93 | K149: 446.46 | L149: 789.65 | M149: 507.91 | N149: 363.4 | O149: 102.34 | P149: 490.12 | Q149: 471.37 | R149: 486.19 | S149: 463.66 | T149: 486.19 | U149: 832.34 | V149: 940.86 | W149: 444.24 | X149: 170.13 | Y149: 632.9 | Z149: 188.97 | AA149: 356.27 | AB149: 571.19 | AC149: 835.9 | AD149: 525.17
A150: Non-IP | B150: Pucklechurch | C150: 25.52 | D150: 340.95 | E150: 340.95 | F150: 326.16 | G150: 476.98 | H150: 183.36 | I150: 528.72 | J150: 286.61 | K150: 397.22 | L150: 201.6 | M150: 377.22 | N150: 387.66 | O150: 679.39 | P150: 369.44 | Q150: 277.17 | R150: 348.73 | S150: 386.8 | T150: 348.73 | U150: 428.38 | V150: 352.81 | W150: 307.71 | X150: 574.96 | Y150: 268.21 | Z150: 930.39 | AA150: 513 | AB150: 332.95 | AC150: 90.81 | AD150: 373.4233333
A151: Non-IP | B151: Rawcliffe | C151: 398.91 | D151: 249.05 | E151: 249.05 | F151: 372.81 | G151: 221.78 | H151: 376.05 | I151: 245.16 | J151: 313.3 | K151: 84.37 | L151: 417.95 | M151: 87.24 | N151: 214.77 | O151: 395.83 | P151: 69.45 | Q151: 322.74 | R151: 24.66 | S151: 73.95 | T151: 24.66 | U151: 370.81 | V151: 569.16 | W151: 295.61 | X151: 291.4 | Y151: 171.37 | Z151: 576.11 | AA151: 139.61 | AB151: 109.66 | AC151: 464.2 | AD151: 264.0614815
A152: Non-IP | B152: Rollswood Kintore | C152: 892.01 | D152: 761.26 | E152: 761.26 | F152: 642.84 | G152: 491.81 | H152: 888.26 | I152: 337.77 | J152: 583.33 | K152: 497.14 | L152: 911.05 | M152: 558.59 | N152: 484.8 | O152: 223.74 | P152: 540.8 | Q152: 592.77 | R152: 536.87 | S152: 514.34 | T152: 536.87 | U152: 883.02 | V152: 1062.26 | W152: 565.64 | X152: 291.53 | Y152: 683.58 | Z152: 63.9 | AA152: 406.95 | AB152: 621.87 | AC152: 957.3 | AD152: 603.3911111
A153: Non-IP | B153: Roosecote Power Station (Barrow) | C153: 502.5 | D153: 470.83 | E153: 470.83 | F153: 253.33 | G153: 0 | H153: 597.83 | I153: 154.04 | J153: 193.82 | K153: 300.69 | L153: 521.54 | M153: 303.56 | N153: 95.29 | O153: 304.71 | P153: 285.77 | Q153: 203.26 | R153: 246.44 | S153: 290.27 | T153: 246.44 | U153: 592.59 | V153: 672.75 | W153: 176.13 | X153: 200.28 | Y153: 393.15 | Z153: 555.71 | AA153: 260.26 | AB153: 331.44 | AC153: 567.79 | AD153: 340.4166667
A154: Non-IP | B154: Rosehill (Saltend Power Station) | C154: 380.39 | D154: 230.53 | E154: 230.53 | F154: 386.06 | G154: 284.76 | H154: 357.53 | I154: 272.74 | J154: 346.51 | K154: 42.65 | L154: 399.43 | M154: 24.21 | N154: 277.75 | O154: 423.41 | P154: 14.87 | Q154: 337.07 | R154: 93.1 | S154: 32.23 | T154: 93.1 | U154: 352.29 | V154: 550.64 | W154: 358.59 | X154: 318.98 | Y154: 152.85 | Z154: 603.69 | AA154: 167.19 | AB154: 91.14 | AC154: 445.68 | AD154: 269.1822222
A155: Non-IP | B155: Ross (SW) | C155: 159.3 | D155: 317.69 | E155: 317.69 | F155: 302.9 | G155: 453.72 | H155: 317.14 | I155: 505.46 | J155: 263.35 | K155: 373.96 | L155: 67.84 | M155: 353.96 | N155: 364.4 | O155: 656.13 | P155: 346.18 | Q155: 253.91 | R155: 325.47 | S155: 363.54 | T155: 325.47 | U155: 405.12 | V155: 219.05 | W155: 284.45 | X155: 551.7 | Y155: 244.95 | Z155: 907.13 | AA155: 489.74 | AB155: 309.69 | AC155: 224.59 | AD155: 359.427037
A156: Non-IP | B156: Ross (WM) | C156: 159.3 | D156: 317.69 | E156: 317.69 | F156: 302.9 | G156: 453.72 | H156: 317.14 | I156: 505.46 | J156: 263.35 | K156: 373.96 | L156: 67.84 | M156: 353.96 | N156: 364.4 | O156: 656.13 | P156: 346.18 | Q156: 253.91 | R156: 325.47 | S156: 363.54 | T156: 325.47 | U156: 405.12 | V156: 219.05 | W156: 284.45 | X156: 551.7 | Y156: 244.95 | Z156: 907.13 | AA156: 489.74 | AB156: 309.69 | AC156: 224.59 | AD156: 359.427037
A157: Non-IP | B157: Roudham Heath | C157: 403.81 | D157: 64.53 | E157: 64.53 | F157: 409.48 | G157: 535.36 | H157: 269.28 | I157: 558.74 | J157: 369.93 | K157: 337.41 | L157: 422.85 | M157: 317.41 | N157: 470.98 | O157: 709.41 | P157: 309.63 | Q157: 360.49 | R157: 288.92 | S157: 326.99 | T157: 288.92 | U157: 185.19 | V157: 574.06 | W157: 391.03 | X157: 604.98 | Y157: 171.54 | Z157: 889.69 | AA157: 453.19 | AB157: 273.14 | AC157: 361.83 | AD157: 385.6785185
A158: Non-IP | B158: Royston | C158: 349.17 | D158: 144.99 | E158: 144.99 | F158: 354.84 | G158: 487.86 | H158: 188.82 | I158: 511.24 | J158: 315.29 | K158: 289.91 | L158: 368.21 | M158: 269.91 | N158: 416.34 | O158: 661.91 | P158: 262.13 | Q158: 305.85 | R158: 241.42 | S158: 279.49 | T158: 241.42 | U158: 130.55 | V158: 519.42 | W158: 336.39 | X158: 557.48 | Y158: 116.9 | Z158: 842.19 | AA158: 405.69 | AB158: 225.64 | AC158: 281.37 | AD158: 342.5711111
A159: Non-IP | B159: Rugby | C159: 161.42 | D159: 205.05 | E159: 205.05 | F159: 190.26 | G159: 341.08 | H159: 297.72 | I159: 392.82 | J159: 150.71 | K159: 261.32 | L159: 180.46 | M159: 241.32 | N159: 251.76 | O159: 543.49 | P159: 233.54 | Q159: 141.27 | R159: 212.83 | S159: 250.9 | T159: 212.83 | U159: 292.48 | V159: 331.67 | W159: 171.81 | X159: 439.06 | Y159: 132.31 | Z159: 794.49 | AA159: 377.1 | AB159: 197.05 | AC159: 226.71 | AD159: 275.4262963
A160: Non-IP | B160: Ryehouse | C160: 401.94 | D160: 197.76 | E160: 197.76 | F160: 407.61 | G160: 540.63 | H160: 267.41 | I160: 564.01 | J160: 368.06 | K160: 342.68 | L160: 420.98 | M160: 322.68 | N160: 469.11 | O160: 714.68 | P160: 314.9 | Q160: 358.62 | R160: 294.19 | S160: 332.26 | T160: 294.19 | U160: 92.24 | V160: 572.19 | W160: 389.16 | X160: 610.25 | Y160: 169.67 | Z160: 894.96 | AA160: 458.46 | AB160: 278.41 | AC160: 359.96 | AD160: 393.8803704
A161: Non-IP | B161: Saddle Bow (Kings Lynn) | C161: 291.66 | D161: 78.4 | E161: 78.4 | F161: 297.33 | G161: 396.02 | H161: 263.16 | I161: 419.4 | J161: 257.78 | K161: 198.07 | L161: 310.7 | M161: 178.07 | N161: 358.83 | O161: 570.07 | P161: 170.29 | Q161: 248.34 | R161: 149.58 | S161: 187.65 | T161: 149.58 | U161: 257.92 | V161: 461.91 | W161: 278.88 | X161: 465.64 | Y161: 36.29 | Z161: 750.35 | AA161: 313.85 | AB161: 133.8 | AC161: 355.71 | AD161: 283.6177778
A162: Non-IP | B162: Saltend BPHP (BP Saltend HP) | C162: 383.25 | D162: 233.39 | E162: 233.39 | F162: 388.92 | G162: 289.18 | H162: 360.39 | I162: 277.16 | J162: 349.37 | K162: 47.07 | L162: 402.29 | M162: 27.07 | N162: 282.17 | O162: 427.83 | P162: 19.29 | Q162: 339.93 | R162: 97.52 | S162: 36.65 | T162: 97.52 | U162: 355.15 | V162: 553.5 | W162: 363.01 | X162: 323.4 | Y162: 155.71 | Z162: 608.11 | AA162: 171.61 | AB162: 94 | AC162: 448.54 | AD162: 272.7933333
A163: Non-IP | B163: Saltfleetby Storage (Theddlethorpe) | C163: 358.47 | D163: 208.61 | E163: 208.61 | F163: 364.14 | G163: 331.44 | H163: 335.61 | I163: 354.82 | J163: 324.59 | K163: 133.49 | L163: 377.51 | M163: 113.49 | N163: 324.43 | O163: 505.49 | P163: 105.71 | Q163: 315.15 | R163: 85 | S163: 123.07 | T163: 85 | U163: 330.37 | V163: 528.72 | W163: 345.69 | X163: 401.06 | Y163: 130.93 | Z163: 685.77 | AA163: 249.27 | AB163: 0 | AC163: 423.76 | AD163: 287.0444444
A164: Non-IP | B164: Saltwick Pressure Controlled | C164: 742.98 | D164: 593.12 | E164: 593.12 | F164: 605.48 | G164: 454.45 | H164: 720.12 | I164: 310.37 | J164: 545.97 | K164: 329 | L164: 762.02 | M164: 390.45 | N164: 447.44 | O164: 208.41 | P164: 372.66 | Q164: 555.41 | R164: 368.73 | S164: 346.2 | T164: 368.73 | U164: 714.88 | V164: 913.23 | W164: 528.28 | X164: 276.2 | Y164: 515.44 | Z164: 352.96 | AA164: 238.81 | AB164: 453.73 | AC164: 808.27 | AD164: 500.6096296
A165: Non-IP | B165: Saltwick Volumetric Controlled | C165: 742.98 | D165: 593.12 | E165: 593.12 | F165: 605.48 | G165: 454.45 | H165: 720.12 | I165: 310.37 | J165: 545.97 | K165: 329 | L165: 762.02 | M165: 390.45 | N165: 447.44 | O165: 208.41 | P165: 372.66 | Q165: 555.41 | R165: 368.73 | S165: 346.2 | T165: 368.73 | U165: 714.88 | V165: 913.23 | W165: 528.28 | X165: 276.2 | Y165: 515.44 | Z165: 352.96 | AA165: 238.81 | AB165: 453.73 | AC165: 808.27 | AD165: 500.6096296
A166: Non-IP | B166: Samlesbury | C166: 514.6 | D166: 450.55 | E166: 450.55 | F166: 265.43 | G166: 114.4 | H166: 577.55 | I166: 166.14 | J166: 205.92 | K166: 280.41 | L166: 533.64 | M166: 283.28 | N166: 107.39 | O166: 316.81 | P166: 265.49 | Q166: 215.36 | R166: 226.16 | S166: 269.99 | T166: 226.16 | U166: 572.31 | V166: 684.85 | W166: 188.23 | X166: 212.38 | Y166: 372.87 | Z166: 567.81 | AA166: 239.98 | AB166: 311.16 | AC166: 579.89 | AD166: 340.7151852
A167: Non-IP | B167: Sandy Lane (Blackburn CHP, aka Sappi Paper Mill) | C167: 520.39 | D167: 456.34 | E167: 456.34 | F167: 271.22 | G167: 120.19 | H167: 583.34 | I167: 171.93 | J167: 211.71 | K167: 286.2 | L167: 539.43 | M167: 289.07 | N167: 113.18 | O167: 322.6 | P167: 271.28 | Q167: 221.15 | R167: 231.95 | S167: 275.78 | T167: 231.95 | U167: 578.1 | V167: 690.64 | W167: 194.02 | X167: 218.17 | Y167: 378.66 | Z167: 573.6 | AA167: 245.77 | AB167: 316.95 | AC167: 585.68 | AD167: 346.5051852
A168: Non-IP | B168: Seabank (DN) | C168: 2.22 | D168: 368.69 | E168: 368.69 | F168: 353.9 | G168: 504.72 | H168: 211.1 | I168: 556.46 | J168: 314.35 | K168: 424.96 | L168: 229.34 | M168: 404.96 | N168: 415.4 | O168: 707.13 | P168: 397.18 | Q168: 304.91 | R168: 376.47 | S168: 414.54 | T168: 376.47 | U168: 456.12 | V168: 380.55 | W168: 335.45 | X168: 602.7 | Y168: 295.95 | Z168: 958.13 | AA168: 540.74 | AB168: 360.69 | AC168: 118.55 | AD168: 399.272963
A169: Non-IP | B169: Seabank (Seabank Power Station phase II) | C169: 0.41 | D169: 366.88 | E169: 366.88 | F169: 352.09 | G169: 502.91 | H169: 209.29 | I169: 554.65 | J169: 312.54 | K169: 423.15 | L169: 227.53 | M169: 403.15 | N169: 413.59 | O169: 705.32 | P169: 395.37 | Q169: 303.1 | R169: 374.66 | S169: 412.73 | T169: 374.66 | U169: 454.31 | V169: 378.74 | W169: 333.64 | X169: 600.89 | Y169: 294.14 | Z169: 956.32 | AA169: 538.93 | AB169: 358.88 | AC169: 116.74 | AD169: 397.462963
A170: Non-IP | B170: Seal Sands TGPP | C170: 538.52 | D170: 388.66 | E170: 388.66 | F170: 411.29 | G170: 260.26 | H170: 515.66 | I170: 139.9 | J170: 351.78 | K170: 124.54 | L170: 557.56 | M170: 185.99 | N170: 253.25 | O170: 290.57 | P170: 168.2 | Q170: 361.22 | R170: 164.27 | S170: 141.74 | T170: 164.27 | U170: 510.42 | V170: 708.77 | W170: 334.09 | X170: 186.14 | Y170: 310.98 | Z170: 470.85 | AA170: 0 | AB170: 249.27 | AC170: 603.81 | AD170: 325.21
A171: Non-IP | B171: Sellafield Power Station | C171: 533.25 | D171: 501.58 | E171: 501.58 | F171: 284.08 | G171: 58.73 | H171: 628.58 | I171: 184.79 | J171: 224.57 | K171: 331.44 | L171: 552.29 | M171: 334.31 | N171: 126.04 | O171: 335.46 | P171: 316.52 | Q171: 234.01 | R171: 277.19 | S171: 321.02 | T171: 277.19 | U171: 623.34 | V171: 703.5 | W171: 206.88 | X171: 231.03 | Y171: 423.9 | Z171: 586.46 | AA171: 291.01 | AB171: 362.19 | AC171: 598.54 | AD171: 372.202963
A172: Non-IP | B172: Shellstar (aka Kemira, not Kemira CHP) | C172: 342.33 | D172: 362.79 | E172: 362.79 | F172: 26.09 | G172: 243.98 | H172: 455.46 | I172: 295.72 | J172: 50.16 | K172: 419.06 | L172: 361.37 | M172: 399.06 | N172: 154.66 | O172: 446.39 | P172: 391.28 | Q172: 42.71 | R172: 370.57 | S172: 408.64 | T172: 370.57 | U172: 450.22 | V172: 512.58 | W172: 74.71 | X172: 341.96 | Y172: 290.05 | Z172: 697.39 | AA172: 401.94 | AB172: 354.79 | AC172: 407.62 | AD172: 334.6255556
A173: Non-IP | B173: Shorne | C173: 434.29 | D173: 197.29 | E173: 197.29 | F173: 439.96 | G173: 572.98 | H173: 299.76 | I173: 596.36 | J173: 400.41 | K173: 375.03 | L173: 453.33 | M173: 355.03 | N173: 501.46 | O173: 747.03 | P173: 347.25 | Q173: 390.97 | R173: 326.54 | S173: 364.61 | T173: 326.54 | U173: 19.61 | V173: 604.54 | W173: 421.51 | X173: 642.6 | Y173: 202.02 | Z173: 927.31 | AA173: 490.81 | AB173: 310.76 | AC173: 392.31 | AD173: 419.9111111
A174: Non-IP | B174: Shotwick (Bridgewater Paper) | C174: 346.2 | D174: 366.66 | E174: 366.66 | F174: 5.66 | G174: 247.85 | H174: 459.33 | I174: 299.59 | J174: 54.03 | K174: 422.93 | L174: 365.24 | M174: 402.93 | N174: 158.53 | O174: 450.26 | P174: 395.15 | Q174: 46.58 | R174: 374.44 | S174: 412.51 | T174: 374.44 | U174: 454.09 | V174: 516.45 | W174: 78.58 | X174: 345.83 | Y174: 293.92 | Z174: 701.26 | AA174: 405.81 | AB174: 358.66 | AC174: 411.49 | AD174: 337.5955556
A175: Non-IP | B175: Shustoke | C175: 220.94 | D175: 249.77 | E175: 249.77 | F175: 165.42 | G175: 316.24 | H175: 342.44 | I175: 367.98 | J175: 125.87 | K175: 306.04 | L175: 239.98 | M175: 286.04 | N175: 226.92 | O175: 518.65 | P175: 278.26 | Q175: 116.43 | R175: 257.55 | S175: 295.62 | T175: 257.55 | U175: 337.2 | V175: 391.19 | W175: 146.97 | X175: 414.22 | Y175: 177.03 | Z175: 769.65 | AA175: 421.82 | AB175: 241.77 | AC175: 286.23 | AD175: 296.5759259
A176: Non-IP | B176: Silk Willoughby | C176: 288.54 | D176: 173.01 | E176: 173.01 | F176: 294.21 | G176: 332.15 | H176: 265.68 | I176: 355.53 | J176: 254.66 | K176: 134.2 | L176: 307.58 | M176: 114.2 | N176: 325.14 | O176: 506.2 | P176: 106.42 | Q176: 245.22 | R176: 85.71 | S176: 123.78 | T176: 85.71 | U176: 260.44 | V176: 458.79 | W176: 275.76 | X176: 401.77 | Y176: 100.27 | Z176: 686.48 | AA176: 249.98 | AB176: 69.93 | AC176: 353.83 | AD176: 260.3037037
A177: Non-IP | B177: Soutra | C177: 739.3 | D177: 589.44 | E177: 589.44 | F177: 510.27 | G177: 359.24 | H177: 716.44 | I177: 205.2 | J177: 450.76 | K177: 325.32 | L177: 758.34 | M177: 386.77 | N177: 352.23 | O177: 91.17 | P177: 368.98 | Q177: 460.2 | R177: 365.05 | S177: 342.52 | T177: 365.05 | U177: 711.2 | V177: 909.55 | W177: 433.07 | X177: 158.96 | Y177: 511.76 | Z177: 342.17 | AA177: 235.13 | AB177: 450.05 | AC177: 804.59 | AD177: 464.1555556
A178: Non-IP | B178: Spalding 2 (South Holland) Power Station | C178: 297.08 | D178: 114.45 | E178: 114.45 | F178: 302.75 | G178: 356.38 | H178: 263.64 | I178: 379.76 | J178: 263.2 | K178: 158.43 | L178: 316.12 | M178: 138.43 | N178: 349.37 | O178: 530.43 | P178: 130.65 | Q178: 253.76 | R178: 109.94 | S178: 148.01 | T178: 109.94 | U178: 258.4 | V178: 467.33 | W178: 284.3 | X178: 426 | Y178: 36.77 | Z178: 710.71 | AA178: 274.21 | AB178: 94.16 | AC178: 356.19 | AD178: 268.3281481
A179: Non-IP | B179: St Fergus | C179: 955.91 | D179: 825.16 | E179: 825.16 | F179: 706.74 | G179: 555.71 | H179: 952.16 | I179: 401.67 | J179: 647.23 | K179: 561.04 | L179: 974.95 | M179: 622.49 | N179: 548.7 | O179: 287.64 | P179: 604.7 | Q179: 656.67 | R179: 600.77 | S179: 578.24 | T179: 600.77 | U179: 946.92 | V179: 1126.16 | W179: 629.54 | X179: 355.43 | Y179: 747.48 | Z179: 0 | AA179: 470.85 | AB179: 685.77 | AC179: 1021.2 | AD179: 662.5577778
A180: Non-IP | B180: St. Fergus (Peterhead) | C180: 955.91 | D180: 825.16 | E180: 825.16 | F180: 706.74 | G180: 555.71 | H180: 952.16 | I180: 401.67 | J180: 647.23 | K180: 561.04 | L180: 974.95 | M180: 622.49 | N180: 548.7 | O180: 287.64 | P180: 604.7 | Q180: 656.67 | R180: 600.77 | S180: 578.24 | T180: 600.77 | U180: 946.92 | V180: 1126.16 | W180: 629.54 | X180: 355.43 | Y180: 747.48 | Z180: 0 | AA180: 470.85 | AB180: 685.77 | AC180: 1021.2 | AD180: 662.5577778
A181: Non-IP | B181: St. Fergus (Shell Blackstart) | C181: 955.91 | D181: 825.16 | E181: 825.16 | F181: 706.74 | G181: 555.71 | H181: 952.16 | I181: 401.67 | J181: 647.23 | K181: 561.04 | L181: 974.95 | M181: 622.49 | N181: 548.7 | O181: 287.64 | P181: 604.7 | Q181: 656.67 | R181: 600.77 | S181: 578.24 | T181: 600.77 | U181: 946.92 | V181: 1126.16 | W181: 629.54 | X181: 355.43 | Y181: 747.48 | Z181: 0 | AA181: 470.85 | AB181: 685.77 | AC181: 1021.2 | AD181: 662.5577778
A182: Non-IP | B182: St. Neots (Little Barford) | C182: 298.31 | D182: 170.03 | E182: 170.03 | F182: 303.98 | G182: 437 | H182: 197.07 | I182: 460.38 | J182: 264.43 | K182: 239.05 | L182: 317.35 | M182: 219.05 | N182: 365.48 | O182: 611.05 | P182: 211.27 | Q182: 254.99 | R182: 190.56 | S182: 228.63 | T182: 190.56 | U182: 155.59 | V182: 468.56 | W182: 285.53 | X182: 506.62 | Y182: 66.04 | Z182: 791.33 | AA182: 354.83 | AB182: 174.78 | AC182: 289.62 | AD182: 304.522963
A183: Non-IP | B183: Stallingborough | C183: 373.2 | D183: 223.34 | E183: 223.34 | F183: 378.87 | G183: 312.09 | H183: 350.34 | I183: 300.07 | J183: 339.32 | K183: 69.98 | L183: 392.24 | M183: 49.98 | N183: 305.08 | O183: 450.74 | P183: 42.2 | Q183: 329.88 | R183: 99.73 | S183: 59.56 | T183: 99.73 | U183: 345.1 | V183: 543.45 | W183: 360.42 | X183: 346.31 | Y183: 145.66 | Z183: 631.02 | AA183: 194.52 | AB183: 83.95 | AC183: 438.49 | AD183: 277.3559259
A184: Non-IP | B184: Stanford Le Hope (Coryton) | C184: 425.39 | D184: 188.39 | E184: 188.39 | F184: 431.06 | G184: 564.08 | H184: 290.86 | I184: 587.46 | J184: 391.51 | K184: 366.13 | L184: 444.43 | M184: 346.13 | N184: 492.56 | O184: 738.13 | P184: 338.35 | Q184: 382.07 | R184: 317.64 | S184: 355.71 | T184: 317.64 | U184: 28.51 | V184: 595.64 | W184: 412.61 | X184: 633.7 | Y184: 193.12 | Z184: 918.41 | AA184: 481.91 | AB184: 301.86 | AC184: 383.41 | AD184: 411.6703704
A185: Non-IP | B185: Staythorpe | C185: 327.01 | D185: 211.48 | E185: 211.48 | F185: 332.68 | G185: 370.62 | H185: 304.15 | I185: 394 | J185: 293.13 | K185: 172.67 | L185: 346.05 | M185: 152.67 | N185: 363.61 | O185: 544.67 | P185: 144.89 | Q185: 283.69 | R185: 124.18 | S185: 162.25 | T185: 124.18 | U185: 298.91 | V185: 497.26 | W185: 314.23 | X185: 440.24 | Y185: 138.74 | Z185: 724.95 | AA185: 288.45 | AB185: 108.4 | AC185: 392.3 | AD185: 298.7737037
A186: Non-IP | B186: Stranraer | C186: 600.48 | D186: 540.45 | E186: 540.45 | F186: 351.31 | G186: 200.28 | H186: 667.45 | I186: 46.24 | J186: 291.8 | K186: 276.33 | L186: 619.52 | M186: 337.78 | N186: 193.27 | O186: 104.43 | P186: 319.99 | Q186: 301.24 | R186: 316.06 | S186: 293.53 | T186: 316.06 | U186: 662.21 | V186: 770.73 | W186: 274.11 | X186: 0 | Y186: 462.77 | Z186: 355.43 | AA186: 186.14 | AB186: 401.06 | AC186: 665.77 | AD186: 373.8848148
A187: Non-IP | B187: Stratford-upon-Avon | C187: 126.04 | D187: 240.43 | E187: 240.43 | F187: 225.64 | G187: 376.46 | H187: 283.88 | I187: 428.2 | J187: 186.09 | K187: 296.7 | L187: 145.08 | M187: 276.7 | N187: 287.14 | O187: 578.87 | P187: 268.92 | Q187: 176.65 | R187: 248.21 | S187: 286.28 | T187: 248.21 | U187: 327.86 | V187: 296.29 | W187: 207.19 | X187: 474.44 | Y187: 167.69 | Z187: 829.87 | AA187: 412.48 | AB187: 232.43 | AC187: 191.33 | AD187: 298.5003704
A188: Non-IP | B188: Stublach (Cheshire) | C188: 312.23 | D188: 332.69 | E188: 332.69 | F188: 59.61 | G188: 193.72 | H188: 425.36 | I188: 245.46 | J188: 0.1 | K188: 388.96 | L188: 331.27 | M188: 368.96 | N188: 104.4 | O188: 396.13 | P188: 361.18 | Q188: 9.54 | R188: 337.86 | S188: 378.54 | T188: 337.86 | U188: 420.12 | V188: 482.48 | W188: 24.45 | X188: 291.7 | Y188: 259.95 | Z188: 647.13 | AA188: 351.68 | AB188: 324.69 | AC188: 377.52 | AD188: 299.8622222
A189: Non-IP | B189: Sutton Bridge | C189: 283.53 | D189: 100.9 | E189: 100.9 | F189: 289.2 | G189: 369.93 | H189: 250.09 | I189: 393.31 | J189: 249.65 | K189: 171.98 | L189: 302.57 | M189: 151.98 | N189: 350.7 | O189: 543.98 | P189: 144.2 | Q189: 240.21 | R189: 123.49 | S189: 161.56 | T189: 123.49 | U189: 244.85 | V189: 453.78 | W189: 270.75 | X189: 439.55 | Y189: 23.22 | Z189: 724.26 | AA189: 287.76 | AB189: 107.71 | AC189: 342.64 | AD189: 268.3774074
A190: Non-IP | B190: Sutton Bridge Power Station | C190: 283.53 | D190: 100.9 | E190: 100.9 | F190: 289.2 | G190: 369.93 | H190: 250.09 | I190: 393.31 | J190: 249.65 | K190: 171.98 | L190: 302.57 | M190: 151.98 | N190: 350.7 | O190: 543.98 | P190: 144.2 | Q190: 240.21 | R190: 123.49 | S190: 161.56 | T190: 123.49 | U190: 244.85 | V190: 453.78 | W190: 270.75 | X190: 439.55 | Y190: 23.22 | Z190: 724.26 | AA190: 287.76 | AB190: 107.71 | AC190: 342.64 | AD190: 268.3774074
A191: Non-IP | B191: Tatsfield | C191: 473.84 | D191: 236.84 | E191: 236.84 | F191: 479.51 | G191: 612.53 | H191: 339.31 | I191: 635.91 | J191: 439.96 | K191: 414.58 | L191: 492.88 | M191: 394.58 | N191: 541.01 | O191: 786.58 | P191: 386.8 | Q191: 430.52 | R191: 366.09 | S191: 404.16 | T191: 366.09 | U191: 59.16 | V191: 644.09 | W191: 461.06 | X191: 682.15 | Y191: 241.57 | Z191: 966.86 | AA191: 530.36 | AB191: 350.31 | AC191: 431.86 | AD191: 459.4611111
A192: Non-IP | B192: Teesside (BASF, aka BASF Teesside) | C192: 538.97 | D192: 389.11 | E192: 389.11 | F192: 411.74 | G192: 260.71 | H192: 516.11 | I192: 140.35 | J192: 352.23 | K192: 124.99 | L192: 558.01 | M192: 186.44 | N192: 253.7 | O192: 291.02 | P192: 168.65 | Q192: 361.67 | R192: 164.72 | S192: 142.19 | T192: 164.72 | U192: 510.87 | V192: 709.22 | W192: 334.54 | X192: 186.59 | Y192: 311.43 | Z192: 471.3 | AA192: 0.45 | AB192: 249.72 | AC192: 604.26 | AD192: 325.66
A193: Non-IP | B193: Teesside Hydrogen | C193: 538.52 | D193: 388.66 | E193: 388.66 | F193: 411.29 | G193: 260.26 | H193: 515.66 | I193: 139.9 | J193: 351.78 | K193: 124.54 | L193: 557.56 | M193: 185.99 | N193: 253.25 | O193: 290.57 | P193: 168.2 | Q193: 361.22 | R193: 164.27 | S193: 141.74 | T193: 164.27 | U193: 510.42 | V193: 708.77 | W193: 334.09 | X193: 186.14 | Y193: 310.98 | Z193: 470.85 | AA193: 0 | AB193: 249.27 | AC193: 603.81 | AD193: 325.21
A194: Non-IP | B194: Terra Nitrogen (aka ICI, Terra Severnside) | C194: 1.23 | D194: 365.24 | E194: 365.24 | F194: 350.45 | G194: 501.27 | H194: 207.65 | I194: 553.01 | J194: 310.9 | K194: 421.51 | L194: 225.89 | M194: 401.51 | N194: 411.95 | O194: 703.68 | P194: 393.73 | Q194: 301.46 | R194: 373.02 | S194: 411.09 | T194: 373.02 | U194: 452.67 | V194: 377.1 | W194: 332 | X194: 599.25 | Y194: 292.5 | Z194: 954.68 | AA194: 537.29 | AB194: 357.24 | AC194: 115.1 | AD194: 395.9140741
A195: Non-IP | B195: Thornton Curtis (DN) | C195: 365.79 | D195: 215.93 | E195: 215.93 | F195: 371.46 | G195: 299.06 | H195: 342.93 | I195: 287.04 | J195: 331.91 | K195: 56.95 | L195: 384.83 | M195: 36.95 | N195: 292.05 | O195: 437.71 | P195: 29.17 | Q195: 322.47 | R195: 92.32 | S195: 46.53 | T195: 92.32 | U195: 337.69 | V195: 536.04 | W195: 353.01 | X195: 333.28 | Y195: 138.25 | Z195: 617.99 | AA195: 181.49 | AB195: 76.54 | AC195: 431.08 | AD195: =AVERAGE(C195:AC195) -> 267.6562963
A196: Non-IP | B196: Thornton Curtis (Humber Refinery, aka Immingham) | C196: 365.79 | D196: 215.93 | E196: 215.93 | F196: 371.46 | G196: 299.06 | H196: 342.93 | I196: 287.04 | J196: 331.91 | K196: 56.95 | L196: 384.83 | M196: 36.95 | N196: 292.05 | O196: 437.71 | P196: 29.17 | Q196: 322.47 | R196: 92.32 | S196: 46.53 | T196: 92.32 | U196: 337.69 | V196: 536.04 | W196: 353.01 | X196: 333.28 | Y196: 138.25 | Z196: 617.99 | AA196: 181.49 | AB196: 76.54 | AC196: 431.08 | AD196: 267.6562963
A197: Non-IP | B197: Thornton Curtis (Killingholme) | C197: 365.79 | D197: 215.93 | E197: 215.93 | F197: 371.46 | G197: 299.06 | H197: 342.93 | I197: 287.04 | J197: 331.91 | K197: 56.95 | L197: 384.83 | M197: 36.95 | N197: 292.05 | O197: 437.71 | P197: 29.17 | Q197: 322.47 | R197: 92.32 | S197: 46.53 | T197: 92.32 | U197: 337.69 | V197: 536.04 | W197: 353.01 | X197: 333.28 | Y197: 138.25 | Z197: 617.99 | AA197: 181.49 | AB197: 76.54 | AC197: 431.08 | AD197: 267.6562963
A198: Non-IP | B198: Thrintoft | C198: 504.13 | D198: 354.27 | E198: 354.27 | F198: 358.69 | G198: 207.66 | H198: 481.27 | I198: 147.88 | J198: 299.18 | K198: 132.86 | L198: 523.17 | M198: 187 | N198: 200.65 | O198: 298.55 | P198: 169.21 | Q198: 308.62 | R198: 129.88 | S198: 150.06 | T198: 129.88 | U198: 476.03 | V198: 674.38 | W198: 281.49 | X198: 194.12 | Y198: 276.59 | Z198: 478.83 | AA198: 52.6 | AB198: 214.88 | AC198: 569.42 | AD198: 302.0581481
A199: Non-IP | B199: Tilbury Power Station | C199: 430.8 | D199: 193.8 | E199: 193.8 | F199: 436.47 | G199: 569.49 | H199: 296.27 | I199: 592.87 | J199: 396.92 | K199: 371.54 | L199: 449.84 | M199: 351.54 | N199: 497.97 | O199: 743.54 | P199: 343.76 | Q199: 387.48 | R199: 323.05 | S199: 361.12 | T199: 323.05 | U199: 23.1 | V199: 601.05 | W199: 418.02 | X199: 639.11 | Y199: 198.53 | Z199: 923.82 | AA199: 487.32 | AB199: 307.27 | AC199: 388.82 | AD199: 416.6796296
A200: Non-IP | B200: Tonna (Baglan Bay) | C200: 252.57 | D200: 410.96 | E200: 410.96 | F200: 396.17 | G200: 546.99 | H200: 410.41 | I200: 598.73 | J200: 356.62 | K200: 467.23 | L200: 25.45 | M200: 447.23 | N200: 457.67 | O200: 749.4 | P200: 439.45 | Q200: 347.18 | R200: 418.74 | S200: 456.81 | T200: 418.74 | U200: 498.39 | V200: 125.76 | W200: 377.72 | X200: 644.97 | Y200: 338.22 | Z200: 1000.4 | AA200: 583.01 | AB200: 402.96 | AC200: 317.86 | AD200: 440.762963
... 35 more rows

Sheet Distances En-En (hidden)
A1: DISTANCES (KM) | B1: Avonmouth | C1: Bacton IP | D1: Bacton UKCS | E1: Burton Point | F1: Barrow | G1: Barton Stacey | H1: Canonbie | I1: Cheshire | J1: Caythorpe | K1: Dynevor Arms | L1: Easington | M1: Moffat (Irish Interconnector) | N1: Murrow | O1: Fleetwood | P1: Glenmavis | Q1: Garton | R1: Hole House Farm | S1: Hatfield Moor (onshore) | T1: Hornsea | U1: Hatfield Moor (storage) | V1: Isle of Grain | W1: Milford Haven | X1: Partington | Y1: St Fergus | Z1: Teesside | AA1: Theddlethorpe | AB1: Wytch Farm
A2: Avonmouth | B2: 0 | C2: 366.47 | D2: 366.47 | E2: 351.68 | F2: 502.5 | G2: 208.88 | H2: 554.24 | I2: 312.13 | J2: 422.74 | K2: 227.12 | L2: 402.74 | M2: 0.1 | N2: 0.1 | O2: 413.18 | P2: 705.82 | Q2: 394.96 | R2: 302.69 | S2: 374.25 | T2: 412.32 | U2: 374.25 | V2: 453.9 | W2: 378.33 | X2: 333.23 | Y2: 956.82 | Z2: 538.52 | AA2: 358.47 | AB2: 116.33
A3: Bacton IP | B3: 366.47 | C3: 0 | D3: 0 | E3: 372.14 | F3: 522.96 | G3: 333.81 | H3: 494.21 | I3: 332.59 | J3: 272.88 | K3: 385.51 | L3: 252.88 | M3: 0.1 | N3: 0.1 | O3: 433.64 | P3: 645.79 | Q3: 245.1 | R3: 323.15 | S3: 224.39 | T3: 262.46 | U3: 224.39 | V3: 216.9 | W3: 536.72 | X3: 353.69 | Y3: 825.16 | Z3: 388.66 | AA3: 208.61 | AB3: 426.36
A4: Bacton UKCS | B4: 366.47 | C4: 0 | D4: 0 | E4: 372.14 | F4: 522.96 | G4: 333.81 | H4: 494.21 | I4: 332.59 | J4: 272.88 | K4: 385.51 | L4: 252.88 | M4: 0.1 | N4: 0.1 | O4: 433.64 | P4: 645.79 | Q4: 245.1 | R4: 323.15 | S4: 224.39 | T4: 262.46 | U4: 224.39 | V4: 216.9 | W4: 536.72 | X4: 353.69 | Y4: 825.16 | Z4: 388.66 | AA4: 208.61 | AB4: 426.36
A5: Burton Point | B5: 351.68 | C5: 372.14 | D5: 372.14 | E5: 0 | F5: 253.33 | G5: 464.81 | H5: 305.07 | I5: 59.51 | J5: 428.41 | K5: 370.72 | L5: 408.41 | M5: 0.1 | N5: 0.1 | O5: 164.01 | P5: 456.65 | Q5: 400.63 | R5: 52.06 | S5: 379.92 | T5: 417.99 | U5: 379.92 | V5: 459.57 | W5: 521.93 | X5: 84.06 | Y5: 707.65 | Z5: 444.97 | AA5: 364.14 | AB5: 416.97
A6: Barrow | B6: 502.5 | C6: 522.96 | D6: 522.96 | E6: 253.33 | F6: 0 | G6: 615.63 | H6: 154.04 | I6: 193.82 | J6: 384.13 | K6: 521.54 | L6: 445.58 | M6: 0.1 | N6: 0.1 | O6: 95.29 | P6: 305.62 | Q6: 427.79 | R6: 203.26 | S6: 423.86 | T6: 401.33 | U6: 423.86 | V6: 610.39 | W6: 672.75 | X6: 176.13 | Y6: 556.62 | Z6: 293.94 | AA6: 508.86 | AB6: 567.79
A7: Barton Stacey | B7: 208.88 | C7: 333.81 | D7: 333.81 | E7: 464.81 | F7: 615.63 | G7: 0 | H7: 621.21 | I7: 425.26 | J7: 399.88 | K7: 384.96 | L7: 379.88 | M7: 0.1 | N7: 0.1 | O7: 526.31 | P7: 772.79 | Q7: 372.1 | R7: 415.82 | S7: 351.39 | T7: 389.46 | U7: 351.39 | V7: 319.37 | W7: 536.17 | X7: 446.36 | Y7: 952.16 | Z7: 515.66 | AA7: 335.61 | AB7: 92.55
A8: Canonbie | B8: 554.24 | C8: 494.21 | D8: 494.21 | E8: 305.07 | F8: 154.04 | G8: 621.21 | H8: 0 | I8: 245.56 | J8: 230.09 | K8: 573.28 | L8: 291.54 | M8: 0.1 | N8: 0.1 | O8: 147.03 | P8: 151.58 | Q8: 273.75 | R8: 255 | S8: 269.82 | T8: 247.29 | U8: 269.82 | V8: 615.97 | W8: 724.49 | X8: 227.87 | Y8: 402.58 | Z8: 139.9 | AA8: 354.82 | AB8: 619.53
A9: Cheshire | B9: 312.13 | C9: 332.59 | D9: 332.59 | E9: 59.51 | F9: 193.82 | G9: 425.26 | H9: 245.56 | I9: 0 | J9: 388.86 | K9: 331.17 | L9: 368.86 | M9: 0.1 | N9: 0.1 | O9: 104.5 | P9: 397.14 | Q9: 361.08 | R9: 9.44 | S9: 340.37 | T9: 378.44 | U9: 340.37 | V9: 420.02 | W9: 482.38 | X9: 24.55 | Y9: 648.14 | Z9: 385.46 | AA9: 324.59 | AB9: 377.42
A10: Caythorpe | B10: 422.74 | C10: 272.88 | D10: 272.88 | E10: 428.41 | F10: 384.13 | G10: 399.88 | H10: 230.09 | I10: 388.86 | J10: 0 | K10: 441.78 | L10: 61.45 | M10: 0.1 | N10: 0.1 | O10: 377.12 | P10: 381.67 | Q10: 43.66 | R10: 379.42 | S10: 109.03 | T10: 17.2 | U10: 109.03 | V10: 394.64 | W10: 592.99 | X10: 409.96 | Y10: 561.04 | Z10: 124.54 | AA10: 133.49 | AB10: 488.03
